Workbook

Sheet MENU

Sheet AMB_MB
F5: 1ª ETAPA (SP) | L5: 1ª ETAPA TOTAL | M5: 2ª ETAPA (SP) | S5: 2ª ETAPA TOTAL | T5: 3ª ETAPA (PE) | Z5: 3ª ETAPA TOTAL | AA5: 4ª ETAPA (SP) | AG5: 4ª ETAPA TOTAL | AH5: 5ª ETAPA (PR) | AN5: 5ª ETAPA TOTAL | AO5: 6ª ETAPA (RS) | AU5: 6ª ETAPA TOTAL | AV5: 7ª ETAPA (DF) | BB5: 7ª ETAPA TOTAL | BC5: 8ª ETAPA (SP) | BI5: 8ª ETAPA TOTAL | BJ5: 9ª ETAPA (SP) | BP5: 9ª ETAPA TOTAL | BQ5: 10ª ETAPA (SP) | BW5: 10ª ETAPA TOTAL | BX5: 11ª ETAPA (MG) | CD5: 11ª ETAPA TOTAL | CE5: 12ª ETAPA (SP) | CK5: 12ª ETAPA TOTAL | CL5: 13ª ETAPA (SP) | CR5: 13ª ETAPA TOTAL | CS5: 14ª ETAPA (SP) | CY5: 14ª ETAPA TOTAL | CZ5: 15ª ETAPA (SP) | DF5: 15ª ETAPA TOTAL | DG5: 16ª ETAPA (SP) | DM5: 16ª ETAPA TOTAL | DN5: QTDE PROVAS | DO5: TOTAL GERAL
B6: R | C6: COMPETIDOR | D6: ANIMAL | E6: CAT | F6: TORNEIO DE VERÃO I ETAPA | M6: TORNEIO DE VERÃO II ETAPA | T6: CSN RECIFE I ETAPA N/NE | AA6: CSN OPEN | AH6: CSN CIDADE DE CURITIBA | AO6: CSN PORTO ALEGRE | AV6: CSN COPA JK | BC6: CSN D'MAIO | BJ6: CSN HARAS ALBAR | BQ6: CSN COPA SÃO PAULO | BX6: CSN HARAS SANTA ESMERALDA | CE6: CSN ANIVERSÁRIO CHSA | CL6: CSN INDOOR | CS6: CSN ANIVERSÁRIO CAMPINAS | CZ6: CSN AGROMEN | DG6: CSN XIV FESTIVAL CAVALO BH
F7: 1º DIA | H7: 2º DIA | J7: 3º DIA | M7: 1º DIA | O7: 2º DIA | Q7: 3º DIA | T7: 1º DIA | V7: 2º DIA | X7: 3º DIA | AA7: 1º DIA | AC7: 2º DIA | AE7: 3º DIA | AH7: 1º DIA | AJ7: 2º DIA | AL7: 3º DIA | AO7: 1º DIA | AQ7: 2º DIA | AS7: 3º DIA | AV7: 1º DIA | AX7: 2º DIA | AZ7: 3º DIA | BC7: 1º DIA | BE7: 2º DIA | BG7: 3º DIA | BJ7: 1º DIA | BL7: 2º DIA | BN7: 3º DIA | BQ7: 1º DIA | BS7: 2º DIA | BU7: 3º DIA | BX7: 1º DIA | BZ7: 2º DIA | CB7: 3º DIA | CE7: 1º DIA | CG7: 2º DIA | CI7: 3º DIA | CL7: 1º DIA | CN7: 2º DIA | CP7: 3º DIA | CS7: 1º DIA | CU7: 2º DIA | CW7: 3º DIA | CZ7: 1º DIA | DB7: 2º DIA | DD7: 3º DIA | DG7: 1º DIA | DI7: 2º DIA | DK7: 3º DIA
F8: CL | G8: PTS | H8: CL | I8: PTS | J8: CL | K8: PTS | M8: CL | N8: PTS | O8: CL | P8: PTS | Q8: CL | R8: PTS | T8: CL | U8: PTS | V8: CL | W8: PTS | X8: CL | Y8: PTS | AA8: CL | AB8: PTS | AC8: CL | AD8: PTS | AE8: CL | AF8: PTS | AH8: CL | AI8: PTS | AJ8: CL | AK8: PTS | AL8: CL | AM8: PTS | AO8: CL | AP8: PTS | AQ8: CL | AR8: PTS | AS8: CL | AT8: PTS | AV8: CL | AW8: PTS | AX8: CL | AY8: PTS | AZ8: CL | BA8: PTS | BC8: CL | BD8: PTS | BE8: CL | BF8: PTS | BG8: CL | BH8: PTS | BJ8: CL | BK8: PTS | BL8: CL | BM8: PTS | BN8: CL | BO8: PTS | BQ8: CL | BR8: PTS | BS8: CL | BT8: PTS | BU8: CL | BV8: PTS | BX8: CL | BY8: PTS | BZ8: CL | CA8: PTS | CB8: CL | CC8: PTS | CE8: CL | CF8: PTS | CG8: CL | CH8: PTS | CI8: CL | CJ8: PTS | CL8: CL | CM8: PTS | CN8: CL | CO8: PTS | CP8: CL | CQ8: PTS | CS8: CL | CT8: PTS | CU8: CL | CV8: PTS | CW8: CL | CX8: PTS | CZ8: CL | DA8: PTS | DB8: CL | DC8: PTS | DD8: CL | DE8: PTS | DG8: CL | DH8: PTS | DI8: CL | DJ8: PTS | DK8: CL | DL8: PTS
B9: 1 | C9: CAMILA GIBIN MENDES | D9: CONAN DO JACARE (TE) | E9: AMB | AA9: NC | AB9: 0 | AC9: NC | AD9: 0 | AE9: NC | AF9: 0 | AG9: 0 | AH9: 2 | AI9: 13 | AJ9: NC | AK9: 0 | AL9: NC | AM9: 0 | AN9: =AM9+AK9+AI9 -> 13 | BC9: 1 | BD9: 22 | BE9: 1 | BF9: 22 | BG9: 8 | BH9: 9.9 | BI9: =BH9+BF9+BD9 -> 53.9 | BJ9: NC | BK9: 0 | BL9: NC | BM9: 0 | BN9: NC | BO9: 0 | BP9: 0 | BQ9: NC | BR9: 0 | BS9: NC | BT9: 0 | BU9: NC | BV9: 0 | BW9: 0 | CE9: 3 | CF9: 16.5 | CG9: 1 | CH9: 22 | CI9: 3 | CJ9: 16.5 | CK9: =CJ9+CH9+CF9 -> 55 | CL9: NC | CM9: 0 | CN9: NC | CO9: 0 | CP9: NC | CQ9: 0 | CR9: 0 | CS9: 1 | CT9: 22 | CU9: 2 | CV9: 18.7 | CW9: 2 | CX9: 16 | CY9: =CX9+CV9+CT9 -> 56.7 | CZ9: 9 | DA9: 8.8 | DB9: 6 | DC9: 12.1 | DD9: 4 | DE9: 13 | DF9: =DE9+DC9+DA9 -> 33.9 | DG9: 1 | DH9: 14 | DI9: 2 | DJ9: 11 | DK9: NC | DL9: 0 | DM9: =DH9+DJ9 -> 25 | DN9: =SUBTOTAL(3,L9,S9,Z9,AN9,AU9,BB9,BI9,CD9,CK9,CY9,DF9,DM9) -> 6 | DO9: =DM9+DF9+CY9+CR9+CK9+CD9+BW9+BP9+BI9+BB9+AU9+AN9+AG9+Z9+S9+L9 -> 237.5
B10: 2 | C10: THIAGO MACHADO C. MORENO | D10: SOL-DU-REVEL TR (IA) | E10: AMB | M10: 2 | N10: 18.7 | O10: 2 | P10: 18.7 | Q10: 3 | R10: 16.5 | S10: =R10+P10+N10 -> 53.9 | AA10: NC | AB10: 0 | AC10: NC | AD10: 0 | AE10: NC | AF10: 0 | AG10: 0 | AH10: 1 | AI10: 16 | AJ10: 1 | AK10: 15 | AL10: 1 | AM10: 10 | AN10: =AM10+AK10+AI10 -> 41 | BJ10: NC | BK10: 0 | BL10: NC | BM10: 0 | BN10: NC | BO10: 0 | BP10: 0 | BQ10: NC | BR10: 0 | BS10: NC | BT10: 0 | BU10: NC | BV10: 0 | BW10: 0 | CL10: NC | CM10: 0 | CN10: NC | CO10: 0 | CP10: NC | CQ10: 0 | CR10: 0 | CS10: 3 | CT10: 16.5 | CU10: 1 | CV10: 22 | CW10: 1 | CX10: 19 | CY10: =CX10+CV10+CT10 -> 57.5 | DN10: 3 | DO10: 152.4
B11: 3 | C11: GABRIELLE CRISTINA TAMELINI | D11: LADY CALLA | E11: AMB | F11: 9 | G11: 8.8 | H11: 1 | I11: 22 | J11: 1 | K11: 22 | L11: =K11+I11+G11 -> 52.8 | M11: 3 | N11: 16.5 | O11: 6 | P11: 12.1 | Q11: 1 | R11: 22 | S11: =R11+P11+N11 -> 50.6 | AA11: NC | AB11: 0 | AC11: NC | AD11: 0 | AE11: NC | AF11: 0 | AG11: 0 | BJ11: NC | BK11: 0 | BL11: NC | BM11: 0 | BN11: NC | BO11: 0 | BP11: 0 | BQ11: NC | BR11: 0 | BS11: NC | BT11: 0 | BU11: NC | BV11: 0 | BW11: 0 | CE11: 16 | CF11: 1.1 | CG11: 4 | CH11: 14.3 | CI11: NC | CJ11: 0 | CK11: =CJ11+CH11+CF11 -> 15.4 | CL11: NC | CM11: 0 | CN11: NC | CO11: 0 | CP11: NC | CQ11: 0 | CR11: 0 | DG11: 2 | DH11: 11 | DI11: 1 | DJ11: 14 | DK11: NC | DL11: 0 | DM11: =DH11+DJ11 -> 25 | DN11: 4 | DO11: 143.8
B12: 4 | C12: GYOVANNA AYROSA | D12: MC CARFITE (TE) | E12: AMB | F12: 1 | G12: 22 | H12: 5 | I12: 13.2 | J12: 2 | K12: 18.7 | L12: =K12+I12+G12 -> 53.9 | M12: 7 | N12: 11 | O12: 3 | P12: 16.5 | Q12: 12 | R12: 5.5 | S12: =R12+P12+N12 -> 33 | AA12: NC | AB12: 0 | AC12: NC | AD12: 0 | AE12: NC | AF12: 0 | AG12: 0 | BC12: 3 | BD12: 16.5 | BE12: 3 | BF12: 16.5 | BG12: 1 | BH12: 22 | BI12: =BH12+BF12+BD12 -> 55 | BJ12: NC | BK12: 0 | BL12: NC | BM12: 0 | BN12: NC | BO12: 0 | BP12: 0 | BQ12: NC | BR12: 0 | BS12: NC | BT12: 0 | BU12: NC | BV12: 0 | BW12: 0 | CL12: NC | CM12: 0 | CN12: NC | CO12: 0 | CP12: NC | CQ12: 0 | CR12: 0 | DN12: 3 | DO12: 141.9
B13: 5 | C13: MARIA CAROLINA ALVARES CORREA | D13: ZAMORA COOPER (*) | E13: MB | AA13: NC | AB13: 0 | AC13: NC | AD13: 0 | AE13: NC | AF13: 0 | AG13: 0 | BC13: 4 | BD13: 14.3 | BE13: 6 | BF13: 12.1 | BG13: 2 | BH13: 18.7 | BI13: =BH13+BF13+BD13 -> 45.1 | BJ13: NC | BK13: 0 | BL13: NC | BM13: 0 | BN13: NC | BO13: 0 | BP13: 0 | BQ13: NC | BR13: 0 | BS13: NC | BT13: 0 | BU13: NC | BV13: 0 | BW13: 0 | CE13: 7 | CF13: 11 | CG13: 1 | CH13: 22 | CI13: 7 | CJ13: 11 | CK13: =CJ13+CH13+CF13 -> 44 | CL13: NC | CM13: 0 | CN13: NC | CO13: 0 | CP13: NC | CQ13: 0 | CR13: 0 | CS13: 4 | CT13: 14.3 | CU13: 4 | CV13: 14.3 | CW13: 3 | CX13: 14 | CY13: =CX13+CV13+CT13 -> 42.6 | DN13: 3 | DO13: 131.7
B14: 6 | C14: MARICEL CONTINI | D14: CS AIMEE (TE) | E14: AMB | F14: 2 | G14: 18.7 | H14: 6 | I14: 12.1 | J14: 11 | K14: 6.6 | L14: =K14+I14+G14 -> 37.4 | M14: 13 | N14: 4.4 | O14: 5 | P14: 13.2 | Q14: 10 | R14: 7.7 | S14: =R14+P14+N14 -> 25.3 | AA14: NC | AB14: 0 | AC14: NC | AD14: 0 | AE14: NC | AF14: 0 | AG14: 0 | BC14: 2 | BD14: 18.7 | BE14: 5 | BF14: 13.2 | BG14: 3 | BH14: 16.5 | BI14: =BH14+BF14+BD14 -> 48.4 | BJ14: NC | BK14: 0 | BL14: NC | BM14: 0 | BN14: NC | BO14: 0 | BP14: 0 | BQ14: NC | BR14: 0 | BS14: NC | BT14: 0 | BU14: NC | BV14: 0 | BW14: 0 | CL14: NC | CM14: 0 | CN14: NC | CO14: 0 | CP14: NC | CQ14: 0 | CR14: 0 | DN14: 3 | DO14: 111.1
B15: 7 | C15: HASSAN SOUEID | D15: RENDA DAS CATARATAS (IA) | E15: AMB | AA15: NC | AB15: 0 | AC15: NC | AD15: 0 | AE15: NC | AF15: 0 | AG15: 0 | BJ15: NC | BK15: 0 | BL15: NC | BM15: 0 | BN15: NC | BO15: 0 | BP15: 0 | BQ15: NC | BR15: 0 | BS15: NC | BT15: 0 | BU15: NC | BV15: 0 | BW15: 0 | CE15: 1 | CF15: 22 | CG15: 3 | CH15: 16.5 | CI15: 1 | CJ15: 22 | CK15: =CJ15+CH15+CF15 -> 60.5 | CL15: NC | CM15: 0 | CN15: NC | CO15: 0 | CP15: NC | CQ15: 0 | CR15: 0 | CS15: 2 | CT15: 18.7 | CU15: 11 | CV15: 6.6 | CW15: 6 | CX15: 10 | CY15: =CX15+CV15+CT15 -> 35.3 | DN15: 2 | DO15: 95.8
B16: 8 | C16: LIDISON LEOPOLDO ELIA ARANHA | D16: ZARTOORA FOR | E16: MB | F16: 6 | G16: 12.1 | H16: 2 | I16: 18.7 | J16: 8 | K16: 9.9 | L16: =K16+I16+G16 -> 40.7 | AA16: NC | AB16: 0 | AC16: NC | AD16: 0 | AE16: NC | AF16: 0 | AG16: 0 | BC16: 6 | BD16: 12.1 | BE16: 10 | BF16: 7.7 | BG16: 7 | BH16: 11 | BI16: =BH16+BF16+BD16 -> 30.8 | BJ16: NC | BK16: 0 | BL16: NC | BM16: 0 | BN16: NC | BO16: 0 | BP16: 0 | BQ16: NC | BR16: 0 | BS16: NC | BT16: 0 | BU16: NC | BV16: 0 | BW16: 0 | CE16: 6 | CF16: 12.1 | CG16: 7 | CH16: 11 | CI16: 18 | CJ16: 0 | CK16: =CJ16+CH16+CF16 -> 23.1 | CL16: NC | CM16: 0 | CN16: NC | CO16: 0 | CP16: NC | CQ16: 0 | CR16: 0 | DN16: 3 | DO16: 94.6
B17: 9 | C17: CAMILA MENNA B. B. F. HILGENDORFF | D17: LORDANA JMEN (TE) | E17: AMB | F17: 16 | G17: 1.1 | H17: 9 | I17: 8.8 | J17: 9 | K17: 8.8 | L17: =K17+I17+G17 -> 18.7 | M17: 4 | N17: 14.3 | O17: 1 | P17: 22 | Q17: 4 | R17: 14.3 | S17: =R17+P17+N17 -> 50.6 | AA17: NC | AB17: 0 | AC17: NC | AD17: 0 | AE17: NC | AF17: 0 | AG17: 0 | AH17: 5 | AI17: 8 | AJ17: 5 | AK17: 7 | AL17: 2 | AM17: 7 | AN17: =AM17+AK17+AI17 -> 22 | BJ17: NC | BK17: 0 | BL17: NC | BM17: 0 | BN17: NC | BO17: 0 | BP17: 0 | BQ17: NC | BR17: 0 | BS17: NC | BT17: 0 | BU17: NC | BV17: 0 | BW17: 0 | CL17: NC | CM17: 0 | CN17: NC | CO17: 0 | CP17: NC | CQ17: 0 | CR17: 0 | DN17: 3 | DO17: 91.3
B18: 10 | C18: JULIANA GLASSER PELUSO | D18: HSL BLANCHE (IA) | E18: AMB | F18: 5 | G18: 13.2 | H18: 3 | I18: 16.5 | J18: 4 | K18: 14.3 | L18: =K18+I18+G18 -> 44 | M18: 5 | N18: 13.2 | O18: 4 | P18: 14.3 | Q18: 2 | R18: 18.7 | S18: =R18+P18+N18 -> 46.2 | AA18: NC | AB18: 0 | AC18: NC | AD18: 0 | AE18: NC | AF18: 0 | AG18: 0 | BC18: 18 | BD18: 0 | BE18: NC | BF18: 0 | BG18: NC | BH18: 0 | BI18: =BH18+BF18+BD18 -> 0 | BJ18: NC | BK18: 0 | BL18: NC | BM18: 0 | BN18: NC | BO18: 0 | BP18: 0 | BQ18: NC | BR18: 0 | BS18: NC | BT18: 0 | BU18: NC | BV18: 0 | BW18: 0 | CL18: NC | CM18: 0 | CN18: NC | CO18: 0 | CP18: NC | CQ18: 0 | CR18: 0 | DN18: 3 | DO18: 90.2
B19: 11 | C19: MARICEL CONTINI | D19: AFRODITE METODO (IA) | E19: AMB | F19: ELI | G19: 0 | H19: 14 | I19: 3.3 | J19: 6 | K19: 12.1 | L19: =K19+I19+G19 -> 15.4 | M19: 12 | N19: 5.5 | O19: 7 | P19: 11 | Q19: 6 | R19: 12.1 | S19: =R19+P19+N19 -> 28.6 | AA19: NC | AB19: 0 | AC19: NC | AD19: 0 | AE19: NC | AF19: 0 | AG19: 0 | BJ19: NC | BK19: 0 | BL19: NC | BM19: 0 | BN19: NC | BO19: 0 | BP19: 0 | BQ19: NC | BR19: 0 | BS19: NC | BT19: 0 | BU19: NC | BV19: 0 | BW19: 0 | CE19: 2 | CF19: 18.7 | CG19: 17 | CH19: 0 | CI19: 22 | CJ19: 0 | CK19: =CJ19+CH19+CF19 -> 18.7 | CL19: NC | CM19: 0 | CN19: NC | CO19: 0 | CP19: NC | CQ19: 0 | CR19: 0 | CS19: ELI | CT19: 0 | CU19: 5 | CV19: 13.2 | CW19: 5 | CX19: 11 | CY19: =CX19+CV19+CT19 -> 24.2 | DN19: 4 | DO19: 86.9
B20: 12 | C20: GISELA WEISER CARVALHO | D20: COLLON-C JMEN II (TE) | E20: AMB | AA20: NC | AB20: 0 | AC20: NC | AD20: 0 | AE20: NC | AF20: 0 | AG20: 0 | BJ20: NC | BK20: 0 | BL20: NC | BM20: 0 | BN20: NC | BO20: 0 | BP20: 0 | BQ20: NC | BR20: 0 | BS20: NC | BT20: 0 | BU20: NC | BV20: 0 | BW20: 0 | CE20: 10 | CF20: 7.7 | CG20: 9 | CH20: 8.8 | CI20: 11 | CJ20: 6.6 | CK20: =CJ20+CH20+CF20 -> 23.1 | CL20: NC | CM20: 0 | CN20: NC | CO20: 0 | CP20: NC | CQ20: 0 | CR20: 0 | CS20: 7 | CT20: 11 | CU20: 6 | CV20: 12.1 | CW20: 7 | CX20: 9 | CY20: =CX20+CV20+CT20 -> 32.1 | CZ20: 7 | DA20: 11 | DB20: 7 | DC20: 11 | DD20: 11 | DE20: 6 | DF20: =DE20+DC20+DA20 -> 28 | DN20: 3 | DO20: 83.2
B21: 13 | C21: ROBIN LIDDLE | D21: SL OBJETIVO (TE) | E21: MB | AA21: NC | AB21: 0 | AC21: NC | AD21: 0 | AE21: NC | AF21: 0 | AG21: 0 | BJ21: NC | BK21: 0 | BL21: NC | BM21: 0 | BN21: NC | BO21: 0 | BP21: 0 | BQ21: NC | BR21: 0 | BS21: NC | BT21: 0 | BU21: NC | BV21: 0 | BW21: 0 | CE21: 9 | CF21: 8.8 | CG21: ELI | CH21: 0 | CI21: 2 | CJ21: 18.7 | CK21: =CJ21+CH21+CF21 -> 27.5 | CL21: NC | CM21: 0 | CN21: NC | CO21: 0 | CP21: NC | CQ21: 0 | CR21: 0 | CZ21: 5 | DA21: 13.2 | DB21: 16 | DC21: 1.1 | DD21: 5 | DE21: 12 | DF21: =DE21+DC21+DA21 -> 26.3 | DG21: 3 | DH21: 9 | DI21: 4 | DJ21: 7 | DK21: NC | DL21: 0 | DM21: =DH21+DJ21 -> 16 | DN21: 3 | DO21: 69.8
B22: 14 | C22: LIDISON LEOPOLDO ELIA ARANHA | D22: SS RACADOR | E22: MB | F22: 18 | G22: 0 | H22: 7 | I22: 11 | J22: 14 | K22: 3.3 | L22: =K22+I22+G22 -> 14.3 | AA22: NC | AB22: 0 | AC22: NC | AD22: 0 | AE22: NC | AF22: 0 | AG22: 0 | BC22: 5 | BD22: 13.2 | BE22: 7 | BF22: 11 | BG22: 19 | BH22: 0 | BI22: =BH22+BF22+BD22 -> 24.2 | BJ22: NC | BK22: 0 | BL22: NC | BM22: 0 | BN22: NC | BO22: 0 | BP22: 0 | BQ22: NC | BR22: 0 | BS22: NC | BT22: 0 | BU22: NC | BV22: 0 | BW22: 0 | CE22: 4 | CF22: 14.3 | CG22: 13 | CH22: 4.4 | CI22: 21 | CJ22: 0 | CK22: =CJ22+CH22+CF22 -> 18.7 | CL22: NC | CM22: 0 | CN22: NC | CO22: 0 | CP22: NC | CQ22: 0 | CR22: 0 | DN22: 3 | DO22: 57.2
B23: 15 | C23: BRUNO LEON MELO | D23: JCR QUARTZO | E23: AMB | M23: 16 | N23: 1.1 | O23: 9 | P23: 8.8 | Q23: 5 | R23: 13.2 | S23: =R23+P23+N23 -> 23.1 | AA23: NC | AB23: 0 | AC23: NC | AD23: 0 | AE23: NC | AF23: 0 | AG23: 0 | BC23: 7 | BD23: 11 | BE23: 15 | BF23: 2.2 | BG23: 13 | BH23: 4.4 | BI23: =BH23+BF23+BD23 -> 17.6 | BJ23: NC | BK23: 0 | BL23: NC | BM23: 0 | BN23: NC | BO23: 0 | BP23: 0 | BQ23: NC | BR23: 0 | BS23: NC | BT23: 0 | BU23: NC | BV23: 0 | BW23: 0 | CL23: NC | CM23: 0 | CN23: NC | CO23: 0 | CP23: NC | CQ23: 0 | CR23: 0 | CZ23: 11 | DA23: 6.6 | DB23: ELI | DC23: 0 | DD23: 9 | DE23: 8 | DF23: =DE23+DC23+DA23 -> 14.6 | DN23: 3 | DO23: 55.3
B24: 16 | C24: GABRIELLE ABBATE DE ANDRADE | D24: LUCKY STAR G.A | E24: AMB | F24: 13 | G24: 4.4 | H24: 16 | I24: 1.1 | J24: 10 | K24: 7.7 | L24: =K24+I24+G24 -> 13.2 | M24: 9 | N24: 8.8 | O24: 12 | P24: 5.5 | Q24: 15 | R24: 2.2 | S24: =R24+P24+N24 -> 16.5 | AA24: NC | AB24: 0 | AC24: NC | AD24: 0 | AE24: NC | AF24: 0 | AG24: 0 | BC24: 9 | BD24: 8.8 | BE24: 16 | BF24: 1.1 | BG24: 14 | BH24: 3.3 | BI24: =BH24+BF24+BD24 -> 13.2 | BJ24: NC | BK24: 0 | BL24: NC | BM24: 0 | BN24: NC | BO24: 0 | BP24: 0 | BQ24: NC | BR24: 0 | BS24: NC | BT24: 0 | BU24: NC | BV24: 0 | BW24: 0 | CE24: 23 | CF24: 0 | CG24: 14 | CH24: 3.3 | CI24: 10 | CJ24: 7.7 | CK24: =CJ24+CH24+CF24 -> 11 | CL24: NC | CM24: 0 | CN24: NC | CO24: 0 | CP24: NC | CQ24: 0 | CR24: 0 | DG24: FF | DH24: 0 | DI24: FF | DJ24: 0 | DK24: NC | DL24: 0 | DM24: =DH24+DJ24 -> 0 | DN24: 5 | DO24: 53.9
B25: 17 | C25: MARINA SBICCA PIRES | D25: DANDARA LU | E25: AMB | AA25: NC | AB25: 0 | AC25: NC | AD25: 0 | AE25: NC | AF25: 0 | AG25: 0 | BJ25: NC | BK25: 0 | BL25: NC | BM25: 0 | BN25: NC | BO25: 0 | BP25: 0 | BQ25: NC | BR25: 0 | BS25: NC | BT25: 0 | BU25: NC | BV25: 0 | BW25: 0 | CL25: NC | CM25: 0 | CN25: NC | CO25: 0 | CP25: NC | CQ25: 0 | CR25: 0 | CZ25: 3 | DA25: 16.5 | DB25: 3 | DC25: 16.5 | DD25: 1 | DE25: 20 | DF25: =DE25+DC25+DA25 -> 53 | DN25: 1 | DO25: 53
B26: 18 | C26: GIOVANNI MELOZI SGAVIOLI | D26: CS ERERÊ (IA) | E26: AMB | AA26: NC | AB26: 0 | AC26: NC | AD26: 0 | AE26: NC | AF26: 0 | AG26: 0 | BJ26: NC | BK26: 0 | BL26: NC | BM26: 0 | BN26: NC | BO26: 0 | BP26: 0 | BQ26: NC | BR26: 0 | BS26: NC | BT26: 0 | BU26: NC | BV26: 0 | BW26: 0 | CL26: NC | CM26: 0 | CN26: NC | CO26: 0 | CP26: NC | CQ26: 0 | CR26: 0 | CZ26: 1 | DA26: 22 | DB26: 4 | DC26: 14.3 | DD26: 3 | DE26: 15 | DF26: =DE26+DC26+DA26 -> 51.3 | DN26: 1 | DO26: 51.3
B27: 19 | C27: CARLOS ANDRE MENDES GARGANTINI | D27: WARSTEINER VAN´T STEDEKE | E27: MB | M27: 18 | N27: 0 | O27: 17 | P27: 0 | Q27: 7 | R27: 11 | S27: =R27+P27+N27 -> 11 | AA27: NC | AB27: 0 | AC27: NC | AD27: 0 | AE27: NC | AF27: 0 | AG27: 0 | BJ27: NC | BK27: 0 | BL27: NC | BM27: 0 | BN27: NC | BO27: 0 | BP27: 0 | BQ27: NC | BR27: 0 | BS27: NC | BT27: 0 | BU27: NC | BV27: 0 | BW27: 0 | CE27: 24 | CF27: 0 | CG27: 6 | CH27: 12.1 | CI27: 8 | CJ27: 9.9 | CK27: =CJ27+CH27+CF27 -> 22 | CL27: NC | CM27: 0 | CN27: NC | CO27: 0 | CP27: NC | CQ27: 0 | CR27: 0 | CS27: 12 | CT27: 5.5 | CU27: 15 | CV27: 2.2 | CW27: 11 | CX27: 5 | CY27: =CX27+CV27+CT27 -> 12.7 | DN27: 3 | DO27: 45.7
B28: 20 | C28: CRISTIANE ANDREA ROSSINI | D28: CANTURANO JMEN (IA) | E28: AMB | M28: 1 | N28: 22 | O28: 16 | P28: 1.1 | Q28: 9 | R28: 8.8 | S28: =R28+P28+N28 -> 31.9 | AA28: NC | AB28: 0 | AC28: NC | AD28: 0 | AE28: NC | AF28: 0 | AG28: 0 | BJ28: NC | BK28: 0 | BL28: NC | BM28: 0 | BN28: NC | BO28: 0 | BP28: 0 | BQ28: NC | BR28: 0 | BS28: NC | BT28: 0 | BU28: NC | BV28: 0 | BW28: 0 | CE28: 15 | CF28: 2.2 | CG28: 16 | CH28: 1.1 | CI28: 17 | CJ28: 0 | CK28: =CJ28+CH28+CF28 -> 3.3 | CL28: NC | CM28: 0 | CN28: NC | CO28: 0 | CP28: NC | CQ28: 0 | CR28: 0 | CZ28: 12 | DA28: 5.5 | DB28: 13 | DC28: 4.4 | DD28: NC | DE28: 0 | DF28: =DE28+DC28+DA28 -> 9.9 | DN28: 3 | DO28: 45.1
B29: 21 | C29: ANA VICTORIA A. PALHARES | D29: HOT PEPPER COOPER (TE) | E29: AMB | AA29: NC | AB29: 0 | AC29: NC | AD29: 0 | AE29: NC | AF29: 0 | AG29: 0 | BJ29: NC | BK29: 0 | BL29: NC | BM29: 0 | BN29: NC | BO29: 0 | BP29: 0 | BQ29: NC | BR29: 0 | BS29: NC | BT29: 0 | BU29: NC | BV29: 0 | BW29: 0 | CL29: NC | CM29: 0 | CN29: NC | CO29: 0 | CP29: NC | CQ29: 0 | CR29: 0 | CS29: 8 | CT29: 9.9 | CU29: 10 | CV29: 7.7 | CW29: 9 | CX29: 7 | CY29: =CX29+CV29+CT29 -> 24.6 | DG29: 4 | DH29: 7 | DI29: 3 | DJ29: 9 | DK29: NC | DL29: 0 | DM29: =DH29+DJ29 -> 16 | DN29: 2 | DO29: 40.6
B30: 22 | C30: PATRICIA GOLDBERG TERPINS | D30: ACL CARINA (IA) | E30: AMB | AA30: NC | AB30: 0 | AC30: NC | AD30: 0 | AE30: NC | AF30: 0 | AG30: 0 | BJ30: NC | BK30: 0 | BL30: NC | BM30: 0 | BN30: NC | BO30: 0 | BP30: 0 | BQ30: NC | BR30: 0 | BS30: NC | BT30: 0 | BU30: NC | BV30: 0 | BW30: 0 | CE30: 5 | CF30: 13.2 | CG30: 10 | CH30: 7.7 | CI30: 4 | CJ30: 14.3 | CK30: =CJ30+CH30+CF30 -> 35.2 | CL30: NC | CM30: 0 | CN30: NC | CO30: 0 | CP30: NC | CQ30: 0 | CR30: 0 | DN30: 1 | DO30: 35.2
B31: 23 | C31: THIAGO M. CAVALHEIRO MORENO | D31: FADA DA CABANA (IA) | E31: AMB | AA31: NC | AB31: 0 | AC31: NC | AD31: 0 | AE31: NC | AF31: 0 | AG31: 0 | BJ31: NC | BK31: 0 | BL31: NC | BM31: 0 | BN31: NC | BO31: 0 | BP31: 0 | BQ31: NC | BR31: 0 | BS31: NC | BT31: 0 | BU31: NC | BV31: 0 | BW31: 0 | CL31: NC | CM31: 0 | CN31: NC | CO31: 0 | CP31: NC | CQ31: 0 | CR31: 0 | CS31: 11 | CT31: 6.6 | CU31: 3 | CV31: 16.5 | CW31: 4 | CX31: 12 | CY31: =CX31+CV31+CT31 -> 35.1 | DN31: 1 | DO31: 35.1
B32: 24 | C32: ROBIN LIDDLE | D32: CHALLENGER JMEN | E32: MB | AA32: NC | AB32: 0 | AC32: NC | AD32: 0 | AE32: NC | AF32: 0 | AG32: 0 | BJ32: NC | BK32: 0 | BL32: NC | BM32: 0 | BN32: NC | BO32: 0 | BP32: 0 | BQ32: NC | BR32: 0 | BS32: NC | BT32: 0 | BU32: NC | BV32: 0 | BW32: 0 | CE32: 27 | CF32: 0 | CG32: 19 | CH32: 0 | CI32: 16 | CJ32: 1.1 | CK32: =CJ32+CH32+CF32 -> 1.1 | CL32: NC | CM32: 0 | CN32: NC | CO32: 0 | CP32: NC | CQ32: 0 | CR32: 0 | CZ32: 13 | DA32: 4.4 | DB32: 12 | DC32: 5.5 | DD32: 2 | DE32: 17 | DF32: =DE32+DC32+DA32 -> 26.9 | DG32: 8 | DH32: 3 | DI32: 7 | DJ32: 4 | DK32: NC | DL32: 0 | DM32: =DH32+DJ32 -> 7 | DN32: 3 | DO32: 35
B33: 25 | C33: MIRIAM MAFFEI | D33: JCR KHALIFA (IA) | E33: MB | M33: 6 | N33: 12.1 | O33: 8 | P33: 9.9 | Q33: 14 | R33: 3.3 | S33: =R33+P33+N33 -> 25.3 | AA33: NC | AB33: 0 | AC33: NC | AD33: 0 | AE33: NC | AF33: 0 | AG33: 0 | AH33: 7 | AI33: 6 | AJ33: 9 | AK33: 3 | AL33: NC | AM33: 0 | AN33: =AM33+AK33+AI33 -> 9 | BJ33: NC | BK33: 0 | BL33: NC | BM33: 0 | BN33: NC | BO33: 0 | BP33: 0 | BQ33: NC | BR33: 0 | BS33: NC | BT33: 0 | BU33: NC | BV33: 0 | BW33: 0 | CL33: NC | CM33: 0 | CN33: NC | CO33: 0 | CP33: NC | CQ33: 0 | CR33: 0 | DN33: 2 | DO33: 34.3
B34: 25 | C34: CAROLINA COSTA P. OSTANELLO | D34: PHARAMOND JMEN | E34: AMB | AA34: NC | AB34: 0 | AC34: NC | AD34: 0 | AE34: NC | AF34: 0 | AG34: 0 | BJ34: NC | BK34: 0 | BL34: NC | BM34: 0 | BN34: NC | BO34: 0 | BP34: 0 | BQ34: NC | BR34: 0 | BS34: NC | BT34: 0 | BU34: NC | BV34: 0 | BW34: 0 | CL34: NC | CM34: 0 | CN34: NC | CO34: 0 | CP34: NC | CQ34: 0 | CR34: 0 | CZ34: 14 | DA34: 3.3 | DB34: 1 | DC34: 22 | DD34: 8 | DE34: 9 | DF34: =DE34+DC34+DA34 -> 34.3 | DN34: 1 | DO34: 34.3
B35: 27 | C35: MARCIA HERNANDES | D35: UNICO CAMPECHE | E35: MB | AA35: NC | AB35: 0 | AC35: NC | AD35: 0 | AE35: NC | AF35: 0 | AG35: 0 | BC35: 14 | BD35: 3.3 | BE35: ELI | BF35: 0 | BG35: 9 | BH35: 8.8 | BI35: =BH35+BF35+BD35 -> 12.1 | BJ35: NC | BK35: 0 | BL35: NC | BM35: 0 | BN35: NC | BO35: 0 | BP35: 0 | BQ35: NC | BR35: 0 | BS35: NC | BT35: 0 | BU35: NC | BV35: 0 | BW35: 0 | CE35: 8 | CF35: 9.9 | CG35: ELI | CH35: 0 | CI35: 15 | CJ35: 2.2 | CK35: =CJ35+CH35+CF35 -> 12.1 | CL35: NC | CM35: 0 | CN35: NC | CO35: 0 | CP35: NC | CQ35: 0 | CR35: 0 | CS35: ELI | CT35: 0 | CU35: 8 | CV35: 9.9 | CW35: ELI | CX35: 0 | CY35: =CX35+CV35+CT35 -> 9.9 | DN35: 3 | DO35: 34.1
B36: 28 | C36: ANTONIO JOSE POVOA VILELA | D36: CALIMERA SANTA CECILIA (IA) | E36: AMB | F36: 10 | G36: 7.7 | H36: NC | I36: 0 | J36: NC | K36: 0 | L36: =K36+I36+G36 -> 7.7 | AA36: NC | AB36: 0 | AC36: NC | AD36: 0 | AE36: NC | AF36: 0 | AG36: 0 | AH36: 9 | AI36: 4 | AJ36: 8 | AK36: 4 | AL36: NC | AM36: 0 | AN36: =AM36+AK36+AI36 -> 8 | AO36: ELI | AP36: 0 | AQ36: 6 | AR36: 2 | AS36: NC | AT36: 0 | AU36: =AT36+AR36+AP36 -> 2 | BC36: 15 | BD36: 2.2 | BE36: 18 | BF36: 0 | BG36: 5 | BH36: 13.2 | BI36: =BH36+BF36+BD36 -> 15.4 | BJ36: NC | BK36: 0 | BL36: NC | BM36: 0 | BN36: NC | BO36: 0 | BP36: 0 | BQ36: NC | BR36: 0 | BS36: NC | BT36: 0 | BU36: NC | BV36: 0 | BW36: 0 | CL36: NC | CM36: 0 | CN36: NC | CO36: 0 | CP36: NC | CQ36: 0 | CR36: 0 | DN36: 4 | DO36: 33.1
B37: 29 | C37: SGT ROMULO LEAL | D37: JATRIZ ITAPUA | E37: MB | AA37: NC | AB37: 0 | AC37: NC | AD37: 0 | AE37: NC | AF37: 0 | AG37: 0 | AV37: 9 | AW37: 3 | AX37: 1 | AY37: 15 | AZ37: 1 | BA37: 14 | BB37: =BA37+AY37+AW37 -> 32 | BJ37: NC | BK37: 0 | BL37: NC | BM37: 0 | BN37: NC | BO37: 0 | BP37: 0 | BQ37: NC | BR37: 0 | BS37: NC | BT37: 0 | BU37: NC | BV37: 0 | BW37: 0 | CL37: NC | CM37: 0 | CN37: NC | CO37: 0 | CP37: NC | CQ37: 0 | CR37: 0 | DN37: 1 | DO37: 32
B38: 30 | C38: MARINA CHIMENTI SA | D38: TREBBIANO DO RIOACIMA (IA) | E38: AMB | F38: 7 | G38: 11 | H38: 8 | I38: 9.9 | J38: ELI | K38: 0 | L38: =K38+I38+G38 -> 20.9 | AA38: NC | AB38: 0 | AC38: NC | AD38: 0 | AE38: NC | AF38: 0 | AG38: 0 | BJ38: NC | BK38: 0 | BL38: NC | BM38: 0 | BN38: NC | BO38: 0 | BP38: 0 | BQ38: NC | BR38: 0 | BS38: NC | BT38: 0 | BU38: NC | BV38: 0 | BW38: 0 | CL38: NC | CM38: 0 | CN38: NC | CO38: 0 | CP38: NC | CQ38: 0 | CR38: 0 | DG38: 6 | DH38: 5 | DI38: 5 | DJ38: 6 | DK38: NC | DL38: 0 | DM38: =DH38+DJ38 -> 11 | DN38: 2 | DO38: 31.9
B39: 31 | C39: BERNARDO SUAREZ CADARIO | D39: ENZO CLIMBER (TE) | E39: AMB | AA39: NC | AB39: 0 | AC39: NC | AD39: 0 | AE39: NC | AF39: 0 | AG39: 0 | BJ39: NC | BK39: 0 | BL39: NC | BM39: 0 | BN39: NC | BO39: 0 | BP39: 0 | BQ39: NC | BR39: 0 | BS39: NC | BT39: 0 | BU39: NC | BV39: 0 | BW39: 0 | CL39: NC | CM39: 0 | CN39: NC | CO39: 0 | CP39: NC | CQ39: 0 | CR39: 0 | CZ39: 2 | DA39: 18.7 | DB39: 15 | DC39: 2.2 | DD39: 7 | DE39: 10 | DF39: =DE39+DC39+DA39 -> 30.9 | DN39: 1 | DO39: 30.9
B40: 32 | C40: PAULO ROBERTO BERGAMASCHI | D40: NO ICE TOK (IA) | E40: MB | AA40: NC | AB40: 0 | AC40: NC | AD40: 0 | AE40: NC | AF40: 0 | AG40: 0 | BJ40: NC | BK40: 0 | BL40: NC | BM40: 0 | BN40: NC | BO40: 0 | BP40: 0 | BQ40: NC | BR40: 0 | BS40: NC | BT40: 0 | BU40: NC | BV40: 0 | BW40: 0 | CL40: NC | CM40: 0 | CN40: NC | CO40: 0 | CP40: NC | CQ40: 0 | CR40: 0 | CZ40: 8 | DA40: 9.9 | DB40: 10 | DC40: 7.7 | DD40: 6 | DE40: 11 | DF40: =DE40+DC40+DA40 -> 28.6 | DN40: 1 | DO40: 28.6
B41: 33 | C41: PAULO BORGES | D41: PALM DOANJO | E41: MB | AA41: NC | AB41: 0 | AC41: NC | AD41: 0 | AE41: NC | AF41: 0 | AG41: 0 | AV41: 2 | AW41: 12 | AX41: 7 | AY41: 5 | AZ41: 2 | BA41: 11 | BB41: =BA41+AY41+AW41 -> 28 | BJ41: NC | BK41: 0 | BL41: NC | BM41: 0 | BN41: NC | BO41: 0 | BP41: 0 | BQ41: NC | BR41: 0 | BS41: NC | BT41: 0 | BU41: NC | BV41: 0 | BW41: 0 | CL41: NC | CM41: 0 | CN41: NC | CO41: 0 | CP41: NC | CQ41: 0 | CR41: 0 | DN41: =SUBTOTAL(3,L41,S41,Z41,AN41,AU41,BB41,BI41,CD41,CK41,CY41,DF41,DM41) -> 1 | DO41: =DM41+DF41+CY41+CR41+CK41+CD41+BW41+BP41+BI41+BB41+AU41+AN41+AG41+Z41+S41+L41 -> 28
B42: 34 | C42: ANTONIO CAMARGO JUNIOR | D42: ZÉ DAS CATARATAS (IA) | E42: MB | AA42: NC | AB42: 0 | AC42: NC | AD42: 0 | AE42: NC | AF42: 0 | AG42: 0 | BJ42: NC | BK42: 0 | BL42: NC | BM42: 0 | BN42: NC | BO42: 0 | BP42: 0 | BQ42: NC | BR42: 0 | BS42: NC | BT42: 0 | BU42: NC | BV42: 0 | BW42: 0 | CL42: NC | CM42: 0 | CN42: NC | CO42: 0 | CP42: NC | CQ42: 0 | CR42: 0 | CZ42: 6 | DA42: 12.1 | DB42: 9 | DC42: 8.8 | DD42: 10 | DE42: 7 | DF42: =DE42+DC42+DA42 -> 27.9 | DN42: 1 | DO42: 27.9
B43: 35 | C43: JANICE AMBROSIO MERZVINSKAS | D43: SALAMANDRA NEW ONE | E43: AMB | F43: 3 | G43: 16.5 | H43: NC | I43: 0 | J43: 7 | K43: 11 | L43: =K43+I43+G43 -> 27.5 | AA43: NC | AB43: 0 | AC43: NC | AD43: 0 | AE43: NC | AF43: 0 | AG43: 0 | BJ43: NC | BK43: 0 | BL43: NC | BM43: 0 | BN43: NC | BO43: 0 | BP43: 0 | BQ43: NC | BR43: 0 | BS43: NC | BT43: 0 | BU43: NC | BV43: 0 | BW43: 0 | CL43: NC | CM43: 0 | CN43: NC | CO43: 0 | CP43: NC | CQ43: 0 | CR43: 0 | DN43: 1 | DO43: 27.5
B44: 35 | C44: JOSE MARCIO GOBBI | D44: NOAH SIMPLY (IA) | E44: MB | F44: 19 | G44: 0 | H44: 4 | I44: 14.3 | J44: 5 | K44: 13.2 | L44: =K44+I44+G44 -> 27.5 | AA44: NC | AB44: 0 | AC44: NC | AD44: 0 | AE44: NC | AF44: 0 | AG44: 0 | BJ44: NC | BK44: 0 | BL44: NC | BM44: 0 | BN44: NC | BO44: 0 | BP44: 0 | BQ44: NC | BR44: 0 | BS44: NC | BT44: 0 | BU44: NC | BV44: 0 | BW44: 0 | CL44: NC | CM44: 0 | CN44: NC | CO44: 0 | CP44: NC | CQ44: 0 | CR44: 0 | DN44: 1 | DO44: 27.5
B45: 37 | C45: ANDRE LEGUTHE ROSA | D45: VINNY DO FEROLETO (IA) | E45: MB | M45: 8 | N45: 9.9 | O45: 11 | P45: 6.6 | Q45: 8 | R45: 9.9 | S45: =R45+P45+N45 -> 26.4 | AA45: NC | AB45: 0 | AC45: NC | AD45: 0 | AE45: NC | AF45: 0 | AG45: 0 | BJ45: NC | BK45: 0 | BL45: NC | BM45: 0 | BN45: NC | BO45: 0 | BP45: 0 | BQ45: NC | BR45: 0 | BS45: NC | BT45: 0 | BU45: NC | BV45: 0 | BW45: 0 | CL45: NC | CM45: 0 | CN45: NC | CO45: 0 | CP45: NC | CQ45: 0 | CR45: 0 | DN45: 1 | DO45: 26.4
B46: 37 | C46: GABRIELA BERRO MARINS FRANCO | D46: QUIDARCO METODO (IA) (*) | E46: AMB | AA46: NC | AB46: 0 | AC46: NC | AD46: 0 | AE46: NC | AF46: 0 | AG46: 0 | BJ46: NC | BK46: 0 | BL46: NC | BM46: 0 | BN46: NC | BO46: 0 | BP46: 0 | BQ46: NC | BR46: 0 | BS46: NC | BT46: 0 | BU46: NC | BV46: 0 | BW46: 0 | CE46: 20 | CF46: 0 | CG46: 5 | CH46: 13.2 | CI46: 5 | CJ46: 13.2 | CK46: =CJ46+CH46+CF46 -> 26.4 | CL46: NC | CM46: 0 | CN46: NC | CO46: 0 | CP46: NC | CQ46: 0 | CR46: 0 | DN46: 1 | DO46: 26.4
B47: 39 | C47: LUIS OTAVIO MANES PEREIRA | D47: SL BANGUE | E47: AMB | AA47: NC | AB47: 0 | AC47: NC | AD47: 0 | AE47: NC | AF47: 0 | AG47: 0 | BJ47: NC | BK47: 0 | BL47: NC | BM47: 0 | BN47: NC | BO47: 0 | BP47: 0 | BQ47: NC | BR47: 0 | BS47: NC | BT47: 0 | BU47: NC | BV47: 0 | BW47: 0 | CL47: NC | CM47: 0 | CN47: NC | CO47: 0 | CP47: NC | CQ47: 0 | CR47: 0 | CZ47: 4 | DA47: 14.3 | DB47: 8 | DC47: 9.9 | DD47: 15 | DE47: 2 | DF47: =DE47+DC47+DA47 -> 26.2 | DN47: 1 | DO47: 26.2
B48: 39 | C48: JULIA AMARAL CORCHETTI | D48: NUREYEV 3K | E48: AMB | AA48: NC | AB48: 0 | AC48: NC | AD48: 0 | AE48: NC | AF48: 0 | AG48: 0 | BJ48: NC | BK48: 0 | BL48: NC | BM48: 0 | BN48: NC | BO48: 0 | BP48: 0 | BQ48: NC | BR48: 0 | BS48: NC | BT48: 0 | BU48: NC | BV48: 0 | BW48: 0 | CL48: NC | CM48: 0 | CN48: NC | CO48: 0 | CP48: NC | CQ48: 0 | CR48: 0 | CS48: 5 | CT48: 13.2 | CU48: 7 | CV48: 11 | CW48: 14 | CX48: 2 | CY48: =CX48+CV48+CT48 -> 26.2 | DN48: 1 | DO48: 26.2
B49: 41 | C49: EDER VITAL DA SILVA | D49: CANDY GMS | E49: AMB | AA49: NC | AB49: 0 | AC49: NC | AD49: 0 | AE49: NC | AF49: 0 | AG49: 0 | BJ49: NC | BK49: 0 | BL49: NC | BM49: 0 | BN49: NC | BO49: 0 | BP49: 0 | BQ49: NC | BR49: 0 | BS49: NC | BT49: 0 | BU49: NC | BV49: 0 | BW49: 0 | CL49: NC | CM49: 0 | CN49: NC | CO49: 0 | CP49: NC | CQ49: 0 | CR49: 0 | CZ49: 15 | DA49: 2.2 | DB49: 2 | DC49: 18.7 | DD49: 12 | DE49: 5 | DF49: =DE49+DC49+DA49 -> 25.9 | DN49: 1 | DO49: 25.9
B50: 42 | C50: SEBASTIAO EUSTAQUIO M. BARROSO | D50: CARTOON D`OLYMPO (TE) | E50: AMB | AA50: NC | AB50: 0 | AC50: NC | AD50: 0 | AE50: NC | AF50: 0 | AG50: 0 | BJ50: NC | BK50: 0 | BL50: NC | BM50: 0 | BN50: NC | BO50: 0 | BP50: 0 | BQ50: NC | BR50: 0 | BS50: NC | BT50: 0 | BU50: NC | BV50: 0 | BW50: 0 | BX50: 1 | BY50: 11 | BZ50: 1 | CA50: 11 | CB50: 5 | CC50: 3 | CD50: =CC50+CA50+BY50 -> 25 | CL50: NC | CM50: 0 | CN50: NC | CO50: 0 | CP50: NC | CQ50: 0 | CR50: 0 | DN50: 1 | DO50: 25
B51: 43 | C51: DOUGLAS DUEK SILVEIRA BUENO | D51: CASSINO JMEN | E51: AMB | AA51: NC | AB51: 0 | AC51: NC | AD51: 0 | AE51: NC | AF51: 0 | AG51: 0 | BC51: 8 | BD51: 9.9 | BE51: NC | BF51: 0 | BG51: 4 | BH51: 14.3 | BI51: =BH51+BF51+BD51 -> 24.2 | BJ51: NC | BK51: 0 | BL51: NC | BM51: 0 | BN51: NC | BO51: 0 | BP51: 0 | BQ51: NC | BR51: 0 | BS51: NC | BT51: 0 | BU51: NC | BV51: 0 | BW51: 0 | CL51: NC | CM51: 0 | CN51: NC | CO51: 0 | CP51: NC | CQ51: 0 | CR51: 0 | DN51: 1 | DO51: 24.2
B52: 43 | C52: RAFAEL CHRISTIANINI | D52: SONHO REAL HCR | E52: AMB | F52: NC | G52: 0 | H52: 10 | I52: 7.7 | J52: 3 | K52: 16.5 | L52: =K52+I52+G52 -> 24.2 | AA52: NC | AB52: 0 | AC52: NC | AD52: 0 | AE52: NC | AF52: 0 | AG52: 0 | BJ52: NC | BK52: 0 | BL52: NC | BM52: 0 | BN52: NC | BO52: 0 | BP52: 0 | BQ52: NC | BR52: 0 | BS52: NC | BT52: 0 | BU52: NC | BV52: 0 | BW52: 0 | CL52: NC | CM52: 0 | CN52: NC | CO52: 0 | CP52: NC | CQ52: 0 | CR52: 0 | DN52: 1 | DO52: 24.2
B53: 43 | C53: LOURDES DA SILVA PINTO MONTEIRO | D53: DAPHNE DO BOSQUE (IA) | E53: MB | AA53: NC | AB53: 0 | AC53: NC | AD53: 0 | AE53: NC | AF53: 0 | AG53: 0 | BC53: 10 | BD53: 7.7 | BE53: 13 | BF53: 4.4 | BG53: 6 | BH53: 12.1 | BI53: =BH53+BF53+BD53 -> 24.2 | BJ53: NC | BK53: 0 | BL53: NC | BM53: 0 | BN53: NC | BO53: 0 | BP53: 0 | BQ53: NC | BR53: 0 | BS53: NC | BT53: 0 | BU53: NC | BV53: 0 | BW53: 0 | CL53: NC | CM53: 0 | CN53: NC | CO53: 0 | CP53: NC | CQ53: 0 | CR53: 0 | DN53: 1 | DO53: 24.2
B54: 46 | C54: TENENTE KEYLA WOSNIAK | D54: SL BARDOT | E54: AMB | AA54: NC | AB54: 0 | AC54: NC | AD54: 0 | AE54: NC | AF54: 0 | AG54: 0 | AH54: 3 | AI54: 11 | AJ54: 2 | AK54: 12 | AL54: 6 | AM54: 1 | AN54: =AM54+AK54+AI54 -> 24 | BJ54: NC | BK54: 0 | BL54: NC | BM54: 0 | BN54: NC | BO54: 0 | BP54: 0 | BQ54: NC | BR54: 0 | BS54: NC | BT54: 0 | BU54: NC | BV54: 0 | BW54: 0 | CL54: NC | CM54: 0 | CN54: NC | CO54: 0 | CP54: NC | CQ54: 0 | CR54: 0 | DN54: 1 | DO54: 24
B55: 47 | C55: RENATA BUSCH | D55: SL CHADDAR | E55: AMB | AA55: NC | AB55: 0 | AC55: NC | AD55: 0 | AE55: NC | AF55: 0 | AG55: 0 | BJ55: NC | BK55: 0 | BL55: NC | BM55: 0 | BN55: NC | BO55: 0 | BP55: 0 | BQ55: NC | BR55: 0 | BS55: NC | BT55: 0 | BU55: NC | BV55: 0 | BW55: 0 | CE55: 26 | CF55: 0 | CG55: 11 | CH55: 6.6 | CI55: 23 | CJ55: 0 | CK55: =CJ55+CH55+CF55 -> 6.6 | CL55: NC | CM55: 0 | CN55: NC | CO55: 0 | CP55: NC | CQ55: 0 | CR55: 0 | CZ55: 17 | DA55: 0 | DB55: 5 | DC55: 13.2 | DD55: 14 | DE55: 3 | DF55: =DE55+DC55+DA55 -> 16.2 | DG55: ELI | DH55: 0 | DI55: 10 | DJ55: 1 | DK55: NC | DL55: 0 | DM55: =DH55+DJ55 -> 1 | DN55: 3 | DO55: 23.8
B56: 48 | C56: ANA PAULA BASTOS DE CAMARGO | D56: ZEUS USP | E56: MB | AA56: NC | AB56: 0 | AC56: NC | AD56: 0 | AE56: NC | AF56: 0 | AG56: 0 | BC56: 13 | BD56: 4.4 | BE56: 2 | BF56: 18.7 | BG56: 18 | BH56: 0 | BI56: =BH56+BF56+BD56 -> 23.1 | BJ56: NC | BK56: 0 | BL56: NC | BM56: 0 | BN56: NC | BO56: 0 | BP56: 0 | BQ56: NC | BR56: 0 | BS56: NC | BT56: 0 | BU56: NC | BV56: 0 | BW56: 0 | CL56: NC | CM56: 0 | CN56: NC | CO56: 0 | CP56: NC | CQ56: 0 | CR56: 0 | DN56: 1 | DO56: 23.1
B57: 49 | C57: MONICA ESPINDOLA | D57: VILVOORDE SLL | E57: AMB | AA57: NC | AB57: 0 | AC57: NC | AD57: 0 | AE57: NC | AF57: 0 | AG57: 0 | AV57: 4 | AW57: 8 | AX57: 6 | AY57: 6 | AZ57: 3 | BA57: 9 | BB57: =BA57+AY57+AW57 -> 23 | BJ57: NC | BK57: 0 | BL57: NC | BM57: 0 | BN57: NC | BO57: 0 | BP57: 0 | BQ57: NC | BR57: 0 | BS57: NC | BT57: 0 | BU57: NC | BV57: 0 | BW57: 0 | CL57: NC | CM57: 0 | CN57: NC | CO57: 0 | CP57: NC | CQ57: 0 | CR57: 0 | DN57: 1 | DO57: 23
B58: 50 | C58: JULIA ZAMITH | D58: LA BELLA JMEN (TE) | E58: AMB | AA58: NC | AB58: 0 | AC58: NC | AD58: 0 | AE58: NC | AF58: 0 | AG58: 0 | BJ58: NC | BK58: 0 | BL58: NC | BM58: 0 | BN58: NC | BO58: 0 | BP58: 0 | BQ58: NC | BR58: 0 | BS58: NC | BT58: 0 | BU58: NC | BV58: 0 | BW58: 0 | CE58: 17 | CF58: 0 | CG58: 12 | CH58: 5.5 | CI58: 9 | CJ58: 8.8 | CK58: =CJ58+CH58+CF58 -> 14.3 | CL58: NC | CM58: 0 | CN58: NC | CO58: 0 | CP58: NC | CQ58: 0 | CR58: 0 | CS58: 13 | CT58: 4.4 | CU58: 16 | CV58: 1.1 | CW58: 13 | CX58: 3 | CY58: =CX58+CV58+CT58 -> 8.5 | DN58: 2 | DO58: 22.8
B59: 51 | C59: LUIZA PATRUS | D59: QUINTANA TOK (IA) | E59: AMB | AA59: NC | AB59: 0 | AC59: NC | AD59: 0 | AE59: NC | AF59: 0 | AG59: 0 | BJ59: NC | BK59: 0 | BL59: NC | BM59: 0 | BN59: NC | BO59: 0 | BP59: 0 | BQ59: NC | BR59: 0 | BS59: NC | BT59: 0 | BU59: NC | BV59: 0 | BW59: 0 | BX59: 3 | BY59: 6 | BZ59: 2 | CA59: 8 | CB59: 2 | CC59: 8 | CD59: =CC59+CA59+BY59 -> 22 | CL59: NC | CM59: 0 | CN59: NC | CO59: 0 | CP59: NC | CQ59: 0 | CR59: 0 | DN59: 1 | DO59: 22
B60: 52 | C60: MARIANA MAZON DE TOPLEDO | D60: BONAPARTE DA MATA (IA) | E60: AMB | AA60: NC | AB60: 0 | AC60: NC | AD60: 0 | AE60: NC | AF60: 0 | AG60: 0 | BJ60: NC | BK60: 0 | BL60: NC | BM60: 0 | BN60: NC | BO60: 0 | BP60: 0 | BQ60: NC | BR60: 0 | BS60: NC | BT60: 0 | BU60: NC | BV60: 0 | BW60: 0 | CL60: NC | CM60: 0 | CN60: NC | CO60: 0 | CP60: NC | CQ60: 0 | CR60: 0 | CS60: 9 | CT60: 8.8 | CU60: 13 | CV60: 4.4 | CW60: 8 | CX60: 8 | CY60: =CX60+CV60+CT60 -> 21.2 | DN60: 1 | DO60: 21.2
B61: 53 | C61: CAROLINA BATAGLIN DE CARVALHO | D61: ZURKIS USP | E61: AMB | AA61: NC | AB61: 0 | AC61: NC | AD61: 0 | AE61: NC | AF61: 0 | AG61: 0 | BC61: 16 | BD61: 1.1 | BE61: 12 | BF61: 5.5 | BG61: 12 | BH61: 5.5 | BI61: =BH61+BF61+BD61 -> 12.1 | BJ61: NC | BK61: 0 | BL61: NC | BM61: 0 | BN61: NC | BO61: 0 | BP61: 0 | BQ61: NC | BR61: 0 | BS61: NC | BT61: 0 | BU61: NC | BV61: 0 | BW61: 0 | CL61: NC | CM61: 0 | CN61: NC | CO61: 0 | CP61: NC | CQ61: 0 | CR61: 0 | DG61: 5 | DH61: 6 | DI61: 8 | DJ61: 3 | DK61: NC | DL61: 0 | DM61: =DH61+DJ61 -> 9 | DN61: 2 | DO61: 21.1
B62: 54 | C62: CAPITAO GUSTAVO CASTRO | D62: TÂNTALO DO RINCAO | E62: AMB | AA62: NC | AB62: 0 | AC62: NC | AD62: 0 | AE62: NC | AF62: 0 | AG62: 0 | AV62: 5 | AW62: 7 | AX62: 5 | AY62: 7 | AZ62: 4 | BA62: 7 | BB62: =BA62+AY62+AW62 -> 21 | BJ62: NC | BK62: 0 | BL62: NC | BM62: 0 | BN62: NC | BO62: 0 | BP62: 0 | BQ62: NC | BR62: 0 | BS62: NC | BT62: 0 | BU62: NC | BV62: 0 | BW62: 0 | CL62: NC | CM62: 0 | CN62: NC | CO62: 0 | CP62: NC | CQ62: 0 | CR62: 0 | DN62: 1 | DO62: 21
B63: 54 | C63: LAURA JACOMETT FONSECA | D63: BLANCA BEERQQUIE | E63: AMB | AA63: NC | AB63: 0 | AC63: NC | AD63: 0 | AE63: NC | AF63: 0 | AG63: 0 | BJ63: NC | BK63: 0 | BL63: NC | BM63: 0 | BN63: NC | BO63: 0 | BP63: 0 | BQ63: NC | BR63: 0 | BS63: NC | BT63: 0 | BU63: NC | BV63: 0 | BW63: 0 | BX63: 4 | BY63: 4 | BZ63: 3 | CA63: 6 | CB63: 1 | CC63: 11 | CD63: =CC63+CA63+BY63 -> 21 | CL63: NC | CM63: 0 | CN63: NC | CO63: 0 | CP63: NC | CQ63: 0 | CR63: 0 | DN63: 1 | DO63: 21
B64: 56 | C64: ROBERTO TEIXEIRA MENDES | D64: LOLLAND JM | E64: MB | AA64: NC | AB64: 0 | AC64: NC | AD64: 0 | AE64: NC | AF64: 0 | AG64: 0 | BJ64: NC | BK64: 0 | BL64: NC | BM64: 0 | BN64: NC | BO64: 0 | BP64: 0 | BQ64: NC | BR64: 0 | BS64: NC | BT64: 0 | BU64: NC | BV64: 0 | BW64: 0 | CL64: NC | CM64: 0 | CN64: NC | CO64: 0 | CP64: NC | CQ64: 0 | CR64: 0 | CS64: 10 | CT64: 7.7 | CU64: 9 | CV64: 8.8 | CW64: 12 | CX64: 4 | CY64: =CX64+CV64+CT64 -> 20.5 | DN64: 1 | DO64: 20.5
B65: 57 | C65: EDUARDO MICHELON | D65: ASTERIX GMS (IA) | E65: AMB | AA65: NC | AB65: 0 | AC65: NC | AD65: 0 | AE65: NC | AF65: 0 | AG65: 0 | AH65: 4 | AI65: 9 | AJ65: 6 | AK65: 6 | AL65: 3 | AM65: 5 | AN65: =AM65+AK65+AI65 -> 20 | BJ65: NC | BK65: 0 | BL65: NC | BM65: 0 | BN65: NC | BO65: 0 | BP65: 0 | BQ65: NC | BR65: 0 | BS65: NC | BT65: 0 | BU65: NC | BV65: 0 | BW65: 0 | CL65: NC | CM65: 0 | CN65: NC | CO65: 0 | CP65: NC | CQ65: 0 | CR65: 0 | DN65: 1 | DO65: 20
B66: 58 | C66: OTAVIO SCHIMIDT AZEVEDO | D66: GRINGO AMM (IA) | E66: AMB | F66: 14 | G66: 3.3 | H66: 18 | I66: 0 | J66: 12 | K66: 5.5 | L66: =K66+I66+G66 -> 8.8 | M66: 17 | N66: 0 | O66: NC | P66: 0 | Q66: 13 | R66: 4.4 | S66: =R66+P66+N66 -> 4.4 | AA66: NC | AB66: 0 | AC66: NC | AD66: 0 | AE66: NC | AF66: 0 | AG66: 0 | BC66: NC | BD66: 0 | BE66: 11 | BF66: 6.6 | BG66: 20 | BH66: 0 | BI66: =BH66+BF66+BD66 -> 6.6 | BJ66: NC | BK66: 0 | BL66: NC | BM66: 0 | BN66: NC | BO66: 0 | BP66: 0 | BQ66: NC | BR66: 0 | BS66: NC | BT66: 0 | BU66: NC | BV66: 0 | BW66: 0 | CL66: NC | CM66: 0 | CN66: NC | CO66: 0 | CP66: NC | CQ66: 0 | CR66: 0 | DN66: 3 | DO66: 19.8
B67: 59 | C67: SGT SIMONAL | D67: PARADOXA CHANTEBLED | E67: MB | AA67: NC | AB67: 0 | AC67: NC | AD67: 0 | AE67: NC | AF67: 0 | AG67: 0 | AV67: 1 | AW67: 15 | AX67: 10 | AY67: 2 | AZ67: 9 | BA67: 2 | BB67: =BA67+AY67+AW67 -> 19 | BJ67: NC | BK67: 0 | BL67: NC | BM67: 0 | BN67: NC | BO67: 0 | BP67: 0 | BQ67: NC | BR67: 0 | BS67: NC | BT67: 0 | BU67: NC | BV67: 0 | BW67: 0 | CL67: NC | CM67: 0 | CN67: NC | CO67: 0 | CP67: NC | CQ67: 0 | CR67: 0 | DN67: 1 | DO67: 19
B68: 59 | C68: TENENTE MATHEUS SOARES | D68: ONOMATOPEIA DO RINCAO | E68: AMB | AA68: NC | AB68: 0 | AC68: NC | AD68: 0 | AE68: NC | AF68: 0 | AG68: 0 | AV68: 3 | AW68: 10 | AX68: 9 | AY68: 3 | AZ68: 5 | BA68: 6 | BB68: =BA68+AY68+AW68 -> 19 | BJ68: NC | BK68: 0 | BL68: NC | BM68: 0 | BN68: NC | BO68: 0 | BP68: 0 | BQ68: NC | BR68: 0 | BS68: NC | BT68: 0 | BU68: NC | BV68: 0 | BW68: 0 | CL68: NC | CM68: 0 | CN68: NC | CO68: 0 | CP68: NC | CQ68: 0 | CR68: 0 | DN68: 1 | DO68: 19
B69: 61 | C69: JOSE MARCIO GOBBI | D69: BEN 10 DA LAGOA | E69: MB | F69: 8 | G69: 9.9 | H69: 13 | I69: 4.4 | J69: ELI | K69: 0 | L69: =K69+I69+G69 -> 14.3 | AA69: NC | AB69: 0 | AC69: NC | AD69: 0 | AE69: NC | AF69: 0 | AG69: 0 | BJ69: NC | BK69: 0 | BL69: NC | BM69: 0 | BN69: NC | BO69: 0 | BP69: 0 | BQ69: NC | BR69: 0 | BS69: NC | BT69: 0 | BU69: NC | BV69: 0 | BW69: 0 | CE69: 13 | CF69: 4.4 | CG69: ELI | CH69: 0 | CI69: NC | CJ69: 0 | CK69: =CJ69+CH69+CF69 -> 4.4 | CL69: NC | CM69: 0 | CN69: NC | CO69: 0 | CP69: NC | CQ69: 0 | CR69: 0 | DN69: 2 | DO69: 18.7
B70: 62 | C70: MARIA FERNANDA LATTES FERREIRA | D70: SALAMANDRA CHAP REVENA | E70: AMB | AA70: NC | AB70: 0 | AC70: NC | AD70: 0 | AE70: NC | AF70: 0 | AG70: 0 | BJ70: NC | BK70: 0 | BL70: NC | BM70: 0 | BN70: NC | BO70: 0 | BP70: 0 | BQ70: NC | BR70: 0 | BS70: NC | BT70: 0 | BU70: NC | BV70: 0 | BW70: 0 | CE70: 21 | CF70: 0 | CG70: 22 | CH70: 0 | CI70: 12 | CJ70: 5.5 | CK70: =CJ70+CH70+CF70 -> 5.5 | CL70: NC | CM70: 0 | CN70: NC | CO70: 0 | CP70: NC | CQ70: 0 | CR70: 0 | CS70: 14 | CT70: 3.3 | CU70: 14 | CV70: 3.3 | CW70: 10 | CX70: 6 | CY70: =CX70+CV70+CT70 -> 12.6 | DN70: 2 | DO70: 18.1
B71: 63 | C71: PAULO GOMES | D71: CASSILANO JMEN I (TE) | E71: AMB | AA71: NC | AB71: 0 | AC71: NC | AD71: 0 | AE71: NC | AF71: 0 | AG71: 0 | AV71: 6 | AW71: 6 | AX71: 2 | AY71: 12 | AZ71: ELI | BA71: 0 | BB71: =BA71+AY71+AW71 -> 18 | BJ71: NC | BK71: 0 | BL71: NC | BM71: 0 | BN71: NC | BO71: 0 | BP71: 0 | BQ71: NC | BR71: 0 | BS71: NC | BT71: 0 | BU71: NC | BV71: 0 | BW71: 0 | CL71: NC | CM71: 0 | CN71: NC | CO71: 0 | CP71: NC | CQ71: 0 | CR71: 0 | DN71: 1 | DO71: 18
B72: 64 | C72: THAIS TEIXEIRA DE SOUZA | D72: CAMARO HR (IA) | E72: AMB | M72: 14 | N72: 3.3 | O72: 10 | P72: 7.7 | Q72: 11 | R72: 6.6 | S72: =R72+P72+N72 -> 17.6 | AA72: NC | AB72: 0 | AC72: NC | AD72: 0 | AE72: NC | AF72: 0 | AG72: 0 | BJ72: NC | BK72: 0 | BL72: NC | BM72: 0 | BN72: NC | BO72: 0 | BP72: 0 | BQ72: NC | BR72: 0 | BS72: NC | BT72: 0 | BU72: NC | BV72: 0 | BW72: 0 | CL72: NC | CM72: 0 | CN72: NC | CO72: 0 | CP72: NC | CQ72: 0 | CR72: 0 | DN72: 1 | DO72: 17.6
B73: 64 | C73: ALBERTO PINHEIRO | D73: NUTREAL EVA GARDEN | E73: MB | AA73: NC | AB73: 0 | AC73: NC | AD73: 0 | AE73: NC | AF73: 0 | AG73: 0 | BJ73: NC | BK73: 0 | BL73: NC | BM73: 0 | BN73: NC | BO73: 0 | BP73: 0 | BQ73: NC | BR73: 0 | BS73: NC | BT73: 0 | BU73: NC | BV73: 0 | BW73: 0 | CL73: NC | CM73: 0 | CN73: NC | CO73: 0 | CP73: NC | CQ73: 0 | CR73: 0 | CS73: 6 | CT73: 12.1 | CU73: 12 | CV73: 5.5 | CW73: NC | CX73: 0 | CY73: =CX73+CV73+CT73 -> 17.6 | DN73: =SUBTOTAL(3,L73,S73,Z73,AN73,AU73,BB73,BI73,CD73,CK73,CY73,DF73,DM73) -> 1 | DO73: =DM73+DF73+CY73+CR73+CK73+CD73+BW73+BP73+BI73+BB73+AU73+AN73+AG73+Z73+S73+L73 -> 17.6
B74: 66 | C74: PAULO GOMES | D74: CATIRA JMEN (TE) | E74: AMB | T74: 1 | U74: 0 | V74: 1 | W74: 0 | X74: 1 | Y74: 0 | Z74: =Y74+W74+U74 -> 0 | AA74: NC | AB74: 0 | AC74: NC | AD74: 0 | AE74: NC | AF74: 0 | AG74: 0 | AV74: 10 | AW74: 2 | AX74: 3 | AY74: 10 | AZ74: 6 | BA74: 5 | BB74: =BA74+AY74+AW74 -> 17 | BJ74: NC | BK74: 0 | BL74: NC | BM74: 0 | BN74: NC | BO74: 0 | BP74: 0 | BQ74: NC | BR74: 0 | BS74: NC | BT74: 0 | BU74: NC | BV74: 0 | BW74: 0 | CL74: NC | CM74: 0 | CN74: NC | CO74: 0 | CP74: NC | CQ74: 0 | CR74: 0 | DN74: 2 | DO74: 17
B75: 67 | C75: OSWALDO DE LUCA NETO | D75: ST. CAETANO N (IA) | E75: AMB | AA75: NC | AB75: 0 | AC75: NC | AD75: 0 | AE75: NC | AF75: 0 | AG75: 0 | BC75: 17 | BD75: 0 | BE75: 4 | BF75: 14.3 | BG75: 15 | BH75: 2.2 | BI75: =BH75+BF75+BD75 -> 16.5 | BJ75: NC | BK75: 0 | BL75: NC | BM75: 0 | BN75: NC | BO75: 0 | BP75: 0 | BQ75: NC | BR75: 0 | BS75: NC | BT75: 0 | BU75: NC | BV75: 0 | BW75: 0 | CL75: NC | CM75: 0 | CN75: NC | CO75: 0 | CP75: NC | CQ75: 0 | CR75: 0 | DN75: 1 | DO75: 16.5
B76: 68 | C76: CAPITAO ROBERTO BOURGUIGNON | D76: MALICIA ITAPUA | E76: MB | AA76: NC | AB76: 0 | AC76: NC | AD76: 0 | AE76: NC | AF76: 0 | AG76: 0 | AV76: 7 | AW76: 5 | AX76: 4 | AY76: 8 | AZ76: 8 | BA76: 3 | BB76: =BA76+AY76+AW76 -> 16 | BJ76: NC | BK76: 0 | BL76: NC | BM76: 0 | BN76: NC | BO76: 0 | BP76: 0 | BQ76: NC | BR76: 0 | BS76: NC | BT76: 0 | BU76: NC | BV76: 0 | BW76: 0 | CL76: NC | CM76: 0 | CN76: NC | CO76: 0 | CP76: NC | CQ76: 0 | CR76: 0 | DN76: 1 | DO76: 16
B77: 69 | C77: DAVID ALEXANDRE MONTEIRO | D77: RIFLAI RI | E77: MB | AA77: NC | AB77: 0 | AC77: NC | AD77: 0 | AE77: NC | AF77: 0 | AG77: 0 | BJ77: NC | BK77: 0 | BL77: NC | BM77: 0 | BN77: NC | BO77: 0 | BP77: 0 | BQ77: NC | BR77: 0 | BS77: NC | BT77: 0 | BU77: NC | BV77: 0 | BW77: 0 | CL77: NC | CM77: 0 | CN77: NC | CO77: 0 | CP77: NC | CQ77: 0 | CR77: 0 | CZ77: 10 | DA77: 7.7 | DB77: 14 | DC77: 3.3 | DD77: 13 | DE77: 4 | DF77: =DE77+DC77+DA77 -> 15 | DN77: 1 | DO77: 15
B78: 70 | C78: LUCIANE PARMA PINTO | D78: LPP LARA (TE) | E78: AMB | F78: 4 | G78: 14.3 | H78: 17 | I78: 0 | J78: NC | K78: 0 | L78: =K78+I78+G78 -> 14.3 | AA78: NC | AB78: 0 | AC78: NC | AD78: 0 | AE78: NC | AF78: 0 | AG78: 0 | BJ78: NC | BK78: 0 | BL78: NC | BM78: 0 | BN78: NC | BO78: 0 | BP78: 0 | BQ78: NC | BR78: 0 | BS78: NC | BT78: 0 | BU78: NC | BV78: 0 | BW78: 0 | CL78: NC | CM78: 0 | CN78: NC | CO78: 0 | CP78: NC | CQ78: 0 | CR78: 0 | DN78: 1 | DO78: 14.3
B79: 70 | C79: YULIA PETROVA | D79: RASPUTIN JMEN (TE) | E79: AMB | AA79: NC | AB79: 0 | AC79: NC | AD79: 0 | AE79: NC | AF79: 0 | AG79: 0 | BC79: 12 | BD79: 5.5 | BE79: 9 | BF79: 8.8 | BG79: 21 | BH79: 0 | BI79: =BH79+BF79+BD79 -> 14.3 | BJ79: NC | BK79: 0 | BL79: NC | BM79: 0 | BN79: NC | BO79: 0 | BP79: 0 | BQ79: NC | BR79: 0 | BS79: NC | BT79: 0 | BU79: NC | BV79: 0 | BW79: 0 | CL79: NC | CM79: 0 | CN79: NC | CO79: 0 | CP79: NC | CQ79: 0 | CR79: 0 | DN79: 1 | DO79: 14.3
B80: 72 | C80: DEBORA PAZ SAUT | D80: MONTBLANC TOK (IA) | E80: AMB | AA80: NC | AB80: 0 | AC80: NC | AD80: 0 | AE80: NC | AF80: 0 | AG80: 0 | AO80: 5 | AP80: 3 | AQ80: 1 | AR80: 11 | AS80: NC | AT80: 0 | AU80: =AT80+AR80+AP80 -> 14 | BJ80: NC | BK80: 0 | BL80: NC | BM80: 0 | BN80: NC | BO80: 0 | BP80: 0 | BQ80: NC | BR80: 0 | BS80: NC | BT80: 0 | BU80: NC | BV80: 0 | BW80: 0 | CL80: NC | CM80: 0 | CN80: NC | CO80: 0 | CP80: NC | CQ80: 0 | CR80: 0 | DN80: 1 | DO80: 14
B81: 73 | C81: MARGHERITA BRAZZALLE | D81: VALKIRYA EQUIPRIME (IA) | E81: MB | F81: 11 | G81: 6.6 | H81: 11 | I81: 6.6 | J81: ELI | K81: 0 | L81: =K81+I81+G81 -> 13.2 | AA81: NC | AB81: 0 | AC81: NC | AD81: 0 | AE81: NC | AF81: 0 | AG81: 0 | BJ81: NC | BK81: 0 | BL81: NC | BM81: 0 | BN81: NC | BO81: 0 | BP81: 0 | BQ81: NC | BR81: 0 | BS81: NC | BT81: 0 | BU81: NC | BV81: 0 | BW81: 0 | CL81: NC | CM81: 0 | CN81: NC | CO81: 0 | CP81: NC | CQ81: 0 | CR81: 0 | DN81: 1 | DO81: 13.2
B82: 73 | C82: GABRIELA HSIEH | D82: HSL AMY BROWN (IA) | E82: AMB | AA82: NC | AB82: 0 | AC82: NC | AD82: 0 | AE82: NC | AF82: 0 | AG82: 0 | BJ82: NC | BK82: 0 | BL82: NC | BM82: 0 | BN82: NC | BO82: 0 | BP82: 0 | BQ82: NC | BR82: 0 | BS82: NC | BT82: 0 | BU82: NC | BV82: 0 | BW82: 0 | CE82: 14 | CF82: 3.3 | CG82: 8 | CH82: 9.9 | CI82: 19 | CJ82: 0 | CK82: =CJ82+CH82+CF82 -> 13.2 | CL82: NC | CM82: 0 | CN82: NC | CO82: 0 | CP82: NC | CQ82: 0 | CR82: 0 | DN82: 1 | DO82: 13.2
B83: 75 | C83: GUILHERME TUCCILE BRAGA | D83: CHARLIZE-B JMEN | E83: AMB | AA83: NC | AB83: 0 | AC83: NC | AD83: 0 | AE83: NC | AF83: 0 | AG83: 0 | BJ83: NC | BK83: 0 | BL83: NC | BM83: 0 | BN83: NC | BO83: 0 | BP83: 0 | BQ83: NC | BR83: 0 | BS83: NC | BT83: 0 | BU83: NC | BV83: 0 | BW83: 0 | CE83: 22 | CF83: 0 | CG83: 18 | CH83: 0 | CI83: 6 | CJ83: 12.1 | CK83: =CJ83+CH83+CF83 -> 12.1 | CL83: NC | CM83: 0 | CN83: NC | CO83: 0 | CP83: NC | CQ83: 0 | CR83: 0 | DN83: 1 | DO83: 12.1
B84: 76 | C84: LUANA BUBLITZ MARTINS | D84: RECOLETA DA LAGOA | E84: AMB | AA84: NC | AB84: 0 | AC84: NC | AD84: 0 | AE84: NC | AF84: 0 | AG84: 0 | AO84: 2 | AP84: 8 | AQ84: 4 | AR84: 4 | AS84: NC | AT84: 0 | AU84: =AT84+AR84+AP84 -> 12 | BJ84: NC | BK84: 0 | BL84: NC | BM84: 0 | BN84: NC | BO84: 0 | BP84: 0 | BQ84: NC | BR84: 0 | BS84: NC | BT84: 0 | BU84: NC | BV84: 0 | BW84: 0 | CL84: NC | CM84: 0 | CN84: NC | CO84: 0 | CP84: NC | CQ84: 0 | CR84: 0 | DN84: 1 | DO84: 12
B85: 76 | C85: ANA FLAVIA M. PEREIRA | D85: GARDA TW | E85: AMB | AA85: NC | AB85: 0 | AC85: NC | AD85: 0 | AE85: NC | AF85: 0 | AG85: 0 | AV85: 8 | AW85: 4 | AX85: 8 | AY85: 4 | AZ85: 7 | BA85: 4 | BB85: =BA85+AY85+AW85 -> 12 | BJ85: NC | BK85: 0 | BL85: NC | BM85: 0 | BN85: NC | BO85: 0 | BP85: 0 | BQ85: NC | BR85: 0 | BS85: NC | BT85: 0 | BU85: NC | BV85: 0 | BW85: 0 | CL85: NC | CM85: 0 | CN85: NC | CO85: 0 | CP85: NC | CQ85: 0 | CR85: 0 | DN85: 1 | DO85: 12
B86: 76 | C86: RAMON MATOS ANDRADE | D86: CALIBRE DO CACH | E86: AMB | AA86: NC | AB86: 0 | AC86: NC | AD86: 0 | AE86: NC | AF86: 0 | AG86: 0 | BJ86: NC | BK86: 0 | BL86: NC | BM86: 0 | BN86: NC | BO86: 0 | BP86: 0 | BQ86: NC | BR86: 0 | BS86: NC | BT86: 0 | BU86: NC | BV86: 0 | BW86: 0 | BX86: 2 | BY86: 8 | BZ86: 5 | CA86: 3 | CB86: 7 | CC86: 1 | CD86: =CC86+CA86+BY86 -> 12 | CL86: NC | CM86: 0 | CN86: NC | CO86: 0 | CP86: NC | CQ86: 0 | CR86: 0 | DN86: 1 | DO86: 12
B87: 79 | C87: CAMILA GIBIN MENDES | D87: OLINDA CVT | E87: AMB | M87: 10 | N87: 7.7 | O87: 14 | P87: 3.3 | Q87: ELI | R87: 0 | S87: =R87+P87+N87 -> 11 | AA87: NC | AB87: 0 | AC87: NC | AD87: 0 | AE87: NC | AF87: 0 | AG87: 0 | BJ87: NC | BK87: 0 | BL87: NC | BM87: 0 | BN87: NC | BO87: 0 | BP87: 0 | BQ87: NC | BR87: 0 | BS87: NC | BT87: 0 | BU87: NC | BV87: 0 | BW87: 0 | CL87: NC | CM87: 0 | CN87: NC | CO87: 0 | CP87: NC | CQ87: 0 | CR87: 0 | DN87: 1 | DO87: 11
B88: 79 | C88: FRANCINI LARA FISCHER | D88: DONATO DA PEDREIRA (TE) | E88: AMB | AA88: NC | AB88: 0 | AC88: NC | AD88: 0 | AE88: NC | AF88: 0 | AG88: 0 | AO88: 1 | AP88: 11 | AQ88: ELI | AR88: 0 | AS88: NC | AT88: 0 | AU88: =AT88+AR88+AP88 -> 11 | BJ88: NC | BK88: 0 | BL88: NC | BM88: 0 | BN88: NC | BO88: 0 | BP88: 0 | BQ88: NC | BR88: 0 | BS88: NC | BT88: 0 | BU88: NC | BV88: 0 | BW88: 0 | CL88: NC | CM88: 0 | CN88: NC | CO88: 0 | CP88: NC | CQ88: 0 | CR88: 0 | DN88: 1 | DO88: 11
B89: 79 | C89: MARCOS ANTONIO TEIXEIRA | D89: CANTINO JOTER (IA) | E89: MB | AA89: NC | AB89: 0 | AC89: NC | AD89: 0 | AE89: NC | AF89: 0 | AG89: 0 | BC89: 11 | BD89: 6.6 | BE89: 14 | BF89: 3.3 | BG89: 16 | BH89: 1.1 | BI89: =BH89+BF89+BD89 -> 11 | BJ89: NC | BK89: 0 | BL89: NC | BM89: 0 | BN89: NC | BO89: 0 | BP89: 0 | BQ89: NC | BR89: 0 | BS89: NC | BT89: 0 | BU89: NC | BV89: 0 | BW89: 0 | CL89: NC | CM89: 0 | CN89: NC | CO89: 0 | CP89: NC | CQ89: 0 | CR89: 0 | DN89: 1 | DO89: 11
B90: 79 | C90: LAURA JACOMETT FONSECA | D90: GR DONATELLA (IA) | E90: AMB | AA90: NC | AB90: 0 | AC90: NC | AD90: 0 | AE90: NC | AF90: 0 | AG90: 0 | BJ90: NC | BK90: 0 | BL90: NC | BM90: 0 | BN90: NC | BO90: 0 | BP90: 0 | BQ90: NC | BR90: 0 | BS90: NC | BT90: 0 | BU90: NC | BV90: 0 | BW90: 0 | BX90: 5 | BY90: 3 | BZ90: 4 | CA90: 4 | CB90: 4 | CC90: 4 | CD90: =CC90+CA90+BY90 -> 11 | CL90: NC | CM90: 0 | CN90: NC | CO90: 0 | CP90: NC | CQ90: 0 | CR90: 0 | DN90: 1 | DO90: 11
B91: 83 | C91: DANIEL CESAR MARANHÃO KHURY | D91: HINTERTUX | E91: AMB | AA91: NC | AB91: 0 | AC91: NC | AD91: 0 | AE91: NC | AF91: 0 | AG91: 0 | AO91: 4 | AP91: 4 | AQ91: 3 | AR91: 6 | AS91: NC | AT91: 0 | AU91: =AT91+AR91+AP91 -> 10 | BJ91: NC | BK91: 0 | BL91: NC | BM91: 0 | BN91: NC | BO91: 0 | BP91: 0 | BQ91: NC | BR91: 0 | BS91: NC | BT91: 0 | BU91: NC | BV91: 0 | BW91: 0 | CL91: NC | CM91: 0 | CN91: NC | CO91: 0 | CP91: NC | CQ91: 0 | CR91: 0 | DN91: 1 | DO91: 10
B92: 83 | C92: PAULO MARCELO PINENT TIGRE | D92: SILBERLEI JOTER III | E92: MB | AA92: NC | AB92: 0 | AC92: NC | AD92: 0 | AE92: NC | AF92: 0 | AG92: 0 | AO92: 6 | AP92: 2 | AQ92: 2 | AR92: 8 | AS92: NC | AT92: 0 | AU92: =AT92+AR92+AP92 -> 10 | BJ92: NC | BK92: 0 | BL92: NC | BM92: 0 | BN92: NC | BO92: 0 | BP92: 0 | BQ92: NC | BR92: 0 | BS92: NC | BT92: 0 | BU92: NC | BV92: 0 | BW92: 0 | CL92: NC | CM92: 0 | CN92: NC | CO92: 0 | CP92: NC | CQ92: 0 | CR92: 0 | DN92: 1 | DO92: 10
B93: 83 | C93: MELINA MORANDINI | D93: CASSILIA C JMEN II | E93: AMB | AA93: NC | AB93: 0 | AC93: NC | AD93: 0 | AE93: NC | AF93: 0 | AG93: 0 | AH93: DES | AI93: 0 | AJ93: 4 | AK93: 8 | AL93: 5 | AM93: 2 | AN93: =AM93+AK93+AI93 -> 10 | BJ93: NC | BK93: 0 | BL93: NC | BM93: 0 | BN93: NC | BO93: 0 | BP93: 0 | BQ93: NC | BR93: 0 | BS93: NC | BT93: 0 | BU93: NC | BV93: 0 | BW93: 0 | CL93: NC | CM93: 0 | CN93: NC | CO93: 0 | CP93: NC | CQ93: 0 | CR93: 0 | DN93: 1 | DO93: 10
B94: 83 | C94: JOAO GILBERTO COMINESE FREIRE | D94: HINTERTUX | E94: AMB | AA94: NC | AB94: 0 | AC94: NC | AD94: 0 | AE94: NC | AF94: 0 | AG94: 0 | AH94: NC | AI94: 0 | AJ94: 3 | AK94: 10 | AL94: NC | AM94: 0 | AN94: =AM94+AK94+AI94 -> 10 | BJ94: NC | BK94: 0 | BL94: NC | BM94: 0 | BN94: NC | BO94: 0 | BP94: 0 | BQ94: NC | BR94: 0 | BS94: NC | BT94: 0 | BU94: NC | BV94: 0 | BW94: 0 | CL94: NC | CM94: 0 | CN94: NC | CO94: 0 | CP94: NC | CQ94: 0 | CR94: 0 | DN94: 1 | DO94: 10
B95: 83 | C95: LUCAS MALLARD | D95: CALINDA DO SOUTO | E95: AMB | AA95: NC | AB95: 0 | AC95: NC | AD95: 0 | AE95: NC | AF95: 0 | AG95: 0 | BJ95: NC | BK95: 0 | BL95: NC | BM95: 0 | BN95: NC | BO95: 0 | BP95: 0 | BQ95: NC | BR95: 0 | BS95: NC | BT95: 0 | BU95: NC | BV95: 0 | BW95: 0 | BX95: 6 | BY95: 2 | BZ95: 6 | CA95: 2 | CB95: 3 | CC95: 6 | CD95: =CC95+CA95+BY95 -> 10 | CL95: NC | CM95: 0 | CN95: NC | CO95: 0 | CP95: NC | CQ95: 0 | CR95: 0 | DN95: 1 | DO95: 10
B96: 88 | C96: BRUNO DE CASTRO SOARES CRUZ | D96: MC BACO GRAFITE (TE) | E96: AMB | AA96: NC | AB96: 0 | AC96: NC | AD96: 0 | AE96: NC | AF96: 0 | AG96: 0 | BC96: ELI | BD96: 0 | BE96: 8 | BF96: 9.9 | BG96: 17 | BH96: 0 | BI96: =BH96+BF96+BD96 -> 9.9 | BJ96: NC | BK96: 0 | BL96: NC | BM96: 0 | BN96: NC | BO96: 0 | BP96: 0 | BQ96: NC | BR96: 0 | BS96: NC | BT96: 0 | BU96: NC | BV96: 0 | BW96: 0 | CL96: NC | CM96: 0 | CN96: NC | CO96: 0 | CP96: NC | CQ96: 0 | CR96: 0 | DN96: 1 | DO96: 9.9
B97: 88 | C97: MARIO KRIGER | D97: CASSILANO JMEN VII (TE) | E97: AMB | AA97: NC | AB97: 0 | AC97: NC | AD97: 0 | AE97: NC | AF97: 0 | AG97: 0 | BJ97: NC | BK97: 0 | BL97: NC | BM97: 0 | BN97: NC | BO97: 0 | BP97: 0 | BQ97: NC | BR97: 0 | BS97: NC | BT97: 0 | BU97: NC | BV97: 0 | BW97: 0 | CE97: 11 | CF97: 6.6 | CG97: 23 | CH97: 0 | CI97: 14 | CJ97: 3.3 | CK97: =CJ97+CH97+CF97 -> 9.9 | CL97: NC | CM97: 0 | CN97: NC | CO97: 0 | CP97: NC | CQ97: 0 | CR97: 0 | DN97: 1 | DO97: 9.9
B98: 90 | C98: LEO MARIO HEIDRICH LEAL | D98: SS SANTIAGO | E98: AMB | AA98: NC | AB98: 0 | AC98: NC | AD98: 0 | AE98: NC | AF98: 0 | AG98: 0 | AO98: 3 | AP98: 6 | AQ98: 5 | AR98: 3 | AS98: NC | AT98: 0 | AU98: =AT98+AR98+AP98 -> 9 | BJ98: NC | BK98: 0 | BL98: NC | BM98: 0 | BN98: NC | BO98: 0 | BP98: 0 | BQ98: NC | BR98: 0 | BS98: NC | BT98: 0 | BU98: NC | BV98: 0 | BW98: 0 | CL98: NC | CM98: 0 | CN98: NC | CO98: 0 | CP98: NC | CQ98: 0 | CR98: 0 | DN98: 1 | DO98: 9
B99: 91 | C99: NATHANA MARTINS BEDRAN CALIL | D99: AG LAROUBET (TE) | E99: AMB | M99: 11 | N99: 6.6 | O99: 15 | P99: 2.2 | Q99: NC | R99: 0 | S99: =R99+P99+N99 -> 8.8 | AA99: NC | AB99: 0 | AC99: NC | AD99: 0 | AE99: NC | AF99: 0 | AG99: 0 | BJ99: NC | BK99: 0 | BL99: NC | BM99: 0 | BN99: NC | BO99: 0 | BP99: 0 | BQ99: NC | BR99: 0 | BS99: NC | BT99: 0 | BU99: NC | BV99: 0 | BW99: 0 | CL99: NC | CM99: 0 | CN99: NC | CO99: 0 | CP99: NC | CQ99: 0 | CR99: 0 | DN99: 1 | DO99: 8.8
B100: 92 | C100: ARIE CARNEIRO | D100: KENTUCKY JMEN (IA) | E100: AMB | AA100: NC | AB100: 0 | AC100: NC | AD100: 0 | AE100: NC | AF100: 0 | AG100: 0 | BJ100: NC | BK100: 0 | BL100: NC | BM100: 0 | BN100: NC | BO100: 0 | BP100: 0 | BQ100: NC | BR100: 0 | BS100: NC | BT100: 0 | BU100: NC | BV100: 0 | BW100: 0 | CL100: NC | CM100: 0 | CN100: NC | CO100: 0 | CP100: NC | CQ100: 0 | CR100: 0 | CZ100: 16 | DA100: 1.1 | DB100: 11 | DC100: 6.6 | DD100: 16 | DE100: 1 | DF100: =DE100+DC100+DA100 -> 8.7 | DN100: 1 | DO100: 8.7
B101: 93 | C101: RAFAELA MALSCHITZKY | D101: BRUNELLO ADEL FAS | E101: AMB | AA101: NC | AB101: 0 | AC101: NC | AD101: 0 | AE101: NC | AF101: 0 | AG101: 0 | AH101: 10 | AI101: 3 | AJ101: 10 | AK101: 2 | AL101: 4 | AM101: 3 | AN101: =AM101+AK101+AI101 -> 8 | BJ101: NC | BK101: 0 | BL101: NC | BM101: 0 | BN101: NC | BO101: 0 | BP101: 0 | BQ101: NC | BR101: 0 | BS101: NC | BT101: 0 | BU101: NC | BV101: 0 | BW101: 0 | CL101: NC | CM101: 0 | CN101: NC | CO101: 0 | CP101: NC | CQ101: 0 | CR101: 0 | DN101: 1 | DO101: 8
B102: 94 | C102: MARCIA HERNANDES | D102: VEREDA CAMPECHE | E102: MB | AA102: NC | AB102: 0 | AC102: NC | AD102: 0 | AE102: NC | AF102: 0 | AG102: 0 | BC102: ELI | BD102: 0 | BE102: ELI | BF102: 0 | BG102: 10 | BH102: 7.7 | BI102: =BH102+BF102+BD102 -> 7.7 | BJ102: NC | BK102: 0 | BL102: NC | BM102: 0 | BN102: NC | BO102: 0 | BP102: 0 | BQ102: NC | BR102: 0 | BS102: NC | BT102: 0 | BU102: NC | BV102: 0 | BW102: 0 | CL102: NC | CM102: 0 | CN102: NC | CO102: 0 | CP102: NC | CQ102: 0 | CR102: 0 | DN102: 1 | DO102: 7.7
B103: 95 | C103: DANIELA CALDAS | D103: NARCISA ADAL | E103: AMB | AA103: NC | AB103: 0 | AC103: NC | AD103: 0 | AE103: NC | AF103: 0 | AG103: 0 | AH103: 6 | AI103: 7 | AJ103: ELI | AK103: 0 | AL103: NC | AM103: 0 | AN103: =AM103+AK103+AI103 -> 7 | BJ103: NC | BK103: 0 | BL103: NC | BM103: 0 | BN103: NC | BO103: 0 | BP103: 0 | BQ103: NC | BR103: 0 | BS103: NC | BT103: 0 | BU103: NC | BV103: 0 | BW103: 0 | CL103: NC | CM103: 0 | CN103: NC | CO103: 0 | CP103: NC | CQ103: 0 | CR103: 0 | DN103: 1 | DO103: 7
B104: 95 | C104: ANTONIO CAMARGO JUNIOR | D104: CANZEIRO JMEN | E104: MB | AA104: NC | AB104: 0 | AC104: NC | AD104: 0 | AE104: NC | AF104: 0 | AG104: 0 | AH104: 11 | AI104: 2 | AJ104: 7 | AK104: 5 | AL104: NC | AM104: 0 | AN104: =AM104+AK104+AI104 -> 7 | BJ104: NC | BK104: 0 | BL104: NC | BM104: 0 | BN104: NC | BO104: 0 | BP104: 0 | BQ104: NC | BR104: 0 | BS104: NC | BT104: 0 | BU104: NC | BV104: 0 | BW104: 0 | CL104: NC | CM104: 0 | CN104: NC | CO104: 0 | CP104: NC | CQ104: 0 | CR104: 0 | DN104: 1 | DO104: 7
B105: 95 | C105: TOP CHOICE XANGO (IA) | D105: MICHELLE MARIE COUTINHO DOREA | E105: AMB | AA105: NC | AB105: 0 | AC105: NC | AD105: 0 | AE105: NC | AF105: 0 | AG105: 0 | BJ105: NC | BK105: 0 | BL105: NC | BM105: 0 | BN105: NC | BO105: 0 | BP105: 0 | BQ105: NC | BR105: 0 | BS105: NC | BT105: 0 | BU105: NC | BV105: 0 | BW105: 0 | CL105: NC | CM105: 0 | CN105: NC | CO105: 0 | CP105: NC | CQ105: 0 | CR105: 0 | DG105: 9 | DH105: 2 | DI105: 6 | DJ105: 5 | DK105: NC | DL105: 0 | DM105: =DH105+DJ105 -> 7 | DN105: =SUBTOTAL(3,L105,S105,Z105,AN105,AU105,BB105,BI105,CD105,CK105,CY105,DF105,DM105) -> 1 | DO105: =DM105+DF105+CY105+CR105+CK105+CD105+BW105+BP105+BI105+BB105+AU105+AN105+AG105+Z105+S105+L105 -> 7
B106: 98 | C106: CLAUDIA CATAO ALVES SIQUEIRA | D106: CLASS-OF-RITTER DO FEROLETO | E106: AMB | F106: 17 | G106: 0 | H106: 15 | I106: 2.2 | J106: 13 | K106: 4.4 | L106: =K106+I106+G106 -> 6.6 | M106: 20 | N106: 0 | O106: 19 | P106: 0 | Q106: NC | R106: 0 | S106: =R106+P106+N106 -> 0 | AA106: NC | AB106: 0 | AC106: NC | AD106: 0 | AE106: NC | AF106: 0 | AG106: 0 | BJ106: NC | BK106: 0 | BL106: NC | BM106: 0 | BN106: NC | BO106: 0 | BP106: 0 | BQ106: NC | BR106: 0 | BS106: NC | BT106: 0 | BU106: NC | BV106: 0 | BW106: 0 | CL106: NC | CM106: 0 | CN106: NC | CO106: 0 | CP106: NC | CQ106: 0 | CR106: 0 | DN106: 2 | DO106: 6.6
B107: 98 | C107: PAULA MINAMI SAEKI | D107: AMORKA GFC (IA) | E107: AMB | AA107: NC | AB107: 0 | AC107: NC | AD107: 0 | AE107: NC | AF107: 0 | AG107: 0 | BJ107: NC | BK107: 0 | BL107: NC | BM107: 0 | BN107: NC | BO107: 0 | BP107: 0 | BQ107: NC | BR107: 0 | BS107: NC | BT107: 0 | BU107: NC | BV107: 0 | BW107: 0 | CE107: 19 | CF107: 0 | CG107: 15 | CH107: 2.2 | CI107: 13 | CJ107: 4.4 | CK107: =CJ107+CH107+CF107 -> 6.6 | CL107: NC | CM107: 0 | CN107: NC | CO107: 0 | CP107: NC | CQ107: 0 | CR107: 0 | DN107: 1 | DO107: 6.6
B108: 98 | C108: FRANCISCO FORTUNATO | D108: AUSTIN FORTIS (IA) | E108: MB | AA108: NC | AB108: 0 | AC108: NC | AD108: 0 | AE108: NC | AF108: 0 | AG108: 0 | BC108: 19 | BD108: 0 | BE108: 17 | BF108: 0 | BG108: 11 | BH108: 6.6 | BI108: =BH108+BF108+BD108 -> 6.6 | BJ108: NC | BK108: 0 | BL108: NC | BM108: 0 | BN108: NC | BO108: 0 | BP108: 0 | BQ108: NC | BR108: 0 | BS108: NC | BT108: 0 | BU108: NC | BV108: 0 | BW108: 0 | CL108: NC | CM108: 0 | CN108: NC | CO108: 0 | CP108: NC | CQ108: 0 | CR108: 0 | DN108: 1 | DO108: 6.6
B109: 101 | C109: AERO PRINCE RI (TE) | D109: RODRIGO TOLOSA RICO | E109: AMB | AA109: NC | AB109: 0 | AC109: NC | AD109: 0 | AE109: NC | AF109: 0 | AG109: 0 | BJ109: NC | BK109: 0 | BL109: NC | BM109: 0 | BN109: NC | BO109: 0 | BP109: 0 | BQ109: NC | BR109: 0 | BS109: NC | BT109: 0 | BU109: NC | BV109: 0 | BW109: 0 | CL109: NC | CM109: 0 | CN109: NC | CO109: 0 | CP109: NC | CQ109: 0 | CR109: 0 | DG109: 7 | DH109: 4 | DI109: 9 | DJ109: 2 | DK109: NC | DL109: 0 | DM109: =DH109+DJ109 -> 6 | DN109: 1 | DO109: 6
B110: 102 | C110: ANTONIO JOSE POVOA VILELA | D110: INDARA DA CABANA (IA) | E110: AMB | F110: 12 | G110: 5.5 | H110: DES | I110: 0 | J110: NC | K110: 0 | L110: =K110+I110+G110 -> 5.5 | AA110: NC | AB110: 0 | AC110: NC | AD110: 0 | AE110: NC | AF110: 0 | AG110: 0 | BJ110: NC | BK110: 0 | BL110: NC | BM110: 0 | BN110: NC | BO110: 0 | BP110: 0 | BQ110: NC | BR110: 0 | BS110: NC | BT110: 0 | BU110: NC | BV110: 0 | BW110: 0 | CL110: NC | CM110: 0 | CN110: NC | CO110: 0 | CP110: NC | CQ110: 0 | CR110: 0 | DN110: 1 | DO110: 5.5
B111: 102 | C111: TARCISIO GASIOLA JUNIOR | D111: DELLICIA DE JET | E111: MB | F111: 20 | G111: 0 | H111: 12 | I111: 5.5 | J111: ELI | K111: 0 | L111: =K111+I111+G111 -> 5.5 | AA111: NC | AB111: 0 | AC111: NC | AD111: 0 | AE111: NC | AF111: 0 | AG111: 0 | BJ111: NC | BK111: 0 | BL111: NC | BM111: 0 | BN111: NC | BO111: 0 | BP111: 0 | BQ111: NC | BR111: 0 | BS111: NC | BT111: 0 | BU111: NC | BV111: 0 | BW111: 0 | CL111: NC | CM111: 0 | CN111: NC | CO111: 0 | CP111: NC | CQ111: 0 | CR111: 0 | DN111: 1 | DO111: 5.5
B112: 102 | C112: CHRISTA DAPUZZO | D112: PILBOARD JMEN (*) | E112: AMB | M112: 19 | N112: 0 | O112: 13 | P112: 4.4 | Q112: 16 | R112: 1.1 | S112: =R112+P112+N112 -> 5.5 | AA112: NC | AB112: 0 | AC112: NC | AD112: 0 | AE112: NC | AF112: 0 | AG112: 0 | BJ112: NC | BK112: 0 | BL112: NC | BM112: 0 | BN112: NC | BO112: 0 | BP112: 0 | BQ112: NC | BR112: 0 | BS112: NC | BT112: 0 | BU112: NC | BV112: 0 | BW112: 0 | CL112: NC | CM112: 0 | CN112: NC | CO112: 0 | CP112: NC | CQ112: 0 | CR112: 0 | DN112: 1 | DO112: 5.5
B113: 102 | C113: EDUARDO AUGUSTO MATTAR | D113: J.A. DOM-JUAN DAS PALMEIRAS | E113: AMB | AA113: NC | AB113: 0 | AC113: NC | AD113: 0 | AE113: NC | AF113: 0 | AG113: 0 | BJ113: NC | BK113: 0 | BL113: NC | BM113: 0 | BN113: NC | BO113: 0 | BP113: 0 | BQ113: NC | BR113: 0 | BS113: NC | BT113: 0 | BU113: NC | BV113: 0 | BW113: 0 | CE113: 12 | CF113: 5.5 | CG113: 20 | CH113: 0 | CI113: 20 | CJ113: 0 | CK113: =CJ113+CH113+CF113 -> 5.5 | CL113: NC | CM113: 0 | CN113: NC | CO113: 0 | CP113: NC | CQ113: 0 | CR113: 0 | DN113: 1 | DO113: 5.5
B114: 106 | C114: ARIADNE BARONI | D114: XIMENA DAS CATARATAS | E114: AMB | AA114: NC | AB114: 0 | AC114: NC | AD114: 0 | AE114: NC | AF114: 0 | AG114: 0 | AH114: 8 | AI114: 5 | AJ114: NC | AK114: 0 | AL114: NC | AM114: 0 | AN114: =AM114+AK114+AI114 -> 5 | BJ114: NC | BK114: 0 | BL114: NC | BM114: 0 | BN114: NC | BO114: 0 | BP114: 0 | BQ114: NC | BR114: 0 | BS114: NC | BT114: 0 | BU114: NC | BV114: 0 | BW114: 0 | CL114: NC | CM114: 0 | CN114: NC | CO114: 0 | CP114: NC | CQ114: 0 | CR114: 0 | DN114: 1 | DO114: 5
B115: 107 | C115: THIAGO NOGUEIRA | D115: GATWICK M (IA) | E115: AMB | AA115: NC | AB115: 0 | AC115: NC | AD115: 0 | AE115: NC | AF115: 0 | AG115: 0 | BJ115: NC | BK115: 0 | BL115: NC | BM115: 0 | BN115: NC | BO115: 0 | BP115: 0 | BQ115: NC | BR115: 0 | BS115: NC | BT115: 0 | BU115: NC | BV115: 0 | BW115: 0 | BX115: 7 | BY115: 1 | BZ115: 7 | CA115: 1 | CB115: 6 | CC115: 2 | CD115: =CC115+CA115+BY115 -> 4 | CL115: NC | CM115: 0 | CN115: NC | CO115: 0 | CP115: NC | CQ115: 0 | CR115: 0 | DN115: 1 | DO115: 4
B116: 108 | C116: GIULIA BITAR MALFATTI | D116: MSML ZEBRINO | E116: AMB | F116: 15 | G116: 2.2 | H116: ELI | I116: 0 | J116: NC | K116: 0 | L116: =K116+I116+G116 -> 2.2 | AA116: NC | AB116: 0 | AC116: NC | AD116: 0 | AE116: NC | AF116: 0 | AG116: 0 | BJ116: NC | BK116: 0 | BL116: NC | BM116: 0 | BN116: NC | BO116: 0 | BP116: 0 | BQ116: NC | BR116: 0 | BS116: NC | BT116: 0 | BU116: NC | BV116: 0 | BW116: 0 | CL116: NC | CM116: 0 | CN116: NC | CO116: 0 | CP116: NC | CQ116: 0 | CR116: 0 | DN116: 1 | DO116: 2.2
B117: 108 | C117: NATHANA MARTINS BEDRAN CALIL | D117: SPS BENTLEY (TE) | E117: AMB | M117: 15 | N117: 2.2 | O117: 18 | P117: 0 | Q117: NC | R117: 0 | S117: =R117+P117+N117 -> 2.2 | AA117: NC | AB117: 0 | AC117: NC | AD117: 0 | AE117: NC | AF117: 0 | AG117: 0 | BJ117: NC | BK117: 0 | BL117: NC | BM117: 0 | BN117: NC | BO117: 0 | BP117: 0 | BQ117: NC | BR117: 0 | BS117: NC | BT117: 0 | BU117: NC | BV117: 0 | BW117: 0 | CL117: NC | CM117: 0 | CN117: NC | CO117: 0 | CP117: NC | CQ117: 0 | CR117: 0 | DN117: 1 | DO117: 2.2
B118: 108 | C118: ROBERTA DE ALMEIDA GONCALVES | D118: NAYARA JMEN (IA) | E118: AMB | AA118: NC | AB118: 0 | AC118: NC | AD118: 0 | AE118: NC | AF118: 0 | AG118: 0 | BJ118: NC | BK118: 0 | BL118: NC | BM118: 0 | BN118: NC | BO118: 0 | BP118: 0 | BQ118: NC | BR118: 0 | BS118: NC | BT118: 0 | BU118: NC | BV118: 0 | BW118: 0 | CL118: NC | CM118: 0 | CN118: NC | CO118: 0 | CP118: NC | CQ118: 0 | CR118: 0 | CS118: 15 | CT118: 2.2 | CU118: ELI | CV118: 0 | CW118: NC | CX118: 0 | CY118: =CX118+CV118+CT118 -> 2.2 | DN118: 1 | DO118: 2.2
B119: 111 | C119: DANIEL ANDRE TAVARES | D119: TEOREMA DO RINCAO | E119: AMB | AA119: NC | AB119: 0 | AC119: NC | AD119: 0 | AE119: NC | AF119: 0 | AG119: 0 | AV119: 11 | AW119: 1 | AX119: 11 | AY119: 1 | AZ119: NC | BA119: 0 | BB119: =BA119+AY119+AW119 -> 2 | BJ119: NC | BK119: 0 | BL119: NC | BM119: 0 | BN119: NC | BO119: 0 | BP119: 0 | BQ119: NC | BR119: 0 | BS119: NC | BT119: 0 | BU119: NC | BV119: 0 | BW119: 0 | CL119: NC | CM119: 0 | CN119: NC | CO119: 0 | CP119: NC | CQ119: 0 | CR119: 0 | DN119: 1 | DO119: 2
B120: - | C120: CORLEONE LJR (IA) | D120: THIAGO DE OLIVEIRA DRUMOND LAGE | E120: AMB | AA120: NC | AB120: 0 | AC120: NC | AD120: 0 | AE120: NC | AF120: 0 | AG120: 0 | BJ120: NC | BK120: 0 | BL120: NC | BM120: 0 | BN120: NC | BO120: 0 | BP120: 0 | BQ120: NC | BR120: 0 | BS120: NC | BT120: 0 | BU120: NC | BV120: 0 | BW120: 0 | CL120: NC | CM120: 0 | CN120: NC | CO120: 0 | CP120: NC | CQ120: 0 | CR120: 0 | DG120: FF | DH120: 0 | DI120: FF | DJ120: 0 | DK120: NC | DL120: 0 | DM120: =DH120+DJ120 -> 0 | DN120: 1 | DO120: 0
B121: - | C121: GILIANE FUNINI | D121: ILIACO JMEN (IA) | E121: AMB | T121: ELI | U121: 0 | V121: NC | W121: 0 | X121: NC | Y121: 0 | Z121: =Y121+W121+U121 -> 0 | AA121: NC | AB121: 0 | AC121: NC | AD121: 0 | AE121: NC | AF121: 0 | AG121: 0 | BJ121: NC | BK121: 0 | BL121: NC | BM121: 0 | BN121: NC | BO121: 0 | BP121: 0 | BQ121: NC | BR121: 0 | BS121: NC | BT121: 0 | BU121: NC | BV121: 0 | BW121: 0 | CL121: NC | CM121: 0 | CN121: NC | CO121: 0 | CP121: NC | CQ121: 0 | CR121: 0 | DN121: 1 | DO121: 0
B122: - | C122: LISANA PALUDO MONDIN | D122: EMILIOTT DA PLATINA (IA) | E122: MB | AA122: NC | AB122: 0 | AC122: NC | AD122: 0 | AE122: NC | AF122: 0 | AG122: 0 | BJ122: NC | BK122: 0 | BL122: NC | BM122: 0 | BN122: NC | BO122: 0 | BP122: 0 | BQ122: NC | BR122: 0 | BS122: NC | BT122: 0 | BU122: NC | BV122: 0 | BW122: 0 | CE122: 18 | CF122: 0 | CG122: NC | CH122: 0 | CI122: NC | CJ122: 0 | CK122: =CJ122+CH122+CF122 -> 0 | CL122: NC | CM122: 0 | CN122: NC | CO122: 0 | CP122: NC | CQ122: 0 | CR122: 0 | DN122: 1 | DO122: 0
B123: - | C123: KARIN DE TOLEDO R. BUERGIN | D123: JAKARTA DA MATA | E123: AMB | AA123: NC | AB123: 0 | AC123: NC | AD123: 0 | AE123: NC | AF123: 0 | AG123: 0 | BJ123: NC | BK123: 0 | BL123: NC | BM123: 0 | BN123: NC | BO123: 0 | BP123: 0 | BQ123: NC | BR123: 0 | BS123: NC | BT123: 0 | BU123: NC | BV123: 0 | BW123: 0 | CE123: 25 | CF123: 0 | CG123: NC | CH123: 0 | CI123: NC | CJ123: 0 | CK123: =CJ123+CH123+CF123 -> 0 | CL123: NC | CM123: 0 | CN123: NC | CO123: 0 | CP123: NC | CQ123: 0 | CR123: 0 | DN123: 1 | DO123: 0
B124: - | C124: BRUNO SIQUEIRA DE CARVALHO | D124: MB LANDLOU | E124: AMB | AA124: NC | AB124: 0 | AC124: NC | AD124: 0 | AE124: NC | AF124: 0 | AG124: 0 | BJ124: NC | BK124: 0 | BL124: NC | BM124: 0 | BN124: NC | BO124: 0 | BP124: 0 | BQ124: NC | BR124: 0 | BS124: NC | BT124: 0 | BU124: NC | BV124: 0 | BW124: 0 | CE124: 28 | CF124: 0 | CG124: 21 | CH124: 0 | CI124: 24 | CJ124: 0 | CK124: =CJ124+CH124+CF124 -> 0 | CL124: NC | CM124: 0 | CN124: NC | CO124: 0 | CP124: NC | CQ124: 0 | CR124: 0 | DN124: 1 | DO124: 0
B125: - | C125: DOUGLAS DUEK SILVEIRA BUENO | D125: ENZO CLIMBER (TE) | E125: AMB | AA125: NC | AB125: 0 | AC125: NC | AD125: 0 | AE125: NC | AF125: 0 | AG125: 0 | BJ125: NC | BK125: 0 | BL125: NC | BM125: 0 | BN125: NC | BO125: 0 | BP125: 0 | BQ125: NC | BR125: 0 | BS125: NC | BT125: 0 | BU125: NC | BV125: 0 | BW125: 0 | CE125: NC | CF125: 0 | CG125: NC | CH125: 0 | CI125: ELI | CJ125: 0 | CK125: =CJ125+CH125+CF125 -> 0 | CL125: NC | CM125: 0 | CN125: NC | CO125: 0 | CP125: NC | CQ125: 0 | CR125: 0 | DN125: 1 | DO125: 0

Sheet REL 1
A6: R | B6: COMPETIDOR | C6: ANIMAL | D6: CAT | E6: PONTOS
A8: 1 | B8: CAMILA GIBIN MENDES | C8: CONAN DO JACARE (TE) | D8: AMB | E8: 237.5
A9: 2 | B9: THIAGO MACHADO C. MORENO | C9: SOL-DU-REVEL TR (IA) | D9: AMB | E9: 152.4
A10: 3 | B10: GABRIELLE CRISTINA TAMELINI | C10: LADY CALLA | D10: AMB | E10: 143.8
A11: 4 | B11: GYOVANNA AYROSA | C11: MC CARFITE (TE) | D11: AMB | E11: 141.9
A12: 5 | B12: MARIA CAROLINA ALVARES CORREA | C12: ZAMORA COOPER (*) | D12: MB | E12: 131.7
A13: 6 | B13: MARICEL CONTINI | C13: CS AIMEE (TE) | D13: AMB | E13: 111.1
A14: 7 | B14: HASSAN SOUEID | C14: RENDA DAS CATARATAS (IA) | D14: AMB | E14: 95.8
A15: 8 | B15: LIDISON LEOPOLDO ELIA ARANHA | C15: ZARTOORA FOR | D15: MB | E15: 94.6
A16: 9 | B16: CAMILA MENNA B. B. F. HILGENDORFF | C16: LORDANA JMEN (TE) | D16: AMB | E16: 91.3
A17: 10 | B17: JULIANA GLASSER PELUSO | C17: HSL BLANCHE (IA) | D17: AMB | E17: 90.2
A18: 11 | B18: MARICEL CONTINI | C18: AFRODITE METODO (IA) | D18: AMB | E18: 86.9
A19: 12 | B19: GISELA WEISER CARVALHO | C19: COLLON-C JMEN II (TE) | D19: AMB | E19: 83.2
A20: 13 | B20: ROBIN LIDDLE | C20: SL OBJETIVO (TE) | D20: MB | E20: 69.8
A21: 14 | B21: LIDISON LEOPOLDO ELIA ARANHA | C21: SS RACADOR | D21: MB | E21: 57.2
A22: 15 | B22: BRUNO LEON MELO | C22: JCR QUARTZO | D22: AMB | E22: 55.3
A23: 16 | B23: GABRIELLE ABBATE DE ANDRADE | C23: LUCKY STAR G.A | D23: AMB | E23: 53.9
A24: 17 | B24: MARINA SBICCA PIRES | C24: DANDARA LU | D24: AMB | E24: 53
A25: 18 | B25: GIOVANNI MELOZI SGAVIOLI | C25: CS ERERÊ (IA) | D25: AMB | E25: 51.3
A26: 19 | B26: CARLOS ANDRE MENDES GARGANTINI | C26: WARSTEINER VAN´T STEDEKE | D26: MB | E26: 45.7
A27: 20 | B27: CRISTIANE ANDREA ROSSINI | C27: CANTURANO JMEN (IA) | D27: AMB | E27: 45.1
A28: 21 | B28: ANA VICTORIA A. PALHARES | C28: HOT PEPPER COOPER (TE) | D28: AMB | E28: 40.6
A29: 22 | B29: PATRICIA GOLDBERG TERPINS | C29: ACL CARINA (IA) | D29: AMB | E29: 35.2
A30: 23 | B30: THIAGO M. CAVALHEIRO MORENO | C30: FADA DA CABANA (IA) | D30: AMB | E30: 35.1
A31: 24 | B31: ROBIN LIDDLE | C31: CHALLENGER JMEN | D31: MB | E31: 35
A32: 25 | B32: MIRIAM MAFFEI | C32: JCR KHALIFA (IA) | D32: MB | E32: 34.3
A33: 25 | B33: CAROLINA COSTA P. OSTANELLO | C33: PHARAMOND JMEN | D33: AMB | E33: 34.3
A34: 27 | B34: MARCIA HERNANDES | C34: UNICO CAMPECHE | D34: MB | E34: 34.1
A35: 28 | B35: ANTONIO JOSE POVOA VILELA | C35: CALIMERA SANTA CECILIA (IA) | D35: AMB | E35: 33.1
A36: 29 | B36: SGT ROMULO LEAL | C36: JATRIZ ITAPUA | D36: MB | E36: 32
A37: 30 | B37: MARINA CHIMENTI SA | C37: TREBBIANO DO RIOACIMA (IA) | D37: AMB | E37: 31.9
A38: 31 | B38: BERNARDO SUAREZ CADARIO | C38: ENZO CLIMBER (TE) | D38: AMB | E38: 30.9
A39: 32 | B39: PAULO ROBERTO BERGAMASCHI | C39: NO ICE TOK (IA) | D39: MB | E39: 28.6
A40: 33 | B40: PAULO BORGES | C40: PALM DOANJO | D40: MB | E40: 28
A41: 34 | B41: ANTONIO CAMARGO JUNIOR | C41: ZÉ DAS CATARATAS (IA) | D41: MB | E41: 27.9
A42: 35 | B42: JANICE AMBROSIO MERZVINSKAS | C42: SALAMANDRA NEW ONE | D42: AMB | E42: 27.5
A43: 35 | B43: JOSE MARCIO GOBBI | C43: NOAH SIMPLY (IA) | D43: MB | E43: 27.5
A44: 37 | B44: ANDRE LEGUTHE ROSA | C44: VINNY DO FEROLETO (IA) | D44: MB | E44: 26.4
A45: 37 | B45: GABRIELA BERRO MARINS FRANCO | C45: QUIDARCO METODO (IA) (*) | D45: AMB | E45: 26.4
A46: 39 | B46: LUIS OTAVIO MANES PEREIRA | C46: SL BANGUE | D46: AMB | E46: 26.2
A47: 39 | B47: JULIA AMARAL CORCHETTI | C47: NUREYEV 3K | D47: AMB | E47: 26.2
A48: 41 | B48: EDER VITAL DA SILVA | C48: CANDY GMS | D48: AMB | E48: 25.9
A49: 42 | B49: SEBASTIAO EUSTAQUIO M. BARROSO | C49: CARTOON D`OLYMPO (TE) | D49: AMB | E49: 25
A50: 43 | B50: DOUGLAS DUEK SILVEIRA BUENO | C50: CASSINO JMEN | D50: AMB | E50: 24.2
A51: 43 | B51: RAFAEL CHRISTIANINI | C51: SONHO REAL HCR | D51: AMB | E51: 24.2
A52: 43 | B52: LOURDES DA SILVA PINTO MONTEIRO | C52: DAPHNE DO BOSQUE (IA) | D52: MB | E52: 24.2
A53: 46 | B53: TENENTE KEYLA WOSNIAK | C53: SL BARDOT | D53: AMB | E53: 24
A54: 47 | B54: RENATA BUSCH | C54: SL CHADDAR | D54: AMB | E54: 23.8
A55: 48 | B55: ANA PAULA BASTOS DE CAMARGO | C55: ZEUS USP | D55: MB | E55: 23.1
A56: 49 | B56: MONICA ESPINDOLA | C56: VILVOORDE SLL | D56: AMB | E56: 23
A57: 50 | B57: JULIA ZAMITH | C57: LA BELLA JMEN (TE) | D57: AMB | E57: 22.8
A58: 51 | B58: LUIZA PATRUS | C58: QUINTANA TOK (IA) | D58: AMB | E58: 22
A59: 52 | B59: MARIANA MAZON DE TOPLEDO | C59: BONAPARTE DA MATA (IA) | D59: AMB | E59: 21.2
A60: 53 | B60: CAROLINA BATAGLIN DE CARVALHO | C60: ZURKIS USP | D60: AMB | E60: 21.1
A61: 54 | B61: CAPITAO GUSTAVO CASTRO | C61: TÂNTALO DO RINCAO | D61: AMB | E61: 21
A62: 54 | B62: LAURA JACOMETT FONSECA | C62: BLANCA BEERQQUIE | D62: AMB | E62: 21
A63: 56 | B63: ROBERTO TEIXEIRA MENDES | C63: LOLLAND JM | D63: MB | E63: 20.5
A64: 57 | B64: EDUARDO MICHELON | C64: ASTERIX GMS (IA) | D64: AMB | E64: 20
A65: 58 | B65: OTAVIO SCHIMIDT AZEVEDO | C65: GRINGO AMM (IA) | D65: AMB | E65: 19.8
A66: 59 | B66: SGT SIMONAL | C66: PARADOXA CHANTEBLED | D66: MB | E66: 19
A67: 59 | B67: TENENTE MATHEUS SOARES | C67: ONOMATOPEIA DO RINCAO | D67: AMB | E67: 19
A68: 61 | B68: JOSE MARCIO GOBBI | C68: BEN 10 DA LAGOA | D68: MB | E68: 18.7
A69: 62 | B69: MARIA FERNANDA LATTES FERREIRA | C69: SALAMANDRA CHAP REVENA | D69: AMB | E69: 18.1
A70: 63 | B70: PAULO GOMES | C70: CASSILANO JMEN I (TE) | D70: AMB | E70: 18
A71: 64 | B71: THAIS TEIXEIRA DE SOUZA | C71: CAMARO HR (IA) | D71: AMB | E71: 17.6
A72: 64 | B72: ALBERTO PINHEIRO | C72: NUTREAL EVA GARDEN | D72: MB | E72: 17.6
A73: 66 | B73: PAULO GOMES | C73: CATIRA JMEN (TE) | D73: AMB | E73: 17
A74: 67 | B74: OSWALDO DE LUCA NETO | C74: ST. CAETANO N (IA) | D74: AMB | E74: 16.5
A75: 68 | B75: CAPITAO ROBERTO BOURGUIGNON | C75: MALICIA ITAPUA | D75: MB | E75: 16
A76: 69 | B76: DAVID ALEXANDRE MONTEIRO | C76: RIFLAI RI | D76: MB | E76: 15
A77: 70 | B77: LUCIANE PARMA PINTO | C77: LPP LARA (TE) | D77: AMB | E77: 14.3
A78: 70 | B78: YULIA PETROVA | C78: RASPUTIN JMEN (TE) | D78: AMB | E78: 14.3
A79: 72 | B79: DEBORA PAZ SAUT | C79: MONTBLANC TOK (IA) | D79: AMB | E79: 14
A80: 73 | B80: MARGHERITA BRAZZALLE | C80: VALKIRYA EQUIPRIME (IA) | D80: MB | E80: 13.2
A81: 73 | B81: GABRIELA HSIEH | C81: HSL AMY BROWN (IA) | D81: AMB | E81: 13.2
A82: 75 | B82: GUILHERME TUCCILE BRAGA | C82: CHARLIZE-B JMEN | D82: AMB | E82: 12.1
A83: 76 | B83: LUANA BUBLITZ MARTINS | C83: RECOLETA DA LAGOA | D83: AMB | E83: 12
A84: 76 | B84: ANA FLAVIA M. PEREIRA | C84: GARDA TW | D84: AMB | E84: 12
A85: 76 | B85: RAMON MATOS ANDRADE | C85: CALIBRE DO CACH | D85: AMB | E85: 12
A86: 79 | B86: CAMILA GIBIN MENDES | C86: OLINDA CVT | D86: AMB | E86: 11
A87: 79 | B87: FRANCINI LARA FISCHER | C87: DONATO DA PEDREIRA (TE) | D87: AMB | E87: 11
A88: 79 | B88: MARCOS ANTONIO TEIXEIRA | C88: CANTINO JOTER (IA) | D88: MB | E88: 11
A89: 79 | B89: LAURA JACOMETT FONSECA | C89: GR DONATELLA (IA) | D89: AMB | E89: 11
A90: 83 | B90: DANIEL CESAR MARANHÃO KHURY | C90: HINTERTUX | D90: AMB | E90: 10
A91: 83 | B91: PAULO MARCELO PINENT TIGRE | C91: SILBERLEI JOTER III | D91: MB | E91: 10
A92: 83 | B92: MELINA MORANDINI | C92: CASSILIA C JMEN II | D92: AMB | E92: 10
A93: 83 | B93: JOAO GILBERTO COMINESE FREIRE | C93: HINTERTUX | D93: AMB | E93: 10
A94: 83 | B94: LUCAS MALLARD | C94: CALINDA DO SOUTO | D94: AMB | E94: 10
A95: 88 | B95: BRUNO DE CASTRO SOARES CRUZ | C95: MC BACO GRAFITE (TE) | D95: AMB | E95: 9.9
A96: 88 | B96: MARIO KRIGER | C96: CASSILANO JMEN VII (TE) | D96: AMB | E96: 9.9
A97: 90 | B97: LEO MARIO HEIDRICH LEAL | C97: SS SANTIAGO | D97: AMB | E97: 9
A98: 91 | B98: NATHANA MARTINS BEDRAN CALIL | C98: AG LAROUBET (TE) | D98: AMB | E98: 8.8
A99: 92 | B99: ARIE CARNEIRO | C99: KENTUCKY JMEN (IA) | D99: AMB | E99: 8.7
A100: 93 | B100: RAFAELA MALSCHITZKY | C100: BRUNELLO ADEL FAS | D100: AMB | E100: 8
A101: 94 | B101: MARCIA HERNANDES | C101: VEREDA CAMPECHE | D101: MB | E101: 7.7
A102: 95 | B102: DANIELA CALDAS | C102: NARCISA ADAL | D102: AMB | E102: 7
A103: 95 | B103: ANTONIO CAMARGO JUNIOR | C103: CANZEIRO JMEN | D103: MB | E103: 7
A104: 95 | B104: TOP CHOICE XANGO (IA) | C104: MICHELLE MARIE COUTINHO DOREA | D104: AMB | E104: 7
A105: 98 | B105: CLAUDIA CATAO ALVES SIQUEIRA | C105: CLASS-OF-RITTER DO FEROLETO | D105: AMB | E105: 6.6
A106: 98 | B106: PAULA MINAMI SAEKI | C106: AMORKA GFC (IA) | D106: AMB | E106: 6.6
A107: 98 | B107: FRANCISCO FORTUNATO | C107: AUSTIN FORTIS (IA) | D107: MB | E107: 6.6
A108: 101 | B108: AERO PRINCE RI (TE) | C108: RODRIGO TOLOSA RICO | D108: AMB | E108: 6
A109: 102 | B109: ANTONIO JOSE POVOA VILELA | C109: INDARA DA CABANA (IA) | D109: AMB | E109: 5.5
A110: 102 | B110: TARCISIO GASIOLA JUNIOR | C110: DELLICIA DE JET | D110: MB | E110: 5.5
A111: 102 | B111: CHRISTA DAPUZZO | C111: PILBOARD JMEN (*) | D111: AMB | E111: 5.5
A112: 102 | B112: EDUARDO AUGUSTO MATTAR | C112: J.A. DOM-JUAN DAS PALMEIRAS | D112: AMB | E112: 5.5
A113: 106 | B113: ARIADNE BARONI | C113: XIMENA DAS CATARATAS | D113: AMB | E113: 5
A114: 107 | B114: THIAGO NOGUEIRA | C114: GATWICK M (IA) | D114: AMB | E114: 4
A115: 108 | B115: GIULIA BITAR MALFATTI | C115: MSML ZEBRINO | D115: AMB | E115: 2.2
A116: 108 | B116: NATHANA MARTINS BEDRAN CALIL | C116: SPS BENTLEY (TE) | D116: AMB | E116: 2.2
A117: 108 | B117: ROBERTA DE ALMEIDA GONCALVES | C117: NAYARA JMEN (IA) | D117: AMB | E117: 2.2
A118: 111 | B118: DANIEL ANDRE TAVARES | C118: TEOREMA DO RINCAO | D118: AMB | E118: 2
A119: - | B119: CORLEONE LJR (IA) | C119: THIAGO DE OLIVEIRA DRUMOND LAGE | D119: AMB | E119: 0
A120: - | B120: GILIANE FUNINI | C120: ILIACO JMEN (IA) | D120: AMB | E120: 0
A121: - | B121: LISANA PALUDO MONDIN | C121: EMILIOTT DA PLATINA (IA) | D121: MB | E121: 0
A122: - | B122: KARIN DE TOLEDO R. BUERGIN | C122: JAKARTA DA MATA | D122: AMB | E122: 0
A123: - | B123: BRUNO SIQUEIRA DE CARVALHO | C123: MB LANDLOU | D123: AMB | E123: 0
A124: - | B124: DOUGLAS DUEK SILVEIRA BUENO | C124: ENZO CLIMBER (TE) | D124: AMB | E124: 0

Sheet AMA_MA
F5: 1ª ETAPA (SP) | L5: 1ª ETAPA TOTAL | M5: 2ª ETAPA (SP) | S5: 2ª ETAPA TOTAL | T5: 3ª ETAPA (PE) | Z5: 3ª ETAPA TOTAL | AA5: 4ª ETAPA (SP) | AG5: 4ª ETAPA TOTAL | AH5: 5ª ETAPA (PR) | AN5: 5ª ETAPA TOTAL | AO5: 6ª ETAPA (RS) | AU5: 6ª ETAPA TOTAL | AV5: 7ª ETAPA (DF) | BB5: 7ª ETAPA TOTAL | BC5: 8ª ETAPA (SP) | BI5: 8ª ETAPA TOTAL | BJ5: 9ª ETAPA (SP) | BP5: 9ª ETAPA TOTAL | BQ5: 10ª ETAPA (SP) | BW5: 10ª ETAPA TOTAL | BX5: 11ª ETAPA (MG) | CD5: 11ª ETAPA TOTAL | CE5: 12ª ETAPA (SP) | CK5: 12ª ETAPA TOTAL | CL5: 13ª ETAPA (SP) | CR5: 13ª ETAPA TOTAL | CS5: 14ª ETAPA (SP) | CY5: 14ª ETAPA TOTAL | CZ5: 15ª ETAPA (SP) | DF5: 15ª ETAPA TOTAL | DG5: 16ª ETAPA (SP) | DM5: 16ª ETAPA TOTAL | DN5: QTDE PROVAS | DO5: TOTAL GERAL
B6: R | C6: COMPETIDOR | D6: ANIMAL | E6: CAT | F6: TORNEIO DE VERÃO I ETAPA | M6: TORNEIO DE VERÃO II ETAPA | T6: CSN RECIFE I ETAPA N/NE | AA6: CSN OPEN | AH6: CSN CIDADE DE CURITIBA | AO6: CSN PORTO ALEGRE | AV6: CSN COPA JK | BC6: CSN D'MAIO | BJ6: CSN HARAS ALBAR | BQ6: CSN COPA SÃO PAULO | BX6: CSN HARAS SANTA ESMERALDA | CE6: CSN ANIVERSÁRIO CHSA | CL6: CSN INDOOR | CS6: CSN ANIVERSÁRIO CAMPINAS | CZ6: CSN AGROMEN | DG6: CSN XIV FESTIVAL CAVALO BH
F7: 1º DIA | H7: 2º DIA | J7: 3º DIA | M7: 1º DIA | O7: 2º DIA | Q7: 3º DIA | T7: 1º DIA | V7: 2º DIA | X7: 3º DIA | AA7: 1º DIA | AC7: 2º DIA | AE7: 3º DIA | AH7: 1º DIA | AJ7: 2º DIA | AL7: 3º DIA | AO7: 1º DIA | AQ7: 2º DIA | AS7: 3º DIA | AV7: 1º DIA | AX7: 2º DIA | AZ7: 3º DIA | BC7: 1º DIA | BE7: 2º DIA | BG7: 3º DIA | BJ7: 1º DIA | BL7: 2º DIA | BN7: 3º DIA | BQ7: 1º DIA | BS7: 2º DIA | BU7: 3º DIA | BX7: 1º DIA | BZ7: 2º DIA | CB7: 3º DIA | CE7: 1º DIA | CG7: 2º DIA | CI7: 3º DIA | CL7: 1º DIA | CN7: 2º DIA | CP7: 3º DIA | CS7: 1º DIA | CU7: 2º DIA | CW7: 3º DIA | CZ7: 1º DIA | DB7: 2º DIA | DD7: 3º DIA | DG7: 1º DIA | DI7: 2º DIA | DK7: 3º DIA
F8: CL | G8: PTS | H8: CL | I8: PTS | J8: CL | K8: PTS | M8: CL | N8: PTS | O8: CL | P8: PTS | Q8: CL | R8: PTS | T8: CL | U8: PTS | V8: CL | W8: PTS | X8: CL | Y8: PTS | AA8: CL | AB8: PTS | AC8: CL | AD8: PTS | AE8: CL | AF8: PTS | AH8: CL | AI8: PTS | AJ8: CL | AK8: PTS | AL8: CL | AM8: PTS | AO8: CL | AP8: PTS | AQ8: CL | AR8: PTS | AS8: CL | AT8: PTS | AV8: CL | AW8: PTS | AX8: CL | AY8: PTS | AZ8: CL | BA8: PTS | BC8: CL | BD8: PTS | BE8: CL | BF8: PTS | BG8: CL | BH8: PTS | BJ8: CL | BK8: PTS | BL8: CL | BM8: PTS | BN8: CL | BO8: PTS | BQ8: CL | BR8: PTS | BS8: CL | BT8: PTS | BU8: CL | BV8: PTS | BX8: CL | BY8: PTS | BZ8: CL | CA8: PTS | CB8: CL | CC8: PTS | CE8: CL | CF8: PTS | CG8: CL | CH8: PTS | CI8: CL | CJ8: PTS | CL8: CL | CM8: PTS | CN8: CL | CO8: PTS | CP8: CL | CQ8: PTS | CS8: CL | CT8: PTS | CU8: CL | CV8: PTS | CW8: CL | CX8: PTS | CZ8: CL | DA8: PTS | DB8: CL | DC8: PTS | DD8: CL | DE8: PTS | DG8: CL | DH8: PTS | DI8: CL | DJ8: PTS | DK8: CL | DL8: PTS
B9: 1 | C9: MARIA PEREZ COELHO BENTO | D9: WIMBLEDON TF (IA) | E9: AMA | F9: 1 | G9: 16 | H9: 1 | I9: 15 | J9: 7 | K9: 5 | L9: =K9+I9+G9 -> 36 | M9: 1 | N9: 22 | O9: 1 | P9: 22 | Q9: 6 | R9: 12.1 | S9: =R9+P9+N9 -> 56.1 | AA9: 13 | AB9: 4.4 | AC9: 19 | AD9: 0 | AE9: 12 | AF9: 5.5 | AG9: =AF9+AD9+AB9 -> 9.9 | BC9: ELI | BD9: 0 | BE9: 20 | BF9: 0 | BG9: NC | BH9: 0 | BI9: =BH9+BF9+BD9 -> 0 | BJ9: NC | BK9: 0 | BL9: NC | BM9: 0 | BN9: NC | BO9: 0 | BP9: 0 | BQ9: NC | BR9: 0 | BS9: NC | BT9: 0 | BU9: NC | BV9: 0 | BW9: 0 | CE9: 1 | CF9: 22 | CG9: 7 | CH9: 11 | CI9: DES | CJ9: 0 | CK9: =CJ9+CH9+CF9 -> 33 | CL9: NC | CM9: 0 | CN9: NC | CO9: 0 | CP9: NC | CQ9: 0 | CR9: 0 | CS9: 11 | CT9: 2 | CU9: 3 | CV9: 11 | CW9: 3 | CX9: 11 | CY9: =CX9+CV9+CT9 -> 24 | CZ9: 1 | DA9: 13 | DB9: 2 | DC9: 11 | DD9: 10 | DE9: 1 | DF9: =DE9+DC9+DA9 -> 25 | DG9: 1 | DH9: 22 | DI9: 13 | DJ9: 4.4 | DM9: =DJ9+DH9 -> 26.4 | DN9: =SUBTOTAL(3,L9,S9,Z9,AG9,AN9,AU9,BB9,BI9,CD9,CK9,CY9,DF9,DM9) -> 8 | DO9: =DM9+DF9+CY9+CR9+CK9+CD9+BW9+BP9+BI9+BB9+AU9+AN9+AG9+Z9+S9+L9 -> 210.4
B10: 2 | C10: CARLA CAMILA OREGANA GUERRA | D10: GLADIATOR JMEN (*) | E10: AMA | M10: 6 | N10: 12.1 | O10: 8 | P10: 9.9 | Q10: 10 | R10: 7.7 | S10: =R10+P10+N10 -> 29.7 | AA10: 15 | AB10: 2.2 | AC10: 7 | AD10: 11 | AE10: 2 | AF10: 18.7 | AG10: =AF10+AD10+AB10 -> 31.9 | BC10: 14 | BD10: 3.3 | BE10: 6 | BF10: 12.1 | BG10: 4 | BH10: 14.3 | BI10: 29.7 | BJ10: NC | BK10: 0 | BL10: NC | BM10: 0 | BN10: NC | BO10: 0 | BP10: 0 | BQ10: NC | BR10: 0 | BS10: NC | BT10: 0 | BU10: NC | BV10: 0 | BW10: 0 | CE10: 5 | CF10: 13.2 | CG10: 6 | CH10: 12.1 | CI10: 1 | CJ10: 22 | CK10: =CJ10+CH10+CF10 -> 47.3 | CL10: NC | CM10: 0 | CN10: NC | CO10: 0 | CP10: NC | CQ10: 0 | CR10: 0 | CS10: 1 | CT10: 16 | CU10: 10 | CV10: 3 | CW10: 1 | CX10: 16 | CY10: =CX10+CV10+CT10 -> 35 | DG10: 4 | DH10: 14.3 | DI10: 1 | DJ10: 22 | DM10: =DJ10+DH10 -> 36.3 | DN10: 6 | DO10: 209.9
B11: 3 | C11: BRUNO ALVES | D11: RUANDA JMEN | E11: AMA | M11: 13 | N11: 4.4 | O11: 5 | P11: 13.2 | Q11: 7 | R11: 11 | S11: =R11+P11+N11 -> 28.6 | AA11: 4 | AB11: 14.3 | AC11: 26 | AD11: 0 | AE11: 24 | AF11: 0 | AG11: =AF11+AD11+AB11 -> 14.3 | AH11: 12 | AI11: 3 | AJ11: 5 | AK11: 9 | AL11: 5 | AM11: 4 | AN11: =AM11+AK11+AI11 -> 16 | BC11: 3 | BD11: 16.5 | BE11: 5 | BF11: 13.2 | BG11: 6 | BH11: 12.1 | BI11: 41.8 | BJ11: NC | BK11: 0 | BL11: NC | BM11: 0 | BN11: NC | BO11: 0 | BP11: 0 | BQ11: NC | BR11: 0 | BS11: NC | BT11: 0 | BU11: NC | BV11: 0 | BW11: 0 | CE11: 6 | CF11: 12.1 | CG11: 10 | CH11: 7.7 | CI11: NC | CJ11: 0 | CK11: =CJ11+CH11+CF11 -> 19.8 | CL11: NC | CM11: 0 | CN11: NC | CO11: 0 | CP11: NC | CQ11: 0 | CR11: 0 | DN11: 5 | DO11: 120.5
B12: 4 | C12: GIULIA BITAR MALFATTI | D12: MSML ZEBRINO | E12: AMA | BC12: 12 | BD12: 5.5 | BE12: 4 | BF12: 14.3 | BG12: 3 | BH12: 16.5 | BI12: 36.3 | BJ12: NC | BK12: 0 | BL12: NC | BM12: 0 | BN12: NC | BO12: 0 | BP12: 0 | BQ12: NC | BR12: 0 | BS12: NC | BT12: 0 | BU12: NC | BV12: 0 | BW12: 0 | CL12: NC | CM12: 0 | CN12: NC | CO12: 0 | CP12: NC | CQ12: 0 | CR12: 0 | CS12: 2 | CT12: 13 | CU12: 1 | CV12: 16 | CW12: 2 | CX12: 13 | CY12: =CX12+CV12+CT12 -> 42 | DG12: 5 | DH12: 13.2 | DI12: 13 | DJ12: 4.4 | DM12: =DJ12+DH12 -> 17.6 | DN12: 3 | DO12: 95.9
B13: 5 | C13: MARIA CAROLINA AURICCHIO BRAIDO | D13: CORIARA CANABRAVA (TE) | E13: AMA | AA13: 2 | AB13: 18.7 | AC13: 4 | AD13: 14.3 | AE13: 15 | AF13: 2.2 | AG13: =AF13+AD13+AB13 -> 35.2 | BC13: 1 | BD13: 22 | BE13: 2 | BF13: 18.7 | BG13: 7 | BH13: 11 | BI13: 51.7 | BJ13: NC | BK13: 0 | BL13: NC | BM13: 0 | BN13: NC | BO13: 0 | BP13: 0 | BQ13: NC | BR13: 0 | BS13: NC | BT13: 0 | BU13: NC | BV13: 0 | BW13: 0 | CL13: NC | CM13: 0 | CN13: NC | CO13: 0 | CP13: NC | CQ13: 0 | CR13: 0 | DN13: 2 | DO13: 86.9
B14: 6 | C14: CAMILA LUNARDELLI BARRETO | D14: CLAUDINE COOPER | E14: AMA | M14: 20 | N14: 0 | O14: 20 | P14: 0 | Q14: 3 | R14: 16.5 | S14: =R14+P14+N14 -> 16.5 | AA14: 12 | AB14: 5.5 | AC14: 12 | AD14: 5.5 | AE14: 9 | AF14: 8.8 | AG14: =AF14+AD14+AB14 -> 19.8 | AH14: NC | AI14: 0 | AJ14: ELI | AK14: 0 | AL14: NC | AM14: 0 | AN14: =AM14+AK14+AI14 -> 0 | BC14: 10 | BD14: 7.7 | BE14: 22 | BF14: 0 | BG14: 21 | BH14: 0 | BI14: 7.7 | BJ14: NC | BK14: 0 | BL14: NC | BM14: 0 | BN14: NC | BO14: 0 | BP14: 0 | BQ14: NC | BR14: 0 | BS14: NC | BT14: 0 | BU14: NC | BV14: 0 | BW14: 0 | CL14: NC | CM14: 0 | CN14: NC | CO14: 0 | CP14: NC | CQ14: 0 | CR14: 0 | CS14: 5 | CT14: 8 | CU14: 5 | CV14: 8 | CW14: 9 | CX14: 4 | CY14: =CX14+CV14+CT14 -> 20 | DG14: 12 | DH14: 5.5 | DI14: 7 | DJ14: 11 | DM14: =DJ14+DH14 -> 16.5 | DN14: 6 | DO14: 80.5
B15: 7 | C15: CAMILA HORO GIL | D15: MISSY PULLMAN | E15: AMA | F15: 10 | G15: 3 | H15: 8 | I15: 4 | J15: 10 | K15: 2 | L15: =K15+I15+G15 -> 9 | BC15: 7 | BD15: 11 | BE15: 7 | BF15: 11 | BG15: 20 | BH15: 0 | BI15: 22 | BJ15: NC | BK15: 0 | BL15: NC | BM15: 0 | BN15: NC | BO15: 0 | BP15: 0 | BQ15: NC | BR15: 0 | BS15: NC | BT15: 0 | BU15: NC | BV15: 0 | BW15: 0 | CE15: 4 | CF15: 14.3 | CG15: 2 | CH15: 18.7 | CI15: 14 | CJ15: 3.3 | CK15: =CJ15+CH15+CF15 -> 36.3 | CL15: NC | CM15: 0 | CN15: NC | CO15: 0 | CP15: NC | CQ15: 0 | CR15: 0 | DN15: 3 | DO15: 67.3
B16: 8 | C16: RODRIGO DE CAMPOS MOLEIRO | D16: GIULIA METODO (IA) | E16: MA | BC16: 15 | BD16: 2.2 | BE16: 11 | BF16: 6.6 | BG16: 10 | BH16: 7.7 | BI16: 16.5 | BJ16: NC | BK16: 0 | BL16: NC | BM16: 0 | BN16: NC | BO16: 0 | BP16: 0 | BQ16: NC | BR16: 0 | BS16: NC | BT16: 0 | BU16: NC | BV16: 0 | BW16: 0 | CL16: NC | CM16: 0 | CN16: NC | CO16: 0 | CP16: NC | CQ16: 0 | CR16: 0 | CS16: 8 | CT16: 5 | CU16: 8 | CV16: 5 | CW16: 6 | CX16: 7 | CY16: =CX16+CV16+CT16 -> 17 | DG16: 2 | DH16: 18.7 | DI16: 4 | DJ16: 14.3 | DM16: =DJ16+DH16 -> 33 | DN16: 3 | DO16: 66.5
B17: 9 | C17: CAMILA LUNARDELLI BARRETO | D17: JENNIFER PULLMAN (IA) | E17: AMA | BJ17: NC | BK17: 0 | BL17: NC | BM17: 0 | BN17: NC | BO17: 0 | BP17: 0 | BQ17: NC | BR17: 0 | BS17: NC | BT17: 0 | BU17: NC | BV17: 0 | BW17: 0 | CE17: 11 | CF17: 6.6 | CG17: 4 | CH17: 14.3 | CI17: 10 | CJ17: 7.7 | CK17: =CJ17+CH17+CF17 -> 28.6 | CL17: NC | CM17: 0 | CN17: NC | CO17: 0 | CP17: NC | CQ17: 0 | CR17: 0 | CS17: 6 | CT17: 7 | CU17: 6 | CV17: 7 | CW17: 4 | CX17: 9 | CY17: =CX17+CV17+CT17 -> 23 | DG17: 20 | DH17: 0 | DI17: 12 | DJ17: 5.5 | DM17: =DJ17+DH17 -> 5.5 | DN17: 3 | DO17: 57.1
B18: 10 | C18: ANTONIO AUGUSTO PINENT TIGRE | D18: HSF CASSIANA | E18: MA | AO18: 1 | AP18: 12 | AQ18: 1 | AR18: 10 | AS18: 2 | AT18: 7 | AU18: =AT18+AR18+AP18 -> 29 | BC18: 2 | BD18: 18.7 | BE18: 18 | BF18: 0 | BG18: 11 | BH18: 6.6 | BI18: =BH18+BF18+BD18 -> 25.3 | BJ18: NC | BK18: 0 | BL18: NC | BM18: 0 | BN18: NC | BO18: 0 | BP18: 0 | BQ18: NC | BR18: 0 | BS18: NC | BT18: 0 | BU18: NC | BV18: 0 | BW18: 0 | CL18: NC | CM18: 0 | CN18: NC | CO18: 0 | CP18: NC | CQ18: 0 | CR18: 0 | DN18: 2 | DO18: 54.3
B19: 11 | C19: MOISES FREITAS NEVES | D19: DINAMARCA TF (IA) | E19: AMA | BC19: NC | BD19: 0 | BE19: 19 | BF19: 0 | BG19: 5 | BH19: 13.2 | BI19: =BH19+BF19+BD19 -> 13.2 | BJ19: NC | BK19: 0 | BL19: NC | BM19: 0 | BN19: NC | BO19: 0 | BP19: 0 | BQ19: NC | BR19: 0 | BS19: NC | BT19: 0 | BU19: NC | BV19: 0 | BW19: 0 | CE19: 17 | CF19: 0 | CG19: 14 | CH19: 3.3 | CI19: 2 | CJ19: 18.7 | CK19: =CJ19+CH19+CF19 -> 22 | CL19: NC | CM19: 0 | CN19: NC | CO19: 0 | CP19: NC | CQ19: 0 | CR19: 0 | CZ19: NC | DA19: 0 | DB19: 1 | DC19: 14 | DD19: 7 | DE19: 4 | DF19: =DE19+DC19+DA19 -> 18 | DN19: 3 | DO19: 53.2
B20: 12 | C20: MIRIAM MAFFEI | D20: JCR KHALIFA (IA) | E20: MA | BC20: 16 | BD20: 1.1 | BE20: ELI | BF20: 0 | BG20: NC | BH20: 0 | BI20: =BH20+BF20+BD20 -> 1.1 | BJ20: NC | BK20: 0 | BL20: NC | BM20: 0 | BN20: NC | BO20: 0 | BP20: 0 | BQ20: NC | BR20: 0 | BS20: NC | BT20: 0 | BU20: NC | BV20: 0 | BW20: 0 | CE20: 23 | CF20: 0 | CG20: 10 | CH20: 7.7 | CI20: 7 | CJ20: 11 | CK20: =CJ20+CH20+CF20 -> 18.7 | CL20: NC | CM20: 0 | CN20: NC | CO20: 0 | CP20: NC | CQ20: 0 | CR20: 0 | CS20: 9 | CT20: 4 | CU20: 7 | CV20: 6 | CW20: 10 | CX20: 3 | CY20: =CX20+CV20+CT20 -> 13 | CZ20: 4 | DA20: 6 | DB20: 5 | DC20: 6 | DD20: 4 | DE20: 7 | DF20: =DE20+DC20+DA20 -> 19 | DN20: 4 | DO20: 51.8
B21: 13 | C21: HANDERSON ARAUJO CASTRO | D21: SL SABINO II (TE) | E21: MA | F21: 5 | G21: 8 | H21: 5 | I21: 7 | J21: 8 | K21: 4 | L21: =K21+I21+G21 -> 19 | M21: 16 | N21: 1.1 | O21: 2 | P21: 18.7 | Q21: 14 | R21: 3.3 | S21: =R21+P21+N21 -> 23.1 | BC21: 22 | BD21: 0 | BE21: 9 | BF21: 8.8 | BG21: 24 | BH21: 0 | BI21: =BH21+BF21+BD21 -> 8.8 | BJ21: NC | BK21: 0 | BL21: NC | BM21: 0 | BN21: NC | BO21: 0 | BP21: 0 | BQ21: NC | BR21: 0 | BS21: NC | BT21: 0 | BU21: NC | BV21: 0 | BW21: 0 | CL21: NC | CM21: 0 | CN21: NC | CO21: 0 | CP21: NC | CQ21: 0 | CR21: 0 | DG21: ELI | DH21: 0 | DI21: ELI | DJ21: 0 | DM21: =DJ21+DH21 -> 0 | DN21: 4 | DO21: 50.9
B22: 13 | C22: CAMILA MENNA B.B.F. HILGENDORFF | D22: LORDANA JMEN (TE) | E22: AMA | BJ22: NC | BK22: 0 | BL22: NC | BM22: 0 | BN22: NC | BO22: 0 | BP22: 0 | BQ22: NC | BR22: 0 | BS22: NC | BT22: 0 | BU22: NC | BV22: 0 | BW22: 0 | CL22: NC | CM22: 0 | CN22: NC | CO22: 0 | CP22: NC | CQ22: 0 | CR22: 0 | CS22: 3 | CT22: 11 | CU22: 2 | CV22: 13 | CW22: 7 | CX22: 6 | CY22: =CX22+CV22+CT22 -> 30 | DG22: 13 | DH22: 4.4 | DI22: 3 | DJ22: 16.5 | DM22: =DJ22+DH22 -> 20.9 | DN22: 2 | DO22: 50.9
B23: 15 | C23: JOSE RICARDO SANT'ANNA | D23: CHAPARRAL JMEN (TE) | E23: MA | M23: 14 | N23: 3.3 | O23: 16 | P23: 1.1 | Q23: 16 | R23: 1.1 | S23: =R23+P23+N23 -> 5.5 | AA23: 6 | AB23: 12.1 | AC23: 18 | AD23: 0 | AE23: DES | AF23: 0 | AG23: =AF23+AD23+AB23 -> 12.1 | BC23: 6 | BD23: 12.1 | BE23: 17 | BF23: 0 | BG23: 2 | BH23: 18.7 | BI23: =BH23+BF23+BD23 -> 30.8 | BJ23: NC | BK23: 0 | BL23: NC | BM23: 0 | BN23: NC | BO23: 0 | BP23: 0 | BQ23: NC | BR23: 0 | BS23: NC | BT23: 0 | BU23: NC | BV23: 0 | BW23: 0 | CL23: NC | CM23: 0 | CN23: NC | CO23: 0 | CP23: NC | CQ23: 0 | CR23: 0 | DN23: 3 | DO23: 48.4
B24: 16 | C24: LUCIANE PARMA PINTO | D24: LPP LARA (TE) | E24: AMA | F24: ELI | G24: 0 | H24: 4 | I24: 8 | J24: 4 | K24: 8 | L24: =K24+I24+G24 -> 16 | M24: 12 | N24: 5.5 | O24: 19 | P24: 0 | Q24: 13 | R24: 4.4 | S24: =R24+P24+N24 -> 9.9 | BC24: 18 | BD24: 0 | BE24: 15 | BF24: 2.2 | BG24: 8 | BH24: 9.9 | BI24: =BH24+BF24+BD24 -> 12.1 | BJ24: NC | BK24: 0 | BL24: NC | BM24: 0 | BN24: NC | BO24: 0 | BP24: 0 | BQ24: NC | BR24: 0 | BS24: NC | BT24: 0 | BU24: NC | BV24: 0 | BW24: 0 | BX24: 2 | BY24: 6 | BZ24: 5 | CA24: 1 | CB24: 3 | CC24: 3 | CD24: =CC24+CA24+BY24 -> 10 | CL24: NC | CM24: 0 | CN24: NC | CO24: 0 | CP24: NC | CQ24: 0 | CR24: 0 | DN24: 4 | DO24: 48
B25: 17 | C25: RENATO MENDES BAPTISTA | D25: CARDENSSEE M (IA) | E25: AMA | AA25: 14 | AB25: 3.3 | AC25: 1 | AD25: 22 | AE25: 1 | AF25: 22 | AG25: =AF25+AD25+AB25 -> 47.3 | BJ25: NC | BK25: 0 | BL25: NC | BM25: 0 | BN25: NC | BO25: 0 | BP25: 0 | BQ25: NC | BR25: 0 | BS25: NC | BT25: 0 | BU25: NC | BV25: 0 | BW25: 0 | CL25: NC | CM25: 0 | CN25: NC | CO25: 0 | CP25: NC | CQ25: 0 | CR25: 0 | DN25: 1 | DO25: 47.3
B26: 18 | C26: THIAGO MACHADO C. MORENO | D26: FADA DA CABANA (IA) | E26: AMA | BJ26: NC | BK26: 0 | BL26: NC | BM26: 0 | BN26: NC | BO26: 0 | BP26: 0 | BQ26: NC | BR26: 0 | BS26: NC | BT26: 0 | BU26: NC | BV26: 0 | BW26: 0 | CE26: 7 | CF26: 11 | CG26: 3 | CH26: 16.5 | CI26: 3 | CJ26: 16.5 | CK26: =CJ26+CH26+CF26 -> 44 | CL26: NC | CM26: 0 | CN26: NC | CO26: 0 | CP26: NC | CQ26: 0 | CR26: 0 | DN26: 1 | DO26: 44
B27: 19 | C27: DENNIS SARAIVA BRUSI | D27: CRISTELLA DO CASTELLO (IA) | E27: MA | F27: 2 | G27: 13 | H27: 3 | I27: 10 | J27: 6 | K27: 6 | L27: =K27+I27+G27 -> 29 | M27: 5 | N27: 13.2 | O27: 17 | P27: 0 | Q27: NC | R27: 0 | S27: =R27+P27+N27 -> 13.2 | BJ27: NC | BK27: 0 | BL27: NC | BM27: 0 | BN27: NC | BO27: 0 | BP27: 0 | BQ27: NC | BR27: 0 | BS27: NC | BT27: 0 | BU27: NC | BV27: 0 | BW27: 0 | CL27: NC | CM27: 0 | CN27: NC | CO27: 0 | CP27: NC | CQ27: 0 | CR27: 0 | DN27: 2 | DO27: 42.2
B28: 20 | C28: JOAO GILBERTO COMINESE FREIRE | D28: ILH WORLD STAR | E28: AMA | AA28: 5 | AB28: 13.2 | AC28: 9 | AD28: 8.8 | AE28: 21 | AF28: 0 | AG28: =AF28+AD28+AB28 -> 22 | AH28: 8 | AI28: 7 | AJ28: 4 | AK28: 10 | AL28: NC | AM28: 0 | AN28: =AM28+AK28+AI28 -> 17 | BJ28: NC | BK28: 0 | BL28: NC | BM28: 0 | BN28: NC | BO28: 0 | BP28: 0 | BQ28: NC | BR28: 0 | BS28: NC | BT28: 0 | BU28: NC | BV28: 0 | BW28: 0 | CE28: 15 | CF28: 2.2 | CG28: NC | CH28: 0 | CI28: NC | CJ28: 0 | CK28: =CJ28+CH28+CF28 -> 2.2 | CL28: NC | CM28: 0 | CN28: NC | CO28: 0 | CP28: NC | CQ28: 0 | CR28: 0 | DN28: 3 | DO28: 41.2
B29: 21 | C29: ANDRE LUIZ SANTOS DE SOUZA | D29: SILVERADO DE AMORANDA | E29: AMA | M29: 10 | N29: 7.7 | O29: 7 | P29: 11 | Q29: 1 | R29: 22 | S29: =R29+P29+N29 -> 40.7 | BC29: ELI | BD29: 0 | BE29: 26 | BF29: 0 | BG29: 19 | BH29: 0 | BI29: =BH29+BF29+BD29 -> 0 | BJ29: NC | BK29: 0 | BL29: NC | BM29: 0 | BN29: NC | BO29: 0 | BP29: 0 | BQ29: NC | BR29: 0 | BS29: NC | BT29: 0 | BU29: NC | BV29: 0 | BW29: 0 | CL29: NC | CM29: 0 | CN29: NC | CO29: 0 | CP29: NC | CQ29: 0 | CR29: 0 | DN29: 2 | DO29: 40.7
B30: 21 | C30: KARINA IVONE COMASTRI SMITH | D30: NOTORIUS DAS UMBURANAS (IA) | E30: AMA | BJ30: NC | BK30: 0 | BL30: NC | BM30: 0 | BN30: NC | BO30: 0 | BP30: 0 | BQ30: NC | BR30: 0 | BS30: NC | BT30: 0 | BU30: NC | BV30: 0 | BW30: 0 | CE30: 2 | CF30: 18.7 | CG30: 1 | CH30: 22 | CI30: NC | CJ30: 0 | CK30: =CJ30+CH30+CF30 -> 40.7 | CL30: NC | CM30: 0 | CN30: NC | CO30: 0 | CP30: NC | CQ30: 0 | CR30: 0 | DN30: 1 | DO30: 40.7
B31: 23 | C31: VIVIANE FISCHER LOPES | D31: ADELLE METODO (TE) | E31: AMA | AV31: 4 | AW31: 10 | AX31: 1 | AY31: 15 | AZ31: 1 | BA31: 14 | BB31: =BA31+AY31+AW31 -> 39 | BJ31: NC | BK31: 0 | BL31: NC | BM31: 0 | BN31: NC | BO31: 0 | BP31: 0 | BQ31: NC | BR31: 0 | BS31: NC | BT31: 0 | BU31: NC | BV31: 0 | BW31: 0 | CL31: NC | CM31: 0 | CN31: NC | CO31: 0 | CP31: NC | CQ31: 0 | CR31: 0 | DN31: 1 | DO31: 39
B32: 24 | C32: ANA CAROLINA BORJA DE ALMEIDA | D32: CAPRICE V VAN DE HERMITAGE | E32: AMA | AA32: 1 | AB32: 22 | AC32: 6 | AD32: 12.1 | AE32: 13 | AF32: 4.4 | AG32: =AF32+AD32+AB32 -> 38.5 | BJ32: NC | BK32: 0 | BL32: NC | BM32: 0 | BN32: NC | BO32: 0 | BP32: 0 | BQ32: NC | BR32: 0 | BS32: NC | BT32: 0 | BU32: NC | BV32: 0 | BW32: 0 | CL32: NC | CM32: 0 | CN32: NC | CO32: 0 | CP32: NC | CQ32: 0 | CR32: 0 | DN32: 1 | DO32: 38.5
B33: 25 | C33: WALKIRIA MORASSUTTI OHLWEILER | D33: EPHESUS M (TE) | E33: AMA | F33: 4 | G33: 9 | H33: ELI | I33: 0 | J33: 2 | K33: 12 | L33: =K33+I33+G33 -> 21 | M33: 3 | N33: 16.5 | O33: NC | P33: 0 | Q33: NC | R33: 0 | S33: =R33+P33+N33 -> 16.5 | BJ33: NC | BK33: 0 | BL33: NC | BM33: 0 | BN33: NC | BO33: 0 | BP33: 0 | BQ33: NC | BR33: 0 | BS33: NC | BT33: 0 | BU33: NC | BV33: 0 | BW33: 0 | CL33: NC | CM33: 0 | CN33: NC | CO33: 0 | CP33: NC | CQ33: 0 | CR33: 0 | DN33: 2 | DO33: 37.5
B34: 26 | C34: ROBERTO PODVAL | D34: COLMEIA HV (IA) | E34: MA | M34: 7 | N34: 11 | O34: 6 | P34: 12.1 | Q34: 4 | R34: 14.3 | S34: =R34+P34+N34 -> 37.4 | BJ34: NC | BK34: 0 | BL34: NC | BM34: 0 | BN34: NC | BO34: 0 | BP34: 0 | BQ34: NC | BR34: 0 | BS34: NC | BT34: 0 | BU34: NC | BV34: 0 | BW34: 0 | CE34: 19 | CF34: 0 | CG34: NC | CH34: 0 | CI34: NC | CJ34: 0 | CK34: =CJ34+CH34+CF34 -> 0 | CL34: NC | CM34: 0 | CN34: NC | CO34: 0 | CP34: NC | CQ34: 0 | CR34: 0 | DN34: 2 | DO34: 37.4
B35: 27 | C35: MARIA EUGENIA SOUZA A. LORENZETTI | D35: SETH SIMPLY | E35: MA | M35: 4 | N35: 14.3 | O35: 4 | P35: 14.3 | Q35: 11 | R35: 6.6 | S35: =R35+P35+N35 -> 35.2 | BJ35: NC | BK35: 0 | BL35: NC | BM35: 0 | BN35: NC | BO35: 0 | BP35: 0 | BQ35: NC | BR35: 0 | BS35: NC | BT35: 0 | BU35: NC | BV35: 0 | BW35: 0 | CL35: NC | CM35: 0 | CN35: NC | CO35: 0 | CP35: NC | CQ35: 0 | CR35: 0 | DN35: 1 | DO35: 35.2
B36: 27 | C36: PAULA MOTTA MALUF | D36: CLARISSA WE | E36: AMA | AA36: 19 | AB36: 0 | AC36: 5 | AD36: 13.2 | AE36: 18 | AF36: 0 | AG36: =AF36+AD36+AB36 -> 13.2 | BC36: 23 | BD36: 0 | BE36: 8 | BF36: 9.9 | BG36: 15 | BH36: 2.2 | BI36: =BH36+BF36+BD36 -> 12.1 | BJ36: NC | BK36: 0 | BL36: NC | BM36: 0 | BN36: NC | BO36: 0 | BP36: 0 | BQ36: NC | BR36: 0 | BS36: NC | BT36: 0 | BU36: NC | BV36: 0 | BW36: 0 | CE36: 8 | CF36: 9.9 | CG36: NC | CH36: 0 | CI36: NC | CJ36: 0 | CK36: =CJ36+CH36+CF36 -> 9.9 | CL36: NC | CM36: 0 | CN36: NC | CO36: 0 | CP36: NC | CQ36: 0 | CR36: 0 | DN36: 3 | DO36: 35.2
B37: 29 | C37: PATRICIA JANSON F. RODRIGUES | D37: CALANDRA VDL | E37: AMA | BJ37: NC | BK37: 0 | BL37: NC | BM37: 0 | BN37: NC | BO37: 0 | BP37: 0 | BQ37: NC | BR37: 0 | BS37: NC | BT37: 0 | BU37: NC | BV37: 0 | BW37: 0 | CE37: 10 | CF37: 7.7 | CG37: 5 | CH37: 13.2 | CI37: 5 | CJ37: 13.2 | CK37: =CJ37+CH37+CF37 -> 34.1 | CL37: NC | CM37: 0 | CN37: NC | CO37: 0 | CP37: NC | CQ37: 0 | CR37: 0 | DN37: 1 | DO37: 34.1
B38: 30 | C38: ANDRE KURBET | D38: HUNTER MASSANGANA (IA) | E38: AMA | F38: 6 | G38: 7 | H38: 2 | I38: 12 | J38: 1 | K38: 15 | L38: =K38+I38+G38 -> 34 | BJ38: NC | BK38: 0 | BL38: NC | BM38: 0 | BN38: NC | BO38: 0 | BP38: 0 | BQ38: NC | BR38: 0 | BS38: NC | BT38: 0 | BU38: NC | BV38: 0 | BW38: 0 | CL38: NC | CM38: 0 | CN38: NC | CO38: 0 | CP38: NC | CQ38: 0 | CR38: 0 | DN38: 1 | DO38: 34
B39: 30 | C39: ELOISA ZWEIFEL MORO GESUATO | D39: JCR SILVERSTAR (IA) | E39: AMA | AH39: 5 | AI39: 10 | AJ39: 1 | AK39: 17 | AL39: 3 | AM39: 7 | AN39: =AM39+AK39+AI39 -> 34 | BJ39: NC | BK39: 0 | BL39: NC | BM39: 0 | BN39: NC | BO39: 0 | BP39: 0 | BQ39: NC | BR39: 0 | BS39: NC | BT39: 0 | BU39: NC | BV39: 0 | BW39: 0 | CL39: NC | CM39: 0 | CN39: NC | CO39: 0 | CP39: NC | CQ39: 0 | CR39: 0 | DN39: 1 | DO39: 34
B40: 32 | C40: JACY DO PRADO BARBOSA NETO | D40: MC ANNA-BOLENA LUTZ (TE) | E40: MA | AA40: 26 | AB40: 0 | AC40: 3 | AD40: 16.5 | AE40: 3 | AF40: 16.5 | AG40: =AF40+AD40+AB40 -> 33 | BJ40: NC | BK40: 0 | BL40: NC | BM40: 0 | BN40: NC | BO40: 0 | BP40: 0 | BQ40: NC | BR40: 0 | BS40: NC | BT40: 0 | BU40: NC | BV40: 0 | BW40: 0 | CL40: NC | CM40: 0 | CN40: NC | CO40: 0 | CP40: NC | CQ40: 0 | CR40: 0 | DN40: 1 | DO40: 33
B41: 32 | C41: OTAVIO SCHIMIDT AZEVEDO | D41: GRINGO AMM (IA) | E41: AMA | BJ41: NC | BK41: 0 | BL41: NC | BM41: 0 | BN41: NC | BO41: 0 | BP41: 0 | BQ41: NC | BR41: 0 | BS41: NC | BT41: 0 | BU41: NC | BV41: 0 | BW41: 0 | CE41: 9 | CF41: 8.8 | CG41: 16 | CH41: 1.1 | CI41: 13 | CJ41: 4.4 | CK41: =CJ41+CH41+CF41 -> 14.3 | CL41: NC | CM41: 0 | CN41: NC | CO41: 0 | CP41: NC | CQ41: 0 | CR41: 0 | DG41: 19 | DH41: 0 | DI41: 2 | DJ41: 18.7 | DM41: =DJ41+DH41 -> 18.7 | DN41: =SUBTOTAL(3,L41,S41,Z41,AG41,AN41,AU41,BB41,BI41,CD41,CK41,CY41,DF41,DM41) -> 2 | DO41: =DM41+DF41+CY41+CR41+CK41+CD41+BW41+BP41+BI41+BB41+AU41+AN41+AG41+Z41+S41+L41 -> 33
B42: 34 | C42: MARIANA SOUSA SILVA | D42: ARTHOS JMEN (TE) | E42: AMA | AV42: 2 | AW42: 14 | AX42: 5 | AY42: 7 | AZ42: 2 | BA42: 11 | BB42: =BA42+AY42+AW42 -> 32 | BJ42: NC | BK42: 0 | BL42: NC | BM42: 0 | BN42: NC | BO42: 0 | BP42: 0 | BQ42: NC | BR42: 0 | BS42: NC | BT42: 0 | BU42: NC | BV42: 0 | BW42: 0 | CL42: NC | CM42: 0 | CN42: NC | CO42: 0 | CP42: NC | CQ42: 0 | CR42: 0 | DN42: 1 | DO42: 32
B43: 35 | C43: FERES JORGE JUNIOR | D43: PORSCHE CLL (IA) | E43: AMA | BJ43: NC | BK43: 0 | BL43: NC | BM43: 0 | BN43: NC | BO43: 0 | BP43: 0 | BQ43: NC | BR43: 0 | BS43: NC | BT43: 0 | BU43: NC | BV43: 0 | BW43: 0 | CL43: NC | CM43: 0 | CN43: NC | CO43: 0 | CP43: NC | CQ43: 0 | CR43: 0 | CZ43: 3 | DA43: 8 | DB43: 3 | DC43: 9 | DD43: 1 | DE43: 14 | DF43: =DE43+DC43+DA43 -> 31 | DN43: 1 | DO43: 31
B44: 36 | C44: ANA FLAVIA FARIA | D44: FM LITUANO (*) | E44: AMA | M44: 2 | N44: 18.7 | O44: 11 | P44: 6.6 | Q44: 12 | R44: 5.5 | S44: =R44+P44+N44 -> 30.8 | BJ44: NC | BK44: 0 | BL44: NC | BM44: 0 | BN44: NC | BO44: 0 | BP44: 0 | BQ44: NC | BR44: 0 | BS44: NC | BT44: 0 | BU44: NC | BV44: 0 | BW44: 0 | CL44: NC | CM44: 0 | CN44: NC | CO44: 0 | CP44: NC | CQ44: 0 | CR44: 0 | DN44: 1 | DO44: 30.8
B45: 37 | C45: JEANN DOMINGOS | D45: MC VITORIA LUTZ (TE) | E45: AMA | AH45: 3 | AI45: 13 | AJ45: 3 | AK45: 12 | AL45: 4 | AM45: 5 | AN45: =AM45+AK45+AI45 -> 30 | BJ45: NC | BK45: 0 | BL45: NC | BM45: 0 | BN45: NC | BO45: 0 | BP45: 0 | BQ45: NC | BR45: 0 | BS45: NC | BT45: 0 | BU45: NC | BV45: 0 | BW45: 0 | CL45: NC | CM45: 0 | CN45: NC | CO45: 0 | CP45: NC | CQ45: 0 | CR45: 0 | DN45: 1 | DO45: 30
B46: 38 | C46: SANDRO PERUZZO BOVE | D46: COLISEO TW (IA) | E46: MA | AA46: 22 | AB46: 0 | AC46: 10 | AD46: 7.7 | AE46: NC | AF46: 0 | AG46: =AF46+AD46+AB46 -> 7.7 | BJ46: NC | BK46: 0 | BL46: NC | BM46: 0 | BN46: NC | BO46: 0 | BP46: 0 | BQ46: NC | BR46: 0 | BS46: NC | BT46: 0 | BU46: NC | BV46: 0 | BW46: 0 | CE46: 21 | CF46: 0 | CG46: 8 | CH46: 9.9 | CI46: 6 | CJ46: 12.1 | CK46: =CJ46+CH46+CF46 -> 22 | CL46: NC | CM46: 0 | CN46: NC | CO46: 0 | CP46: NC | CQ46: 0 | CR46: 0 | DN46: 2 | DO46: 29.7
B47: 39 | C47: SIMONE MOURAO ZURITA | D47: VULCAN | E47: MA | AA47: 11 | AB47: 6.6 | AC47: 2 | AD47: 18.7 | AE47: 14 | AF47: 3.3 | AG47: =AF47+AD47+AB47 -> 28.6 | BJ47: NC | BK47: 0 | BL47: NC | BM47: 0 | BN47: NC | BO47: 0 | BP47: 0 | BQ47: NC | BR47: 0 | BS47: NC | BT47: 0 | BU47: NC | BV47: 0 | BW47: 0 | CL47: NC | CM47: 0 | CN47: NC | CO47: 0 | CP47: NC | CQ47: 0 | CR47: 0 | DN47: 1 | DO47: 28.6
B48: 40 | C48: ANNELISE FRAGA | D48: GANDARA JMEN | E48: AMA | AV48: 1 | AW48: 17 | AX48: 10 | AY48: 2 | AZ48: 3 | BA48: 9 | BB48: =BA48+AY48+AW48 -> 28 | BJ48: NC | BK48: 0 | BL48: NC | BM48: 0 | BN48: NC | BO48: 0 | BP48: 0 | BQ48: NC | BR48: 0 | BS48: NC | BT48: 0 | BU48: NC | BV48: 0 | BW48: 0 | CL48: NC | CM48: 0 | CN48: NC | CO48: 0 | CP48: NC | CQ48: 0 | CR48: 0 | DN48: 1 | DO48: 28
B49: 41 | C49: ISABEL NADALINI GONCALVES | D49: QUICK STAR Z | E49: AMA | M49: 17 | N49: 0 | O49: 9 | P49: 8.8 | Q49: 2 | R49: 18.7 | S49: =R49+P49+N49 -> 27.5 | BJ49: NC | BK49: 0 | BL49: NC | BM49: 0 | BN49: NC | BO49: 0 | BP49: 0 | BQ49: NC | BR49: 0 | BS49: NC | BT49: 0 | BU49: NC | BV49: 0 | BW49: 0 | CL49: NC | CM49: 0 | CN49: NC | CO49: 0 | CP49: NC | CQ49: 0 | CR49: 0 | DN49: 1 | DO49: 27.5
B50: 42 | C50: MARIO KRIGER | D50: CASSILANO JMEN VII (TE) | E50: AMA | BJ50: NC | BK50: 0 | BL50: NC | BM50: 0 | BN50: NC | BO50: 0 | BP50: 0 | BQ50: NC | BR50: 0 | BS50: NC | BT50: 0 | BU50: NC | BV50: 0 | BW50: 0 | CL50: NC | CM50: 0 | CN50: NC | CO50: 0 | CP50: NC | CQ50: 0 | CR50: 0 | CZ50: 6 | DA50: 4 | DB50: 6 | DC50: 5 | DD50: 6 | DE50: 5 | DF50: =DE50+DC50+DA50 -> 14 | DG50: 11 | DH50: 6.6 | DI50: 11 | DJ50: 6.6 | DM50: =DJ50+DH50 -> 13.2 | DN50: 2 | DO50: 27.2
B51: 43 | C51: DEISY WILLER RODRIGUES | D51: CANCIONETA JMEN | E51: AMA | AH51: 14 | AI51: 1 | AJ51: 2 | AK51: 14 | AL51: 1 | AM51: 12 | AN51: =AM51+AK51+AI51 -> 27 | BJ51: NC | BK51: 0 | BL51: NC | BM51: 0 | BN51: NC | BO51: 0 | BP51: 0 | BQ51: NC | BR51: 0 | BS51: NC | BT51: 0 | BU51: NC | BV51: 0 | BW51: 0 | CL51: NC | CM51: 0 | CN51: NC | CO51: 0 | CP51: NC | CQ51: 0 | CR51: 0 | DN51: 1 | DO51: 27
B52: 44 | C52: SILVIA ZANON DALLORTO | D52: AZA BOY | E52: AMA | BC52: 13 | BD52: 4.4 | BE52: 1 | BF52: 22 | BG52: NC | BH52: 0 | BI52: =BH52+BF52+BD52 -> 26.4 | BJ52: NC | BK52: 0 | BL52: NC | BM52: 0 | BN52: NC | BO52: 0 | BP52: 0 | BQ52: NC | BR52: 0 | BS52: NC | BT52: 0 | BU52: NC | BV52: 0 | BW52: 0 | CL52: NC | CM52: 0 | CN52: NC | CO52: 0 | CP52: NC | CQ52: 0 | CR52: 0 | DN52: 1 | DO52: 26.4
B53: 45 | C53: CEL. VINICIUS SILVA DE FREITAS | D53: LORD ITAPUA | E53: AMA | AV53: 6 | AW53: 8 | AX53: 2 | AY53: 12 | AZ53: 5 | BA53: 6 | BB53: =BA53+AY53+AW53 -> 26 | BJ53: NC | BK53: 0 | BL53: NC | BM53: 0 | BN53: NC | BO53: 0 | BP53: 0 | BQ53: NC | BR53: 0 | BS53: NC | BT53: 0 | BU53: NC | BV53: 0 | BW53: 0 | CL53: NC | CM53: 0 | CN53: NC | CO53: 0 | CP53: NC | CQ53: 0 | CR53: 0 | DN53: 1 | DO53: 26
B54: 45 | C54: RICARDO LEONI MAFFEI | D54: ZAMALIA BELLA | E54: AMA | AA54: ELI | AB54: 0 | AC54: 28 | AD54: 0 | AE54: 27 | AF54: 0 | AG54: =AF54+AD54+AB54 -> 0 | BC54: 26 | BD54: 0 | BE54: 3 | BF54: 16.5 | BG54: 12 | BH54: 5.5 | BI54: =BH54+BF54+BD54 -> 22 | BJ54: NC | BK54: 0 | BL54: NC | BM54: 0 | BN54: NC | BO54: 0 | BP54: 0 | BQ54: NC | BR54: 0 | BS54: NC | BT54: 0 | BU54: NC | BV54: 0 | BW54: 0 | CL54: NC | CM54: 0 | CN54: NC | CO54: 0 | CP54: NC | CQ54: 0 | CR54: 0 | CZ54: ELI | DA54: 0 | DB54: 10 | DC54: 1 | DD54: 8 | DE54: 3 | DF54: =DE54+DC54+DA54 -> 4 | DN54: 3 | DO54: 26
B55: 47 | C55: OSCAR MARTINEZ NETO | D55: KANSSAS CHCP | E55: MA | AA55: 17 | AB55: 0 | AC55: 23 | AD55: 0 | AE55: 20 | AF55: 0 | AG55: =AF55+AD55+AB55 -> 0 | AH55: 2 | AI55: 15 | AJ55: 10 | AK55: 4 | AL55: NC | AM55: 0 | AN55: =AM55+AK55+AI55 -> 19 | BJ55: NC | BK55: 0 | BL55: NC | BM55: 0 | BN55: NC | BO55: 0 | BP55: 0 | BQ55: NC | BR55: 0 | BS55: NC | BT55: 0 | BU55: NC | BV55: 0 | BW55: 0 | CE55: 22 | CF55: 0 | CG55: 21 | CH55: 0 | CI55: 11 | CJ55: 6.6 | CK55: =CJ55+CH55+CF55 -> 6.6 | CL55: NC | CM55: 0 | CN55: NC | CO55: 0 | CP55: NC | CQ55: 0 | CR55: 0 | DN55: 3 | DO55: 25.6
B56: 48 | C56: ANA HELENA KIRSHNER MOFARREJ | D56: EIFFEL JB | E56: AMA | AA56: 3 | AB56: 16.5 | AC56: 11 | AD56: 6.6 | AE56: 16 | AF56: 1.1 | AG56: =AF56+AD56+AB56 -> 24.2 | BJ56: NC | BK56: 0 | BL56: NC | BM56: 0 | BN56: NC | BO56: 0 | BP56: 0 | BQ56: NC | BR56: 0 | BS56: NC | BT56: 0 | BU56: NC | BV56: 0 | BW56: 0 | CL56: NC | CM56: 0 | CN56: NC | CO56: 0 | CP56: NC | CQ56: 0 | CR56: 0 | DN56: 1 | DO56: 24.2
B57: 48 | C57: CAROLINA AULICINO MACIEL | D57: MSC CARTIER (IA) | E57: AMA | BJ57: NC | BK57: 0 | BL57: NC | BM57: 0 | BN57: NC | BO57: 0 | BP57: 0 | BQ57: NC | BR57: 0 | BS57: NC | BT57: 0 | BU57: NC | BV57: 0 | BW57: 0 | CL57: NC | CM57: 0 | CN57: NC | CO57: 0 | CP57: NC | CQ57: 0 | CR57: 0 | DG57: 3 | DH57: 16.5 | DI57: 10 | DJ57: 7.7 | DM57: =DJ57+DH57 -> 24.2 | DN57: 1 | DO57: 24.2
B58: 48 | C58: ANDRI LAXDAL PRASTARSON | D58: LF DORTMUND (IA) | E58: AMA | BJ58: NC | BK58: 0 | BL58: NC | BM58: 0 | BN58: NC | BO58: 0 | BP58: 0 | BQ58: NC | BR58: 0 | BS58: NC | BT58: 0 | BU58: NC | BV58: 0 | BW58: 0 | CL58: NC | CM58: 0 | CN58: NC | CO58: 0 | CP58: NC | CQ58: 0 | CR58: 0 | DG58: 7 | DH58: 11 | DI58: 5 | DJ58: 13.2 | DM58: =DJ58+DH58 -> 24.2 | DN58: 1 | DO58: 24.2
B59: 51 | C59: JANE GILTRUP | D59: CYRANO JMEN (TE) | E59: AMA | BJ59: NC | BK59: 0 | BL59: NC | BM59: 0 | BN59: NC | BO59: 0 | BP59: 0 | BQ59: NC | BR59: 0 | BS59: NC | BT59: 0 | BU59: NC | BV59: 0 | BW59: 0 | CL59: NC | CM59: 0 | CN59: NC | CO59: 0 | CP59: NC | CQ59: 0 | CR59: 0 | CZ59: 2 | DA59: 10 | DB59: 8 | DC59: 3 | DD59: 2 | DE59: 11 | DF59: =DE59+DC59+DA59 -> 24 | DN59: 1 | DO59: 24
B60: 51 | C60: DANIEL ABBUD SARQUIS AIEX | D60: AMARANTE JMEN (TE) | E60: AMA | BJ60: NC | BK60: 0 | BL60: NC | BM60: 0 | BN60: NC | BO60: 0 | BP60: 0 | BQ60: NC | BR60: 0 | BS60: NC | BT60: 0 | BU60: NC | BV60: 0 | BW60: 0 | CL60: NC | CM60: 0 | CN60: NC | CO60: 0 | CP60: NC | CQ60: 0 | CR60: 0 | CS60: 7 | CT60: 6 | CU60: 12 | CV60: 1 | CW60: 5 | CX60: 8 | CY60: =CX60+CV60+CT60 -> 15 | CZ60: 7 | DA60: 3 | DB60: 7 | DC60: 4 | DD60: 9 | DE60: 2 | DF60: =DE60+DC60+DA60 -> 9 | DN60: 2 | DO60: 24
B61: 53 | C61: JOAO GILBERTO COMINESE FREIRE | D61: HINTERTUX | E61: AMA | AH61: 10 | AI61: 5 | AJ61: NC | AK61: 0 | AL61: NC | AM61: 0 | AN61: =AM61+AK61+AI61 -> 5 | BJ61: NC | BK61: 0 | BL61: NC | BM61: 0 | BN61: NC | BO61: 0 | BP61: 0 | BQ61: NC | BR61: 0 | BS61: NC | BT61: 0 | BU61: NC | BV61: 0 | BW61: 0 | CE61: 18 | CF61: 0 | CG61: 9 | CH61: 8.8 | CI61: 8 | CJ61: 9.9 | CK61: =CJ61+CH61+CF61 -> 18.7 | CL61: NC | CM61: 0 | CN61: NC | CO61: 0 | CP61: NC | CQ61: 0 | CR61: 0 | DN61: 2 | DO61: 23.7
B62: 54 | C62: ADRIANA FEFFER SKAF | D62: SL SOFISMA IV (TE) | E62: AMA | AH62: 6 | AI62: 9 | AJ62: 9 | AK62: 5 | AL62: 2 | AM62: 9 | AN62: =AM62+AK62+AI62 -> 23 | BJ62: NC | BK62: 0 | BL62: NC | BM62: 0 | BN62: NC | BO62: 0 | BP62: 0 | BQ62: NC | BR62: 0 | BS62: NC | BT62: 0 | BU62: NC | BV62: 0 | BW62: 0 | CL62: NC | CM62: 0 | CN62: NC | CO62: 0 | CP62: NC | CQ62: 0 | CR62: 0 | DN62: 1 | DO62: 23
B63: 54 | C63: MARINA VILLACA | D63: AGATHA ARAGOM | E63: AMA | BJ63: NC | BK63: 0 | BL63: NC | BM63: 0 | BN63: NC | BO63: 0 | BP63: 0 | BQ63: NC | BR63: 0 | BS63: NC | BT63: 0 | BU63: NC | BV63: 0 | BW63: 0 | BX63: 1 | BY63: 9 | BZ63: 2 | CA63: 6 | CB63: 1 | CC63: 8 | CD63: =CC63+CA63+BY63 -> 23 | CL63: NC | CM63: 0 | CN63: NC | CO63: 0 | CP63: NC | CQ63: 0 | CR63: 0 | DN63: 1 | DO63: 23
B64: 54 | C64: GABRIELA HSIEH | D64: HSL AMY BROWN (IA) | E64: AMA | BJ64: NC | BK64: 0 | BL64: NC | BM64: 0 | BN64: NC | BO64: 0 | BP64: 0 | BQ64: NC | BR64: 0 | BS64: NC | BT64: 0 | BU64: NC | BV64: 0 | BW64: 0 | CL64: NC | CM64: 0 | CN64: NC | CO64: 0 | CP64: NC | CQ64: 0 | CR64: 0 | CS64: 4 | CT64: 9 | CU64: 4 | CV64: 9 | CW64: 8 | CX64: 5 | CY64: =CX64+CV64+CT64 -> 23 | DN64: 1 | DO64: 23
B65: 57 | C65: FABIANA TURUGUET VALLIAS | D65: RIO BRANCO 3K (IA) | E65: AMA | AA65: 27 | AB65: 0 | AC65: 8 | AD65: 9.9 | AE65: 6 | AF65: 12.1 | AG65: =AF65+AD65+AB65 -> 22 | BJ65: NC | BK65: 0 | BL65: NC | BM65: 0 | BN65: NC | BO65: 0 | BP65: 0 | BQ65: NC | BR65: 0 | BS65: NC | BT65: 0 | BU65: NC | BV65: 0 | BW65: 0 | CL65: NC | CM65: 0 | CN65: NC | CO65: 0 | CP65: NC | CQ65: 0 | CR65: 0 | DN65: 1 | DO65: 22
B66: 57 | C66: ANDRE LUIZ SANTOS DE SOUZA | D66: SL CHINSARI (IA) | E66: AMA | BC66: NC | BD66: 0 | BE66: NC | BF66: 0 | BG66: 1 | BH66: 22 | BI66: =BH66+BF66+BD66 -> 22 | BJ66: NC | BK66: 0 | BL66: NC | BM66: 0 | BN66: NC | BO66: 0 | BP66: 0 | BQ66: NC | BR66: 0 | BS66: NC | BT66: 0 | BU66: NC | BV66: 0 | BW66: 0 | CL66: NC | CM66: 0 | CN66: NC | CO66: 0 | CP66: NC | CQ66: 0 | CR66: 0 | DN66: 1 | DO66: 22
B67: 57 | C67: ANA FLAVIA FARIA | D67: SIR-CALEI DA LAGOA | E67: AMA | BC67: 4 | BD67: 14.3 | BE67: 10 | BF67: 7.7 | BG67: 17 | BH67: 0 | BI67: =BH67+BF67+BD67 -> 22 | BJ67: NC | BK67: 0 | BL67: NC | BM67: 0 | BN67: NC | BO67: 0 | BP67: 0 | BQ67: NC | BR67: 0 | BS67: NC | BT67: 0 | BU67: NC | BV67: 0 | BW67: 0 | CL67: NC | CM67: 0 | CN67: NC | CO67: 0 | CP67: NC | CQ67: 0 | CR67: 0 | DN67: 1 | DO67: 22
B68: 60 | C68: CARLOS LUIZ DA SILVA JUNIOR | D68: LAWRENCE JMEN (TE) | E68: AMA | BJ68: NC | BK68: 0 | BL68: NC | BM68: 0 | BN68: NC | BO68: 0 | BP68: 0 | BQ68: NC | BR68: 0 | BS68: NC | BT68: 0 | BU68: NC | BV68: 0 | BW68: 0 | CL68: NC | CM68: 0 | CN68: NC | CO68: 0 | CP68: NC | CQ68: 0 | CR68: 0 | CZ68: 5 | DA68: 5 | DB68: 4 | DC68: 7 | DD68: 3 | DE68: 9 | DF68: =DE68+DC68+DA68 -> 21 | DN68: 1 | DO68: 21
B69: 60 | C69: CAPITÃO AIRES | D69: SL VERY WISE (TE) | E69: MA | AH69: 1 | AI69: 18 | AJ69: 12 | AK69: 2 | AL69: 8 | AM69: 1 | AN69: =AM69+AK69+AI69 -> 21 | BJ69: NC | BK69: 0 | BL69: NC | BM69: 0 | BN69: NC | BO69: 0 | BP69: 0 | BQ69: NC | BR69: 0 | BS69: NC | BT69: 0 | BU69: NC | BV69: 0 | BW69: 0 | CL69: NC | CM69: 0 | CN69: NC | CO69: 0 | CP69: NC | CQ69: 0 | CR69: 0 | DN69: 1 | DO69: 21
B70: 62 | C70: KATIA ORDER MAGRO | D70: BY-RANNA SINCORTACK (TE) | E70: AMA | M70: 15 | N70: 2.2 | O70: 3 | P70: 16.5 | Q70: 15 | R70: 2.2 | S70: =R70+P70+N70 -> 20.9 | BJ70: NC | BK70: 0 | BL70: NC | BM70: 0 | BN70: NC | BO70: 0 | BP70: 0 | BQ70: NC | BR70: 0 | BS70: NC | BT70: 0 | BU70: NC | BV70: 0 | BW70: 0 | CL70: NC | CM70: 0 | CN70: NC | CO70: 0 | CP70: NC | CQ70: 0 | CR70: 0 | DN70: 1 | DO70: 20.9
B71: 62 | C71: MARIANNA MIETTO MENDES | D71: CANDINO JMEN I (TE) | E71: AMA | BJ71: NC | BK71: 0 | BL71: NC | BM71: 0 | BN71: NC | BO71: 0 | BP71: 0 | BQ71: NC | BR71: 0 | BS71: NC | BT71: 0 | BU71: NC | BV71: 0 | BW71: 0 | CE71: 13 | CF71: 4.4 | CG71: 15 | CH71: 2.2 | CI71: 4 | CJ71: 14.3 | CK71: =CJ71+CH71+CF71 -> 20.9 | CL71: NC | CM71: 0 | CN71: NC | CO71: 0 | CP71: NC | CQ71: 0 | CR71: 0 | DN71: 1 | DO71: 20.9
B72: 64 | C72: LUCIENE DOS SANTOS BARROS | D72: ROTTERDAM 3K (IA) | E72: AMA | BJ72: NC | BK72: 0 | BL72: NC | BM72: 0 | BN72: NC | BO72: 0 | BP72: 0 | BQ72: NC | BR72: 0 | BS72: NC | BT72: 0 | BU72: NC | BV72: 0 | BW72: 0 | CL72: NC | CM72: 0 | CN72: NC | CO72: 0 | CP72: NC | CQ72: 0 | CR72: 0 | DG72: 10 | DH72: 7.7 | DI72: 6 | DJ72: 12.1 | DM72: =DJ72+DH72 -> 19.8 | DN72: 1 | DO72: 19.8
B73: 64 | C73: MARIA EUGENIA SOUZA A. LORENZETTI | D73: BL OTTO (IA) | E73: MA | M73: 11 | N73: 6.6 | O73: 14 | P73: 3.3 | Q73: 8 | R73: 9.9 | S73: =R73+P73+N73 -> 19.8 | BJ73: NC | BK73: 0 | BL73: NC | BM73: 0 | BN73: NC | BO73: 0 | BP73: 0 | BQ73: NC | BR73: 0 | BS73: NC | BT73: 0 | BU73: NC | BV73: 0 | BW73: 0 | CL73: NC | CM73: 0 | CN73: NC | CO73: 0 | CP73: NC | CQ73: 0 | CR73: 0 | DN73: =SUBTOTAL(3,L73,S73,Z73,AG73,AN73,AU73,BB73,BI73,CD73,CK73,CY73,DF73,DM73) -> 1 | DO73: =DM73+DF73+CY73+CR73+CK73+CD73+BW73+BP73+BI73+BB73+AU73+AN73+AG73+Z73+S73+L73 -> 19.8
B74: 66 | C74: TEN. LUIS FERNANDO O. VARANDA | D74: MECA DO RINCAO | E74: AMA | AV74: 3 | AW74: 12 | AX74: 8 | AY74: 4 | AZ74: 8 | BA74: 3 | BB74: =BA74+AY74+AW74 -> 19 | BJ74: NC | BK74: 0 | BL74: NC | BM74: 0 | BN74: NC | BO74: 0 | BP74: 0 | BQ74: NC | BR74: 0 | BS74: NC | BT74: 0 | BU74: NC | BV74: 0 | BW74: 0 | CL74: NC | CM74: 0 | CN74: NC | CO74: 0 | CP74: NC | CQ74: 0 | CR74: 0 | DN74: 1 | DO74: 19
B75: 66 | C75: CEL. VINICIUS SILVA DE FREITAS | D75: NEMA ITAPUA | E75: AMA | AV75: 5 | AW75: 9 | AX75: 4 | AY75: 8 | AZ75: 9 | BA75: 2 | BB75: =BA75+AY75+AW75 -> 19 | BJ75: NC | BK75: 0 | BL75: NC | BM75: 0 | BN75: NC | BO75: 0 | BP75: 0 | BQ75: NC | BR75: 0 | BS75: NC | BT75: 0 | BU75: NC | BV75: 0 | BW75: 0 | CL75: NC | CM75: 0 | CN75: NC | CO75: 0 | CP75: NC | CQ75: 0 | CR75: 0 | DN75: 1 | DO75: 19
B76: 66 | C76: LUCIANO MATTOS N. DA GAMA | D76: SINDO JOTER II | E76: AMA | AV76: 8 | AW76: 6 | AX76: 6 | AY76: 6 | AZ76: 4 | BA76: 7 | BB76: =BA76+AY76+AW76 -> 19 | BJ76: NC | BK76: 0 | BL76: NC | BM76: 0 | BN76: NC | BO76: 0 | BP76: 0 | BQ76: NC | BR76: 0 | BS76: NC | BT76: 0 | BU76: NC | BV76: 0 | BW76: 0 | CL76: NC | CM76: 0 | CN76: NC | CO76: 0 | CP76: NC | CQ76: 0 | CR76: 0 | DN76: 1 | DO76: 19
B77: 69 | C77: MANUELA REYNOSO BORGES GOMES | D77: KTZ SINGUNEO | E77: AMA | BJ77: NC | BK77: 0 | BL77: NC | BM77: 0 | BN77: NC | BO77: 0 | BP77: 0 | BQ77: NC | BR77: 0 | BS77: NC | BT77: 0 | BU77: NC | BV77: 0 | BW77: 0 | CE77: 24 | CF77: 0 | CG77: 22 | CH77: 0 | CI77: 9 | CJ77: 8.8 | CK77: =CJ77+CH77+CF77 -> 8.8 | CL77: NC | CM77: 0 | CN77: NC | CO77: 0 | CP77: NC | CQ77: 0 | CR77: 0 | CZ77: 8 | DA77: 2 | DB77: 9 | DC77: 2 | DD77: 5 | DE77: 6 | DF77: =DE77+DC77+DA77 -> 10 | DN77: 2 | DO77: 18.8
B78: 70 | C78: PATRICIA WATT VIANNA | D78: CATHERINE-C JMEN (TE) | E78: AMA | M78: 8 | N78: 9.9 | O78: NC | P78: 0 | Q78: 9 | R78: 8.8 | S78: =R78+P78+N78 -> 18.7 | BJ78: NC | BK78: 0 | BL78: NC | BM78: 0 | BN78: NC | BO78: 0 | BP78: 0 | BQ78: NC | BR78: 0 | BS78: NC | BT78: 0 | BU78: NC | BV78: 0 | BW78: 0 | CL78: NC | CM78: 0 | CN78: NC | CO78: 0 | CP78: NC | CQ78: 0 | CR78: 0 | DN78: 1 | DO78: 18.7
B79: 71 | C79: JULIA ZAMITH | D79: LA BELLA JMEN (TE) | E79: AMA | F79: 7 | G79: 6 | H79: 7 | I79: 5 | J79: 5 | K79: 7 | L79: =K79+I79+G79 -> 18 | BJ79: NC | BK79: 0 | BL79: NC | BM79: 0 | BN79: NC | BO79: 0 | BP79: 0 | BQ79: NC | BR79: 0 | BS79: NC | BT79: 0 | BU79: NC | BV79: 0 | BW79: 0 | CL79: NC | CM79: 0 | CN79: NC | CO79: 0 | CP79: NC | CQ79: 0 | CR79: 0 | DN79: 1 | DO79: 18
B80: 71 | C80: CARLOS DO REGO ALMEIDA FILHO | D80: HNB CARBOY (IA) | E80: MA | AH80: 7 | AI80: 8 | AJ80: 7 | AK80: 7 | AL80: 6 | AM80: 3 | AN80: =AM80+AK80+AI80 -> 18 | BJ80: NC | BK80: 0 | BL80: NC | BM80: 0 | BN80: NC | BO80: 0 | BP80: 0 | BQ80: NC | BR80: 0 | BS80: NC | BT80: 0 | BU80: NC | BV80: 0 | BW80: 0 | CL80: NC | CM80: 0 | CN80: NC | CO80: 0 | CP80: NC | CQ80: 0 | CR80: 0 | DN80: 1 | DO80: 18
B81: 73 | C81: LEANDRO D AVILLA | D81: CORELAND DOMAR | E81: AMA | BJ81: NC | BK81: 0 | BL81: NC | BM81: 0 | BN81: NC | BO81: 0 | BP81: 0 | BQ81: NC | BR81: 0 | BS81: NC | BT81: 0 | BU81: NC | BV81: 0 | BW81: 0 | CL81: NC | CM81: 0 | CN81: NC | CO81: 0 | CP81: NC | CQ81: 0 | CR81: 0 | DG81: 9 | DH81: 8.8 | DI81: 9 | DJ81: 8.8 | DM81: =DJ81+DH81 -> 17.6 | DN81: 1 | DO81: 17.6
B82: 74 | C82: DIOGO VONTOBEL BREYER | D82: SIR ITALY JOTER | E82: AMA | AO82: ELI | AP82: 0 | AQ82: 2 | AR82: 7 | AS82: 1 | AT82: 10 | AU82: =AT82+AR82+AP82 -> 17 | BJ82: NC | BK82: 0 | BL82: NC | BM82: 0 | BN82: NC | BO82: 0 | BP82: 0 | BQ82: NC | BR82: 0 | BS82: NC | BT82: 0 | BU82: NC | BV82: 0 | BW82: 0 | CL82: NC | CM82: 0 | CN82: NC | CO82: 0 | CP82: NC | CQ82: 0 | CR82: 0 | DN82: 1 | DO82: 17
B83: 74 | C83: JANICE AMBROSIO MERZVINSKAS | D83: SALAMANDRA NEW ONE | E83: AMA | AH83: 4 | AI83: 11 | AJ83: 8 | AK83: 6 | AL83: NC | AM83: 0 | AN83: =AM83+AK83+AI83 -> 17 | BJ83: NC | BK83: 0 | BL83: NC | BM83: 0 | BN83: NC | BO83: 0 | BP83: 0 | BQ83: NC | BR83: 0 | BS83: NC | BT83: 0 | BU83: NC | BV83: 0 | BW83: 0 | CL83: NC | CM83: 0 | CN83: NC | CO83: 0 | CP83: NC | CQ83: 0 | CR83: 0 | DN83: 1 | DO83: 17
B84: 74 | C84: CAMILA DE PAULA E SILVA | D84: YAVITH SH | E84: AMA | AV84: 7 | AW84: 7 | AX84: 3 | AY84: 10 | AZ84: ELI | BA84: 0 | BB84: =BA84+AY84+AW84 -> 17 | BJ84: NC | BK84: 0 | BL84: NC | BM84: 0 | BN84: NC | BO84: 0 | BP84: 0 | BQ84: NC | BR84: 0 | BS84: NC | BT84: 0 | BU84: NC | BV84: 0 | BW84: 0 | CL84: NC | CM84: 0 | CN84: NC | CO84: 0 | CP84: NC | CQ84: 0 | CR84: 0 | DN84: 1 | DO84: 17
B85: 77 | C85: THIAGO MACHADO C. MORENO | D85: SOL-DU-REVEL TR (IA) | E85: AMA | BJ85: NC | BK85: 0 | BL85: NC | BM85: 0 | BN85: NC | BO85: 0 | BP85: 0 | BQ85: NC | BR85: 0 | BS85: NC | BT85: 0 | BU85: NC | BV85: 0 | BW85: 0 | CE85: 3 | CF85: 16.5 | CG85: NC | CH85: 0 | CI85: NC | CJ85: 0 | CK85: =CJ85+CH85+CF85 -> 16.5 | CL85: NC | CM85: 0 | CN85: NC | CO85: 0 | CP85: NC | CQ85: 0 | CR85: 0 | DN85: 1 | DO85: 16.5
B86: 78 | C86: PAULO MARCELO PINENT TIGRE | D86: ZATERDAG COOPER (*) | E86: AMA | AO86: 2 | AP86: 9 | AQ86: 3 | AR86: 5 | AS86: 5 | AT86: 2 | AU86: =AT86+AR86+AP86 -> 16 | BJ86: NC | BK86: 0 | BL86: NC | BM86: 0 | BN86: NC | BO86: 0 | BP86: 0 | BQ86: NC | BR86: 0 | BS86: NC | BT86: 0 | BU86: NC | BV86: 0 | BW86: 0 | CL86: NC | CM86: 0 | CN86: NC | CO86: 0 | CP86: NC | CQ86: 0 | CR86: 0 | DN86: 1 | DO86: 16
B87: 79 | C87: LUCIANA IUNES COMES | D87: CONNERY JMEN (TE) | E87: AMA | F87: 9 | G87: 4 | H87: 9 | I87: 3 | J87: 9 | K87: 3 | L87: =K87+I87+G87 -> 10 | M87: NC | N87: 0 | O87: 13 | P87: 4.4 | Q87: 19 | R87: 0 | S87: =R87+P87+N87 -> 4.4 | BJ87: NC | BK87: 0 | BL87: NC | BM87: 0 | BN87: NC | BO87: 0 | BP87: 0 | BQ87: NC | BR87: 0 | BS87: NC | BT87: 0 | BU87: NC | BV87: 0 | BW87: 0 | CL87: NC | CM87: 0 | CN87: NC | CO87: 0 | CP87: NC | CQ87: 0 | CR87: 0 | DN87: 2 | DO87: 14.4
B88: 80 | C88: PAULA PASTORE | D88: VALENTINA DO REFUGIO | E88: AMA | M88: 9 | N88: 8.8 | O88: 12 | P88: 5.5 | Q88: 17 | R88: 0 | S88: =R88+P88+N88 -> 14.3 | BJ88: NC | BK88: 0 | BL88: NC | BM88: 0 | BN88: NC | BO88: 0 | BP88: 0 | BQ88: NC | BR88: 0 | BS88: NC | BT88: 0 | BU88: NC | BV88: 0 | BW88: 0 | CL88: NC | CM88: 0 | CN88: NC | CO88: 0 | CP88: NC | CQ88: 0 | CR88: 0 | DN88: 1 | DO88: 14.3
B89: 80 | C89: ALEXANDRE DE OLIVEIRA FRANCO | D89: ENIGMATIC JOURNEY POLANA (IA) | E89: MA | AA89: ELI | AB89: 0 | AC89: 30 | AD89: 0 | AE89: 4 | AF89: 14.3 | AG89: =AF89+AD89+AB89 -> 14.3 | BJ89: NC | BK89: 0 | BL89: NC | BM89: 0 | BN89: NC | BO89: 0 | BP89: 0 | BQ89: NC | BR89: 0 | BS89: NC | BT89: 0 | BU89: NC | BV89: 0 | BW89: 0 | CL89: NC | CM89: 0 | CN89: NC | CO89: 0 | CP89: NC | CQ89: 0 | CR89: 0 | DN89: 1 | DO89: 14.3
B90: 80 | C90: GIANCARLO AQUINO | D90: PISTACHE DAS UMBURANAS (IA) | E90: MA | AA90: 16 | AB90: 1.1 | AC90: 15 | AD90: 2.2 | AE90: 7 | AF90: 11 | AG90: =AF90+AD90+AB90 -> 14.3 | BJ90: NC | BK90: 0 | BL90: NC | BM90: 0 | BN90: NC | BO90: 0 | BP90: 0 | BQ90: NC | BR90: 0 | BS90: NC | BT90: 0 | BU90: NC | BV90: 0 | BW90: 0 | CL90: NC | CM90: 0 | CN90: NC | CO90: 0 | CP90: NC | CQ90: 0 | CR90: 0 | DN90: 1 | DO90: 14.3
B91: 80 | C91: ADAUTO MARCONDES FREIRE JUNIOR | D91: CORDINA JMEN (TE) | E91: MA | AA91: NC | AB91: 0 | AC91: 16 | AD91: 1.1 | AE91: 5 | AF91: 13.2 | AG91: =AF91+AD91+AB91 -> 14.3 | BC91: ELI | BD91: 0 | BE91: NC | BF91: 0 | BG91: NC | BH91: 0 | BI91: =BH91+BF91+BD91 -> 0 | BJ91: NC | BK91: 0 | BL91: NC | BM91: 0 | BN91: NC | BO91: 0 | BP91: 0 | BQ91: NC | BR91: 0 | BS91: NC | BT91: 0 | BU91: NC | BV91: 0 | BW91: 0 | CL91: NC | CM91: 0 | CN91: NC | CO91: 0 | CP91: NC | CQ91: 0 | CR91: 0 | DN91: 2 | DO91: 14.3
B92: 80 | C92: MARIA PEREZ COELHO BENTO | D92: MUSTACHE DA IXIA | E92: AMA | AA92: 20 | AB92: 0 | AC92: 20 | AD92: 0 | AE92: 17 | AF92: 0 | AG92: =AF92+AD92+AB92 -> 0 | BC92: 5 | BD92: 13.2 | BE92: 16 | BF92: 1.1 | BG92: NC | BH92: 0 | BI92: =BH92+BF92+BD92 -> 14.3 | BJ92: NC | BK92: 0 | BL92: NC | BM92: 0 | BN92: NC | BO92: 0 | BP92: 0 | BQ92: NC | BR92: 0 | BS92: NC | BT92: 0 | BU92: NC | BV92: 0 | BW92: 0 | CL92: NC | CM92: 0 | CN92: NC | CO92: 0 | CP92: NC | CQ92: 0 | CR92: 0 | DN92: 2 | DO92: 14.3
B93: 85 | C93: VANESSA FREIRE LOPES F. OLIVEIRA | D93: SIR-GULORD LMZ | E93: AMA | F93: 11 | G93: 2 | H93: 10 | I93: 2 | J93: 3 | K93: 10 | L93: =K93+I93+G93 -> 14 | BJ93: NC | BK93: 0 | BL93: NC | BM93: 0 | BN93: NC | BO93: 0 | BP93: 0 | BQ93: NC | BR93: 0 | BS93: NC | BT93: 0 | BU93: NC | BV93: 0 | BW93: 0 | CL93: NC | CM93: 0 | CN93: NC | CO93: 0 | CP93: NC | CQ93: 0 | CR93: 0 | DN93: 1 | DO93: 14
B94: 85 | C94: MARIA ISABEL SCHEER | D94: VANILLA SKY 24 | E94: MA | AH94: 11 | AI94: 4 | AJ94: 6 | AK94: 8 | AL94: 7 | AM94: 2 | AN94: =AM94+AK94+AI94 -> 14 | BJ94: NC | BK94: 0 | BL94: NC | BM94: 0 | BN94: NC | BO94: 0 | BP94: 0 | BQ94: NC | BR94: 0 | BS94: NC | BT94: 0 | BU94: NC | BV94: 0 | BW94: 0 | CL94: NC | CM94: 0 | CN94: NC | CO94: 0 | CP94: NC | CQ94: 0 | CR94: 0 | DN94: 1 | DO94: 14
B95: 87 | C95: ELIZABETH COCHRANE PUCCI | D95: VR GATEADO | E95: MA | AA95: 9 | AB95: 8.8 | AC95: 13 | AD95: 4.4 | AE95: 23 | AF95: 0 | AG95: =AF95+AD95+AB95 -> 13.2 | BJ95: NC | BK95: 0 | BL95: NC | BM95: 0 | BN95: NC | BO95: 0 | BP95: 0 | BQ95: NC | BR95: 0 | BS95: NC | BT95: 0 | BU95: NC | BV95: 0 | BW95: 0 | CL95: NC | CM95: 0 | CN95: NC | CO95: 0 | CP95: NC | CQ95: 0 | CR95: 0 | DN95: 1 | DO95: 13.2
B96: 87 | C96: LAURA JACOMETT FONSECA | D96: BLANCA BEERQQUIE | E96: AMA | BC96: 24 | BD96: 0 | BE96: 13 | BF96: 4.4 | BG96: 9 | BH96: 8.8 | BI96: =BH96+BF96+BD96 -> 13.2 | BJ96: NC | BK96: 0 | BL96: NC | BM96: 0 | BN96: NC | BO96: 0 | BP96: 0 | BQ96: NC | BR96: 0 | BS96: NC | BT96: 0 | BU96: NC | BV96: 0 | BW96: 0 | CL96: NC | CM96: 0 | CN96: NC | CO96: 0 | CP96: NC | CQ96: 0 | CR96: 0 | DN96: 1 | DO96: 13.2
B97: 87 | C97: BRUNA GEO VENTURA | D97: UMORA | E97: AMA | M97: NC | N97: 0 | O97: 18 | P97: 0 | Q97: 5 | R97: 13.2 | S97: =R97+P97+N97 -> 13.2 | BJ97: NC | BK97: 0 | BL97: NC | BM97: 0 | BN97: NC | BO97: 0 | BP97: 0 | BQ97: NC | BR97: 0 | BS97: NC | BT97: 0 | BU97: NC | BV97: 0 | BW97: 0 | CL97: NC | CM97: 0 | CN97: NC | CO97: 0 | CP97: NC | CQ97: 0 | CR97: 0 | DN97: 1 | DO97: 13.2
B98: 87 | C98: RENATO LEME DE OLIVEIRA | D98: QUINARA GJ (TE) | E98: AMA | BJ98: NC | BK98: 0 | BL98: NC | BM98: 0 | BN98: NC | BO98: 0 | BP98: 0 | BQ98: NC | BR98: 0 | BS98: NC | BT98: 0 | BU98: NC | BV98: 0 | BW98: 0 | CE98: 25 | CF98: 0 | CG98: 17 | CH98: 0 | CI98: 16 | CJ98: 1.1 | CK98: =CJ98+CH98+CF98 -> 1.1 | CL98: NC | CM98: 0 | CN98: NC | CO98: 0 | CP98: NC | CQ98: 0 | CR98: 0 | DG98: 6 | DH98: 12.1 | DI98: 19 | DJ98: 0 | DM98: =DJ98+DH98 -> 12.1 | DN98: 2 | DO98: 13.2
B99: 91 | C99: PAULO CESAR A. SALLES | D99: ILH WORLD STAR | E99: AMA | AO99: 4 | AP99: 5 | AQ99: 4 | AR99: 3 | AS99: 3 | AT99: 5 | AU99: =AT99+AR99+AP99 -> 13 | BJ99: NC | BK99: 0 | BL99: NC | BM99: 0 | BN99: NC | BO99: 0 | BP99: 0 | BQ99: NC | BR99: 0 | BS99: NC | BT99: 0 | BU99: NC | BV99: 0 | BW99: 0 | CL99: NC | CM99: 0 | CN99: NC | CO99: 0 | CP99: NC | CQ99: 0 | CR99: 0 | DN99: 1 | DO99: 13
B100: 91 | C100: UBERGUE RIBEIRO JUNIOR | D100: CARTOUCHE JMEN II (TE) | E100: MA | AV100: 9 | AW100: 5 | AX100: 9 | AY100: 3 | AZ100: 6 | BA100: 5 | BB100: =BA100+AY100+AW100 -> 13 | BJ100: NC | BK100: 0 | BL100: NC | BM100: 0 | BN100: NC | BO100: 0 | BP100: 0 | BQ100: NC | BR100: 0 | BS100: NC | BT100: 0 | BU100: NC | BV100: 0 | BW100: 0 | CL100: NC | CM100: 0 | CN100: NC | CO100: 0 | CP100: NC | CQ100: 0 | CR100: 0 | DN100: 1 | DO100: 13
B101: 93 | C101: ANA LUIZA PIRES DE CARVALHO | D101: LFB CARATAGO G (IA) (*) | E101: AMA | BJ101: NC | BK101: 0 | BL101: NC | BM101: 0 | BN101: NC | BO101: 0 | BP101: 0 | BQ101: NC | BR101: 0 | BS101: NC | BT101: 0 | BU101: NC | BV101: 0 | BW101: 0 | BX101: 4 | BY101: 2 | BZ101: 1 | CA101: 9 | CB101: 4 | CC101: 1 | CD101: =CC101+CA101+BY101 -> 12 | CL101: NC | CM101: 0 | CN101: NC | CO101: 0 | CP101: NC | CQ101: 0 | CR101: 0 | DN101: 1 | DO101: 12
B102: 94 | C102: BEATRIZ BIER JOHANNPETER | D102: CENTAURO D´OLYMPO (IA) | E102: AMA | AA102: 8 | AB102: 9.9 | AC102: NC | AD102: 0 | AE102: NC | AF102: 0 | AG102: =AF102+AD102+AB102 -> 9.9 | BJ102: NC | BK102: 0 | BL102: NC | BM102: 0 | BN102: NC | BO102: 0 | BP102: 0 | BQ102: NC | BR102: 0 | BS102: NC | BT102: 0 | BU102: NC | BV102: 0 | BW102: 0 | BX102: NC | BY102: 0 | BZ102: 4 | CA102: 2 | CB102: NC | CC102: 0 | CD102: =CC102+CA102+BY102 -> 2 | CL102: NC | CM102: 0 | CN102: NC | CO102: 0 | CP102: NC | CQ102: 0 | CR102: 0 | DN102: 2 | DO102: 11.9
B103: 95 | C103: KATHARINA AFRANGE TUCH | D103: Z-NESSY | E103: AMA | F103: 3 | G103: 11 | H103: NC | I103: 0 | J103: NC | K103: 0 | L103: =K103+I103+G103 -> 11 | BC103: NC | BD103: 0 | BE103: 28 | BF103: 0 | BG103: NC | BH103: 0 | BI103: =BH103+BF103+BD103 -> 0 | BJ103: NC | BK103: 0 | BL103: NC | BM103: 0 | BN103: NC | BO103: 0 | BP103: 0 | BQ103: NC | BR103: 0 | BS103: NC | BT103: 0 | BU103: NC | BV103: 0 | BW103: 0 | CL103: NC | CM103: 0 | CN103: NC | CO103: 0 | CP103: NC | CQ103: 0 | CR103: 0 | DN103: 2 | DO103: 11
B104: 95 | C104: MARIO KRIGER | D104: DEVOCION JMEN (IA) | E104: AMA | F104: 8 | G104: 5 | H104: 6 | I104: 6 | J104: DES | K104: 0 | L104: =K104+I104+G104 -> 11 | BJ104: NC | BK104: 0 | BL104: NC | BM104: 0 | BN104: NC | BO104: 0 | BP104: 0 | BQ104: NC | BR104: 0 | BS104: NC | BT104: 0 | BU104: NC | BV104: 0 | BW104: 0 | CL104: NC | CM104: 0 | CN104: NC | CO104: 0 | CP104: NC | CQ104: 0 | CR104: 0 | DN104: 1 | DO104: 11
B105: 95 | C105: SHAILA FABI MOREIRA | D105: FELLOW CLIMBER | E105: AMA | AA105: 7 | AB105: 11 | AC105: 25 | AD105: 0 | AE105: ELI | AF105: 0 | AG105: =AF105+AD105+AB105 -> 11 | BJ105: NC | BK105: 0 | BL105: NC | BM105: 0 | BN105: NC | BO105: 0 | BP105: 0 | BQ105: NC | BR105: 0 | BS105: NC | BT105: 0 | BU105: NC | BV105: 0 | BW105: 0 | CL105: NC | CM105: 0 | CN105: NC | CO105: 0 | CP105: NC | CQ105: 0 | CR105: 0 | DN105: =SUBTOTAL(3,L105,S105,Z105,AG105,AN105,AU105,BB105,BI105,CD105,CK105,CY105,DF105,DM105) -> 1 | DO105: =DM105+DF105+CY105+CR105+CK105+CD105+BW105+BP105+BI105+BB105+AU105+AN105+AG105+Z105+S105+L105 -> 11
B106: 95 | C106: MARIA LUIZA CURY | D106: AERO STAR COOPER (IA) | E106: AMA | AA106: 10 | AB106: 7.7 | AC106: 14 | AD106: 3.3 | AE106: NC | AF106: 0 | AG106: =AF106+AD106+AB106 -> 11 | BC106: 21 | BD106: 0 | BE106: 23 | BF106: 0 | BG106: NC | BH106: 0 | BI106: =BH106+BF106+BD106 -> 0 | BJ106: NC | BK106: 0 | BL106: NC | BM106: 0 | BN106: NC | BO106: 0 | BP106: 0 | BQ106: NC | BR106: 0 | BS106: NC | BT106: 0 | BU106: NC | BV106: 0 | BW106: 0 | CL106: NC | CM106: 0 | CN106: NC | CO106: 0 | CP106: NC | CQ106: 0 | CR106: 0 | DN106: 2 | DO106: 11
B107: 95 | C107: MARIA ELISA CONCEICAO GONZAGA | D107: XANADU GMS | E107: AMA | BJ107: NC | BK107: 0 | BL107: NC | BM107: 0 | BN107: NC | BO107: 0 | BP107: 0 | BQ107: NC | BR107: 0 | BS107: NC | BT107: 0 | BU107: NC | BV107: 0 | BW107: 0 | CL107: NC | CM107: 0 | CN107: NC | CO107: 0 | CP107: NC | CQ107: 0 | CR107: 0 | DG107: 16 | DH107: 1.1 | DI107: 8 | DJ107: 9.9 | DM107: =DJ107+DH107 -> 11 | DN107: 1 | DO107: 11
B108: 100 | C108: TIAGO VONTOBEL BREYER | D108: CANTGARDEN JOTER | E108: AMA | AO108: 3 | AP108: 7 | AQ108: NC | AR108: 0 | AS108: 4 | AT108: 3 | AU108: =AT108+AR108+AP108 -> 10 | BJ108: NC | BK108: 0 | BL108: NC | BM108: 0 | BN108: NC | BO108: 0 | BP108: 0 | BQ108: NC | BR108: 0 | BS108: NC | BT108: 0 | BU108: NC | BV108: 0 | BW108: 0 | CL108: NC | CM108: 0 | CN108: NC | CO108: 0 | CP108: NC | CQ108: 0 | CR108: 0 | DN108: 1 | DO108: 10
B109: 100 | C109: PEDRO GRANATO | D109: JCR CHANEL | E109: AMA | BJ109: NC | BK109: 0 | BL109: NC | BM109: 0 | BN109: NC | BO109: 0 | BP109: 0 | BQ109: NC | BR109: 0 | BS109: NC | BT109: 0 | BU109: NC | BV109: 0 | BW109: 0 | BX109: 5 | BY109: 1 | BZ109: 3 | CA109: 4 | CB109: 2 | CC109: 5 | CD109: =CC109+CA109+BY109 -> 10 | CL109: NC | CM109: 0 | CN109: NC | CO109: 0 | CP109: NC | CQ109: 0 | CR109: 0 | DN109: 1 | DO109: 10
B110: 102 | C110: ANA HELENA KIRSHNER MOFARREJ | D110: CASSINGER JMEN II (TE) | E110: AMA | AA110: 21 | AB110: 0 | AC110: NC | AD110: 0 | AE110: 19 | AF110: 0 | AG110: =AF110+AD110+AB110 -> 0 | BC110: 8 | BD110: 9.9 | BE110: 29 | BF110: 0 | BG110: NC | BH110: 0 | BI110: =BH110+BF110+BD110 -> 9.9 | BJ110: NC | BK110: 0 | BL110: NC | BM110: 0 | BN110: NC | BO110: 0 | BP110: 0 | BQ110: NC | BR110: 0 | BS110: NC | BT110: 0 | BU110: NC | BV110: 0 | BW110: 0 | CL110: NC | CM110: 0 | CN110: NC | CO110: 0 | CP110: NC | CQ110: 0 | CR110: 0 | DN110: 2 | DO110: 9.9
B111: 102 | C111: GIANCARLO AQUINO | D111: SVR FARANDULA | E111: MA | AA111: 18 | AB111: 0 | AC111: 24 | AD111: 0 | AE111: 8 | AF111: 9.9 | AG111: =AF111+AD111+AB111 -> 9.9 | BJ111: NC | BK111: 0 | BL111: NC | BM111: 0 | BN111: NC | BO111: 0 | BP111: 0 | BQ111: NC | BR111: 0 | BS111: NC | BT111: 0 | BU111: NC | BV111: 0 | BW111: 0 | CL111: NC | CM111: 0 | CN111: NC | CO111: 0 | CP111: NC | CQ111: 0 | CR111: 0 | DN111: 1 | DO111: 9.9
B112: 102 | C112: EMYR DINIZ COSTA JUNIOR | D112: DOBLE TROBLE BA (IA) | E112: MA | BJ112: NC | BK112: 0 | BL112: NC | BM112: 0 | BN112: NC | BO112: 0 | BP112: 0 | BQ112: NC | BR112: 0 | BS112: NC | BT112: 0 | BU112: NC | BV112: 0 | BW112: 0 | CL112: NC | CM112: 0 | CN112: NC | CO112: 0 | CP112: NC | CQ112: 0 | CR112: 0 | DG112: 8 | DH112: 9.9 | DI112: ELI | DJ112: 0 | DM112: =DJ112+DH112 -> 9.9 | DN112: 1 | DO112: 9.9
B113: 105 | C113: TATIANA SANCHES DI CELIO | D113: LAMPARD JMEN (TE) | E113: MA | BC113: 11 | BD113: 6.6 | BE113: 21 | BF113: 0 | BG113: 14 | BH113: 3.3 | BI113: =BH113+BF113+BD113 -> 9.9 | BJ113: NC | BK113: 0 | BL113: NC | BM113: 0 | BN113: NC | BO113: 0 | BP113: 0 | BQ113: NC | BR113: 0 | BS113: NC | BT113: 0 | BU113: NC | BV113: 0 | BW113: 0 | CL113: NC | CM113: 0 | CN113: NC | CO113: 0 | CP113: NC | CQ113: 0 | CR113: 0 | DN113: 1 | DO113: 9.9
B114: 106 | C114: TEN PAULO SERGIO | D114: TEXAS DO RINCAO (TE) | E114: AMA | AV114: 10 | AW114: 4 | AX114: 7 | AY114: 5 | AZ114: NC | BA114: 0 | BB114: =BA114+AY114+AW114 -> 9 | BJ114: NC | BK114: 0 | BL114: NC | BM114: 0 | BN114: NC | BO114: 0 | BP114: 0 | BQ114: NC | BR114: 0 | BS114: NC | BT114: 0 | BU114: NC | BV114: 0 | BW114: 0 | CL114: NC | CM114: 0 | CN114: NC | CO114: 0 | CP114: NC | CQ114: 0 | CR114: 0 | DN114: 1 | DO114: 9
B115: 107 | C115: LAURA JACOMETT FONSECA | D115: GR DONATELLA (IA) | E115: AMA | BC115: 9 | BD115: 8.8 | BE115: 25 | BF115: 0 | BG115: 23 | BH115: 0 | BI115: =BH115+BF115+BD115 -> 8.8 | BJ115: NC | BK115: 0 | BL115: NC | BM115: 0 | BN115: NC | BO115: 0 | BP115: 0 | BQ115: NC | BR115: 0 | BS115: NC | BT115: 0 | BU115: NC | BV115: 0 | BW115: 0 | CL115: NC | CM115: 0 | CN115: NC | CO115: 0 | CP115: NC | CQ115: 0 | CR115: 0 | DN115: 1 | DO115: 8.8
B116: 108 | C116: DAVI ALEXANDRE | D116: RIFLAI RI | E116: MA | AV116: 11 | AW116: 3 | AX116: 11 | AY116: 1 | AZ116: 7 | BA116: 4 | BB116: =BA116+AY116+AW116 -> 8 | BJ116: NC | BK116: 0 | BL116: NC | BM116: 0 | BN116: NC | BO116: 0 | BP116: 0 | BQ116: NC | BR116: 0 | BS116: NC | BT116: 0 | BU116: NC | BV116: 0 | BW116: 0 | CL116: NC | CM116: 0 | CN116: NC | CO116: 0 | CP116: NC | CQ116: 0 | CR116: 0 | DN116: 1 | DO116: 8
B117: 109 | C117: CAROLINA GRESPAN | D117: ULRIKE VAN HET HELLEHOF | E117: AMA | BC117: 20 | BD117: 0 | BE117: 14 | BF117: 3.3 | BG117: 13 | BH117: 4.4 | BI117: =BH117+BF117+BD117 -> 7.7 | BJ117: NC | BK117: 0 | BL117: NC | BM117: 0 | BN117: NC | BO117: 0 | BP117: 0 | BQ117: NC | BR117: 0 | BS117: NC | BT117: 0 | BU117: NC | BV117: 0 | BW117: 0 | CL117: NC | CM117: 0 | CN117: NC | CO117: 0 | CP117: NC | CQ117: 0 | CR117: 0 | DN117: 1 | DO117: 7.7
B118: 109 | C118: RAFAEL CHRISTIANINI | D118: SONHO REAL HCR | E118: AMA | M118: NC | N118: 0 | O118: 10 | P118: 7.7 | Q118: NC | R118: 0 | S118: =R118+P118+N118 -> 7.7 | BC118: NC | BD118: 0 | BE118: 27 | BF118: 0 | BG118: NC | BH118: 0 | BI118: =BH118+BF118+BD118 -> 0 | BJ118: NC | BK118: 0 | BL118: NC | BM118: 0 | BN118: NC | BO118: 0 | BP118: 0 | BQ118: NC | BR118: 0 | BS118: NC | BT118: 0 | BU118: NC | BV118: 0 | BW118: 0 | CL118: NC | CM118: 0 | CN118: NC | CO118: 0 | CP118: NC | CQ118: 0 | CR118: 0 | DN118: 2 | DO118: 7.7
B119: 109 | C119: MARIA CAROLINA ALVARES CORREA | D119: ZAMORA COOPER (*) | E119: MA | AA119: 24 | AB119: 0 | AC119: ELI | AD119: 0 | AE119: 10 | AF119: 7.7 | AG119: =AF119+AD119+AB119 -> 7.7 | BJ119: NC | BK119: 0 | BL119: NC | BM119: 0 | BN119: NC | BO119: 0 | BP119: 0 | BQ119: NC | BR119: 0 | BS119: NC | BT119: 0 | BU119: NC | BV119: 0 | BW119: 0 | CL119: NC | CM119: 0 | CN119: NC | CO119: 0 | CP119: NC | CQ119: 0 | CR119: 0 | DN119: 1 | DO119: 7.7
B120: 109 | C120: FABIANA RAMOS DE STEFANO | D120: TURMALINA DO RIOACIMA (IA) | E120: AMA | BJ120: NC | BK120: 0 | BL120: NC | BM120: 0 | BN120: NC | BO120: 0 | BP120: 0 | BQ120: NC | BR120: 0 | BS120: NC | BT120: 0 | BU120: NC | BV120: 0 | BW120: 0 | CE120: NC | CF120: 0 | CG120: 10 | CH120: 7.7 | CI120: NC | CJ120: 0 | CK120: =CJ120+CH120+CF120 -> 7.7 | CL120: NC | CM120: 0 | CN120: NC | CO120: 0 | CP120: NC | CQ120: 0 | CR120: 0 | DN120: 1 | DO120: 7.7
B121: 109 | C121: FABIANA RAMOS DE STEFANO | D121: FERRAGAMO JOSILMAR (IA) | E121: AMA | BJ121: NC | BK121: 0 | BL121: NC | BM121: 0 | BN121: NC | BO121: 0 | BP121: 0 | BQ121: NC | BR121: 0 | BS121: NC | BT121: 0 | BU121: NC | BV121: 0 | BW121: 0 | CE121: NC | CF121: 0 | CG121: 10 | CH121: 7.7 | CI121: NC | CJ121: 0 | CK121: =CJ121+CH121+CF121 -> 7.7 | CL121: NC | CM121: 0 | CN121: NC | CO121: 0 | CP121: NC | CQ121: 0 | CR121: 0 | DN121: 1 | DO121: 7.7
B122: 114 | C122: MATHEUS BECKER ANDRADE | D122: SINDO JOTER III | E122: AMA | AO122: 5 | AP122: 4 | AQ122: 5 | AR122: 2 | AS122: 6 | AT122: 1 | AU122: =AT122+AR122+AP122 -> 7 | BJ122: NC | BK122: 0 | BL122: NC | BM122: 0 | BN122: NC | BO122: 0 | BP122: 0 | BQ122: NC | BR122: 0 | BS122: NC | BT122: 0 | BU122: NC | BV122: 0 | BW122: 0 | CL122: NC | CM122: 0 | CN122: NC | CO122: 0 | CP122: NC | CQ122: 0 | CR122: 0 | DN122: 1 | DO122: 7
B123: 114 | C123: JULIANE BEDANI | D123: SL INTACTUS | E123: AMA | BJ123: NC | BK123: 0 | BL123: NC | BM123: 0 | BN123: NC | BO123: 0 | BP123: 0 | BQ123: NC | BR123: 0 | BS123: NC | BT123: 0 | BU123: NC | BV123: 0 | BW123: 0 | CL123: NC | CM123: 0 | CN123: NC | CO123: 0 | CP123: NC | CQ123: 0 | CR123: 0 | CS123: 10 | CT123: 3 | CU123: 11 | CV123: 2 | CW123: 11 | CX123: 2 | CY123: =CX123+CV123+CT123 -> 7 | DN123: 1 | DO123: 7
B124: 116 | C124: HELENA FARES CAMPOS NEIVA | D124: ITALIA M (IA) | E124: MA | AA124: 25 | AB124: 0 | AC124: NC | AD124: 0 | AE124: 11 | AF124: 6.6 | AG124: =AF124+AD124+AB124 -> 6.6 | BJ124: NC | BK124: 0 | BL124: NC | BM124: 0 | BN124: NC | BO124: 0 | BP124: 0 | BQ124: NC | BR124: 0 | BS124: NC | BT124: 0 | BU124: NC | BV124: 0 | BW124: 0 | CL124: NC | CM124: 0 | CN124: NC | CO124: 0 | CP124: NC | CQ124: 0 | CR124: 0 | DN124: 1 | DO124: 6.6
B125: 117 | C125: CAMILA HORO GIL | D125: CS CAZUZA (IA) | E125: AMA | AH125: 13 | AI125: 2 | AJ125: 11 | AK125: 3 | AL125: NC | AM125: 0 | AN125: =AM125+AK125+AI125 -> 5 | BC125: 17 | BD125: 0 | BE125: 24 | BF125: 0 | BG125: 16 | BH125: 1.1 | BI125: =BH125+BF125+BD125 -> 1.1 | BJ125: NC | BK125: 0 | BL125: NC | BM125: 0 | BN125: NC | BO125: 0 | BP125: 0 | BQ125: NC | BR125: 0 | BS125: NC | BT125: 0 | BU125: NC | BV125: 0 | BW125: 0 | CL125: NC | CM125: 0 | CN125: NC | CO125: 0 | CP125: NC | CQ125: 0 | CR125: 0 | DN125: 2 | DO125: 6.1
B126: 118 | C126: STEFANIA ELIDE VOSGERAU BONETTI | D126: BRUNA | E126: AMA | AH126: 9 | AI126: 6 | AJ126: NC | AK126: 0 | AL126: NC | AM126: 0 | AN126: =AM126+AK126+AI126 -> 6 | BJ126: NC | BK126: 0 | BL126: NC | BM126: 0 | BN126: NC | BO126: 0 | BP126: 0 | BQ126: NC | BR126: 0 | BS126: NC | BT126: 0 | BU126: NC | BV126: 0 | BW126: 0 | CL126: NC | CM126: 0 | CN126: NC | CO126: 0 | CP126: NC | CQ126: 0 | CR126: 0 | DN126: 1 | DO126: 6
B127: 118 | C127: FABIANA TURUGUET VALLIAS | D127: CALMANO JMEN III (TE) | E127: AMA | BJ127: NC | BK127: 0 | BL127: NC | BM127: 0 | BN127: NC | BO127: 0 | BP127: 0 | BQ127: NC | BR127: 0 | BS127: NC | BT127: 0 | BU127: NC | BV127: 0 | BW127: 0 | CL127: NC | CM127: 0 | CN127: NC | CO127: 0 | CP127: NC | CQ127: 0 | CR127: 0 | CS127: 12 | CT127: 1 | CU127: 9 | CV127: 4 | CW127: 12 | CX127: 1 | CY127: =CX127+CV127+CT127 -> 6 | DN127: 1 | DO127: 6
B128: 120 | C128: MARIA SILVIA MOTTA MAHFUZ | D128: CASSILANA JMEN IV (TE) | E128: MA | BC128: 19 | BD128: 0 | BE128: 12 | BF128: 5.5 | BG128: NC | BH128: 0 | BI128: =BH128+BF128+BD128 -> 5.5 | BJ128: NC | BK128: 0 | BL128: NC | BM128: 0 | BN128: NC | BO128: 0 | BP128: 0 | BQ128: NC | BR128: 0 | BS128: NC | BT128: 0 | BU128: NC | BV128: 0 | BW128: 0 | CL128: NC | CM128: 0 | CN128: NC | CO128: 0 | CP128: NC | CQ128: 0 | CR128: 0 | DN128: 1 | DO128: 5.5
B129: 120 | C129: JOSE RICARDO SANT'ANNA | D129: JUSTIN PULLMAN | E129: MA | BJ129: NC | BK129: 0 | BL129: NC | BM129: 0 | BN129: NC | BO129: 0 | BP129: 0 | BQ129: NC | BR129: 0 | BS129: NC | BT129: 0 | BU129: NC | BV129: 0 | BW129: 0 | CE129: 12 | CF129: 5.5 | CG129: 20 | CH129: 0 | CI129: NC | CJ129: 0 | CK129: =CJ129+CH129+CF129 -> 5.5 | CL129: NC | CM129: 0 | CN129: NC | CO129: 0 | CP129: NC | CQ129: 0 | CR129: 0 | DN129: 1 | DO129: 5.5
B130: 120 | C130: LUIS RICARDO MACAES COUTINHO | D130: TRACTUS XANGO (IA) | E130: AMA | BJ130: NC | BK130: 0 | BL130: NC | BM130: 0 | BN130: NC | BO130: 0 | BP130: 0 | BQ130: NC | BR130: 0 | BS130: NC | BT130: 0 | BU130: NC | BV130: 0 | BW130: 0 | CE130: 20 | CF130: 0 | CG130: 18 | CH130: 0 | CI130: 12 | CJ130: 5.5 | CK130: =CJ130+CH130+CF130 -> 5.5 | CL130: NC | CM130: 0 | CN130: NC | CO130: 0 | CP130: NC | CQ130: 0 | CR130: 0 | DN130: 1 | DO130: 5.5
B131: 123 | C131: LISANA PALUDO MONDIN | D131: FM DIOR | E131: MA | AA131: 23 | AB131: 0 | AC131: 22 | AD131: 0 | AE131: DES | AF131: 0 | AG131: =AF131+AD131+AB131 -> 0 | BJ131: NC | BK131: 0 | BL131: NC | BM131: 0 | BN131: NC | BO131: 0 | BP131: 0 | BQ131: NC | BR131: 0 | BS131: NC | BT131: 0 | BU131: NC | BV131: 0 | BW131: 0 | CE131: 16 | CF131: 1.1 | CG131: NC | CH131: 0 | CI131: NC | CJ131: 0 | CK131: =CJ131+CH131+CF131 -> 1.1 | CL131: NC | CM131: 0 | CN131: NC | CO131: 0 | CP131: NC | CQ131: 0 | CR131: 0 | DG131: 15 | DH131: 2.2 | DI131: 16 | DJ131: 1.1 | DM131: =DJ131+DH131 -> 3.3 | DN131: 3 | DO131: 4.4
B132: 124 | C132: TASSIUS HALABI | D132: NEW-YORK NEW-YORK 2S | E132: AMA | BJ132: NC | BK132: 0 | BL132: NC | BM132: 0 | BN132: NC | BO132: 0 | BP132: 0 | BQ132: NC | BR132: 0 | BS132: NC | BT132: 0 | BU132: NC | BV132: 0 | BW132: 0 | BX132: 3 | BY132: 4 | BZ132: NC | CA132: 0 | CB132: NC | CC132: 0 | CD132: =CC132+CA132+BY132 -> 4 | CL132: NC | CM132: 0 | CN132: NC | CO132: 0 | CP132: NC | CQ132: 0 | CR132: 0 | DN132: 1 | DO132: 4
B133: 125 | C133: MARIO KRIGER | D133: Z-NESSY | E133: AMA | BJ133: NC | BK133: 0 | BL133: NC | BM133: 0 | BN133: NC | BO133: 0 | BP133: 0 | BQ133: NC | BR133: 0 | BS133: NC | BT133: 0 | BU133: NC | BV133: 0 | BW133: 0 | CE133: 14 | CF133: 3.3 | CG133: NC | CH133: 0 | CI133: NC | CJ133: 0 | CK133: =CJ133+CH133+CF133 -> 3.3 | CL133: NC | CM133: 0 | CN133: NC | CO133: 0 | CP133: NC | CQ133: 0 | CR133: 0 | DN133: 1 | DO133: 3.3
B134: 125 | C134: VANESSA FREIRE LOPES F. OLIVEIRA | D134: QUIOTO TOK (IA) | E134: AMA | BJ134: NC | BK134: 0 | BL134: NC | BM134: 0 | BN134: NC | BO134: 0 | BP134: 0 | BQ134: NC | BR134: 0 | BS134: NC | BT134: 0 | BU134: NC | BV134: 0 | BW134: 0 | CL134: NC | CM134: 0 | CN134: NC | CO134: 0 | CP134: NC | CQ134: 0 | CR134: 0 | DG134: 14 | DH134: 3.3 | DI134: 20 | DJ134: 0 | DM134: =DJ134+DH134 -> 3.3 | DN134: 1 | DO134: 3.3
B135: 127 | C135: BRUNA GEO VENTURA | D135: COHIBA BUENA VISTA | E135: AMA | M135: 19 | N135: 0 | O135: 15 | P135: 2.2 | Q135: 18 | R135: 0 | S135: =R135+P135+N135 -> 2.2 | BJ135: NC | BK135: 0 | BL135: NC | BM135: 0 | BN135: NC | BO135: 0 | BP135: 0 | BQ135: NC | BR135: 0 | BS135: NC | BT135: 0 | BU135: NC | BV135: 0 | BW135: 0 | CL135: NC | CM135: 0 | CN135: NC | CO135: 0 | CP135: NC | CQ135: 0 | CR135: 0 | DN135: 1 | DO135: 2.2
B136: 127 | C136: EURIPEDES CONSTANTINO M. FILHO | D136: CASSIMIRO E JMEN | E136: MA | BJ136: NC | BK136: 0 | BL136: NC | BM136: 0 | BN136: NC | BO136: 0 | BP136: 0 | BQ136: NC | BR136: 0 | BS136: NC | BT136: 0 | BU136: NC | BV136: 0 | BW136: 0 | CE136: 26 | CF136: 0 | CG136: 19 | CH136: 0 | CI136: 15 | CJ136: 2.2 | CK136: =CJ136+CH136+CF136 -> 2.2 | CL136: NC | CM136: 0 | CN136: NC | CO136: 0 | CP136: NC | CQ136: 0 | CR136: 0 | DN136: 1 | DO136: 2.2
B137: 127 | C137: BRUNO COLETO | D137: BETHOVEN JMEN II (IA) | E137: AMA | BJ137: NC | BK137: 0 | BL137: NC | BM137: 0 | BN137: NC | BO137: 0 | BP137: 0 | BQ137: NC | BR137: 0 | BS137: NC | BT137: 0 | BU137: NC | BV137: 0 | BW137: 0 | CL137: NC | CM137: 0 | CN137: NC | CO137: 0 | CP137: NC | CQ137: 0 | CR137: 0 | DG137: 17 | DH137: 0 | DI137: 15 | DJ137: 2.2 | DM137: =DJ137+DH137 -> 2.2 | DN137: =SUBTOTAL(3,L137,S137,Z137,AG137,AN137,AU137,BB137,BI137,CD137,CK137,CY137,DF137,DM137) -> 1 | DO137: =DM137+DF137+CY137+CR137+CK137+CD137+BW137+BP137+BI137+BB137+AU137+AN137+AG137+Z137+S137+L137 -> 2.2
B138: - | C138: LUANA BERNARDES GERMANO | D138: MISS-BLUE DO LIBERTE (IA) | E138: AMA | BJ138: NC | BK138: 0 | BL138: NC | BM138: 0 | BN138: NC | BO138: 0 | BP138: 0 | BQ138: NC | BR138: 0 | BS138: NC | BT138: 0 | BU138: NC | BV138: 0 | BW138: 0 | CL138: NC | CM138: 0 | CN138: NC | CO138: 0 | CP138: NC | CQ138: 0 | CR138: 0 | DN138: 0 | DO138: 0
B139: - | C139: MARCOS TADEU MACHADO JUNIOR | D139: TERLANO DO RIOACIMA (IA) | E139: AMA | BC139: NC | BD139: 0 | BE139: NC | BF139: 0 | BG139: 18 | BH139: 0 | BI139: =BH139+BF139+BD139 -> 0 | BJ139: NC | BK139: 0 | BL139: NC | BM139: 0 | BN139: NC | BO139: 0 | BP139: 0 | BQ139: NC | BR139: 0 | BS139: NC | BT139: 0 | BU139: NC | BV139: 0 | BW139: 0 | CL139: NC | CM139: 0 | CN139: NC | CO139: 0 | CP139: NC | CQ139: 0 | CR139: 0 | DN139: 1 | DO139: 0
B140: - | C140: FRANCISCO EDUARDO DA C. CARVALHO | D140: LA VITA JW (IA) | E140: AMA | BJ140: NC | BK140: 0 | BL140: NC | BM140: 0 | BN140: NC | BO140: 0 | BP140: 0 | BQ140: NC | BR140: 0 | BS140: NC | BT140: 0 | BU140: NC | BV140: 0 | BW140: 0 | CL140: NC | CM140: 0 | CN140: NC | CO140: 0 | CP140: NC | CQ140: 0 | CR140: 0 | DN140: 0 | DO140: 0
B141: - | C141: BEATRIZ BIER JOHANNPETER | D141: MURPHY TOK (IA) | E141: AMA | BJ141: NC | BK141: 0 | BL141: NC | BM141: 0 | BN141: NC | BO141: 0 | BP141: 0 | BQ141: NC | BR141: 0 | BS141: NC | BT141: 0 | BU141: NC | BV141: 0 | BW141: 0 | CL141: NC | CM141: 0 | CN141: NC | CO141: 0 | CP141: NC | CQ141: 0 | CR141: 0 | DN141: 0 | DO141: 0
B142: - | C142: MILTON JULIAO MARCONDES | D142: CHANKAR D JMEN III (TE) | E142: MA | BJ142: NC | BK142: 0 | BL142: NC | BM142: 0 | BN142: NC | BO142: 0 | BP142: 0 | BQ142: NC | BR142: 0 | BS142: NC | BT142: 0 | BU142: NC | BV142: 0 | BW142: 0 | CL142: NC | CM142: 0 | CN142: NC | CO142: 0 | CP142: NC | CQ142: 0 | CR142: 0 | DN142: 0 | DO142: 0
B143: - | C143: MILTON JULIAO MARCONDES | D143: LANESSA JMEN II (TE) | E143: MA | BJ143: NC | BK143: 0 | BL143: NC | BM143: 0 | BN143: NC | BO143: 0 | BP143: 0 | BQ143: NC | BR143: 0 | BS143: NC | BT143: 0 | BU143: NC | BV143: 0 | BW143: 0 | CL143: NC | CM143: 0 | CN143: NC | CO143: 0 | CP143: NC | CQ143: 0 | CR143: 0 | DN143: 0 | DO143: 0
B144: - | C144: PAULO MARLOW DA SILVA ANDRADE | D144: FEDEX M | E144: AMA | BJ144: NC | BK144: 0 | BL144: NC | BM144: 0 | BN144: NC | BO144: 0 | BP144: 0 | BQ144: NC | BR144: 0 | BS144: NC | BT144: 0 | BU144: NC | BV144: 0 | BW144: 0 | CL144: NC | CM144: 0 | CN144: NC | CO144: 0 | CP144: NC | CQ144: 0 | CR144: 0 | DN144: 0 | DO144: 0
B145: - | C145: ISIS SABEL WALMLING | D145: HARMONY CLIMBER (TE) | E145: AMA | BJ145: NC | BK145: 0 | BL145: NC | BM145: 0 | BN145: NC | BO145: 0 | BP145: 0 | BQ145: NC | BR145: 0 | BS145: NC | BT145: 0 | BU145: NC | BV145: 0 | BW145: 0 | CL145: NC | CM145: 0 | CN145: NC | CO145: 0 | CP145: NC | CQ145: 0 | CR145: 0 | DN145: 0 | DO145: 0
B146: - | C146: CAIO SCANTAMBURLO COSTA | D146: KENTUCKY M (IA) | E146: MA | BJ146: NC | BK146: 0 | BL146: NC | BM146: 0 | BN146: NC | BO146: 0 | BP146: 0 | BQ146: NC | BR146: 0 | BS146: NC | BT146: 0 | BU146: NC | BV146: 0 | BW146: 0 | CL146: NC | CM146: 0 | CN146: NC | CO146: 0 | CP146: NC | CQ146: 0 | CR146: 0 | DN146: 0 | DO146: 0
B147: - | C147: SARAH DINA ARROYO AMORIN | D147: GALLARDO TB (IA) | E147: AMA | BJ147: NC | BK147: 0 | BL147: NC | BM147: 0 | BN147: NC | BO147: 0 | BP147: 0 | BQ147: NC | BR147: 0 | BS147: NC | BT147: 0 | BU147: NC | BV147: 0 | BW147: 0 | CL147: NC | CM147: 0 | CN147: NC | CO147: 0 | CP147: NC | CQ147: 0 | CR147: 0 | DN147: 0 | DO147: 0
B148: - | C148: MARGHERITA BRAZZALE | D148: LOCA R (IA) | E148: AMA | BJ148: NC | BK148: 0 | BL148: NC | BM148: 0 | BN148: NC | BO148: 0 | BP148: 0 | BQ148: NC | BR148: 0 | BS148: NC | BT148: 0 | BU148: NC | BV148: 0 | BW148: 0 | CL148: NC | CM148: 0 | CN148: NC | CO148: 0 | CP148: NC | CQ148: 0 | CR148: 0 | DN148: 0 | DO148: 0
B149: - | C149: TATIANA CAPRA DE CASTRO | D149: ZYVANTA VTH | E149: AMA | BJ149: NC | BK149: 0 | BL149: NC | BM149: 0 | BN149: NC | BO149: 0 | BP149: 0 | BQ149: NC | BR149: 0 | BS149: NC | BT149: 0 | BU149: NC | BV149: 0 | BW149: 0 | CL149: NC | CM149: 0 | CN149: NC | CO149: 0 | CP149: NC | CQ149: 0 | CR149: 0 | DN149: 0 | DO149: 0
B150: - | C150: MARIANA MORAES DE BARROS | D150: CLAPTON BUENA VISTA | E150: AMA | M150: 18 | N150: 0 | O150: NC | P150: 0 | Q150: NC | R150: 0 | S150: =R150+P150+N150 -> 0 | BJ150: NC | BK150: 0 | BL150: NC | BM150: 0 | BN150: NC | BO150: 0 | BP150: 0 | BQ150: NC | BR150: 0 | BS150: NC | BT150: 0 | BU150: NC | BV150: 0 | BW150: 0 | CL150: NC | CM150: 0 | CN150: NC | CO150: 0 | CP150: NC | CQ150: 0 | CR150: 0 | DN150: 1 | DO150: 0
B151: - | C151: WANDERSON ALVES PEREIRA | D151: ZIROCCO BLANCO 3K (IA) | E151: AMA | M151: ELI | N151: 0 | O151: 21 | P151: 0 | Q151: 20 | R151: 0 | S151: =R151+P151+N151 -> 0 | BJ151: NC | BK151: 0 | BL151: NC | BM151: 0 | BN151: NC | BO151: 0 | BP151: 0 | BQ151: NC | BR151: 0 | BS151: NC | BT151: 0 | BU151: NC | BV151: 0 | BW151: 0 | CL151: NC | CM151: 0 | CN151: NC | CO151: 0 | CP151: NC | CQ151: 0 | CR151: 0 | DN151: 1 | DO151: 0
B152: - | C152: CAMILA GIBIN MENDES | D152: OLINDA CVT | E152: AMA | M152: ELI | N152: 0 | O152: NC | P152: 0 | Q152: NC | R152: 0 | S152: =R152+P152+N152 -> 0 | BJ152: NC | BK152: 0 | BL152: NC | BM152: 0 | BN152: NC | BO152: 0 | BP152: 0 | BQ152: NC | BR152: 0 | BS152: NC | BT152: 0 | BU152: NC | BV152: 0 | BW152: 0 | CL152: NC | CM152: 0 | CN152: NC | CO152: 0 | CP152: NC | CQ152: 0 | CR152: 0 | DN152: 1 | DO152: 0
B153: - | C153: MARCIA HERNANDES | D153: VEREDA CAMPECHE | E153: MA | M153: ELI | N153: 0 | O153: 22 | P153: 0 | Q153: NC | R153: 0 | S153: =R153+P153+N153 -> 0 | AA153: ELI | AB153: 0 | AC153: 21 | AD153: 0 | AE153: ELI | AF153: 0 | AG153: =AF153+AD153+AB153 -> 0 | BJ153: NC | BK153: 0 | BL153: NC | BM153: 0 | BN153: NC | BO153: 0 | BP153: 0 | BQ153: NC | BR153: 0 | BS153: NC | BT153: 0 | BU153: NC | BV153: 0 | BW153: 0 | CL153: NC | CM153: 0 | CN153: NC | CO153: 0 | CP153: NC | CQ153: 0 | CR153: 0 | DN153: 2 | DO153: 0
B154: - | C154: JOSE G. VECCHIONE JUNIOR | D154: ABSAM TB (IA) | E154: AMA | T154: 1 | U154: 0 | V154: 1 | W154: 0 | X154: 1 | Y154: 0 | Z154: =Y154+W154+U154 -> 0 | BJ154: NC | BK154: 0 | BL154: NC | BM154: 0 | BN154: NC | BO154: 0 | BP154: 0 | BQ154: NC | BR154: 0 | BS154: NC | BT154: 0 | BU154: NC | BV154: 0 | BW154: 0 | CL154: NC | CM154: 0 | CN154: NC | CO154: 0 | CP154: NC | CQ154: 0 | CR154: 0 | DN154: 1 | DO154: 0
B155: - | C155: GERALDO BANDEIRA DE MELO FILHO | D155: CASSILANO JMEN II (TE) | E155: AMA | T155: 1 | U155: 0 | V155: NC | W155: 0 | X155: NC | Y155: 0 | Z155: =Y155+W155+U155 -> 0 | BJ155: NC | BK155: 0 | BL155: NC | BM155: 0 | BN155: NC | BO155: 0 | BP155: 0 | BQ155: NC | BR155: 0 | BS155: NC | BT155: 0 | BU155: NC | BV155: 0 | BW155: 0 | CL155: NC | CM155: 0 | CN155: NC | CO155: 0 | CP155: NC | CQ155: 0 | CR155: 0 | DN155: 1 | DO155: 0
B156: - | C156: MARIA ELISA CONCEICAO GONZAGA | D156: CAMPARI BLUE VAN HET MOLENHOF | E156: AMA | AA156: ELI | AB156: 0 | AC156: 17 | AD156: 0 | AE156: 25 | AF156: 0 | AG156: =AF156+AD156+AB156 -> 0 | BJ156: NC | BK156: 0 | BL156: NC | BM156: 0 | BN156: NC | BO156: 0 | BP156: 0 | BQ156: NC | BR156: 0 | BS156: NC | BT156: 0 | BU156: NC | BV156: 0 | BW156: 0 | CL156: NC | CM156: 0 | CN156: NC | CO156: 0 | CP156: NC | CQ156: 0 | CR156: 0 | DN156: 1 | DO156: 0
B157: - | C157: ANA VICTORIA DE A. PALHARES | D157: SWEET QUIDAM DE LIGNY | E157: AMA | AA157: ELI | AB157: 0 | AC157: 27 | AD157: 0 | AE157: 22 | AF157: 0 | AG157: =AF157+AD157+AB157 -> 0 | BJ157: NC | BK157: 0 | BL157: NC | BM157: 0 | BN157: NC | BO157: 0 | BP157: 0 | BQ157: NC | BR157: 0 | BS157: NC | BT157: 0 | BU157: NC | BV157: 0 | BW157: 0 | CL157: NC | CM157: 0 | CN157: NC | CO157: 0 | CP157: NC | CQ157: 0 | CR157: 0 | DN157: 1 | DO157: 0
B158: - | C158: IAN MASINI MONTEIRO DE ANDRADE | D158: NUMERO-1 CW (TE) | E158: MA | AA158: NC | AB158: 0 | AC158: 29 | AD158: 0 | AE158: 26 | AF158: 0 | AG158: =AF158+AD158+AB158 -> 0 | BJ158: NC | BK158: 0 | BL158: NC | BM158: 0 | BN158: NC | BO158: 0 | BP158: 0 | BQ158: NC | BR158: 0 | BS158: NC | BT158: 0 | BU158: NC | BV158: 0 | BW158: 0 | CL158: NC | CM158: 0 | CN158: NC | CO158: 0 | CP158: NC | CQ158: 0 | CR158: 0 | DN158: 1 | DO158: 0
B159: - | C159: CEZAR SPERINDE | D159: KNIGHT PULLMAN (IA) | E159: MA | AO159: ELI | AP159: 0 | AQ159: NC | AR159: 0 | AS159: NC | AT159: 0 | AU159: =AT159+AR159+AP159 -> 0 | BJ159: NC | BK159: 0 | BL159: NC | BM159: 0 | BN159: NC | BO159: 0 | BP159: 0 | BQ159: NC | BR159: 0 | BS159: NC | BT159: 0 | BU159: NC | BV159: 0 | BW159: 0 | CL159: NC | CM159: 0 | CN159: NC | CO159: 0 | CP159: NC | CQ159: 0 | CR159: 0 | DN159: 1 | DO159: 0
B160: - | C160: BRUNA HUBNER DALL AGNESE | D160: ACLANDINA JOTER II | E160: AMA | AO160: ELI | AP160: 0 | AQ160: ELI | AR160: 0 | AS160: NC | AT160: 0 | AU160: =AT160+AR160+AP160 -> 0 | BJ160: NC | BK160: 0 | BL160: NC | BM160: 0 | BN160: NC | BO160: 0 | BP160: 0 | BQ160: NC | BR160: 0 | BS160: NC | BT160: 0 | BU160: NC | BV160: 0 | BW160: 0 | CL160: NC | CM160: 0 | CN160: NC | CO160: 0 | CP160: NC | CQ160: 0 | CR160: 0 | DN160: 1 | DO160: 0
B161: - | C161: ANA HELENA KIRSHNER MOFARREJ | D161: VANETY Z | E161: AMA | BC161: 25 | BD161: 0 | BE161: 30 | BF161: 0 | BG161: NC | BH161: 0 | BI161: =BH161+BF161+BD161 -> 0 | BJ161: NC | BK161: 0 | BL161: NC | BM161: 0 | BN161: NC | BO161: 0 | BP161: 0 | BQ161: NC | BR161: 0 | BS161: NC | BT161: 0 | BU161: NC | BV161: 0 | BW161: 0 | CL161: NC | CM161: 0 | CN161: NC | CO161: 0 | CP161: NC | CQ161: 0 | CR161: 0 | DN161: 1 | DO161: 0
B162: - | C162: MIRIAM MAFFEI | D162: CARRERA SH (IA) | E162: MA | BC162: NC | BD162: 0 | BE162: NC | BF162: 0 | BG162: 22 | BH162: 0 | BI162: =BH162+BF162+BD162 -> 0 | BJ162: NC | BK162: 0 | BL162: NC | BM162: 0 | BN162: NC | BO162: 0 | BP162: 0 | BQ162: NC | BR162: 0 | BS162: NC | BT162: 0 | BU162: NC | BV162: 0 | BW162: 0 | CL162: NC | CM162: 0 | CN162: NC | CO162: 0 | CP162: NC | CQ162: 0 | CR162: 0 | DN162: 1 | DO162: 0
B163: - | C163: TENENTE LEMOS | D163: NOSTRADAMUS DO RINCAO | E163: AMA | AV163: ELI | AW163: 0 | AX163: NC | AY163: 0 | AZ163: NC | BA163: 0 | BB163: =BA163+AY163+AW163 -> 0 | BJ163: NC | BK163: 0 | BL163: NC | BM163: 0 | BN163: NC | BO163: 0 | BP163: 0 | BQ163: NC | BR163: 0 | BS163: NC | BT163: 0 | BU163: NC | BV163: 0 | BW163: 0 | CL163: NC | CM163: 0 | CN163: NC | CO163: 0 | CP163: NC | CQ163: 0 | CR163: 0 | DN163: 1 | DO163: 0
B164: - | C164: SGT ROMULO LEAL | D164: FERTIZ CHANTEBLED | E164: MA | AV164: ELI | AW164: 0 | AX164: NC | AY164: 0 | AZ164: NC | BA164: 0 | BB164: =BA164+AY164+AW164 -> 0 | BJ164: NC | BK164: 0 | BL164: NC | BM164: 0 | BN164: NC | BO164: 0 | BP164: 0 | BQ164: NC | BR164: 0 | BS164: NC | BT164: 0 | BU164: NC | BV164: 0 | BW164: 0 | CL164: NC | CM164: 0 | CN164: NC | CO164: 0 | CP164: NC | CQ164: 0 | CR164: 0 | DN164: 1 | DO164: 0
B165: - | C165: CAROLINE PEREIRA CADORE | D165: DONATELLA MYSTIC ROSE (IA) | E165: MA | BJ165: NC | BK165: 0 | BL165: NC | BM165: 0 | BN165: NC | BO165: 0 | BP165: 0 | BQ165: NC | BR165: 0 | BS165: NC | BT165: 0 | BU165: NC | BV165: 0 | BW165: 0 | CL165: NC | CM165: 0 | CN165: NC | CO165: 0 | CP165: NC | CQ165: 0 | CR165: 0 | DG165: 18 | DH165: 0 | DI165: 17 | DJ165: 0 | DM165: =DJ165+DH165 -> 0 | DN165: 1 | DO165: 0
B166: - | C166: FELIPE CRIVELLARI MACHADO SIMOES | D166: REPLAY MCR | E166: AMA | BJ166: NC | BK166: 0 | BL166: NC | BM166: 0 | BN166: NC | BO166: 0 | BP166: 0 | BQ166: NC | BR166: 0 | BS166: NC | BT166: 0 | BU166: NC | BV166: 0 | BW166: 0 | CL166: NC | CM166: 0 | CN166: NC | CO166: 0 | CP166: NC | CQ166: 0 | CR166: 0 | DG166: 21 | DH166: 0 | DI166: 18 | DJ166: 0 | DM166: =DJ166+DH166 -> 0 | DN166: 1 | DO166: 0
B167: - | C167: CAMILA LUNARDELLI BARRETO | D167: ECHUKA | E167: AMA | BJ167: NC | BK167: 0 | BL167: NC | BM167: 0 | BN167: NC | BO167: 0 | BP167: 0 | BQ167: NC | BR167: 0 | BS167: NC | BT167: 0 | BU167: NC | BV167: 0 | BW167: 0 | CE167: ELI | CF167: 0 | CG167: NC | CH167: 0 | CI167: NC | CJ167: 0 | CK167: =CJ167+CH167+CF167 -> 0 | CL167: NC | CM167: 0 | CN167: NC | CO167: 0 | CP167: NC | CQ167: 0 | CR167: 0 | DN167: 1 | DO167: 0
B168: - | C168: EDUARDO G. N. P. DE CERQUEIRA | D168: CAVALO Z | E168: AMA | BJ168: NC | BK168: 0 | BL168: NC | BM168: 0 | BN168: NC | BO168: 0 | BP168: 0 | BQ168: NC | BR168: 0 | BS168: NC | BT168: 0 | BU168: NC | BV168: 0 | BW168: 0 | CL168: NC | CM168: 0 | CN168: NC | CO168: 0 | CP168: NC | CQ168: 0 | CR168: 0 | DN168: 0 | DO168: 0

Sheet REL 2
A6: R | B6: COMPETIDOR | C6: ANIMAL | D6: CAT | E6: PONTOS
A8: 1 | B8: MARIA PEREZ COELHO BENTO | C8: WIMBLEDON TF (IA) | D8: AMA | E8: 210.4
A9: 2 | B9: CARLA CAMILA OREGANA GUERRA | C9: GLADIATOR JMEN (*) | D9: AMA | E9: 209.9
A10: 3 | B10: BRUNO ALVES | C10: RUANDA JMEN | D10: AMA | E10: 120.5
A11: 4 | B11: GIULIA BITAR MALFATTI | C11: MSML ZEBRINO | D11: AMA | E11: 95.9
A12: 5 | B12: MARIA CAROLINA AURICCHIO BRAIDO | C12: CORIARA CANABRAVA (TE) | D12: AMA | E12: 86.9
A13: 6 | B13: CAMILA LUNARDELLI BARRETO | C13: CLAUDINE COOPER | D13: AMA | E13: 80.5
A14: 7 | B14: CAMILA HORO GIL | C14: MISSY PULLMAN | D14: AMA | E14: 67.3
A15: 8 | B15: RODRIGO DE CAMPOS MOLEIRO | C15: GIULIA METODO (IA) | D15: MA | E15: 66.5
A16: 9 | B16: CAMILA LUNARDELLI BARRETO | C16: JENNIFER PULLMAN (IA) | D16: AMA | E16: 57.1
A17: 10 | B17: ANTONIO AUGUSTO PINENT TIGRE | C17: HSF CASSIANA | D17: MA | E17: 54.3
A18: 11 | B18: MOISES FREITAS NEVES | C18: DINAMARCA TF (IA) | D18: AMA | E18: 53.2
A19: 12 | B19: MIRIAM MAFFEI | C19: JCR KHALIFA (IA) | D19: MA | E19: 51.8
A20: 13 | B20: HANDERSON ARAUJO CASTRO | C20: SL SABINO II (TE) | D20: MA | E20: 50.9
A21: 13 | B21: CAMILA MENNA B.B.F. HILGENDORFF | C21: LORDANA JMEN (TE) | D21: AMA | E21: 50.9
A22: 15 | B22: JOSE RICARDO SANT'ANNA | C22: CHAPARRAL JMEN (TE) | D22: MA | E22: 48.4
A23: 16 | B23: LUCIANE PARMA PINTO | C23: LPP LARA (TE) | D23: AMA | E23: 48
A24: 17 | B24: RENATO MENDES BAPTISTA | C24: CARDENSSEE M (IA) | D24: AMA | E24: 47.3
A25: 18 | B25: THIAGO MACHADO C. MORENO | C25: FADA DA CABANA (IA) | D25: AMA | E25: 44
A26: 19 | B26: DENNIS SARAIVA BRUSI | C26: CRISTELLA DO CASTELLO (IA) | D26: MA | E26: 42.2
A27: 20 | B27: JOAO GILBERTO COMINESE FREIRE | C27: ILH WORLD STAR | D27: AMA | E27: 41.2
A28: 21 | B28: ANDRE LUIZ SANTOS DE SOUZA | C28: SILVERADO DE AMORANDA | D28: AMA | E28: 40.7
A29: 21 | B29: KARINA IVONE COMASTRI SMITH | C29: NOTORIUS DAS UMBURANAS (IA) | D29: AMA | E29: 40.7
A30: 23 | B30: VIVIANE FISCHER LOPES | C30: ADELLE METODO (TE) | D30: AMA | E30: 39
A31: 24 | B31: ANA CAROLINA BORJA DE ALMEIDA | C31: CAPRICE V VAN DE HERMITAGE | D31: AMA | E31: 38.5
A32: 25 | B32: WALKIRIA MORASSUTTI OHLWEILER | C32: EPHESUS M (TE) | D32: AMA | E32: 37.5
A33: 26 | B33: ROBERTO PODVAL | C33: COLMEIA HV (IA) | D33: MA | E33: 37.4
A34: 27 | B34: MARIA EUGENIA SOUZA A. LORENZETTI | C34: SETH SIMPLY | D34: MA | E34: 35.2
A35: 27 | B35: PAULA MOTTA MALUF | C35: CLARISSA WE | D35: AMA | E35: 35.2
A36: 29 | B36: PATRICIA JANSON F. RODRIGUES | C36: CALANDRA VDL | D36: AMA | E36: 34.1
A37: 30 | B37: ANDRE KURBET | C37: HUNTER MASSANGANA (IA) | D37: AMA | E37: 34
A38: 30 | B38: ELOISA ZWEIFEL MORO GESUATO | C38: JCR SILVERSTAR (IA) | D38: AMA | E38: 34
A39: 32 | B39: JACY DO PRADO BARBOSA NETO | C39: MC ANNA-BOLENA LUTZ (TE) | D39: MA | E39: 33
A40: 32 | B40: OTAVIO SCHIMIDT AZEVEDO | C40: GRINGO AMM (IA) | D40: AMA | E40: 33
A41: 34 | B41: MARIANA SOUSA SILVA | C41: ARTHOS JMEN (TE) | D41: AMA | E41: 32
A42: 35 | B42: FERES JORGE JUNIOR | C42: PORSCHE CLL (IA) | D42: AMA | E42: 31
A43: 36 | B43: ANA FLAVIA FARIA | C43: FM LITUANO (*) | D43: AMA | E43: 30.8
A44: 37 | B44: JEANN DOMINGOS | C44: MC VITORIA LUTZ (TE) | D44: AMA | E44: 30
A45: 38 | B45: SANDRO PERUZZO BOVE | C45: COLISEO TW (IA) | D45: MA | E45: 29.7
A46: 39 | B46: SIMONE MOURAO ZURITA | C46: VULCAN | D46: MA | E46: 28.6
A47: 40 | B47: ANNELISE FRAGA | C47: GANDARA JMEN | D47: AMA | E47: 28
A48: 41 | B48: ISABEL NADALINI GONCALVES | C48: QUICK STAR Z | D48: AMA | E48: 27.5
A49: 42 | B49: MARIO KRIGER | C49: CASSILANO JMEN VII (TE) | D49: AMA | E49: 27.2
A50: 43 | B50: DEISY WILLER RODRIGUES | C50: CANCIONETA JMEN | D50: AMA | E50: 27
A51: 44 | B51: SILVIA ZANON DALLORTO | C51: AZA BOY | D51: AMA | E51: 26.4
A52: 45 | B52: CEL. VINICIUS SILVA DE FREITAS | C52: LORD ITAPUA | D52: AMA | E52: 26
A53: 45 | B53: RICARDO LEONI MAFFEI | C53: ZAMALIA BELLA | D53: AMA | E53: 26
A54: 47 | B54: OSCAR MARTINEZ NETO | C54: KANSSAS CHCP | D54: MA | E54: 25.6
A55: 48 | B55: ANA HELENA KIRSHNER MOFARREJ | C55: EIFFEL JB | D55: AMA | E55: 24.2
A56: 48 | B56: CAROLINA AULICINO MACIEL | C56: MSC CARTIER (IA) | D56: AMA | E56: 24.2
A57: 48 | B57: ANDRI LAXDAL PRASTARSON | C57: LF DORTMUND (IA) | D57: AMA | E57: 24.2
A58: 51 | B58: JANE GILTRUP | C58: CYRANO JMEN (TE) | D58: AMA | E58: 24
A59: 51 | B59: DANIEL ABBUD SARQUIS AIEX | C59: AMARANTE JMEN (TE) | D59: AMA | E59: 24
A60: 53 | B60: JOAO GILBERTO COMINESE FREIRE | C60: HINTERTUX | D60: AMA | E60: 23.7
A61: 54 | B61: ADRIANA FEFFER SKAF | C61: SL SOFISMA IV (TE) | D61: AMA | E61: 23
A62: 54 | B62: MARINA VILLACA | C62: AGATHA ARAGOM | D62: AMA | E62: 23
A63: 54 | B63: GABRIELA HSIEH | C63: HSL AMY BROWN (IA) | D63: AMA | E63: 23
A64: 57 | B64: FABIANA TURUGUET VALLIAS | C64: RIO BRANCO 3K (IA) | D64: AMA | E64: 22
A65: 57 | B65: ANDRE LUIZ SANTOS DE SOUZA | C65: SL CHINSARI (IA) | D65: AMA | E65: 22
A66: 57 | B66: ANA FLAVIA FARIA | C66: SIR-CALEI DA LAGOA | D66: AMA | E66: 22
A67: 60 | B67: CARLOS LUIZ DA SILVA JUNIOR | C67: LAWRENCE JMEN (TE) | D67: AMA | E67: 21
A68: 60 | B68: CAPITÃO AIRES | C68: SL VERY WISE (TE) | D68: MA | E68: 21
A69: 62 | B69: KATIA ORDER MAGRO | C69: BY-RANNA SINCORTACK (TE) | D69: AMA | E69: 20.9
A70: 62 | B70: MARIANNA MIETTO MENDES | C70: CANDINO JMEN I (TE) | D70: AMA | E70: 20.9
A71: 64 | B71: LUCIENE DOS SANTOS BARROS | C71: ROTTERDAM 3K (IA) | D71: AMA | E71: 19.8
A72: 64 | B72: MARIA EUGENIA SOUZA A. LORENZETTI | C72: BL OTTO (IA) | D72: MA | E72: 19.8
A73: 66 | B73: TEN. LUIS FERNANDO O. VARANDA | C73: MECA DO RINCAO | D73: AMA | E73: 19
A74: 66 | B74: CEL. VINICIUS SILVA DE FREITAS | C74: NEMA ITAPUA | D74: AMA | E74: 19
A75: 66 | B75: LUCIANO MATTOS N. DA GAMA | C75: SINDO JOTER II | D75: AMA | E75: 19
A76: 69 | B76: MANUELA REYNOSO BORGES GOMES | C76: KTZ SINGUNEO | D76: AMA | E76: 18.8
A77: 70 | B77: PATRICIA WATT VIANNA | C77: CATHERINE-C JMEN (TE) | D77: AMA | E77: 18.7
A78: 71 | B78: JULIA ZAMITH | C78: LA BELLA JMEN (TE) | D78: AMA | E78: 18
A79: 71 | B79: CARLOS DO REGO ALMEIDA FILHO | C79: HNB CARBOY (IA) | D79: MA | E79: 18
A80: 73 | B80: LEANDRO D AVILLA | C80: CORELAND DOMAR | D80: AMA | E80: 17.6
A81: 74 | B81: DIOGO VONTOBEL BREYER | C81: SIR ITALY JOTER | D81: AMA | E81: 17
A82: 74 | B82: JANICE AMBROSIO MERZVINSKAS | C82: SALAMANDRA NEW ONE | D82: AMA | E82: 17
A83: 74 | B83: CAMILA DE PAULA E SILVA | C83: YAVITH SH | D83: AMA | E83: 17
A84: 77 | B84: THIAGO MACHADO C. MORENO | C84: SOL-DU-REVEL TR (IA) | D84: AMA | E84: 16.5
A85: 78 | B85: PAULO MARCELO PINENT TIGRE | C85: ZATERDAG COOPER (*) | D85: AMA | E85: 16
A86: 79 | B86: LUCIANA IUNES COMES | C86: CONNERY JMEN (TE) | D86: AMA | E86: 14.4
A87: 80 | B87: PAULA PASTORE | C87: VALENTINA DO REFUGIO | D87: AMA | E87: 14.3
A88: 80 | B88: ALEXANDRE DE OLIVEIRA FRANCO | C88: ENIGMATIC JOURNEY POLANA (IA) | D88: MA | E88: 14.3
A89: 80 | B89: GIANCARLO AQUINO | C89: PISTACHE DAS UMBURANAS (IA) | D89: MA | E89: 14.3
A90: 80 | B90: ADAUTO MARCONDES FREIRE JUNIOR | C90: CORDINA JMEN (TE) | D90: MA | E90: 14.3
A91: 80 | B91: MARIA PEREZ COELHO BENTO | C91: MUSTACHE DA IXIA | D91: AMA | E91: 14.3
A92: 85 | B92: VANESSA FREIRE LOPES F. OLIVEIRA | C92: SIR-GULORD LMZ | D92: AMA | E92: 14
A93: 85 | B93: MARIA ISABEL SCHEER | C93: VANILLA SKY 24 | D93: MA | E93: 14
A94: 87 | B94: ELIZABETH COCHRANE PUCCI | C94: VR GATEADO | D94: MA | E94: 13.2
A95: 87 | B95: LAURA JACOMETT FONSECA | C95: BLANCA BEERQQUIE | D95: AMA | E95: 13.2
A96: 87 | B96: BRUNA GEO VENTURA | C96: UMORA | D96: AMA | E96: 13.2
A97: 87 | B97: RENATO LEME DE OLIVEIRA | C97: QUINARA GJ (TE) | D97: AMA | E97: 13.2
A98: 91 | B98: PAULO CESAR A. SALLES | C98: ILH WORLD STAR | D98: AMA | E98: 13
A99: 91 | B99: UBERGUE RIBEIRO JUNIOR | C99: CARTOUCHE JMEN II (TE) | D99: MA | E99: 13
A100: 93 | B100: ANA LUIZA PIRES DE CARVALHO | C100: LFB CARATAGO G (IA) (*) | D100: AMA | E100: 12
A101: 94 | B101: BEATRIZ BIER JOHANNPETER | C101: CENTAURO D´OLYMPO (IA) | D101: AMA | E101: 11.9
A102: 95 | B102: KATHARINA AFRANGE TUCH | C102: Z-NESSY | D102: AMA | E102: 11
A103: 95 | B103: MARIO KRIGER | C103: DEVOCION JMEN (IA) | D103: AMA | E103: 11
A104: 95 | B104: SHAILA FABI MOREIRA | C104: FELLOW CLIMBER | D104: AMA | E104: 11
A105: 95 | B105: MARIA LUIZA CURY | C105: AERO STAR COOPER (IA) | D105: AMA | E105: 11
A106: 95 | B106: MARIA ELISA CONCEICAO GONZAGA | C106: XANADU GMS | D106: AMA | E106: 11
A107: 100 | B107: TIAGO VONTOBEL BREYER | C107: CANTGARDEN JOTER | D107: AMA | E107: 10
A108: 100 | B108: PEDRO GRANATO | C108: JCR CHANEL | D108: AMA | E108: 10
A109: 102 | B109: ANA HELENA KIRSHNER MOFARREJ | C109: CASSINGER JMEN II (TE) | D109: AMA | E109: 9.9
A110: 102 | B110: GIANCARLO AQUINO | C110: SVR FARANDULA | D110: MA | E110: 9.9
A111: 102 | B111: EMYR DINIZ COSTA JUNIOR | C111: DOBLE TROBLE BA (IA) | D111: MA | E111: 9.9
A112: 105 | B112: TATIANA SANCHES DI CELIO | C112: LAMPARD JMEN (TE) | D112: MA | E112: 9.9
A113: 106 | B113: TEN PAULO SERGIO | C113: TEXAS DO RINCAO (TE) | D113: AMA | E113: 9
A114: 107 | B114: LAURA JACOMETT FONSECA | C114: GR DONATELLA (IA) | D114: AMA | E114: 8.8
A115: 108 | B115: DAVI ALEXANDRE | C115: RIFLAI RI | D115: MA | E115: 8
A116: 109 | B116: CAROLINA GRESPAN | C116: ULRIKE VAN HET HELLEHOF | D116: AMA | E116: 7.7
A117: 109 | B117: RAFAEL CHRISTIANINI | C117: SONHO REAL HCR | D117: AMA | E117: 7.7
A118: 109 | B118: MARIA CAROLINA ALVARES CORREA | C118: ZAMORA COOPER (*) | D118: MA | E118: 7.7
A119: 109 | B119: FABIANA RAMOS DE STEFANO | C119: TURMALINA DO RIOACIMA (IA) | D119: AMA | E119: 7.7
A120: 109 | B120: FABIANA RAMOS DE STEFANO | C120: FERRAGAMO JOSILMAR (IA) | D120: AMA | E120: 7.7
A121: 114 | B121: MATHEUS BECKER ANDRADE | C121: SINDO JOTER III | D121: AMA | E121: 7
A122: 114 | B122: JULIANE BEDANI | C122: SL INTACTUS | D122: AMA | E122: 7
A123: 116 | B123: HELENA FARES CAMPOS NEIVA | C123: ITALIA M (IA) | D123: MA | E123: 6.6
A124: 117 | B124: CAMILA HORO GIL | C124: CS CAZUZA (IA) | D124: AMA | E124: 6.1
A125: 118 | B125: STEFANIA ELIDE VOSGERAU BONETTI | C125: BRUNA | D125: AMA | E125: 6
A126: 118 | B126: FABIANA TURUGUET VALLIAS | C126: CALMANO JMEN III (TE) | D126: AMA | E126: 6
A127: 120 | B127: MARIA SILVIA MOTTA MAHFUZ | C127: CASSILANA JMEN IV (TE) | D127: MA | E127: 5.5
A128: 120 | B128: JOSE RICARDO SANT'ANNA | C128: JUSTIN PULLMAN | D128: MA | E128: 5.5
A129: 120 | B129: LUIS RICARDO MACAES COUTINHO | C129: TRACTUS XANGO (IA) | D129: AMA | E129: 5.5
A130: 123 | B130: LISANA PALUDO MONDIN | C130: FM DIOR | D130: MA | E130: 4.4
A131: 124 | B131: TASSIUS HALABI | C131: NEW-YORK NEW-YORK 2S | D131: AMA | E131: 4
A132: 125 | B132: MARIO KRIGER | C132: Z-NESSY | D132: AMA | E132: 3.3
A133: 125 | B133: VANESSA FREIRE LOPES F. OLIVEIRA | C133: QUIOTO TOK (IA) | D133: AMA | E133: 3.3
A134: 127 | B134: BRUNA GEO VENTURA | C134: COHIBA BUENA VISTA | D134: AMA | E134: 2.2
A135: 127 | B135: EURIPEDES CONSTANTINO M. FILHO | C135: CASSIMIRO E JMEN | D135: MA | E135: 2.2
A136: 127 | B136: BRUNO COLETO | C136: BETHOVEN JMEN II (IA) | D136: AMA | E136: 2.2
A137: - | B137: LUANA BERNARDES GERMANO | C137: MISS-BLUE DO LIBERTE (IA) | D137: AMA | E137: 0
A138: - | B138: MARCOS TADEU MACHADO JUNIOR | C138: TERLANO DO RIOACIMA (IA) | D138: AMA | E138: 0
A139: - | B139: FRANCISCO EDUARDO DA C. CARVALHO | C139: LA VITA JW (IA) | D139: AMA | E139: 0
A140: - | B140: BEATRIZ BIER JOHANNPETER | C140: MURPHY TOK (IA) | D140: AMA | E140: 0
A141: - | B141: MILTON JULIAO MARCONDES | C141: CHANKAR D JMEN III (TE) | D141: MA | E141: 0
A142: - | B142: MILTON JULIAO MARCONDES | C142: LANESSA JMEN II (TE) | D142: MA | E142: 0
A143: - | B143: PAULO MARLOW DA SILVA ANDRADE | C143: FEDEX M | D143: AMA | E143: 0
A144: - | B144: ISIS SABEL WALMLING | C144: HARMONY CLIMBER (TE) | D144: AMA | E144: 0
A145: - | B145: CAIO SCANTAMBURLO COSTA | C145: KENTUCKY M (IA) | D145: MA | E145: 0
A146: - | B146: SARAH DINA ARROYO AMORIN | C146: GALLARDO TB (IA) | D146: AMA | E146: 0
A147: - | B147: MARGHERITA BRAZZALE | C147: LOCA R (IA) | D147: AMA | E147: 0
A148: - | B148: TATIANA CAPRA DE CASTRO | C148: ZYVANTA VTH | D148: AMA | E148: 0
A149: - | B149: MARIANA MORAES DE BARROS | C149: CLAPTON BUENA VISTA | D149: AMA | E149: 0
A150: - | B150: WANDERSON ALVES PEREIRA | C150: ZIROCCO BLANCO 3K (IA) | D150: AMA | E150: 0
A151: - | B151: CAMILA GIBIN MENDES | C151: OLINDA CVT | D151: AMA | E151: 0
A152: - | B152: MARCIA HERNANDES | C152: VEREDA CAMPECHE | D152: MA | E152: 0
A153: - | B153: JOSE G. VECCHIONE JUNIOR | C153: ABSAM TB (IA) | D153: AMA | E153: 0
A154: - | B154: GERALDO BANDEIRA DE MELO FILHO | C154: CASSILANO JMEN II (TE) | D154: AMA | E154: 0
A155: - | B155: MARIA ELISA CONCEICAO GONZAGA | C155: CAMPARI BLUE VAN HET MOLENHOF | D155: AMA | E155: 0
A156: - | B156: ANA VICTORIA DE A. PALHARES | C156: SWEET QUIDAM DE LIGNY | D156: AMA | E156: 0
A157: - | B157: IAN MASINI MONTEIRO DE ANDRADE | C157: NUMERO-1 CW (TE) | D157: MA | E157: 0
A158: - | B158: CEZAR SPERINDE | C158: KNIGHT PULLMAN (IA) | D158: MA | E158: 0
A159: - | B159: BRUNA HUBNER DALL AGNESE | C159: ACLANDINA JOTER II | D159: AMA | E159: 0
A160: - | B160: ANA HELENA KIRSHNER MOFARREJ | C160: VANETY Z | D160: AMA | E160: 0
A161: - | B161: MIRIAM MAFFEI | C161: CARRERA SH (IA) | D161: MA | E161: 0
A162: - | B162: TENENTE LEMOS | C162: NOSTRADAMUS DO RINCAO | D162: AMA | E162: 0
A163: - | B163: SGT ROMULO LEAL | C163: FERTIZ CHANTEBLED | D163: MA | E163: 0
A164: - | B164: CAROLINE PEREIRA CADORE | C164: DONATELLA MYSTIC ROSE (IA) | D164: MA | E164: 0
A165: - | B165: FELIPE CRIVELLARI MACHADO SIMOES | C165: REPLAY MCR | D165: AMA | E165: 0
A166: - | B166: CAMILA LUNARDELLI BARRETO | C166: ECHUKA | D166: AMA | E166: 0
A167: - | B167: EDUARDO G. N. P. DE CERQUEIRA | C167: CAVALO Z | D167: AMA | E167: 0

Sheet AM_M
F5: 1ª ETAPA (SP) | L5: 1ª ETAPA TOTAL | M5: 2ª ETAPA (SP) | S5: 2ª ETAPA TOTAL | T5: 3ª ETAPA (PE) | Z5: 3ª ETAPA TOTAL | AA5: 4ª ETAPA (SP) | AG5: 4ª ETAPA TOTAL | AH5: 5ª ETAPA (PR) | AN5: 5ª ETAPA TOTAL | AO5: 6ª ETAPA (RS) | AU5: 6ª ETAPA TOTAL | AV5: 7ª ETAPA (DF) | BB5: 7ª ETAPA TOTAL | BC5: 8ª ETAPA (SP) | BI5: 8ª ETAPA TOTAL | BJ5: 9ª ETAPA (SP) | BP5: 9ª ETAPA TOTAL | BQ5: 10ª ETAPA (SP) | BW5: 10ª ETAPA TOTAL | BX5: 11ª ETAPA (MG) | CD5: 11ª ETAPA TOTAL | CE5: 12ª ETAPA (SP) | CK5: 12ª ETAPA TOTAL | CL5: 13ª ETAPA (SP) | CR5: 13ª ETAPA TOTAL | CS5: 14ª ETAPA (SP) | CY5: 14ª ETAPA TOTAL | CZ5: 15ª ETAPA (SP) | DF5: 15ª ETAPA TOTAL | DG5: 16ª ETAPA (SP) | DM5: 16ª ETAPA TOTAL | DN5: QTDE PROVAS | DO5: TOTAL GERAL
B6: R | C6: COMPETIDOR | D6: ANIMAL | E6: CAT | F6: TORNEIO DE VERÃO I ETAPA | M6: TORNEIO DE VERÃO II ETAPA | T6: CSN RECIFE I ETAPA N/NE | AA6: CSN OPEN | AH6: CSN CIDADE DE CURITIBA | AO6: CSN PORTO ALEGRE | AV6: CSN COPA JK | BC6: CSN D'MAIO | BJ6: CSN HARAS ALBAR | BQ6: CSN COPA SÃO PAULO | BX6: CSN HARAS SANTA ESMERALDA | CE6: CSN ANIVERSÁRIO CHSA | CL6: CSN INDOOR | CS6: CSN ANIVERSÁRIO CAMPINAS | CZ6: CSN AGROMEN | DG6: CSN XIV FESTIVAL CAVALO BH
F7: 1º DIA | H7: 2º DIA | J7: 3º DIA | M7: 1º DIA | O7: 2º DIA | Q7: 3º DIA | T7: 1º DIA | V7: 2º DIA | X7: 3º DIA | AA7: 1º DIA | AC7: 2º DIA | AE7: 3º DIA | AH7: 1º DIA | AJ7: 2º DIA | AL7: 3º DIA | AO7: 1º DIA | AQ7: 2º DIA | AS7: 3º DIA | AV7: 1º DIA | AX7: 2º DIA | AZ7: 3º DIA | BC7: 1º DIA | BE7: 2º DIA | BG7: 3º DIA | BJ7: 1º DIA | BL7: 2º DIA | BN7: 3º DIA | BQ7: 1º DIA | BS7: 2º DIA | BU7: 3º DIA | BX7: 1º DIA | BZ7: 2º DIA | CB7: 3º DIA | CE7: 1º DIA | CG7: 2º DIA | CI7: 3º DIA | CL7: 1º DIA | CN7: 2º DIA | CP7: 3º DIA | CS7: 1º DIA | CU7: 2º DIA | CW7: 3º DIA | CZ7: 1º DIA | DB7: 2º DIA | DD7: 3º DIA | DG7: 1º DIA | DI7: 2º DIA | DK7: 3º DIA
F8: CL | G8: PTS | H8: CL | I8: PTS | J8: CL | K8: PTS | M8: CL | N8: PTS | O8: CL | P8: PTS | Q8: CL | R8: PTS | T8: CL | U8: PTS | V8: CL | W8: PTS | X8: CL | Y8: PTS | AA8: CL | AB8: PTS | AC8: CL | AD8: PTS | AE8: CL | AF8: PTS | AH8: CL | AI8: PTS | AJ8: CL | AK8: PTS | AL8: CL | AM8: PTS | AO8: CL | AP8: PTS | AQ8: CL | AR8: PTS | AS8: CL | AT8: PTS | AV8: CL | AW8: PTS | AX8: CL | AY8: PTS | AZ8: CL | BA8: PTS | BC8: CL | BD8: PTS | BE8: CL | BF8: PTS | BG8: CL | BH8: PTS | BJ8: CL | BK8: PTS | BL8: CL | BM8: PTS | BN8: CL | BO8: PTS | BQ8: CL | BR8: PTS | BS8: CL | BT8: PTS | BU8: CL | BV8: PTS | BX8: CL | BY8: PTS | BZ8: CL | CA8: PTS | CB8: CL | CC8: PTS | CE8: CL | CF8: PTS | CG8: CL | CH8: PTS | CI8: CL | CJ8: PTS | CL8: CL | CM8: PTS | CN8: CL | CO8: PTS | CP8: CL | CQ8: PTS | CS8: CL | CT8: PTS | CU8: CL | CV8: PTS | CW8: CL | CX8: PTS | CZ8: CL | DA8: PTS | DB8: CL | DC8: PTS | DD8: CL | DE8: PTS | DG8: CL | DH8: PTS | DI8: CL | DJ8: PTS | DK8: CL | DL8: PTS
B9: 1 | C9: SERGINO RIBEIRO DE MENDONCA | D9: CORDOBES JMEN | E9: M | M9: 6 | N9: 12.1 | O9: 6 | P9: 12.1 | Q9: 3 | R9: 16.5 | S9: =R9+P9+N9 -> 40.7 | AA9: 6 | AB9: 13.2 | AC9: 8 | AD9: 10.8 | AE9: 12 | AF9: 6 | AG9: =AF9+AD9+AB9 -> 30 | AH9: 25 | AI9: 0 | AJ9: 2 | AK9: 20.4 | AL9: 11 | AM9: 3 | AN9: =AM9+AK9+AI9 -> 23.4 | BC9: 15 | BD9: 2.4 | BE9: 8 | BF9: 10.8 | BG9: 7 | BH9: 11 | BI9: =BH9+BF9+BD9 -> 24.2 | BJ9: NC | BK9: 0 | BL9: NC | BM9: 0 | BN9: NC | BO9: 0 | BP9: 0 | BQ9: NC | BR9: 0 | BS9: NC | BT9: 0 | BU9: NC | BV9: 0 | BW9: 0 | CE9: 2 | CF9: 20.4 | CG9: 13 | CH9: 4.4 | CI9: 9 | CJ9: 8.8 | CK9: =CJ9+CH9+CF9 -> 33.6 | CL9: NC | CM9: 0 | CN9: NC | CO9: 0 | CP9: NC | CQ9: 0 | CR9: 0 | CZ9: 2 | DA9: 16 | DB9: 12 | DC9: 5 | DD9: 1 | DE9: 19 | DF9: =DE9+DC9+DA9 -> 40 | DG9: 2 | DH9: 18.7 | DI9: 2 | DJ9: 18.7 | DM9: =DH9+DJ9 -> 37.4 | DN9: =SUBTOTAL(3,L9,S9,Z9,AG9,AN9,AU9,BB9,BI9,CD9,CK9,CY9,DF9,DM9) -> 7 | DO9: =DM9+DF9+CY9+CR9+CK9+CD9+BW9+BP9+BI9+BB9+AU9+AN9+AG9+Z9+S9+L9 -> 229.3
B10: 2 | C10: DANIEL ABBUD SARQUIS AIEX | D10: OLIVETTE LANDAISE | E10: AM | AA10: 14 | AB10: 3.6 | AC10: 19 | AD10: 0 | AE10: 36 | AF10: 0 | AG10: 3.6 | AH10: 2 | AI10: 18.7 | AJ10: 22 | AK10: 0 | AL10: 4 | AM10: 10 | AN10: =AM10+AK10+AI10 -> 28.7 | BC10: 24 | BD10: 0 | BE10: 29 | BF10: 0 | BG10: 4 | BH10: 14.3 | BI10: =BH10+BF10+BD10 -> 14.3 | BJ10: NC | BK10: 0 | BL10: NC | BM10: 0 | BN10: NC | BO10: 0 | BP10: 0 | BQ10: NC | BR10: 0 | BS10: NC | BT10: 0 | BU10: NC | BV10: 0 | BW10: 0 | BX10: 12 | BY10: 2 | BZ10: 1 | CA10: 16 | CB10: 1 | CC10: 16 | CD10: =CC10+CA10+BY10 -> 34 | CE10: 22 | CF10: 0 | CG10: 6 | CH10: 12.1 | CI10: 15 | CJ10: 2.2 | CK10: =CJ10+CH10+CF10 -> 14.3 | CL10: NC | CM10: 0 | CN10: NC | CO10: 0 | CP10: NC | CQ10: 0 | CR10: 0 | CS10: 4 | CT10: 5 | CU10: 1 | CV10: 14 | CW10: 1 | CX10: 13 | CY10: =CX10+CV10+CT10 -> 32 | CZ10: 8 | DA10: 8 | DB10: 1 | DC10: 20 | DD10: 2 | DE10: 16 | DF10: =DE10+DC10+DA10 -> 44 | DN10: 7 | DO10: 170.9
B11: 3 | C11: RICHARD LYON THORO BILTON | D11: QUEBEC AGROMIX | E11: AM | F11: 1 | G11: 22 | H11: 11 | I11: 6.6 | J11: 13 | K11: 4 | L11: =K11+I11+G11 -> 32.6 | M11: 19 | N11: 0 | O11: 3 | P11: 16.5 | Q11: 5 | R11: 13.2 | S11: =R11+P11+N11 -> 29.7 | AA11: 27 | AB11: 0 | AC11: 5 | AD11: 14.4 | AE11: 1 | AF11: 24 | AG11: 38.4 | BC11: 2 | BD11: 20.4 | BE11: 28 | BF11: 0 | BG11: 17 | BH11: 0 | BI11: =BH11+BF11+BD11 -> 20.4 | BJ11: NC | BK11: 0 | BL11: NC | BM11: 0 | BN11: NC | BO11: 0 | BP11: 0 | BQ11: NC | BR11: 0 | BS11: NC | BT11: 0 | BU11: NC | BV11: 0 | BW11: 0 | CE11: 3 | CF11: 18 | CG11: 7 | CH11: 11 | CI11: 6 | CJ11: 12.1 | CK11: =CJ11+CH11+CF11 -> 41.1 | CL11: NC | CM11: 0 | CN11: NC | CO11: 0 | CP11: NC | CQ11: 0 | CR11: 0 | DN11: 5 | DO11: 162.2
B12: 4 | C12: PRISCILA MARIANO LUMINATTI | D12: FLORIEKE | E12: AM | F12: 2 | G12: 18.7 | H12: NC | I12: 0 | J12: NC | K12: 0 | L12: =K12+I12+G12 -> 18.7 | AA12: 2 | AB12: 20.4 | AC12: 2 | AD12: 20.4 | AE12: 5 | AF12: 14.4 | AG12: 55.2 | AH12: 8 | AI12: 9.9 | AJ12: 1 | AK12: 24 | AL12: 2 | AM12: 14 | AN12: =AM12+AK12+AI12 -> 47.9 | BC12: ELI | BD12: 0 | BE12: 18 | BF12: 0 | BG12: 22 | BH12: 0 | BI12: =BH12+BF12+BD12 -> 0 | BJ12: NC | BK12: 0 | BL12: NC | BM12: 0 | BN12: NC | BO12: 0 | BP12: 0 | BQ12: NC | BR12: 0 | BS12: NC | BT12: 0 | BU12: NC | BV12: 0 | BW12: 0 | BX12: 3 | BY12: 12 | BZ12: 3 | CA12: 11 | CB12: 2 | CC12: 13 | CD12: =CC12+CA12+BY12 -> 36 | CE12: 27 | CF12: 0 | CG12: NC | CH12: 0 | CI12: NC | CJ12: 0 | CK12: =CJ12+CH12+CF12 -> 0 | CL12: NC | CM12: 0 | CN12: NC | CO12: 0 | CP12: NC | CQ12: 0 | CR12: 0 | DN12: 6 | DO12: 157.8
B13: 5 | C13: PRISCILA MARIANO LUMINATTI | D13: DIAMANTINA FROM SECOND LIFE Z | E13: AM | F13: 14 | G13: 3.3 | H13: 17 | I13: 0 | J13: 2 | K13: 17 | L13: =K13+I13+G13 -> 20.3 | M13: 1 | N13: 22 | O13: 4 | P13: 14.3 | Q13: 10 | R13: 7.7 | S13: =R13+P13+N13 -> 44 | AA13: 1 | AB13: 24 | AC13: 37 | AD13: 0 | AE13: 34 | AF13: 0 | AG13: 24 | BJ13: NC | BK13: 0 | BL13: NC | BM13: 0 | BN13: NC | BO13: 0 | BP13: 0 | BQ13: NC | BR13: 0 | BS13: NC | BT13: 0 | BU13: NC | BV13: 0 | BW13: 0 | BX13: 1 | BY13: 17 | BZ13: 2 | CA13: 13 | CB13: 3 | CC13: 11 | CD13: =CC13+CA13+BY13 -> 41 | CE13: 24 | CF13: 0 | CG13: 1 | CH13: 22 | CI13: 17 | CJ13: 0 | CK13: =CJ13+CH13+CF13 -> 22 | CL13: NC | CM13: 0 | CN13: NC | CO13: 0 | CP13: NC | CQ13: 0 | CR13: 0 | DN13: 5 | DO13: 151.3
B14: 6 | C14: KARINA IVONE COMASTRI SMITH | D14: NOTORIUS DAS UMBURANAS (IA) | E14: M | F14: NC | G14: 0 | H14: 3 | I14: 16.5 | J14: 4 | K14: 13 | L14: =K14+I14+G14 -> 29.5 | M14: NC | N14: 0 | O14: 2 | P14: 18.7 | Q14: 11 | R14: 6.6 | S14: =R14+P14+N14 -> 25.3 | AA14: 28 | AB14: 0 | AC14: 20 | AD14: 0 | AE14: 2 | AF14: 20.4 | AG14: 20.4 | BJ14: NC | BK14: 0 | BL14: NC | BM14: 0 | BN14: NC | BO14: 0 | BP14: 0 | BQ14: NC | BR14: 0 | BS14: NC | BT14: 0 | BU14: NC | BV14: 0 | BW14: 0 | CL14: NC | CM14: 0 | CN14: NC | CO14: 0 | CP14: NC | CQ14: 0 | CR14: 0 | DG14: 3 | DH14: 16.5 | DI14: 3 | DJ14: 16.5 | DM14: =DH14+DJ14 -> 33 | DN14: 4 | DO14: 108.2
B15: 7 | C15: PATRICIA WATT VIANNA | D15: CATHERINE-C JMEN (TE) | E15: AM | AA15: 18 | AB15: 0 | AC15: 21 | AD15: 0 | AE15: 4 | AF15: 15.6 | AG15: 15.6 | BC15: 8 | BD15: 10.8 | BE15: 6 | BF15: 13.2 | BG15: 6 | BH15: 12.1 | BI15: =BH15+BF15+BD15 -> 36.1 | BJ15: NC | BK15: 0 | BL15: NC | BM15: 0 | BN15: NC | BO15: 0 | BP15: 0 | BQ15: NC | BR15: 0 | BS15: NC | BT15: 0 | BU15: NC | BV15: 0 | BW15: 0 | CE15: 1 | CF15: 24 | CG15: 8 | CH15: 9.9 | CI15: 1 | CJ15: 22 | CK15: =CJ15+CH15+CF15 -> 55.9 | CL15: NC | CM15: 0 | CN15: NC | CO15: 0 | CP15: NC | CQ15: 0 | CR15: 0 | DN15: 3 | DO15: 107.6
B16: 8 | C16: MARCO ANTONIO MODESTO FILHO | D16: CASHLEY | E16: AM | AA16: NC | AB16: 0 | AC16: 7 | AD16: 12 | AE16: NC | AF16: 0 | AG16: 12 | AH16: 4 | AI16: 14.3 | AJ16: 3 | AK16: 18 | AL16: 9 | AM16: 5 | AN16: =AM16+AK16+AI16 -> 37.3 | AV16: 1 | AW16: 17 | AX16: 1 | AY16: 18 | AZ16: 4 | BA16: 9 | BB16: =BA16+AY16+AW16 -> 44 | BJ16: NC | BK16: 0 | BL16: NC | BM16: 0 | BN16: NC | BO16: 0 | BP16: 0 | BQ16: NC | BR16: 0 | BS16: NC | BT16: 0 | BU16: NC | BV16: 0 | BW16: 0 | CL16: NC | CM16: 0 | CN16: NC | CO16: 0 | CP16: NC | CQ16: 0 | CR16: 0 | DN16: 3 | DO16: 93.3
B17: 9 | C17: ANA PAULA GOUVEIA CONDE | D17: CANTICO JOTER (IA) | E17: AM | M17: 20 | N17: 0 | O17: 15 | P17: 2.2 | Q17: 1 | R17: 22 | S17: =R17+P17+N17 -> 24.2 | AA17: 13 | AB17: 4.8 | AC17: 32 | AD17: 0 | AE17: 38 | AF17: 0 | AG17: 4.8 | BC17: 7 | BD17: 12 | BE17: 34 | BF17: 0 | BG17: 1 | BH17: 22 | BI17: =BH17+BF17+BD17 -> 34 | BJ17: NC | BK17: 0 | BL17: NC | BM17: 0 | BN17: NC | BO17: 0 | BP17: 0 | BQ17: NC | BR17: 0 | BS17: NC | BT17: 0 | BU17: NC | BV17: 0 | BW17: 0 | CL17: NC | CM17: 0 | CN17: NC | CO17: 0 | CP17: NC | CQ17: 0 | CR17: 0 | CS17: 2 | CT17: 9 | CU17: 2 | CV17: 11 | CW17: 4 | CX17: 6 | CY17: =CX17+CV17+CT17 -> 26 | DN17: 4 | DO17: 89
B18: 10 | C18: VITORIA GHIZONI JUNCKES | D18: MISS HOLSTEINS MERCI | E18: AM | AA18: 5 | AB18: 14.4 | AC18: 10 | AD18: 8.4 | AE18: 19 | AF18: 0 | AG18: 22.8 | AH18: 9 | AI18: 8.8 | AJ18: 8 | AK18: 10.8 | AL18: 1 | AM18: 17 | AN18: =AM18+AK18+AI18 -> 36.6 | BC18: 28 | BD18: 0 | BE18: 2 | BF18: 20.4 | BG18: 9 | BH18: 8.8 | BI18: =BH18+BF18+BD18 -> 29.2 | BJ18: NC | BK18: 0 | BL18: NC | BM18: 0 | BN18: NC | BO18: 0 | BP18: 0 | BQ18: NC | BR18: 0 | BS18: NC | BT18: 0 | BU18: NC | BV18: 0 | BW18: 0 | CL18: NC | CM18: 0 | CN18: NC | CO18: 0 | CP18: NC | CQ18: 0 | CR18: 0 | DN18: 3 | DO18: 88.6
B19: 11 | C19: SERGINO RIBEIRO DE MENDONCA | D19: CARTUJANO JMEN (TE) | E19: M | M19: 7 | N19: 11 | O19: 19 | P19: 0 | Q19: 7 | R19: 11 | S19: =R19+P19+N19 -> 22 | AA19: 10 | AB19: 8.4 | AC19: 33 | AD19: 0 | AE19: 11 | AF19: 7.2 | AG19: 15.6 | BJ19: NC | BK19: 0 | BL19: NC | BM19: 0 | BN19: NC | BO19: 0 | BP19: 0 | BQ19: NC | BR19: 0 | BS19: NC | BT19: 0 | BU19: NC | BV19: 0 | BW19: 0 | CE19: 13 | CF19: 4.8 | CG19: NC | CH19: 0 | CI19: NC | CJ19: 0 | CK19: =CJ19+CH19+CF19 -> 4.8 | CL19: NC | CM19: 0 | CN19: NC | CO19: 0 | CP19: NC | CQ19: 0 | CR19: 0 | CZ19: 6 | DA19: 10 | DB19: 5 | DC19: 12 | DD19: 3 | DE19: 14 | DF19: =DE19+DC19+DA19 -> 36 | DN19: 4 | DO19: 78.4
B20: 12 | C20: GILBERTO BRAZ PALMA | D20: ULIZ DAS CATARATAS | E20: AM | AH20: 3 | AI20: 16.5 | AJ20: 4 | AK20: 15.6 | AL20: 5 | AM20: 9 | AN20: =AM20+AK20+AI20 -> 41.1 | BJ20: NC | BK20: 0 | BL20: NC | BM20: 0 | BN20: NC | BO20: 0 | BP20: 0 | BQ20: NC | BR20: 0 | BS20: NC | BT20: 0 | BU20: NC | BV20: 0 | BW20: 0 | CL20: NC | CM20: 0 | CN20: NC | CO20: 0 | CP20: NC | CQ20: 0 | CR20: 0 | CZ20: 1 | DA20: 19 | DB20: 9 | DC20: 8 | DD20: 10 | DE20: 6 | DF20: =DE20+DC20+DA20 -> 33 | DN20: 2 | DO20: 74.1
B21: 13 | C21: ADAUTO MARCONDES FREIRE JUNIOR | D21: TOP BELLINI (IA) | E21: M | M21: NC | N21: 0 | O21: 5 | P21: 13.2 | Q21: 2 | R21: 18.7 | S21: =R21+P21+N21 -> 31.9 | AA21: 16 | AB21: 1.2 | AC21: 36 | AD21: 0 | AE21: 20 | AF21: 0 | AG21: =AF21+AD21+AB21 -> 1.2 | BC21: 5 | BD21: 14.4 | BE21: 36 | BF21: 0 | BG21: 16 | BH21: 1.1 | BI21: =BH21+BF21+BD21 -> 15.5 | BJ21: NC | BK21: 0 | BL21: NC | BM21: 0 | BN21: NC | BO21: 0 | BP21: 0 | BQ21: NC | BR21: 0 | BS21: NC | BT21: 0 | BU21: NC | BV21: 0 | BW21: 0 | CE21: 8 | CF21: 10.8 | CG21: ELI | CH21: 0 | CI21: NC | CJ21: 0 | CK21: =CJ21+CH21+CF21 -> 10.8 | CL21: NC | CM21: 0 | CN21: NC | CO21: 0 | CP21: NC | CQ21: 0 | CR21: 0 | DG21: 6 | DH21: 12.1 | DI21: DES | DJ21: 0 | DM21: =DH21+DJ21 -> 12.1 | DN21: 5 | DO21: 71.5
B22: 14 | C22: NINA FRANZISKA BABBE | D22: OLIVIA HJ | E22: M | F22: 3 | G22: 16.5 | H22: 12 | I22: 5.5 | J22: 9 | K22: 8 | L22: =K22+I22+G22 -> 30 | M22: 16 | N22: 1.1 | O22: 25 | P22: 0 | Q22: NC | R22: 0 | S22: =R22+P22+N22 -> 1.1 | BJ22: NC | BK22: 0 | BL22: NC | BM22: 0 | BN22: NC | BO22: 0 | BP22: 0 | BQ22: NC | BR22: 0 | BS22: NC | BT22: 0 | BU22: NC | BV22: 0 | BW22: 0 | CE22: 25 | CF22: 0 | CG22: 14 | CH22: 3.3 | CI22: NC | CJ22: 0 | CK22: =CJ22+CH22+CF22 -> 3.3 | CL22: NC | CM22: 0 | CN22: NC | CO22: 0 | CP22: NC | CQ22: 0 | CR22: 0 | CZ22: 3 | DA22: 14 | DB22: 2 | DC22: 17 | DD22: 11 | DE22: 5 | DF22: =DE22+DC22+DA22 -> 36 | DN22: 4 | DO22: 70.4
B23: 15 | C23: MARIO JOAO BOFF NETO | D23: LATASCHA JMEN III (TE) | E23: AM | AA23: 8 | AB23: 10.8 | AC23: 15 | AD23: 2.4 | AE23: 10 | AF23: 8.4 | AG23: =AF23+AD23+AB23 -> 21.6 | AH23: 19 | AI23: 0 | AJ23: 9 | AK23: 9.6 | AL23: 7 | AM23: 7 | AN23: =AM23+AK23+AI23 -> 16.6 | BC23: 16 | BD23: 1.2 | BE23: 5 | BF23: 14.4 | BG23: 19 | BH23: 0 | BI23: =BH23+BF23+BD23 -> 15.6 | BJ23: NC | BK23: 0 | BL23: NC | BM23: 0 | BN23: NC | BO23: 0 | BP23: 0 | BQ23: NC | BR23: 0 | BS23: NC | BT23: 0 | BU23: NC | BV23: 0 | BW23: 0 | CL23: NC | CM23: 0 | CN23: NC | CO23: 0 | CP23: NC | CQ23: 0 | CR23: 0 | CS23: 5 | CT23: 4 | CU23: 3 | CV23: 9 | CW23: NC | CX23: 0 | CY23: =CX23+CV23+CT23 -> 13 | DN23: 4 | DO23: 66.8
B24: 16 | C24: DENNIS SARAIVA BRUSI | D24: HST CARTEZ (IA) | E24: M | F24: 10 | G24: 7.7 | H24: 2 | I24: 18.7 | J24: 7 | K24: 10 | L24: =K24+I24+G24 -> 36.4 | M24: 4 | N24: 14.3 | O24: 18 | P24: 0 | Q24: NC | R24: 0 | S24: =R24+P24+N24 -> 14.3 | AA24: 31 | AB24: 0 | AC24: 30 | AD24: 0 | AE24: 8 | AF24: 10.8 | AG24: =AF24+AD24+AB24 -> 10.8 | BJ24: NC | BK24: 0 | BL24: NC | BM24: 0 | BN24: NC | BO24: 0 | BP24: 0 | BQ24: NC | BR24: 0 | BS24: NC | BT24: 0 | BU24: NC | BV24: 0 | BW24: 0 | CE24: 14 | CF24: 3.6 | CG24: 16 | CH24: 1.1 | CI24: NC | CJ24: 0 | CK24: =CJ24+CH24+CF24 -> 4.7 | CL24: NC | CM24: 0 | CN24: NC | CO24: 0 | CP24: NC | CQ24: 0 | CR24: 0 | DN24: 4 | DO24: 66.2
B25: 16 | C25: LUCIANA LOSSIO | D25: NIKITA LA CANADA | E25: M | AV25: 11 | AW25: 3 | AX25: 2 | AY25: 15 | AZ25: 3 | BA25: 11 | BB25: =BA25+AY25+AW25 -> 29 | BC25: 1 | BD25: 24 | BE25: 13 | BF25: 4.8 | BG25: 13 | BH25: 4.4 | BI25: =BH25+BF25+BD25 -> 33.2 | BJ25: NC | BK25: 0 | BL25: NC | BM25: 0 | BN25: NC | BO25: 0 | BP25: 0 | BQ25: NC | BR25: 0 | BS25: NC | BT25: 0 | BU25: NC | BV25: 0 | BW25: 0 | CL25: NC | CM25: 0 | CN25: NC | CO25: 0 | CP25: NC | CQ25: 0 | CR25: 0 | DN25: 2 | DO25: 62.2
B26: 18 | C26: KAMILA MIKSZA RIBAS PRESTES | D26: SWEET DAS CATARATAS (IA) | E26: AM | AH26: 6 | AI26: 12.1 | AJ26: 31 | AK26: 0 | AL26: NC | AM26: 0 | AN26: =AM26+AK26+AI26 -> 12.1 | BJ26: NC | BK26: 0 | BL26: NC | BM26: 0 | BN26: NC | BO26: 0 | BP26: 0 | BQ26: NC | BR26: 0 | BS26: NC | BT26: 0 | BU26: NC | BV26: 0 | BW26: 0 | CE26: 4 | CF26: 15.6 | CG26: 4 | CH26: 14.3 | CI26: 2 | CJ26: 18.7 | CK26: =CJ26+CH26+CF26 -> 48.6 | CL26: NC | CM26: 0 | CN26: NC | CO26: 0 | CP26: NC | CQ26: 0 | CR26: 0 | DN26: 2 | DO26: 60.7
B27: 19 | C27: RIMANTAS SIPAS | D27: RASPUTIN JMEN II (TE) | E27: M | F27: 12 | G27: 5.5 | H27: 8 | I27: 9.9 | J27: 1 | K27: 20 | L27: =K27+I27+G27 -> 35.4 | M27: 22 | N27: 0 | O27: 9 | P27: 8.8 | Q27: 14 | R27: 3.3 | S27: =R27+P27+N27 -> 12.1 | AA27: 23 | AB27: 0 | AC27: 13 | AD27: 4.8 | AE27: 31 | AF27: 0 | AG27: =AF27+AD27+AB27 -> 4.8 | BC27: NC | BD27: 0 | BE27: 25 | BF27: 0 | BG27: 14 | BH27: 3.3 | BI27: =BH27+BF27+BD27 -> 3.3 | BJ27: NC | BK27: 0 | BL27: NC | BM27: 0 | BN27: NC | BO27: 0 | BP27: 0 | BQ27: NC | BR27: 0 | BS27: NC | BT27: 0 | BU27: NC | BV27: 0 | BW27: 0 | CL27: NC | CM27: 0 | CN27: NC | CO27: 0 | CP27: NC | CQ27: 0 | CR27: 0 | DN27: 4 | DO27: 55.6
B28: 20 | C28: EDUARDO CINTRA | D28: DIANI DO ARAUCARIA (IA) | E28: AM | AV28: 10 | AW28: 4 | AX28: 5 | AY28: 10 | AZ28: ELI | BA28: 0 | BB28: =BA28+AY28+AW28 -> 14 | BJ28: NC | BK28: 0 | BL28: NC | BM28: 0 | BN28: NC | BO28: 0 | BP28: 0 | BQ28: NC | BR28: 0 | BS28: NC | BT28: 0 | BU28: NC | BV28: 0 | BW28: 0 | CE28: 10 | CF28: 8.4 | CG28: 2 | CH28: 18.7 | CI28: 4 | CJ28: 14.3 | CK28: =CJ28+CH28+CF28 -> 41.4 | CL28: NC | CM28: 0 | CN28: NC | CO28: 0 | CP28: NC | CQ28: 0 | CR28: 0 | DN28: 2 | DO28: 55.4
B29: 21 | C29: LIDIA DORNELAS | D29: CANTARA G | E29: AM | AH29: 10 | AI29: 7.7 | AJ29: 6 | AK29: 13.2 | AL29: 13 | AM29: 1 | AN29: =AM29+AK29+AI29 -> 21.9 | AV29: 6 | AW29: 8 | AX29: 4 | AY29: 11 | AZ29: 2 | BA29: 13 | BB29: =BA29+AY29+AW29 -> 32 | BJ29: NC | BK29: 0 | BL29: NC | BM29: 0 | BN29: NC | BO29: 0 | BP29: 0 | BQ29: NC | BR29: 0 | BS29: NC | BT29: 0 | BU29: NC | BV29: 0 | BW29: 0 | CL29: NC | CM29: 0 | CN29: NC | CO29: 0 | CP29: NC | CQ29: 0 | CR29: 0 | DN29: 2 | DO29: 53.9
B30: 22 | C30: MARIANA MORAES DE BARROS | D30: CLAPTON BUENA VISTA | E30: AM | AA30: 3 | AB30: 18 | AC30: 22 | AD30: 0 | AE30: 29 | AF30: 0 | AG30: =AF30+AD30+AB30 -> 18 | AH30: 13 | AI30: 4.4 | AJ30: 20 | AK30: 0 | AL30: NC | AM30: 0 | AN30: =AM30+AK30+AI30 -> 4.4 | BC30: 10 | BD30: 8.4 | BE30: 31 | BF30: 0 | BG30: NC | BH30: 0 | BI30: =BH30+BF30+BD30 -> 8.4 | BJ30: NC | BK30: 0 | BL30: NC | BM30: 0 | BN30: NC | BO30: 0 | BP30: 0 | BQ30: NC | BR30: 0 | BS30: NC | BT30: 0 | BU30: NC | BV30: 0 | BW30: 0 | BX30: 7 | BY30: 7 | BZ30: 4 | CA30: 9 | CB30: 6 | CC30: 7 | CD30: =CC30+CA30+BY30 -> 23 | CL30: NC | CM30: 0 | CN30: NC | CO30: 0 | CP30: NC | CQ30: 0 | CR30: 0 | DN30: 4 | DO30: 53.8
B31: 23 | C31: MILTON JULIAO MARCONDES | D31: LANESSA JMEN II (TE) | E31: M | AA31: 11 | AB31: 7.2 | AC31: 29 | AD31: 0 | AE31: 7 | AF31: 12 | AG31: 19.2 | BJ31: NC | BK31: 0 | BL31: NC | BM31: 0 | BN31: NC | BO31: 0 | BP31: 0 | BQ31: NC | BR31: 0 | BS31: NC | BT31: 0 | BU31: NC | BV31: 0 | BW31: 0 | CL31: NC | CM31: 0 | CN31: NC | CO31: 0 | CP31: NC | CQ31: 0 | CR31: 0 | CZ31: 5 | DA31: 11 | DB31: 4 | DC31: 13 | DD31: 6 | DE31: 10 | DF31: =DE31+DC31+DA31 -> 34 | DN31: 2 | DO31: 53.2
B32: 24 | C32: HERMANN PAULO HOFFMANN JUNIOR | D32: DIAMARO | E32: AM | M32: 2 | N32: 18.7 | O32: 16 | P32: 1.1 | Q32: 17 | R32: 0 | S32: =R32+P32+N32 -> 19.8 | AA32: 4 | AB32: 15.6 | AC32: 27 | AD32: 0 | AE32: 32 | AF32: 0 | AG32: 15.6 | BC32: 4 | BD32: 15.6 | BE32: 37 | BF32: 0 | BG32: 29 | BH32: 0 | BI32: =BH32+BF32+BD32 -> 15.6 | BJ32: NC | BK32: 0 | BL32: NC | BM32: 0 | BN32: NC | BO32: 0 | BP32: 0 | BQ32: NC | BR32: 0 | BS32: NC | BT32: 0 | BU32: NC | BV32: 0 | BW32: 0 | CE32: 28 | CF32: 0 | CG32: NC | CH32: 0 | CI32: NC | CJ32: 0 | CK32: =CJ32+CH32+CF32 -> 0 | CL32: NC | CM32: 0 | CN32: NC | CO32: 0 | CP32: NC | CQ32: 0 | CR32: 0 | DN32: 4 | DO32: 51
B33: 25 | C33: PEDRO GRANATO | D33: JCR CHANEL | E33: AM | AA33: 39 | AB33: 0 | AC33: 3 | AD33: 18 | AE33: 28 | AF33: 0 | AG33: 18 | BC33: 3 | BD33: 18 | BE33: 7 | BF33: 12 | BG33: 24 | BH33: 0 | BI33: =BH33+BF33+BD33 -> 30 | BJ33: NC | BK33: 0 | BL33: NC | BM33: 0 | BN33: NC | BO33: 0 | BP33: 0 | BQ33: NC | BR33: 0 | BS33: NC | BT33: 0 | BU33: NC | BV33: 0 | BW33: 0 | CL33: NC | CM33: 0 | CN33: NC | CO33: 0 | CP33: NC | CQ33: 0 | CR33: 0 | DN33: 2 | DO33: 48
B34: 26 | C34: KATHARINA AFRANGE TUCH | D34: Z-NESSY | E34: AM | F34: 6 | G34: 12.1 | H34: 1 | I34: 22 | J34: 5 | K34: 12 | L34: =K34+I34+G34 -> 46.1 | AA34: 30 | AB34: 0 | AC34: DES | AD34: 0 | AE34: NC | AF34: 0 | AG34: 0 | BJ34: NC | BK34: 0 | BL34: NC | BM34: 0 | BN34: NC | BO34: 0 | BP34: 0 | BQ34: NC | BR34: 0 | BS34: NC | BT34: 0 | BU34: NC | BV34: 0 | BW34: 0 | CL34: NC | CM34: 0 | CN34: NC | CO34: 0 | CP34: NC | CQ34: 0 | CR34: 0 | DN34: 2 | DO34: 46.1
B35: 27 | C35: RODRIGO NUNES DE MELO | D35: BM INVICTUS (IA) | E35: AM | AA35: 15 | AB35: 2.4 | AC35: 1 | AD35: 24 | AE35: 3 | AF35: 18 | AG35: 44.4 | BJ35: NC | BK35: 0 | BL35: NC | BM35: 0 | BN35: NC | BO35: 0 | BP35: 0 | BQ35: NC | BR35: 0 | BS35: NC | BT35: 0 | BU35: NC | BV35: 0 | BW35: 0 | CL35: NC | CM35: 0 | CN35: NC | CO35: 0 | CP35: NC | CQ35: 0 | CR35: 0 | DN35: 1 | DO35: 44.4
B36: 27 | C36: MARCOS TADEU MACHADO JUNIOR | D36: TERLANO DO RIOACIMA (IA) | E36: AM | BJ36: NC | BK36: 0 | BL36: NC | BM36: 0 | BN36: NC | BO36: 0 | BP36: 0 | BQ36: NC | BR36: 0 | BS36: NC | BT36: 0 | BU36: NC | BV36: 0 | BW36: 0 | BX36: 4 | BY36: 10 | BZ36: 7 | CA36: 6 | CB36: 11 | CC36: 2 | CD36: =CC36+CA36+BY36 -> 18 | CE36: 5 | CF36: 14.4 | CG36: NC | CH36: 0 | CI36: NC | CJ36: 0 | CK36: =CJ36+CH36+CF36 -> 14.4 | CL36: NC | CM36: 0 | CN36: NC | CO36: 0 | CP36: NC | CQ36: 0 | CR36: 0 | CZ36: 7 | DA36: 9 | DB36: ELI | DC36: 0 | DD36: 13 | DE36: 3 | DF36: =DE36+DC36+DA36 -> 12 | DN36: 3 | DO36: 44.4
B37: 29 | C37: PEDRO GRANATO | D37: COSIMO POLANA (IA) | E37: AM | AA37: 19 | AB37: 0 | AC37: 4 | AD37: 15.6 | AE37: 26 | AF37: 0 | AG37: =AF37+AD37+AB37 -> 15.6 | BC37: 9 | BD37: 9.6 | BE37: 16 | BF37: 1.2 | BG37: 25 | BH37: 0 | BI37: =BH37+BF37+BD37 -> 10.8 | BJ37: NC | BK37: 0 | BL37: NC | BM37: 0 | BN37: NC | BO37: 0 | BP37: 0 | BQ37: NC | BR37: 0 | BS37: NC | BT37: 0 | BU37: NC | BV37: 0 | BW37: 0 | BX37: 6 | BY37: 8 | BZ37: 8 | CA37: 5 | CB37: 9 | CC37: 4 | CD37: =CC37+CA37+BY37 -> 17 | CL37: NC | CM37: 0 | CN37: NC | CO37: 0 | CP37: NC | CQ37: 0 | CR37: 0 | DN37: 3 | DO37: 43.4
B38: 30 | C38: FERNANDA BARACHO | D38: SINCLANDA JOTER (TE) | E38: AM | AH38: 5 | AI38: 13.2 | AJ38: 5 | AK38: 14.4 | AL38: 3 | AM38: 12 | AN38: =AM38+AK38+AI38 -> 39.6 | BJ38: NC | BK38: 0 | BL38: NC | BM38: 0 | BN38: NC | BO38: 0 | BP38: 0 | BQ38: NC | BR38: 0 | BS38: NC | BT38: 0 | BU38: NC | BV38: 0 | BW38: 0 | CL38: NC | CM38: 0 | CN38: NC | CO38: 0 | CP38: NC | CQ38: 0 | CR38: 0 | DN38: 1 | DO38: 39.6
B39: 31 | C39: YASMIN CARMONA | D39: HORACIO JMEN (IA) | E39: AM | F39: 9 | G39: 8.8 | H39: 14 | I39: 3.3 | J39: 6 | K39: 11 | L39: =K39+I39+G39 -> 23.1 | BC39: 30 | BD39: 0 | BE39: 11 | BF39: 7.2 | BG39: 10 | BH39: 7.7 | BI39: =BH39+BF39+BD39 -> 14.9 | BJ39: NC | BK39: 0 | BL39: NC | BM39: 0 | BN39: NC | BO39: 0 | BP39: 0 | BQ39: NC | BR39: 0 | BS39: NC | BT39: 0 | BU39: NC | BV39: 0 | BW39: 0 | CL39: NC | CM39: 0 | CN39: NC | CO39: 0 | CP39: NC | CQ39: 0 | CR39: 0 | DN39: 2 | DO39: 38
B40: 32 | C40: FERNANDA DIB GABRIEL | D40: IMIRIM ITAPUA | E40: AM | AA40: 17 | AB40: 0 | AC40: 24 | AD40: 0 | AE40: DES | AF40: 0 | AG40: =AF40+AD40+AB40 -> 0 | AH40: 16 | AI40: 1.1 | AJ40: 11 | AK40: 7.2 | AL40: 6 | AM40: 8 | AN40: =AM40+AK40+AI40 -> 16.3 | BC40: 12 | BD40: 6 | BE40: 4 | BF40: 15.6 | BG40: 23 | BH40: 0 | BI40: =BH40+BF40+BD40 -> 21.6 | BJ40: NC | BK40: 0 | BL40: NC | BM40: 0 | BN40: NC | BO40: 0 | BP40: 0 | BQ40: NC | BR40: 0 | BS40: NC | BT40: 0 | BU40: NC | BV40: 0 | BW40: 0 | CL40: NC | CM40: 0 | CN40: NC | CO40: 0 | CP40: NC | CQ40: 0 | CR40: 0 | DN40: 3 | DO40: 37.9
B41: 33 | C41: CAMILA PAULUCCI DER HAROUTIOUNIAN | D41: CRISTALLO | E41: AM | BJ41: NC | BK41: 0 | BL41: NC | BM41: 0 | BN41: NC | BO41: 0 | BP41: 0 | BQ41: NC | BR41: 0 | BS41: NC | BT41: 0 | BU41: NC | BV41: 0 | BW41: 0 | CE41: 30 | CF41: 0 | CG41: 23 | CH41: 0 | CI41: 8 | CJ41: 9.9 | CK41: =CJ41+CH41+CF41 -> 9.9 | CL41: NC | CM41: 0 | CN41: NC | CO41: 0 | CP41: NC | CQ41: 0 | CR41: 0 | DG41: 1 | DH41: 22 | DI41: 12 | DJ41: 5.5 | DM41: =DH41+DJ41 -> 27.5 | DN41: =SUBTOTAL(3,L41,S41,Z41,AG41,AN41,AU41,BB41,BI41,CD41,CK41,CY41,DF41,DM41) -> 2 | DO41: =DM41+DF41+CY41+CR41+CK41+CD41+BW41+BP41+BI41+BB41+AU41+AN41+AG41+Z41+S41+L41 -> 37.4
B42: 34 | C42: DANIELA AQUINO DE A. MARTINS | D42: ZARISMA | E42: AM | BC42: 17 | BD42: 0 | BE42: 1 | BF42: 24 | BG42: 5 | BH42: 13.2 | BI42: =BH42+BF42+BD42 -> 37.2 | BJ42: NC | BK42: 0 | BL42: NC | BM42: 0 | BN42: NC | BO42: 0 | BP42: 0 | BQ42: NC | BR42: 0 | BS42: NC | BT42: 0 | BU42: NC | BV42: 0 | BW42: 0 | CL42: NC | CM42: 0 | CN42: NC | CO42: 0 | CP42: NC | CQ42: 0 | CR42: 0 | DN42: 1 | DO42: 37.2
B43: 35 | C43: RICARDO LEONI MAFFEI | D43: LANDELLE TW | E43: M | F43: 15 | G43: 2.2 | H43: 10 | I43: 7.7 | J43: 16 | K43: 1 | L43: =K43+I43+G43 -> 10.9 | M43: 12 | N43: 5.5 | O43: 23 | P43: 0 | Q43: 19 | R43: 0 | S43: =R43+P43+N43 -> 5.5 | AA43: 32 | AB43: 0 | AC43: 42 | AD43: 0 | AE43: 35 | AF43: 0 | AG43: =AF43+AD43+AB43 -> 0 | AH43: 22 | AI43: 0 | AJ43: 30 | AK43: 0 | AL43: NC | AM43: 0 | AN43: =AM43+AK43+AI43 -> 0 | BC43: 32 | BD43: 0 | BE43: 40 | BF43: 0 | BG43: 31 | BH43: 0 | BI43: =BH43+BF43+BD43 -> 0 | BJ43: NC | BK43: 0 | BL43: NC | BM43: 0 | BN43: NC | BO43: 0 | BP43: 0 | BQ43: NC | BR43: 0 | BS43: NC | BT43: 0 | BU43: NC | BV43: 0 | BW43: 0 | CE43: 9 | CF43: 9.6 | CG43: 19 | CH43: 0 | CI43: 7 | CJ43: 11 | CK43: =CJ43+CH43+CF43 -> 20.6 | CL43: NC | CM43: 0 | CN43: NC | CO43: 0 | CP43: NC | CQ43: 0 | CR43: 0 | DN43: 6 | DO43: 37
B44: 36 | C44: NINA FRANZISKA BABBE | D44: CS XAUA (IA) | E44: M | F44: 5 | G44: 13.2 | H44: 4 | I44: 14.3 | J44: 11 | K44: 6 | L44: =K44+I44+G44 -> 33.5 | M44: 14 | N44: 3.3 | O44: 26 | P44: 0 | Q44: NC | R44: 0 | S44: =R44+P44+N44 -> 3.3 | BC44: NC | BD44: 0 | BE44: 41 | BF44: 0 | BG44: NC | BH44: 0 | BI44: =BH44+BF44+BD44 -> 0 | BJ44: NC | BK44: 0 | BL44: NC | BM44: 0 | BN44: NC | BO44: 0 | BP44: 0 | BQ44: NC | BR44: 0 | BS44: NC | BT44: 0 | BU44: NC | BV44: 0 | BW44: 0 | CL44: NC | CM44: 0 | CN44: NC | CO44: 0 | CP44: NC | CQ44: 0 | CR44: 0 | DN44: 3 | DO44: 36.8
B45: 37 | C45: THIENE CERNY CRUZ | D45: DELFINA POLANA (IA) | E45: AM | M45: 3 | N45: 16.5 | O45: 7 | P45: 11 | Q45: 9 | R45: 8.8 | S45: =R45+P45+N45 -> 36.3 | BC45: ELI | BD45: 0 | BE45: NC | BF45: 0 | BG45: NC | BH45: 0 | BI45: =BH45+BF45+BD45 -> 0 | BJ45: NC | BK45: 0 | BL45: NC | BM45: 0 | BN45: NC | BO45: 0 | BP45: 0 | BQ45: NC | BR45: 0 | BS45: NC | BT45: 0 | BU45: NC | BV45: 0 | BW45: 0 | CL45: NC | CM45: 0 | CN45: NC | CO45: 0 | CP45: NC | CQ45: 0 | CR45: 0 | DN45: 2 | DO45: 36.3
B46: 37 | C46: PAULA MARCHEZONI A.S. JUNQUEIRA | D46: POMEROL TW | E46: AM | BJ46: NC | BK46: 0 | BL46: NC | BM46: 0 | BN46: NC | BO46: 0 | BP46: 0 | BQ46: NC | BR46: 0 | BS46: NC | BT46: 0 | BU46: NC | BV46: 0 | BW46: 0 | CL46: NC | CM46: 0 | CN46: NC | CO46: 0 | CP46: NC | CQ46: 0 | CR46: 0 | DG46: 4 | DH46: 14.3 | DI46: 1 | DJ46: 22 | DM46: =DH46+DJ46 -> 36.3 | DN46: 1 | DO46: 36.3
B47: 39 | C47: RENATA AFONSO SCAFURO | D47: DAKOTA | E47: AM | AA47: 21 | AB47: 0 | AC47: 9 | AD47: 9.6 | AE47: 9 | AF47: 9.6 | AG47: =AF47+AD47+AB47 -> 19.2 | AH47: 11 | AI47: 6.6 | AJ47: 17 | AK47: 0 | AL47: NC | AM47: 0 | AN47: =AM47+AK47+AI47 -> 6.6 | BC47: 14 | BD47: 3.6 | BE47: 20 | BF47: 0 | BG47: 11 | BH47: 6.6 | BI47: =BH47+BF47+BD47 -> 10.2 | BJ47: NC | BK47: 0 | BL47: NC | BM47: 0 | BN47: NC | BO47: 0 | BP47: 0 | BQ47: NC | BR47: 0 | BS47: NC | BT47: 0 | BU47: NC | BV47: 0 | BW47: 0 | CL47: NC | CM47: 0 | CN47: NC | CO47: 0 | CP47: NC | CQ47: 0 | CR47: 0 | DN47: 3 | DO47: 36
B48: 40 | C48: ARIANE MIDORI ODA | D48: TENDENZ | E48: AM | F48: 7 | G48: 11 | H48: 18 | I48: 0 | J48: 3 | K48: 15 | L48: =K48+I48+G48 -> 26 | M48: NC | N48: 0 | O48: 8 | P48: 9.9 | Q48: ELI | R48: 0 | S48: =R48+P48+N48 -> 9.9 | BJ48: NC | BK48: 0 | BL48: NC | BM48: 0 | BN48: NC | BO48: 0 | BP48: 0 | BQ48: NC | BR48: 0 | BS48: NC | BT48: 0 | BU48: NC | BV48: 0 | BW48: 0 | CL48: NC | CM48: 0 | CN48: NC | CO48: 0 | CP48: NC | CQ48: 0 | CR48: 0 | DN48: 2 | DO48: 35.9
B49: 41 | C49: PAULA MARCHEZONI A.S. JUNQUEIRA | D49: GOLDLIFE CHCP | E49: AM | BC49: 6 | BD49: 13.2 | BE49: 14 | BF49: 3.6 | BG49: 2 | BH49: 18.7 | BI49: =BH49+BF49+BD49 -> 35.5 | BJ49: NC | BK49: 0 | BL49: NC | BM49: 0 | BN49: NC | BO49: 0 | BP49: 0 | BQ49: NC | BR49: 0 | BS49: NC | BT49: 0 | BU49: NC | BV49: 0 | BW49: 0 | CL49: NC | CM49: 0 | CN49: NC | CO49: 0 | CP49: NC | CQ49: 0 | CR49: 0 | DN49: 1 | DO49: 35.5
B50: 42 | C50: FLAVIA ROCHA MELLO DE AZEVEDO | D50: FOR-PLEASURE DA ESSENCIA (IA) | E50: AM | AV50: 8 | AW50: 6 | AX50: 3 | AY50: 13 | AZ50: 1 | BA50: 16 | BB50: =BA50+AY50+AW50 -> 35 | BJ50: NC | BK50: 0 | BL50: NC | BM50: 0 | BN50: NC | BO50: 0 | BP50: 0 | BQ50: NC | BR50: 0 | BS50: NC | BT50: 0 | BU50: NC | BV50: 0 | BW50: 0 | CL50: NC | CM50: 0 | CN50: NC | CO50: 0 | CP50: NC | CQ50: 0 | CR50: 0 | DN50: 1 | DO50: 35
B51: 43 | C51: KAMILA MIKSZA RIBAS PRESTES | D51: QUEEN P Z | E51: AM | AH51: 1 | AI51: 22 | AJ51: 14 | AK51: 3.6 | AL51: 8 | AM51: 6 | AN51: =AM51+AK51+AI51 -> 31.6 | BJ51: NC | BK51: 0 | BL51: NC | BM51: 0 | BN51: NC | BO51: 0 | BP51: 0 | BQ51: NC | BR51: 0 | BS51: NC | BT51: 0 | BU51: NC | BV51: 0 | BW51: 0 | CE51: 15 | CF51: 2.4 | CG51: NC | CH51: 0 | CI51: NC | CJ51: 0 | CK51: =CJ51+CH51+CF51 -> 2.4 | CL51: NC | CM51: 0 | CN51: NC | CO51: 0 | CP51: NC | CQ51: 0 | CR51: 0 | DN51: 2 | DO51: 34
B52: 44 | C52: ARIANE MIDORI ODA | D52: VERUSKA VILA FAL | E52: AM | BC52: 22 | BD52: 0 | BE52: 22 | BF52: 0 | BG52: 26 | BH52: 0 | BI52: =BH52+BF52+BD52 -> 0 | BJ52: NC | BK52: 0 | BL52: NC | BM52: 0 | BN52: NC | BO52: 0 | BP52: 0 | BQ52: NC | BR52: 0 | BS52: NC | BT52: 0 | BU52: NC | BV52: 0 | BW52: 0 | CE52: 17 | CF52: 0 | CG52: 17 | CH52: 0 | CI52: 5 | CJ52: 13.2 | CK52: =CJ52+CH52+CF52 -> 13.2 | CL52: NC | CM52: 0 | CN52: NC | CO52: 0 | CP52: NC | CQ52: 0 | CR52: 0 | DG52: 9 | DH52: 8.8 | DI52: 8 | DJ52: 9.9 | DM52: =DH52+DJ52 -> 18.7 | DN52: 3 | DO52: 31.9
B53: 44 | C53: IAGO FRAZAO NOGUEIRA | D53: CQC DO ARAUCARIA (IA) | E53: M | BJ53: NC | BK53: 0 | BL53: NC | BM53: 0 | BN53: NC | BO53: 0 | BP53: 0 | BQ53: NC | BR53: 0 | BS53: NC | BT53: 0 | BU53: NC | BV53: 0 | BW53: 0 | CE53: 6 | CF53: 13.2 | CG53: 15 | CH53: 2.2 | CI53: 3 | CJ53: 16.5 | CK53: =CJ53+CH53+CF53 -> 31.9 | CL53: NC | CM53: 0 | CN53: NC | CO53: 0 | CP53: NC | CQ53: 0 | CR53: 0 | DN53: 1 | DO53: 31.9
B54: 46 | C54: DANIEL ABBUD SARQUIS AIEX | D54: GOLD LANDA JMEN II (TE) | E54: AM | M54: NC | N54: 0 | O54: 13 | P54: 4.4 | Q54: 4 | R54: 14.3 | S54: =R54+P54+N54 -> 18.7 | BJ54: NC | BK54: 0 | BL54: NC | BM54: 0 | BN54: NC | BO54: 0 | BP54: 0 | BQ54: NC | BR54: 0 | BS54: NC | BT54: 0 | BU54: NC | BV54: 0 | BW54: 0 | BX54: 13 | BY54: 1 | BZ54: 6 | CA54: 7 | CB54: 8 | CC54: 5 | CD54: =CC54+CA54+BY54 -> 13 | CL54: NC | CM54: 0 | CN54: NC | CO54: 0 | CP54: NC | CQ54: 0 | CR54: 0 | DN54: 2 | DO54: 31.7
B55: 47 | C55: GABRIEL AMARO DO CARMO | D55: FREDY ITAPUA | E55: AM | BJ55: NC | BK55: 0 | BL55: NC | BM55: 0 | BN55: NC | BO55: 0 | BP55: 0 | BQ55: NC | BR55: 0 | BS55: NC | BT55: 0 | BU55: NC | BV55: 0 | BW55: 0 | CL55: NC | CM55: 0 | CN55: NC | CO55: 0 | CP55: NC | CQ55: 0 | CR55: 0 | CZ55: 4 | DA55: 12 | DB55: 3 | DC55: 15 | DD55: 12 | DE55: 4 | DF55: =DE55+DC55+DA55 -> 31 | DN55: 1 | DO55: 31
B56: 48 | C56: SUB TEN. NELSON PEREIRA BARROS | D56: SL BANGUE | E56: M | M56: 5 | N56: 13.2 | O56: 12 | P56: 5.5 | Q56: 6 | R56: 12.1 | S56: =R56+P56+N56 -> 30.8 | BJ56: NC | BK56: 0 | BL56: NC | BM56: 0 | BN56: NC | BO56: 0 | BP56: 0 | BQ56: NC | BR56: 0 | BS56: NC | BT56: 0 | BU56: NC | BV56: 0 | BW56: 0 | CL56: NC | CM56: 0 | CN56: NC | CO56: 0 | CP56: NC | CQ56: 0 | CR56: 0 | DN56: 1 | DO56: 30.8
B57: 48 | C57: BRUNA LOUISE VARGAS | D57: LUMINA GJ | E57: AM | BJ57: NC | BK57: 0 | BL57: NC | BM57: 0 | BN57: NC | BO57: 0 | BP57: 0 | BQ57: NC | BR57: 0 | BS57: NC | BT57: 0 | BU57: NC | BV57: 0 | BW57: 0 | CE57: 29 | CF57: 0 | CG57: 12 | CH57: 5.5 | CI57: 12 | CJ57: 5.5 | CK57: =CJ57+CH57+CF57 -> 11 | CL57: NC | CM57: 0 | CN57: NC | CO57: 0 | CP57: NC | CQ57: 0 | CR57: 0 | DG57: 11 | DH57: 6.6 | DI57: 5 | DJ57: 13.2 | DM57: =DH57+DJ57 -> 19.8 | DN57: 2 | DO57: 30.8
B58: 50 | C58: ANDRE LUIZ SANTOS DE SOUZA | D58: SL CHINSARI (IA) | E58: AM | M58: 11 | N58: 6.6 | O58: 1 | P58: 22 | Q58: 16 | R58: 1.1 | S58: =R58+P58+N58 -> 29.7 | BJ58: NC | BK58: 0 | BL58: NC | BM58: 0 | BN58: NC | BO58: 0 | BP58: 0 | BQ58: NC | BR58: 0 | BS58: NC | BT58: 0 | BU58: NC | BV58: 0 | BW58: 0 | CL58: NC | CM58: 0 | CN58: NC | CO58: 0 | CP58: NC | CQ58: 0 | CR58: 0 | DN58: 1 | DO58: 29.7
B59: 51 | C59: RAFAELLA MEDEIROS MULLER | D59: GIOCONDA JMEN (TE) | E59: AM | AV59: 2 | AW59: 14 | AX59: 8 | AY59: 7 | AZ59: 5 | BA59: 8 | BB59: =BA59+AY59+AW59 -> 29 | BJ59: NC | BK59: 0 | BL59: NC | BM59: 0 | BN59: NC | BO59: 0 | BP59: 0 | BQ59: NC | BR59: 0 | BS59: NC | BT59: 0 | BU59: NC | BV59: 0 | BW59: 0 | CL59: NC | CM59: 0 | CN59: NC | CO59: 0 | CP59: NC | CQ59: 0 | CR59: 0 | DN59: 1 | DO59: 29
B60: 52 | C60: GABRIELA DUQUE | D60: CUSCO HV (IA) | E60: AM | AA60: ELI | AB60: 0 | AC60: ELI | AD60: 0 | AE60: ELI | AF60: 0 | AG60: =AF60+AD60+AB60 -> 0 | AH60: 12 | AI60: 5.5 | AJ60: 16 | AK60: 1.2 | AL60: NC | AM60: 0 | AN60: =AM60+AK60+AI60 -> 6.7 | BC60: 13 | BD60: 4.8 | BE60: 33 | BF60: 0 | BG60: 30 | BH60: 0 | BI60: =BH60+BF60+BD60 -> 4.8 | BJ60: NC | BK60: 0 | BL60: NC | BM60: 0 | BN60: NC | BO60: 0 | BP60: 0 | BQ60: NC | BR60: 0 | BS60: NC | BT60: 0 | BU60: NC | BV60: 0 | BW60: 0 | CE60: 16 | CF60: 1.2 | CG60: ELI | CH60: 0 | CI60: 16 | CJ60: 1.1 | CK60: =CJ60+CH60+CF60 -> 2.3 | CL60: NC | CM60: 0 | CN60: NC | CO60: 0 | CP60: NC | CQ60: 0 | CR60: 0 | CS60: NC | CT60: 0 | CU60: 5 | CV60: 6 | CW60: 3 | CX60: 8 | CY60: =CX60+CV60+CT60 -> 14 | DN60: 5 | DO60: 27.8
B61: 53 | C61: GABRIELA LOPES MORGAN | D61: ACL ADELA (TE) | E61: AM | BJ61: NC | BK61: 0 | BL61: NC | BM61: 0 | BN61: NC | BO61: 0 | BP61: 0 | BQ61: NC | BR61: 0 | BS61: NC | BT61: 0 | BU61: NC | BV61: 0 | BW61: 0 | BX61: 2 | BY61: 14 | BZ61: 9 | CA61: 4 | CB61: 4 | CC61: 9 | CD61: =CC61+CA61+BY61 -> 27 | CL61: NC | CM61: 0 | CN61: NC | CO61: 0 | CP61: NC | CQ61: 0 | CR61: 0 | DN61: 1 | DO61: 27
B62: 54 | C62: MARCELO GIOVANETTI DARIENZO | D62: CAYETANA JMEN (IA) | E62: AM | F62: 11 | G62: 6.6 | H62: 7 | I62: 11 | J62: 8 | K62: 9 | L62: =K62+I62+G62 -> 26.6 | BJ62: NC | BK62: 0 | BL62: NC | BM62: 0 | BN62: NC | BO62: 0 | BP62: 0 | BQ62: NC | BR62: 0 | BS62: NC | BT62: 0 | BU62: NC | BV62: 0 | BW62: 0 | CL62: NC | CM62: 0 | CN62: NC | CO62: 0 | CP62: NC | CQ62: 0 | CR62: 0 | DN62: 1 | DO62: 26.6
B63: 54 | C63: RODRIGO OSTANEELLO | D63: HIGGENS | E63: AM | BJ63: NC | BK63: 0 | BL63: NC | BM63: 0 | BN63: NC | BO63: 0 | BP63: 0 | BQ63: NC | BR63: 0 | BS63: NC | BT63: 0 | BU63: NC | BV63: 0 | BW63: 0 | CL63: NC | CM63: 0 | CN63: NC | CO63: 0 | CP63: NC | CQ63: 0 | CR63: 0 | CZ63: 9 | DA63: 7 | DB63: 13 | DC63: 4 | DD63: 7 | DE63: 9 | DF63: =DE63+DC63+DA63 -> 20 | DG63: ELI | DH63: 0 | DI63: 11 | DJ63: 6.6 | DM63: =DH63+DJ63 -> 6.6 | DN63: 2 | DO63: 26.6
B64: 56 | C64: PATRICIA WATT VIANNA | D64: ETNA CARAVELA (IA) | E64: AM | BC64: 11 | BD64: 7.2 | BE64: 15 | BF64: 2.4 | BG64: 3 | BH64: 16.5 | BI64: =BH64+BF64+BD64 -> 26.1 | BJ64: NC | BK64: 0 | BL64: NC | BM64: 0 | BN64: NC | BO64: 0 | BP64: 0 | BQ64: NC | BR64: 0 | BS64: NC | BT64: 0 | BU64: NC | BV64: 0 | BW64: 0 | CL64: NC | CM64: 0 | CN64: NC | CO64: 0 | CP64: NC | CQ64: 0 | CR64: 0 | DN64: 1 | DO64: 26.1
B65: 57 | C65: VITOR PACHECO COSTA FORTES | D65: EVOQUE G (IA) | E65: AM | AV65: 4 | AW65: 10 | AX65: 5 | AY65: 10 | AZ65: 8 | BA65: 5 | BB65: =BA65+AY65+AW65 -> 25 | BJ65: NC | BK65: 0 | BL65: NC | BM65: 0 | BN65: NC | BO65: 0 | BP65: 0 | BQ65: NC | BR65: 0 | BS65: NC | BT65: 0 | BU65: NC | BV65: 0 | BW65: 0 | CL65: NC | CM65: 0 | CN65: NC | CO65: 0 | CP65: NC | CQ65: 0 | CR65: 0 | DN65: 1 | DO65: 25
B66: 58 | C66: RICARDO GANDOLFI | D66: COLANDRA JMEN III | E66: AM | AA66: NC | AB66: 0 | AC66: 12 | AD66: 6 | AE66: NC | AF66: 0 | AG66: =AF66+AD66+AB66 -> 6 | BC66: NC | BD66: 0 | BE66: 32 | BF66: 0 | BG66: NC | BH66: 0 | BI66: =BH66+BF66+BD66 -> 0 | BJ66: NC | BK66: 0 | BL66: NC | BM66: 0 | BN66: NC | BO66: 0 | BP66: 0 | BQ66: NC | BR66: 0 | BS66: NC | BT66: 0 | BU66: NC | BV66: 0 | BW66: 0 | CE66: 7 | CF66: 12 | CG66: 11 | CH66: 6.6 | CI66: NC | CJ66: 0 | CK66: =CJ66+CH66+CF66 -> 18.6 | CL66: NC | CM66: 0 | CN66: NC | CO66: 0 | CP66: NC | CQ66: 0 | CR66: 0 | DN66: 3 | DO66: 24.6
B67: 59 | C67: VITORIA GHIZONI JUNCKES | D67: HAPPY LADY | E67: AM | BJ67: NC | BK67: 0 | BL67: NC | BM67: 0 | BN67: NC | BO67: 0 | BP67: 0 | BQ67: NC | BR67: 0 | BS67: NC | BT67: 0 | BU67: NC | BV67: 0 | BW67: 0 | CL67: NC | CM67: 0 | CN67: NC | CO67: 0 | CP67: NC | CQ67: 0 | CR67: 0 | DG67: 8 | DH67: 9.9 | DI67: 4 | DJ67: 14.3 | DM67: =DH67+DJ67 -> 24.2 | DN67: 1 | DO67: 24.2
B68: 59 | C68: RIMANTAS SIPAS | D68: CERRO BRAVO JMEN IV | E68: M | BC68: 27 | BD68: 0 | BE68: 43 | BF68: 0 | BG68: 20 | BH68: 0 | BI68: =BH68+BF68+BD68 -> 0 | BJ68: NC | BK68: 0 | BL68: NC | BM68: 0 | BN68: NC | BO68: 0 | BP68: 0 | BQ68: NC | BR68: 0 | BS68: NC | BT68: 0 | BU68: NC | BV68: 0 | BW68: 0 | CE68: 18 | CF68: 0 | CG68: 3 | CH68: 16.5 | CI68: 10 | CJ68: 7.7 | CK68: =CJ68+CH68+CF68 -> 24.2 | CL68: NC | CM68: 0 | CN68: NC | CO68: 0 | CP68: NC | CQ68: 0 | CR68: 0 | DN68: 2 | DO68: 24.2
B69: 61 | C69: THIERRY DECOENE | D69: LENDA DA MATA | E69: AM | BJ69: NC | BK69: 0 | BL69: NC | BM69: 0 | BN69: NC | BO69: 0 | BP69: 0 | BQ69: NC | BR69: 0 | BS69: NC | BT69: 0 | BU69: NC | BV69: 0 | BW69: 0 | CL69: NC | CM69: 0 | CN69: NC | CO69: 0 | CP69: NC | CQ69: 0 | CR69: 0 | CZ69: NC | DA69: 0 | DB69: 14 | DC69: 3 | DD69: 8 | DE69: 8 | DF69: =DE69+DC69+DA69 -> 11 | DG69: 14 | DH69: 3.3 | DI69: 9 | DJ69: 8.8 | DM69: =DH69+DJ69 -> 12.1 | DN69: 2 | DO69: 23.1
B70: 61 | C70: TANIA LOUISE GREUEL | D70: QUINARA | E70: M | BJ70: NC | BK70: 0 | BL70: NC | BM70: 0 | BN70: NC | BO70: 0 | BP70: 0 | BQ70: NC | BR70: 0 | BS70: NC | BT70: 0 | BU70: NC | BV70: 0 | BW70: 0 | CL70: NC | CM70: 0 | CN70: NC | CO70: 0 | CP70: NC | CQ70: 0 | CR70: 0 | DG70: 7 | DH70: 11 | DI70: 6 | DJ70: 12.1 | DM70: =DH70+DJ70 -> 23.1 | DN70: 1 | DO70: 23.1
B71: 63 | C71: MARCELO GIOVANETTI DARIENZO | D71: CASCOLA | E71: AM | BJ71: NC | BK71: 0 | BL71: NC | BM71: 0 | BN71: NC | BO71: 0 | BP71: 0 | BQ71: NC | BR71: 0 | BS71: NC | BT71: 0 | BU71: NC | BV71: 0 | BW71: 0 | CL71: NC | CM71: 0 | CN71: NC | CO71: 0 | CP71: NC | CQ71: 0 | CR71: 0 | CZ71: 10 | DA71: 6 | DB71: 8 | DC71: 9 | DD71: 9 | DE71: 7 | DF71: =DE71+DC71+DA71 -> 22 | DN71: 1 | DO71: 22
B72: 63 | C72: CARLOS FELIPE DE SOUZA LEAO | D72: CARTHOES DA ESSENCIA | E72: AM | BJ72: NC | BK72: 0 | BL72: NC | BM72: 0 | BN72: NC | BO72: 0 | BP72: 0 | BQ72: NC | BR72: 0 | BS72: NC | BT72: 0 | BU72: NC | BV72: 0 | BW72: 0 | CL72: NC | CM72: 0 | CN72: NC | CO72: 0 | CP72: NC | CQ72: 0 | CR72: 0 | CZ72: 11 | DA72: 5 | DB72: 11 | DC72: 6 | DD72: 5 | DE72: 11 | DF72: =DE72+DC72+DA72 -> 22 | DN72: 1 | DO72: 22
B73: 63 | C73: MARCIA DE ARRUDA ROZO CURY | D73: CANDORA JMEN II (TE) | E73: M | BJ73: NC | BK73: 0 | BL73: NC | BM73: 0 | BN73: NC | BO73: 0 | BP73: 0 | BQ73: NC | BR73: 0 | BS73: NC | BT73: 0 | BU73: NC | BV73: 0 | BW73: 0 | CL73: NC | CM73: 0 | CN73: NC | CO73: 0 | CP73: NC | CQ73: 0 | CR73: 0 | CS73: 1 | CT73: 12 | CU73: ELI | CV73: 0 | CW73: 2 | CX73: 10 | CY73: =CX73+CV73+CT73 -> 22 | DN73: =SUBTOTAL(3,L73,S73,Z73,AG73,AN73,AU73,BB73,BI73,CD73,CK73,CY73,DF73,DM73) -> 1 | DO73: =DM73+DF73+CY73+CR73+CK73+CD73+BW73+BP73+BI73+BB73+AU73+AN73+AG73+Z73+S73+L73 -> 22
B74: 66 | C74: JOSE ANTONIO DINIZ | D74: NATALINA DE NALTESSE (TE) | E74: M | BJ74: NC | BK74: 0 | BL74: NC | BM74: 0 | BN74: NC | BO74: 0 | BP74: 0 | BQ74: NC | BR74: 0 | BS74: NC | BT74: 0 | BU74: NC | BV74: 0 | BW74: 0 | CL74: NC | CM74: 0 | CN74: NC | CO74: 0 | CP74: NC | CQ74: 0 | CR74: 0 | CZ74: 14 | DA74: 2 | DB74: 10 | DC74: 7 | DD74: 4 | DE74: 12 | DF74: =DE74+DC74+DA74 -> 21 | DN74: 1 | DO74: 21
B75: 67 | C75: RODRIGO MACHADO DE MORAES | D75: LORELEY JMEN | E75: M | F75: 18 | G75: 0 | H75: 13 | I75: 4.4 | J75: 14 | K75: 3 | L75: =K75+I75+G75 -> 7.4 | AA75: NC | AB75: 0 | AC75: 6 | AD75: 13.2 | AE75: NC | AF75: 0 | AG75: =AF75+AD75+AB75 -> 13.2 | AH75: NC | AI75: 0 | AJ75: 19 | AK75: 0 | AL75: NC | AM75: 0 | AN75: =AM75+AK75+AI75 -> 0 | BJ75: NC | BK75: 0 | BL75: NC | BM75: 0 | BN75: NC | BO75: 0 | BP75: 0 | BQ75: NC | BR75: 0 | BS75: NC | BT75: 0 | BU75: NC | BV75: 0 | BW75: 0 | CE75: NC | CF75: 0 | CG75: ELI | CH75: 0 | CI75: NC | CJ75: 0 | CK75: =CJ75+CH75+CF75 -> 0 | CL75: NC | CM75: 0 | CN75: NC | CO75: 0 | CP75: NC | CQ75: 0 | CR75: 0 | DN75: 4 | DO75: 20.6
B76: 68 | C76: DENNIS SARAIVA BRUSI | D76: BAKO DES ROCHES ROUGES | E76: M | F76: 16 | G76: 1.1 | H76: 6 | I76: 12.1 | J76: 10 | K76: 7 | L76: =K76+I76+G76 -> 20.2 | M76: 21 | N76: 0 | O76: 21 | P76: 0 | Q76: NC | R76: 0 | S76: =R76+P76+N76 -> 0 | AA76: DES | AB76: 0 | AC76: 43 | AD76: 0 | AE76: 30 | AF76: 0 | AG76: =AF76+AD76+AB76 -> 0 | BJ76: NC | BK76: 0 | BL76: NC | BM76: 0 | BN76: NC | BO76: 0 | BP76: 0 | BQ76: NC | BR76: 0 | BS76: NC | BT76: 0 | BU76: NC | BV76: 0 | BW76: 0 | CL76: NC | CM76: 0 | CN76: NC | CO76: 0 | CP76: NC | CQ76: 0 | CR76: 0 | DG76: FF | DH76: 0 | DI76: FF | DJ76: 0 | DM76: =DH76+DJ76 -> 0 | DN76: 4 | DO76: 20.2
B77: 68 | C77: ELOY VALLES PRIETO JR | D77: CASCADELA JMEN (TE) | E77: M | F77: NC | G77: 0 | H77: 5 | I77: 13.2 | J77: NC | K77: 0 | L77: =K77+I77+G77 -> 13.2 | BJ77: NC | BK77: 0 | BL77: NC | BM77: 0 | BN77: NC | BO77: 0 | BP77: 0 | BQ77: NC | BR77: 0 | BS77: NC | BT77: 0 | BU77: NC | BV77: 0 | BW77: 0 | CL77: NC | CM77: 0 | CN77: NC | CO77: 0 | CP77: NC | CQ77: 0 | CR77: 0 | CS77: NC | CT77: 0 | CU77: 4 | CV77: 7 | CW77: NC | CX77: 0 | CY77: =CX77+CV77+CT77 -> 7 | DN77: 2 | DO77: 20.2
B78: 70 | C78: MARTA BIER JOHANNPETER | D78: SRTA ACIANA JOTER | E78: AM | AO78: ELI | AP78: 0 | AQ78: 1 | AR78: 10 | AS78: 1 | AT78: 10 | AU78: =AT78+AR78+AP78 -> 20 | BJ78: NC | BK78: 0 | BL78: NC | BM78: 0 | BN78: NC | BO78: 0 | BP78: 0 | BQ78: NC | BR78: 0 | BS78: NC | BT78: 0 | BU78: NC | BV78: 0 | BW78: 0 | CL78: NC | CM78: 0 | CN78: NC | CO78: 0 | CP78: NC | CQ78: 0 | CR78: 0 | DN78: 1 | DO78: 20
B79: 70 | C79: MICHELLE WISCINIEMSKI DA SILVA | D79: JCR ZINEDINE (IA) | E79: AM | AO79: 2 | AP79: 8 | AQ79: 2 | AR79: 7 | AS79: 3 | AT79: 5 | AU79: =AT79+AR79+AP79 -> 20 | BJ79: NC | BK79: 0 | BL79: NC | BM79: 0 | BN79: NC | BO79: 0 | BP79: 0 | BQ79: NC | BR79: 0 | BS79: NC | BT79: 0 | BU79: NC | BV79: 0 | BW79: 0 | CL79: NC | CM79: 0 | CN79: NC | CO79: 0 | CP79: NC | CQ79: 0 | CR79: 0 | DN79: 1 | DO79: 20
B80: 72 | C80: ALEXANDRE GORBERG | D80: JOLLY BOY JB | E80: M | M80: 8 | N80: 9.9 | O80: 27 | P80: 0 | Q80: 8 | R80: 9.9 | S80: =R80+P80+N80 -> 19.8 | BC80: 21 | BD80: 0 | BE80: 35 | BF80: 0 | BG80: 28 | BH80: 0 | BI80: =BH80+BF80+BD80 -> 0 | BJ80: NC | BK80: 0 | BL80: NC | BM80: 0 | BN80: NC | BO80: 0 | BP80: 0 | BQ80: NC | BR80: 0 | BS80: NC | BT80: 0 | BU80: NC | BV80: 0 | BW80: 0 | CL80: NC | CM80: 0 | CN80: NC | CO80: 0 | CP80: NC | CQ80: 0 | CR80: 0 | DN80: 2 | DO80: 19.8
B81: 73 | C81: SOFIA MONTEIRO DA SILVA SCHEER | D81: BRIDGIT DO REFUGIO (TE) | E81: AM | AH81: 14 | AI81: 3.3 | AJ81: 7 | AK81: 12 | AL81: 10 | AM81: 4 | AN81: =AM81+AK81+AI81 -> 19.3 | BJ81: NC | BK81: 0 | BL81: NC | BM81: 0 | BN81: NC | BO81: 0 | BP81: 0 | BQ81: NC | BR81: 0 | BS81: NC | BT81: 0 | BU81: NC | BV81: 0 | BW81: 0 | CL81: NC | CM81: 0 | CN81: NC | CO81: 0 | CP81: NC | CQ81: 0 | CR81: 0 | DN81: 1 | DO81: 19.3
B82: 74 | C82: GENTIL FERREIRA GOMES LINHARES | D82: JASMIN | E82: AM | AV82: 5 | AW82: 9 | AX82: 12 | AY82: 3 | AZ82: 6 | BA82: 7 | BB82: =BA82+AY82+AW82 -> 19 | BJ82: NC | BK82: 0 | BL82: NC | BM82: 0 | BN82: NC | BO82: 0 | BP82: 0 | BQ82: NC | BR82: 0 | BS82: NC | BT82: 0 | BU82: NC | BV82: 0 | BW82: 0 | CL82: NC | CM82: 0 | CN82: NC | CO82: 0 | CP82: NC | CQ82: 0 | CR82: 0 | DN82: 1 | DO82: 19
B83: 75 | C83: SERGINO RIBEIRO DE MENDONCA | D83: CASSINGER JMEN (TE) | E83: M | BC83: 29 | BD83: 0 | BE83: 42 | BF83: 0 | BG83: 12 | BH83: 5.5 | BI83: =BH83+BF83+BD83 -> 5.5 | BJ83: NC | BK83: 0 | BL83: NC | BM83: 0 | BN83: NC | BO83: 0 | BP83: 0 | BQ83: NC | BR83: 0 | BS83: NC | BT83: 0 | BU83: NC | BV83: 0 | BW83: 0 | CL83: NC | CM83: 0 | CN83: NC | CO83: 0 | CP83: NC | CQ83: 0 | CR83: 0 | DG83: 15 | DH83: 2.2 | DI83: 7 | DJ83: 11 | DM83: =DH83+DJ83 -> 13.2 | DN83: 2 | DO83: 18.7
B84: 76 | C84: ROBERTA TERMANN TAVARES | D84: CANTY JOTER (IA) | E84: AM | AO84: 1 | AP84: 11 | AQ84: ELI | AR84: 0 | AS84: 2 | AT84: 7 | AU84: =AT84+AR84+AP84 -> 18 | BJ84: NC | BK84: 0 | BL84: NC | BM84: 0 | BN84: NC | BO84: 0 | BP84: 0 | BQ84: NC | BR84: 0 | BS84: NC | BT84: 0 | BU84: NC | BV84: 0 | BW84: 0 | CL84: NC | CM84: 0 | CN84: NC | CO84: 0 | CP84: NC | CQ84: 0 | CR84: 0 | DN84: 1 | DO84: 18
B85: 76 | C85: FELIPE CARVALHO GOMES VENTURA | D85: STAKKARTA | E85: AM | BC85: NC | BD85: 0 | BE85: 3 | BF85: 18 | BG85: NC | BH85: 0 | BI85: =BH85+BF85+BD85 -> 18 | BJ85: NC | BK85: 0 | BL85: NC | BM85: 0 | BN85: NC | BO85: 0 | BP85: 0 | BQ85: NC | BR85: 0 | BS85: NC | BT85: 0 | BU85: NC | BV85: 0 | BW85: 0 | CL85: NC | CM85: 0 | CN85: NC | CO85: 0 | CP85: NC | CQ85: 0 | CR85: 0 | DN85: 1 | DO85: 18
B86: 76 | C86: FREDERICO MORETZSOHN | D86: FRENCHMAN D.S Z | E86: AM | BJ86: NC | BK86: 0 | BL86: NC | BM86: 0 | BN86: NC | BO86: 0 | BP86: 0 | BQ86: NC | BR86: 0 | BS86: NC | BT86: 0 | BU86: NC | BV86: 0 | BW86: 0 | BX86: 10 | BY86: 4 | BZ86: 5 | CA86: 8 | CB86: 7 | CC86: 6 | CD86: =CC86+CA86+BY86 -> 18 | CL86: NC | CM86: 0 | CN86: NC | CO86: 0 | CP86: NC | CQ86: 0 | CR86: 0 | DN86: 1 | DO86: 18
B87: 79 | C87: PAULA MARCHEZONI A.S. JUNQUEIRA | D87: JCR CARTHIARA | E87: AM | BJ87: NC | BK87: 0 | BL87: NC | BM87: 0 | BN87: NC | BO87: 0 | BP87: 0 | BQ87: NC | BR87: 0 | BS87: NC | BT87: 0 | BU87: NC | BV87: 0 | BW87: 0 | CL87: NC | CM87: 0 | CN87: NC | CO87: 0 | CP87: NC | CQ87: 0 | CR87: 0 | DG87: 5 | DH87: 13.2 | DI87: 13 | DJ87: 4.4 | DM87: =DH87+DJ87 -> 17.6 | DN87: 1 | DO87: 17.6
B88: 80 | C88: BEATRIZ BIER JOHANNPETER | D88: CENTAURO D´OLYMPO (IA) | E88: AM | AA88: NC | AB88: 0 | AC88: 17 | AD88: 0 | AE88: 18 | AF88: 0 | AG88: =AF88+AD88+AB88 -> 0 | AH88: NC | AI88: 0 | AJ88: 21 | AK88: 0 | AL88: NC | AM88: 0 | AN88: =AM88+AK88+AI88 -> 0 | AO88: 3 | AP88: 6 | AQ88: 5 | AR88: 2 | AS88: 4 | AT88: 3 | AU88: =AT88+AR88+AP88 -> 11 | BC88: 20 | BD88: 0 | BE88: 12 | BF88: 6 | BG88: NC | BH88: 0 | BI88: =BH88+BF88+BD88 -> 6 | BJ88: NC | BK88: 0 | BL88: NC | BM88: 0 | BN88: NC | BO88: 0 | BP88: 0 | BQ88: NC | BR88: 0 | BS88: NC | BT88: 0 | BU88: NC | BV88: 0 | BW88: 0 | CL88: NC | CM88: 0 | CN88: NC | CO88: 0 | CP88: NC | CQ88: 0 | CR88: 0 | DN88: 4 | DO88: 17
B89: 81 | C89: DENNIS SARAIVA BRUSI | D89: CENTONELA JMEN | E89: M | F89: 8 | G89: 9.9 | H89: 15 | I89: 2.2 | J89: 15 | K89: 2 | L89: =K89+I89+G89 -> 14.1 | M89: 15 | N89: 2.2 | O89: 24 | P89: 0 | Q89: ELI | R89: 0 | S89: =R89+P89+N89 -> 2.2 | BC89: 23 | BD89: 0 | BE89: 27 | BF89: 0 | BG89: 21 | BH89: 0 | BI89: =BH89+BF89+BD89 -> 0 | BJ89: NC | BK89: 0 | BL89: NC | BM89: 0 | BN89: NC | BO89: 0 | BP89: 0 | BQ89: NC | BR89: 0 | BS89: NC | BT89: 0 | BU89: NC | BV89: 0 | BW89: 0 | CL89: NC | CM89: 0 | CN89: NC | CO89: 0 | CP89: NC | CQ89: 0 | CR89: 0 | DN89: 3 | DO89: 16.3
B90: 82 | C90: TENENTE DANILO MACHADO | D90: HF INDIHEART | E90: AM | AV90: 3 | AW90: 12 | AX90: ELI | AY90: 0 | AZ90: 10 | BA90: 3 | BB90: =BA90+AY90+AW90 -> 15 | BJ90: NC | BK90: 0 | BL90: NC | BM90: 0 | BN90: NC | BO90: 0 | BP90: 0 | BQ90: NC | BR90: 0 | BS90: NC | BT90: 0 | BU90: NC | BV90: 0 | BW90: 0 | CL90: NC | CM90: 0 | CN90: NC | CO90: 0 | CP90: NC | CQ90: 0 | CR90: 0 | DN90: 1 | DO90: 15
B91: 82 | C91: ANA LUISA FERNANDES | D91: SL SADDAM (TE) | E91: AM | AV91: 7 | AW91: 7 | AX91: 13 | AY91: 2 | AZ91: 7 | BA91: 6 | BB91: =BA91+AY91+AW91 -> 15 | BJ91: NC | BK91: 0 | BL91: NC | BM91: 0 | BN91: NC | BO91: 0 | BP91: 0 | BQ91: NC | BR91: 0 | BS91: NC | BT91: 0 | BU91: NC | BV91: 0 | BW91: 0 | CL91: NC | CM91: 0 | CN91: NC | CO91: 0 | CP91: NC | CQ91: 0 | CR91: 0 | DN91: 1 | DO91: 15
B92: 82 | C92: LUCAS ROLEMBERG ALVES | D92: FOLTAIRE COOPER (IA) | E92: AM | AV92: 9 | AW92: 5 | AX92: 9 | AY92: 6 | AZ92: 9 | BA92: 4 | BB92: =BA92+AY92+AW92 -> 15 | BJ92: NC | BK92: 0 | BL92: NC | BM92: 0 | BN92: NC | BO92: 0 | BP92: 0 | BQ92: NC | BR92: 0 | BS92: NC | BT92: 0 | BU92: NC | BV92: 0 | BW92: 0 | CL92: NC | CM92: 0 | CN92: NC | CO92: 0 | CP92: NC | CQ92: 0 | CR92: 0 | DN92: 1 | DO92: 15
B93: 82 | C93: ROBERTO PODVAL | D93: COLMEIA HV (IA) | E93: M | AA93: 25 | AB93: 0 | AC93: 16 | AD93: 1.2 | AE93: 13 | AF93: 4.8 | AG93: =AF93+AD93+AB93 -> 6 | AH93: 20 | AI93: 0 | AJ93: 12 | AK93: 6 | AL93: NC | AM93: 0 | AN93: =AM93+AK93+AI93 -> 6 | BJ93: NC | BK93: 0 | BL93: NC | BM93: 0 | BN93: NC | BO93: 0 | BP93: 0 | BQ93: NC | BR93: 0 | BS93: NC | BT93: 0 | BU93: NC | BV93: 0 | BW93: 0 | CL93: NC | CM93: 0 | CN93: NC | CO93: 0 | CP93: NC | CQ93: 0 | CR93: 0 | CZ93: 13 | DA93: 3 | DB93: ELI | DC93: 0 | DD93: NC | DE93: 0 | DF93: =DE93+DC93+DA93 -> 3 | DN93: 3 | DO93: 15
B94: 86 | C94: ARIANE MIDORI ODA | D94: YOU-TOO VILA FAL (IA) | E94: AM | F94: 4 | G94: 14.3 | H94: NC | I94: 0 | J94: NC | K94: 0 | L94: =K94+I94+G94 -> 14.3 | BJ94: NC | BK94: 0 | BL94: NC | BM94: 0 | BN94: NC | BO94: 0 | BP94: 0 | BQ94: NC | BR94: 0 | BS94: NC | BT94: 0 | BU94: NC | BV94: 0 | BW94: 0 | CL94: NC | CM94: 0 | CN94: NC | CO94: 0 | CP94: NC | CQ94: 0 | CR94: 0 | DN94: 1 | DO94: 14.3
B95: 87 | C95: TASSIUS HALABI | D95: NEW-YORK NEW-YORK 2S | E95: AM | BJ95: NC | BK95: 0 | BL95: NC | BM95: 0 | BN95: NC | BO95: 0 | BP95: 0 | BQ95: NC | BR95: 0 | BS95: NC | BT95: 0 | BU95: NC | BV95: 0 | BW95: 0 | BX95: 11 | BY95: 3 | BZ95: 10 | CA95: 3 | CB95: 5 | CC95: 8 | CD95: =CC95+CA95+BY95 -> 14 | CL95: NC | CM95: 0 | CN95: NC | CO95: 0 | CP95: NC | CQ95: 0 | CR95: 0 | DN95: 1 | DO95: 14
B96: 87 | C96: CAMILA HORO GIL | D96: CS CAZUZA (IA) | E96: AM | BJ96: NC | BK96: 0 | BL96: NC | BM96: 0 | BN96: NC | BO96: 0 | BP96: 0 | BQ96: NC | BR96: 0 | BS96: NC | BT96: 0 | BU96: NC | BV96: 0 | BW96: 0 | CE96: NC | CF96: 0 | CG96: 20 | CH96: 0 | CI96: NC | CJ96: 0 | CK96: =CJ96+CH96+CF96 -> 0 | CL96: NC | CM96: 0 | CN96: NC | CO96: 0 | CP96: NC | CQ96: 0 | CR96: 0 | CZ96: 15 | DA96: 1 | DB96: 6 | DC96: 11 | DD96: 14 | DE96: 2 | DF96: =DE96+DC96+DA96 -> 14 | DN96: 2 | DO96: 14
B97: 87 | C97: ALEXANDRE GORBERG | D97: VINDOCTRA DAS CATARATAS (IA) | E97: AM | BJ97: NC | BK97: 0 | BL97: NC | BM97: 0 | BN97: NC | BO97: 0 | BP97: 0 | BQ97: NC | BR97: 0 | BS97: NC | BT97: 0 | BU97: NC | BV97: 0 | BW97: 0 | CL97: NC | CM97: 0 | CN97: NC | CO97: 0 | CP97: NC | CQ97: 0 | CR97: 0 | CZ97: 12 | DA97: 4 | DB97: 7 | DC97: 10 | DD97: ELI | DE97: 0 | DF97: =DE97+DC97+DA97 -> 14 | DN97: 1 | DO97: 14
B98: 87 | C98: THAIS BONATTO BORGHI E SILVA | D98: WOLBRIND SH | E98: AM | BJ98: NC | BK98: 0 | BL98: NC | BM98: 0 | BN98: NC | BO98: 0 | BP98: 0 | BQ98: NC | BR98: 0 | BS98: NC | BT98: 0 | BU98: NC | BV98: 0 | BW98: 0 | CL98: NC | CM98: 0 | CN98: NC | CO98: 0 | CP98: NC | CQ98: 0 | CR98: 0 | CS98: 3 | CT98: 7 | CU98: 6 | CV98: 5 | CW98: 8 | CX98: 2 | CY98: =CX98+CV98+CT98 -> 14 | DN98: 1 | DO98: 14
B99: 91 | C99: MARCELO GIOVANETTI DARIENZO | D99: WINGINA | E99: AM | F99: 13 | G99: 4.4 | H99: 9 | I99: 8.8 | J99: NC | K99: 0 | L99: =K99+I99+G99 -> 13.2 | BJ99: NC | BK99: 0 | BL99: NC | BM99: 0 | BN99: NC | BO99: 0 | BP99: 0 | BQ99: NC | BR99: 0 | BS99: NC | BT99: 0 | BU99: NC | BV99: 0 | BW99: 0 | CL99: NC | CM99: 0 | CN99: NC | CO99: 0 | CP99: NC | CQ99: 0 | CR99: 0 | DN99: 1 | DO99: 13.2
B100: 91 | C100: FLAVIA HELENA JUNQUEIRA LOPES | D100: CRYSTAL SANTA DALILA (IA) | E100: M | AA100: NC | AB100: 0 | AC100: NC | AD100: 0 | AE100: 6 | AF100: 13.2 | AG100: =AF100+AD100+AB100 -> 13.2 | BC100: NC | BD100: 0 | BE100: 23 | BF100: 0 | BG100: NC | BH100: 0 | BI100: =BH100+BF100+BD100 -> 0 | BJ100: NC | BK100: 0 | BL100: NC | BM100: 0 | BN100: NC | BO100: 0 | BP100: 0 | BQ100: NC | BR100: 0 | BS100: NC | BT100: 0 | BU100: NC | BV100: 0 | BW100: 0 | CL100: NC | CM100: 0 | CN100: NC | CO100: 0 | CP100: NC | CQ100: 0 | CR100: 0 | DN100: 2 | DO100: 13.2
B101: 91 | C101: SIMONE MACEDO DOS S. COSTA | D101: DOROTY DO BOSQUE (IA) | E101: AM | M101: 10 | N101: 7.7 | O101: NC | P101: 0 | Q101: 12 | R101: 5.5 | S101: =R101+P101+N101 -> 13.2 | BJ101: NC | BK101: 0 | BL101: NC | BM101: 0 | BN101: NC | BO101: 0 | BP101: 0 | BQ101: NC | BR101: 0 | BS101: NC | BT101: 0 | BU101: NC | BV101: 0 | BW101: 0 | CL101: NC | CM101: 0 | CN101: NC | CO101: 0 | CP101: NC | CQ101: 0 | CR101: 0 | DN101: 1 | DO101: 13.2
B102: 91 | C102: LUIS FELIPE SALEK DICK | D102: FLICKA-DO-TRIO HT (IA) | E102: M | BJ102: NC | BK102: 0 | BL102: NC | BM102: 0 | BN102: NC | BO102: 0 | BP102: 0 | BQ102: NC | BR102: 0 | BS102: NC | BT102: 0 | BU102: NC | BV102: 0 | BW102: 0 | CE102: NC | CF102: 0 | CG102: 5 | CH102: 13.2 | CI102: 18 | CJ102: 0 | CK102: =CJ102+CH102+CF102 -> 13.2 | CL102: NC | CM102: 0 | CN102: NC | CO102: 0 | CP102: NC | CQ102: 0 | CR102: 0 | DN102: 1 | DO102: 13.2
B103: 95 | C103: FELIPE MUZZI LACERDA | D103: CASSINGER JMEN (TE) | E103: AM | BJ103: NC | BK103: 0 | BL103: NC | BM103: 0 | BN103: NC | BO103: 0 | BP103: 0 | BQ103: NC | BR103: 0 | BS103: NC | BT103: 0 | BU103: NC | BV103: 0 | BW103: 0 | BX103: 5 | BY103: 9 | BZ103: 12 | CA103: 1 | CB103: 10 | CC103: 3 | CD103: =CC103+CA103+BY103 -> 13 | CL103: NC | CM103: 0 | CN103: NC | CO103: 0 | CP103: NC | CQ103: 0 | CR103: 0 | DN103: 1 | DO103: 13
B104: 96 | C104: JULIANA DA COSTA BERNARDES | D104: CHRISTIANA B JMEN II (TE) | E104: AM | BJ104: NC | BK104: 0 | BL104: NC | BM104: 0 | BN104: NC | BO104: 0 | BP104: 0 | BQ104: NC | BR104: 0 | BS104: NC | BT104: 0 | BU104: NC | BV104: 0 | BW104: 0 | CE104: 20 | CF104: 0 | CG104: 18 | CH104: 0 | CI104: NC | CJ104: 0 | CK104: =CJ104+CH104+CF104 -> 0 | CL104: NC | CM104: 0 | CN104: NC | CO104: 0 | CP104: NC | CQ104: 0 | CR104: 0 | DG104: 13 | DH104: 4.4 | DI104: 10 | DJ104: 7.7 | DM104: =DH104+DJ104 -> 12.1 | DN104: 2 | DO104: 12.1
B105: 97 | C105: ALEXANDRE GORBERG | D105: CARA-AO-VENTO MC BRASIL | E105: M | AA105: 7 | AB105: 12 | AC105: 39 | AD105: 0 | AE105: NC | AF105: 0 | AG105: =AF105+AD105+AB105 -> 12 | AH105: 21 | AI105: 0 | AJ105: 27 | AK105: 0 | AL105: NC | AM105: 0 | AN105: =AM105+AK105+AI105 -> 0 | BJ105: NC | BK105: 0 | BL105: NC | BM105: 0 | BN105: NC | BO105: 0 | BP105: 0 | BQ105: NC | BR105: 0 | BS105: NC | BT105: 0 | BU105: NC | BV105: 0 | BW105: 0 | CL105: NC | CM105: 0 | CN105: NC | CO105: 0 | CP105: NC | CQ105: 0 | CR105: 0 | DN105: =SUBTOTAL(3,L105,S105,Z105,AG105,AN105,AU105,BB105,BI105,CD105,CK105,CY105,DF105,DM105) -> 2 | DO105: =DM105+DF105+CY105+CR105+CK105+CD105+BW105+BP105+BI105+BB105+AU105+AN105+AG105+Z105+S105+L105 -> 12
B106: 98 | C106: DIOGO VONTOBEL BREYER | D106: SINTIA JOTER | E106: AM | AO106: 4 | AP106: 4 | AQ106: 3 | AR106: 5 | AS106: 5 | AT106: 2 | AU106: =AT106+AR106+AP106 -> 11 | BJ106: NC | BK106: 0 | BL106: NC | BM106: 0 | BN106: NC | BO106: 0 | BP106: 0 | BQ106: NC | BR106: 0 | BS106: NC | BT106: 0 | BU106: NC | BV106: 0 | BW106: 0 | CL106: NC | CM106: 0 | CN106: NC | CO106: 0 | CP106: NC | CQ106: 0 | CR106: 0 | DN106: 1 | DO106: 11
B107: 98 | C107: RICARDO GANDOLFI | D107: BELLE-FLEUR JMEN (IA) | E107: AM | M107: 13 | N107: 4.4 | O107: 11 | P107: 6.6 | Q107: 20 | R107: 0 | S107: =R107+P107+N107 -> 11 | BJ107: NC | BK107: 0 | BL107: NC | BM107: 0 | BN107: NC | BO107: 0 | BP107: 0 | BQ107: NC | BR107: 0 | BS107: NC | BT107: 0 | BU107: NC | BV107: 0 | BW107: 0 | CL107: NC | CM107: 0 | CN107: NC | CO107: 0 | CP107: NC | CQ107: 0 | CR107: 0 | DN107: 1 | DO107: 11
B108: 98 | C108: GERALDO BANDEIRA DE MELO FILHO | D108: CASSINO-ROYALLE C JMEN (TE) | E108: AM | T108: 1 | U108: 7 | V108: 2 | W108: 4 | X108: NC | Y108: 0 | Z108: =Y108+W108+U108 -> 11 | BJ108: NC | BK108: 0 | BL108: NC | BM108: 0 | BN108: NC | BO108: 0 | BP108: 0 | BQ108: NC | BR108: 0 | BS108: NC | BT108: 0 | BU108: NC | BV108: 0 | BW108: 0 | CL108: NC | CM108: 0 | CN108: NC | CO108: 0 | CP108: NC | CQ108: 0 | CR108: 0 | DN108: 1 | DO108: 11
B109: 98 | C109: GUSTAVO GOMES RABELO | D109: LACOSTE MYSTIC ROSE (IA) | E109: AM | T109: 2 | U109: 4 | V109: 1 | W109: 7 | X109: 1 | Y109: 0 | Z109: =Y109+W109+U109 -> 11 | BJ109: NC | BK109: 0 | BL109: NC | BM109: 0 | BN109: NC | BO109: 0 | BP109: 0 | BQ109: NC | BR109: 0 | BS109: NC | BT109: 0 | BU109: NC | BV109: 0 | BW109: 0 | CL109: NC | CM109: 0 | CN109: NC | CO109: 0 | CP109: NC | CQ109: 0 | CR109: 0 | DN109: 1 | DO109: 11
B110: 98 | C110: NICHOLAS BARBARISI | D110: FLAMBEAU DU MONTSERRAT (IA) | E110: AM | M110: 9 | N110: 8.8 | O110: 20 | P110: 0 | Q110: 15 | R110: 2.2 | S110: =R110+P110+N110 -> 11 | BJ110: NC | BK110: 0 | BL110: NC | BM110: 0 | BN110: NC | BO110: 0 | BP110: 0 | BQ110: NC | BR110: 0 | BS110: NC | BT110: 0 | BU110: NC | BV110: 0 | BW110: 0 | CL110: NC | CM110: 0 | CN110: NC | CO110: 0 | CP110: NC | CQ110: 0 | CR110: 0 | DN110: 1 | DO110: 11
B111: 98 | C111: PAULO RICARDO DA SILVA | D111: CHAP TONIGHT CEQUIPEL (TE) | E111: AM | AH111: 7 | AI111: 11 | AJ111: 23 | AK111: 0 | AL111: NC | AM111: 0 | AN111: =AM111+AK111+AI111 -> 11 | BJ111: NC | BK111: 0 | BL111: NC | BM111: 0 | BN111: NC | BO111: 0 | BP111: 0 | BQ111: NC | BR111: 0 | BS111: NC | BT111: 0 | BU111: NC | BV111: 0 | BW111: 0 | CL111: NC | CM111: 0 | CN111: NC | CO111: 0 | CP111: NC | CQ111: 0 | CR111: 0 | DN111: 1 | DO111: 11
B112: 104 | C112: EDUARDO GAYOSO N. P. CERQUEIRA | D112: CAVALO Z | E112: AM | AA112: 41 | AB112: 0 | AC112: ELI | AD112: 0 | AE112: ELI | AF112: 0 | AG112: =AF112+AD112+AB112 -> 0 | AH112: 17 | AI112: 0 | AJ112: 10 | AK112: 8.4 | AL112: 12 | AM112: 2 | AN112: =AM112+AK112+AI112 -> 10.4 | BJ112: NC | BK112: 0 | BL112: NC | BM112: 0 | BN112: NC | BO112: 0 | BP112: 0 | BQ112: NC | BR112: 0 | BS112: NC | BT112: 0 | BU112: NC | BV112: 0 | BW112: 0 | CL112: NC | CM112: 0 | CN112: NC | CO112: 0 | CP112: NC | CQ112: 0 | CR112: 0 | DN112: 2 | DO112: 10.4
B113: 105 | C113: MARCELA CZARNESKI | D113: LORDLY JM (IA) | E113: AM | AV113: ELI | AW113: 0 | AX113: 7 | AY113: 8 | AZ113: 11 | BA113: 2 | BB113: =BA113+AY113+AW113 -> 10 | BJ113: NC | BK113: 0 | BL113: NC | BM113: 0 | BN113: NC | BO113: 0 | BP113: 0 | BQ113: NC | BR113: 0 | BS113: NC | BT113: 0 | BU113: NC | BV113: 0 | BW113: 0 | CL113: NC | CM113: 0 | CN113: NC | CO113: 0 | CP113: NC | CQ113: 0 | CR113: 0 | DN113: 1 | DO113: 10
B114: 105 | C114: DENNIS SARAIVA BRUSI | D114: SFE BELLAGIO (IA) | E114: M | BJ114: NC | BK114: 0 | BL114: NC | BM114: 0 | BN114: NC | BO114: 0 | BP114: 0 | BQ114: NC | BR114: 0 | BS114: NC | BT114: 0 | BU114: NC | BV114: 0 | BW114: 0 | CL114: NC | CM114: 0 | CN114: NC | CO114: 0 | CP114: NC | CQ114: 0 | CR114: 0 | CS114: 7 | CT114: 2 | CU114: 7 | CV114: 4 | CW114: 6 | CX114: 4 | CY114: =CX114+CV114+CT114 -> 10 | DG114: FF | DH114: 0 | DI114: FF | DJ114: 0 | DM114: =DH114+DJ114 -> 0 | DN114: 2 | DO114: 10
B115: 107 | C115: MARIO JOAO BOFF NETO | D115: HULK G (IA) | E115: AM | BC115: 19 | BD115: 0 | BE115: 17 | BF115: 0 | BG115: 8 | BH115: 9.9 | BI115: =BH115+BF115+BD115 -> 9.9 | BJ115: NC | BK115: 0 | BL115: NC | BM115: 0 | BN115: NC | BO115: 0 | BP115: 0 | BQ115: NC | BR115: 0 | BS115: NC | BT115: 0 | BU115: NC | BV115: 0 | BW115: 0 | CL115: NC | CM115: 0 | CN115: NC | CO115: 0 | CP115: NC | CQ115: 0 | CR115: 0 | DN115: 1 | DO115: 9.9
B116: 107 | C116: MARIA ELISA CONCEICAO GONZAGA | D116: SINDIVA JOTER | E116: AM | BJ116: NC | BK116: 0 | BL116: NC | BM116: 0 | BN116: NC | BO116: 0 | BP116: 0 | BQ116: NC | BR116: 0 | BS116: NC | BT116: 0 | BU116: NC | BV116: 0 | BW116: 0 | CL116: NC | CM116: 0 | CN116: NC | CO116: 0 | CP116: NC | CQ116: 0 | CR116: 0 | DG116: 10 | DH116: 7.7 | DI116: 15 | DJ116: 2.2 | DM116: =DH116+DJ116 -> 9.9 | DN116: 1 | DO116: 9.9
B117: 109 | C117: ISABEL NADALINI GONCALVES | D117: QUICK STAR Z | E117: AM | AA117: 36 | AB117: 0 | AC117: 31 | AD117: 0 | AE117: 25 | AF117: 0 | AG117: =AF117+AD117+AB117 -> 0 | BC117: 33 | BD117: 0 | BE117: 9 | BF117: 9.6 | BG117: 18 | BH117: 0 | BI117: =BH117+BF117+BD117 -> 9.6 | BJ117: NC | BK117: 0 | BL117: NC | BM117: 0 | BN117: NC | BO117: 0 | BP117: 0 | BQ117: NC | BR117: 0 | BS117: NC | BT117: 0 | BU117: NC | BV117: 0 | BW117: 0 | CL117: NC | CM117: 0 | CN117: NC | CO117: 0 | CP117: NC | CQ117: 0 | CR117: 0 | DN117: 2 | DO117: 9.6
B118: 109 | C118: FLAVIA HELENA JUNQUEIRA LOPES | D118: CHER DO ARAUCARIA (IA) | E118: M | AA118: 9 | AB118: 9.6 | AC118: 35 | AD118: 0 | AE118: 17 | AF118: 0 | AG118: =AF118+AD118+AB118 -> 9.6 | BC118: 31 | BD118: 0 | BE118: NC | BF118: 0 | BG118: NC | BH118: 0 | BI118: =BH118+BF118+BD118 -> 0 | BJ118: NC | BK118: 0 | BL118: NC | BM118: 0 | BN118: NC | BO118: 0 | BP118: 0 | BQ118: NC | BR118: 0 | BS118: NC | BT118: 0 | BU118: NC | BV118: 0 | BW118: 0 | CL118: NC | CM118: 0 | CN118: NC | CO118: 0 | CP118: NC | CQ118: 0 | CR118: 0 | DN118: 2 | DO118: 9.6
B119: 111 | C119: FABIANE BAUAB | D119: EVINE VDL | E119: M | AA119: 22 | AB119: 0 | AC119: 11 | AD119: 7.2 | AE119: NC | AF119: 0 | AG119: =AF119+AD119+AB119 -> 7.2 | AH119: 15 | AI119: 2.2 | AJ119: 29 | AK119: 0 | AL119: NC | AM119: 0 | AN119: =AM119+AK119+AI119 -> 2.2 | BJ119: NC | BK119: 0 | BL119: NC | BM119: 0 | BN119: NC | BO119: 0 | BP119: 0 | BQ119: NC | BR119: 0 | BS119: NC | BT119: 0 | BU119: NC | BV119: 0 | BW119: 0 | CL119: NC | CM119: 0 | CN119: NC | CO119: 0 | CP119: NC | CQ119: 0 | CR119: 0 | DN119: 2 | DO119: 9.4
B120: 112 | C120: PAULA XISTO CAMARA | D120: SL ORIENTE | E120: AM | BJ120: NC | BK120: 0 | BL120: NC | BM120: 0 | BN120: NC | BO120: 0 | BP120: 0 | BQ120: NC | BR120: 0 | BS120: NC | BT120: 0 | BU120: NC | BV120: 0 | BW120: 0 | BX120: 8 | BY120: 6 | BZ120: 11 | CA120: 2 | CB120: 12 | CC120: 1 | CD120: =CC120+CA120+BY120 -> 9 | CL120: NC | CM120: 0 | CN120: NC | CO120: 0 | CP120: NC | CQ120: 0 | CR120: 0 | DN120: 1 | DO120: 9
B121: 112 | C121: PAULA MOTTA MALUF | D121: CLARISSA WE | E121: AM | BJ121: NC | BK121: 0 | BL121: NC | BM121: 0 | BN121: NC | BO121: 0 | BP121: 0 | BQ121: NC | BR121: 0 | BS121: NC | BT121: 0 | BU121: NC | BV121: 0 | BW121: 0 | CL121: NC | CM121: 0 | CN121: NC | CO121: 0 | CP121: NC | CQ121: 0 | CR121: 0 | CS121: 6 | CT121: 3 | CU121: 8 | CV121: 3 | CW121: 7 | CX121: 3 | CY121: =CX121+CV121+CT121 -> 9 | DN121: 1 | DO121: 9
B122: 114 | C122: NATHALIA MARIA F. M. SCHAADT | D122: CENTONELA JMEN II | E122: AM | BJ122: NC | BK122: 0 | BL122: NC | BM122: 0 | BN122: NC | BO122: 0 | BP122: 0 | BQ122: NC | BR122: 0 | BS122: NC | BT122: 0 | BU122: NC | BV122: 0 | BW122: 0 | CE122: 32 | CF122: 0 | CG122: 9 | CH122: 8.8 | CI122: NC | CJ122: 0 | CK122: =CJ122+CH122+CF122 -> 8.8 | CL122: NC | CM122: 0 | CN122: NC | CO122: 0 | CP122: NC | CQ122: 0 | CR122: 0 | DN122: 1 | DO122: 8.8
B123: 114 | C123: GIOVANA ZAMITH | D123: LAUME PULLMAN | E123: AM | BJ123: NC | BK123: 0 | BL123: NC | BM123: 0 | BN123: NC | BO123: 0 | BP123: 0 | BQ123: NC | BR123: 0 | BS123: NC | BT123: 0 | BU123: NC | BV123: 0 | BW123: 0 | CL123: NC | CM123: 0 | CN123: NC | CO123: 0 | CP123: NC | CQ123: 0 | CR123: 0 | DG123: 12 | DH123: 5.5 | DI123: 14 | DJ123: 3.3 | DM123: =DH123+DJ123 -> 8.8 | DN123: 1 | DO123: 8.8
B124: 116 | C124: ROBERTA ALFINITO BARCHA | D124: CONDOCTRO TW (IA) | E124: AM | AA124: 12 | AB124: 6 | AC124: 23 | AD124: 0 | AE124: 15 | AF124: 2.4 | AG124: =AF124+AD124+AB124 -> 8.4 | BJ124: NC | BK124: 0 | BL124: NC | BM124: 0 | BN124: NC | BO124: 0 | BP124: 0 | BQ124: NC | BR124: 0 | BS124: NC | BT124: 0 | BU124: NC | BV124: 0 | BW124: 0 | CL124: NC | CM124: 0 | CN124: NC | CO124: 0 | CP124: NC | CQ124: 0 | CR124: 0 | DN124: 1 | DO124: 8.4
B125: 116 | C125: JOSE AFONSO F. DA SILVEIRA | D125: CARA-AO-VENTO MC BRASIL | E125: AM | BC125: NC | BD125: 0 | BE125: 10 | BF125: 8.4 | BG125: NC | BH125: 0 | BI125: =BH125+BF125+BD125 -> 8.4 | BJ125: NC | BK125: 0 | BL125: NC | BM125: 0 | BN125: NC | BO125: 0 | BP125: 0 | BQ125: NC | BR125: 0 | BS125: NC | BT125: 0 | BU125: NC | BV125: 0 | BW125: 0 | CL125: NC | CM125: 0 | CN125: NC | CO125: 0 | CP125: NC | CQ125: 0 | CR125: 0 | DN125: 1 | DO125: 8.4
B126: 118 | C126: LUCAS DIAS SANTOS | D126: CANTOBLANC | E126: AM | M126: 23 | N126: 0 | O126: 10 | P126: 7.7 | Q126: 22 | R126: 0 | S126: =R126+P126+N126 -> 7.7 | BJ126: NC | BK126: 0 | BL126: NC | BM126: 0 | BN126: NC | BO126: 0 | BP126: 0 | BQ126: NC | BR126: 0 | BS126: NC | BT126: 0 | BU126: NC | BV126: 0 | BW126: 0 | CL126: NC | CM126: 0 | CN126: NC | CO126: 0 | CP126: NC | CQ126: 0 | CR126: 0 | DN126: 1 | DO126: 7.7
B127: 118 | C127: GIULIANO CALDAS SCHERER | D127: EVOLUTION PREMIERE | E127: AM | BJ127: NC | BK127: 0 | BL127: NC | BM127: 0 | BN127: NC | BO127: 0 | BP127: 0 | BQ127: NC | BR127: 0 | BS127: NC | BT127: 0 | BU127: NC | BV127: 0 | BW127: 0 | CE127: NC | CF127: 0 | CG127: 10 | CH127: 7.7 | CI127: NC | CJ127: 0 | CK127: =CJ127+CH127+CF127 -> 7.7 | CL127: NC | CM127: 0 | CN127: NC | CO127: 0 | CP127: NC | CQ127: 0 | CR127: 0 | DN127: 1 | DO127: 7.7
B128: 120 | C128: MILTON JULIAO MARCONDES | D128: CHANKAR D JMEN III (TE) | E128: M | AA128: 20 | AB128: 0 | AC128: 14 | AD128: 3.6 | AE128: 14 | AF128: 3.6 | AG128: =AF128+AD128+AB128 -> 7.2 | BJ128: NC | BK128: 0 | BL128: NC | BM128: 0 | BN128: NC | BO128: 0 | BP128: 0 | BQ128: NC | BR128: 0 | BS128: NC | BT128: 0 | BU128: NC | BV128: 0 | BW128: 0 | CL128: NC | CM128: 0 | CN128: NC | CO128: 0 | CP128: NC | CQ128: 0 | CR128: 0 | DN128: 1 | DO128: 7.2
B129: 120 | C129: PAULA MARCHEZONI A.S. JUNQUEIRA | D129: BF JESSICA G (TE) | E129: AM | BJ129: NC | BK129: 0 | BL129: NC | BM129: 0 | BN129: NC | BO129: 0 | BP129: 0 | BQ129: NC | BR129: 0 | BS129: NC | BT129: 0 | BU129: NC | BV129: 0 | BW129: 0 | CE129: 11 | CF129: 7.2 | CG129: NC | CH129: 0 | CI129: NC | CJ129: 0 | CK129: =CJ129+CH129+CF129 -> 7.2 | CL129: NC | CM129: 0 | CN129: NC | CO129: 0 | CP129: NC | CQ129: 0 | CR129: 0 | DN129: 1 | DO129: 7.2
B130: 120 | C130: BEATRIZ BIER JOHANNPETER | D130: MURPHY TOK (IA) | E130: AM | BJ130: NC | BK130: 0 | BL130: NC | BM130: 0 | BN130: NC | BO130: 0 | BP130: 0 | BQ130: NC | BR130: 0 | BS130: NC | BT130: 0 | BU130: NC | BV130: 0 | BW130: 0 | CE130: 11 | CF130: 7.2 | CG130: NC | CH130: 0 | CI130: NC | CJ130: 0 | CK130: =CJ130+CH130+CF130 -> 7.2 | CL130: NC | CM130: 0 | CN130: NC | CO130: 0 | CP130: NC | CQ130: 0 | CR130: 0 | DN130: 1 | DO130: 7.2
B131: 12 | C131: LAILA FABI MOREIRA | D131: HFG QUEELIN (IA) | E131: AM | BJ131: NC | BK131: 0 | BL131: NC | BM131: 0 | BN131: NC | BO131: 0 | BP131: 0 | BQ131: NC | BR131: 0 | BS131: NC | BT131: 0 | BU131: NC | BV131: 0 | BW131: 0 | CE131: 31 | CF131: 0 | CG131: 24 | CH131: 0 | CI131: 11 | CJ131: 6.6 | CK131: =CJ131+CH131+CF131 -> 6.6 | CL131: NC | CM131: 0 | CN131: NC | CO131: 0 | CP131: NC | CQ131: 0 | CR131: 0 | DN131: 1 | DO131: 6.6
B132: 124 | C132: ANTONIO AUGUSTO PINENT TIGRE | D132: TIG EL CAPRICHO | E132: M | AO132: 5 | AP132: 3 | AQ132: 4 | AR132: 3 | AS132: ELI | AT132: 0 | AU132: =AT132+AR132+AP132 -> 6 | BJ132: NC | BK132: 0 | BL132: NC | BM132: 0 | BN132: NC | BO132: 0 | BP132: 0 | BQ132: NC | BR132: 0 | BS132: NC | BT132: 0 | BU132: NC | BV132: 0 | BW132: 0 | CL132: NC | CM132: 0 | CN132: NC | CO132: 0 | CP132: NC | CQ132: 0 | CR132: 0 | DN132: 1 | DO132: 6
B133: 124 | C133: DENNIS SARAIVA BRUSI | D133: GUIDAM METODO (IA) | E133: M | BJ133: NC | BK133: 0 | BL133: NC | BM133: 0 | BN133: NC | BO133: 0 | BP133: 0 | BQ133: NC | BR133: 0 | BS133: NC | BT133: 0 | BU133: NC | BV133: 0 | BW133: 0 | CL133: NC | CM133: 0 | CN133: NC | CO133: 0 | CP133: NC | CQ133: 0 | CR133: 0 | CS133: 8 | CT133: 1 | CU133: NC | CV133: 0 | CW133: 5 | CX133: 5 | CY133: =CX133+CV133+CT133 -> 6 | DN133: 1 | DO133: 6
B134: 126 | C134: RIMANTAS SIPAS | D134: SONADOR TOK (IA) | E134: M | F134: 19 | G134: 0 | H134: 19 | I134: 0 | J134: 12 | K134: 5 | L134: =K134+I134+G134 -> 5 | M134: NC | N134: 0 | O134: NC | P134: 0 | Q134: 21 | R134: 0 | S134: =R134+P134+N134 -> 0 | AA134: 26 | AB134: 0 | AC134: 40 | AD134: 0 | AE134: 33 | AF134: 0 | AG134: =AF134+AD134+AB134 -> 0 | BJ134: NC | BK134: 0 | BL134: NC | BM134: 0 | BN134: NC | BO134: 0 | BP134: 0 | BQ134: NC | BR134: 0 | BS134: NC | BT134: 0 | BU134: NC | BV134: 0 | BW134: 0 | CL134: NC | CM134: 0 | CN134: NC | CO134: 0 | CP134: NC | CQ134: 0 | CR134: 0 | DN134: 3 | DO134: 5
B135: 126 | C135: MATHEUS PASSOS QUEIROZ | D135: KIVETTE DO CACH (IA) | E135: AM | AV135: NC | AW135: 0 | AX135: 10 | AY135: 5 | AZ135: NC | BA135: 0 | BB135: =BA135+AY135+AW135 -> 5 | BJ135: NC | BK135: 0 | BL135: NC | BM135: 0 | BN135: NC | BO135: 0 | BP135: 0 | BQ135: NC | BR135: 0 | BS135: NC | BT135: 0 | BU135: NC | BV135: 0 | BW135: 0 | CL135: NC | CM135: 0 | CN135: NC | CO135: 0 | CP135: NC | CQ135: 0 | CR135: 0 | DN135: 1 | DO135: 5
B136: 126 | C136: DANIEL MOURA | D136: ZANDOR MAT (TE) | E136: AM | BJ136: NC | BK136: 0 | BL136: NC | BM136: 0 | BN136: NC | BO136: 0 | BP136: 0 | BQ136: NC | BR136: 0 | BS136: NC | BT136: 0 | BU136: NC | BV136: 0 | BW136: 0 | BX136: 9 | BY136: 5 | BZ136: NC | CA136: 0 | CB136: NC | CC136: 0 | CD136: =CC136+CA136+BY136 -> 5 | CL136: NC | CM136: 0 | CN136: NC | CO136: 0 | CP136: NC | CQ136: 0 | CR136: 0 | DN136: 1 | DO136: 5
B137: 129 | C137: NINA FRANZISKA BABBE | D137: CONGO ITAPUA | E137: M | AH137: NC | AI137: 0 | AJ137: 13 | AK137: 4.8 | AL137: NC | AM137: 0 | AN137: =AM137+AK137+AI137 -> 4.8 | BC137: NC | BD137: 0 | BE137: 24 | BF137: 0 | BG137: NC | BH137: 0 | BI137: =BH137+BF137+BD137 -> 0 | BJ137: NC | BK137: 0 | BL137: NC | BM137: 0 | BN137: NC | BO137: 0 | BP137: 0 | BQ137: NC | BR137: 0 | BS137: NC | BT137: 0 | BU137: NC | BV137: 0 | BW137: 0 | CL137: NC | CM137: 0 | CN137: NC | CO137: 0 | CP137: NC | CQ137: 0 | CR137: 0 | DN137: =SUBTOTAL(3,L137,S137,Z137,AG137,AN137,AU137,BB137,BI137,CD137,CK137,CY137,DF137,DM137) -> 2 | DO137: =DM137+DF137+CY137+CR137+CK137+CD137+BW137+BP137+BI137+BB137+AU137+AN137+AG137+Z137+S137+L137 -> 4.8
B138: 130 | C138: FELIPE CARVALHO GOMES VENTURA | D138: ISOLDA METODO (IA) | E138: AM | M138: 17 | N138: 0 | O138: 14 | P138: 3.3 | Q138: 18 | R138: 0 | S138: =R138+P138+N138 -> 3.3 | AA138: 34 | AB138: 0 | AC138: 34 | AD138: 0 | AE138: 16 | AF138: 1.2 | AG138: =AF138+AD138+AB138 -> 1.2 | AH138: 18 | AI138: 0 | AJ138: 26 | AK138: 0 | AL138: NC | AM138: 0 | AN138: =AM138+AK138+AI138 -> 0 | BJ138: NC | BK138: 0 | BL138: NC | BM138: 0 | BN138: NC | BO138: 0 | BP138: 0 | BQ138: NC | BR138: 0 | BS138: NC | BT138: 0 | BU138: NC | BV138: 0 | BW138: 0 | CL138: NC | CM138: 0 | CN138: NC | CO138: 0 | CP138: NC | CQ138: 0 | CR138: 0 | DN138: 3 | DO138: 4.5
B139: 131 | C139: THIERRY DECOENE | D139: CHAPARRAL JMEN II (TE) | E139: AM | M139: NC | N139: 0 | O139: 17 | P139: 0 | Q139: 13 | R139: 4.4 | S139: =R139+P139+N139 -> 4.4 | BC139: NC | BD139: 0 | BE139: 30 | BF139: 0 | BG139: NC | BH139: 0 | BI139: =BH139+BF139+BD139 -> 0 | BJ139: NC | BK139: 0 | BL139: NC | BM139: 0 | BN139: NC | BO139: 0 | BP139: 0 | BQ139: NC | BR139: 0 | BS139: NC | BT139: 0 | BU139: NC | BV139: 0 | BW139: 0 | CL139: NC | CM139: 0 | CN139: NC | CO139: 0 | CP139: NC | CQ139: 0 | CR139: 0 | DN139: 2 | DO139: 4.4
B140: 131 | C140: EDUARDO CINTRA SANTOS FILHO | D140: CEHJUR ANGELINA (IA) | E140: AM | BJ140: NC | BK140: 0 | BL140: NC | BM140: 0 | BN140: NC | BO140: 0 | BP140: 0 | BQ140: NC | BR140: 0 | BS140: NC | BT140: 0 | BU140: NC | BV140: 0 | BW140: 0 | CE140: NC | CF140: 0 | CG140: NC | CH140: 0 | CI140: 13 | CJ140: 4.4 | CK140: =CJ140+CH140+CF140 -> 4.4 | CL140: NC | CM140: 0 | CN140: NC | CO140: 0 | CP140: NC | CQ140: 0 | CR140: 0 | DN140: 1 | DO140: 4.4
B141: 133 | C141: GERALDO BANDEIRA DE MELO FILHO | D141: CASSILANO JMEN II (TE) | E141: AM | T141: 3 | U141: 2 | V141: 3 | W141: 2 | X141: 2 | Y141: 0 | Z141: =Y141+W141+U141 -> 4 | BJ141: NC | BK141: 0 | BL141: NC | BM141: 0 | BN141: NC | BO141: 0 | BP141: 0 | BQ141: NC | BR141: 0 | BS141: NC | BT141: 0 | BU141: NC | BV141: 0 | BW141: 0 | CL141: NC | CM141: 0 | CN141: NC | CO141: 0 | CP141: NC | CQ141: 0 | CR141: 0 | DN141: 1 | DO141: 4
B142: 133 | C142: GENTIL FERREIRA GOMES LINHARES | D142: ALDEBARAN 3K (IA) | E142: AM | AV142: NC | AW142: 0 | AX142: 11 | AY142: 4 | AZ142: NC | BA142: 0 | BB142: =BA142+AY142+AW142 -> 4 | BJ142: NC | BK142: 0 | BL142: NC | BM142: 0 | BN142: NC | BO142: 0 | BP142: 0 | BQ142: NC | BR142: 0 | BS142: NC | BT142: 0 | BU142: NC | BV142: 0 | BW142: 0 | CL142: NC | CM142: 0 | CN142: NC | CO142: 0 | CP142: NC | CQ142: 0 | CR142: 0 | DN142: 1 | DO142: 4
B143: 135 | C143: FABIANA RAMOS DE STEFANO | D143: TURMALINA DO RIOACIMA (IA) | E143: AM | BJ143: NC | BK143: 0 | BL143: NC | BM143: 0 | BN143: NC | BO143: 0 | BP143: 0 | BQ143: NC | BR143: 0 | BS143: NC | BT143: 0 | BU143: NC | BV143: 0 | BW143: 0 | CE143: NC | CF143: 0 | CG143: NC | CH143: 0 | CI143: 14 | CJ143: 3.3 | CK143: =CJ143+CH143+CF143 -> 3.3 | CL143: NC | CM143: 0 | CN143: NC | CO143: 0 | CP143: NC | CQ143: 0 | CR143: 0 | DG143: FF | DH143: 0 | DI143: FF | DJ143: 0 | DM143: =DH143+DJ143 -> 0 | DN143: 2 | DO143: 3.3
B144: 136 | C144: MARIO KRIGER | D144: Z-NESSY | E144: AM | BJ144: NC | BK144: 0 | BL144: NC | BM144: 0 | BN144: NC | BO144: 0 | BP144: 0 | BQ144: NC | BR144: 0 | BS144: NC | BT144: 0 | BU144: NC | BV144: 0 | BW144: 0 | CL144: NC | CM144: 0 | CN144: NC | CO144: 0 | CP144: NC | CQ144: 0 | CR144: 0 | CS144: NC | CT144: 0 | CU144: 9 | CV144: 2 | CW144: 9 | CX144: 1 | CY144: =CX144+CV144+CT144 -> 3 | DN144: 1 | DO144: 3
B145: 137 | C145: LIVIA CRISTINA | D145: CARRERA HR (IA) | E145: AM | AH145: NC | AI145: 0 | AJ145: 15 | AK145: 2.4 | AL145: NC | AM145: 0 | AN145: =AM145+AK145+AI145 -> 2.4 | BJ145: NC | BK145: 0 | BL145: NC | BM145: 0 | BN145: NC | BO145: 0 | BP145: 0 | BQ145: NC | BR145: 0 | BS145: NC | BT145: 0 | BU145: NC | BV145: 0 | BW145: 0 | CL145: NC | CM145: 0 | CN145: NC | CO145: 0 | CP145: NC | CQ145: 0 | CR145: 0 | DN145: 1 | DO145: 2.4
B146: 138 | C146: DENNIS SARAIVA BRUSI | D146: SINFONIA DA LAGOA | E146: M | BC146: 18 | BD146: 0 | BE146: 19 | BF146: 0 | BG146: 15 | BH146: 2.2 | BI146: =BH146+BF146+BD146 -> 2.2 | BJ146: NC | BK146: 0 | BL146: NC | BM146: 0 | BN146: NC | BO146: 0 | BP146: 0 | BQ146: NC | BR146: 0 | BS146: NC | BT146: 0 | BU146: NC | BV146: 0 | BW146: 0 | CE146: 19 | CF146: 0 | CG146: DES | CH146: 0 | CI146: NC | CJ146: 0 | CK146: =CJ146+CH146+CF146 -> 0 | CL146: NC | CM146: 0 | CN146: NC | CO146: 0 | CP146: NC | CQ146: 0 | CR146: 0 | DN146: 2 | DO146: 2.2
B147: 139 | C147: ELOY VALLES PRIETO JR | D147: SALAMANDRA NEWMAN | E147: M | F147: NC | G147: 0 | H147: 16 | I147: 1.1 | J147: NC | K147: 0 | L147: =K147+I147+G147 -> 1.1 | BJ147: NC | BK147: 0 | BL147: NC | BM147: 0 | BN147: NC | BO147: 0 | BP147: 0 | BQ147: NC | BR147: 0 | BS147: NC | BT147: 0 | BU147: NC | BV147: 0 | BW147: 0 | CL147: NC | CM147: 0 | CN147: NC | CO147: 0 | CP147: NC | CQ147: 0 | CR147: 0 | DN147: 1 | DO147: 1.1
B148: - | C148: THAIS BALBINO DE SOUZA | D148: UNE AIMEE | E148: AM | AH148: NC | AI148: 0 | AJ148: DES | AK148: 0 | AL148: NC | AM148: 0 | AN148: =AM148+AK148+AI148 -> 0 | BC148: NC | BD148: 0 | BE148: 26 | BF148: 0 | BG148: NC | BH148: 0 | BI148: =BH148+BF148+BD148 -> 0 | BJ148: NC | BK148: 0 | BL148: NC | BM148: 0 | BN148: NC | BO148: 0 | BP148: 0 | BQ148: NC | BR148: 0 | BS148: NC | BT148: 0 | BU148: NC | BV148: 0 | BW148: 0 | CL148: NC | CM148: 0 | CN148: NC | CO148: 0 | CP148: NC | CQ148: 0 | CR148: 0 | DN148: 2 | DO148: 0
B149: - | C149: ANA CAROLINA BORJA DE ALMEIDA | D149: CAPRICE V VAN DE HERMITAGE | E149: AM | BJ149: NC | BK149: 0 | BL149: NC | BM149: 0 | BN149: NC | BO149: 0 | BP149: 0 | BQ149: NC | BR149: 0 | BS149: NC | BT149: 0 | BU149: NC | BV149: 0 | BW149: 0 | CL149: NC | CM149: 0 | CN149: NC | CO149: 0 | CP149: NC | CQ149: 0 | CR149: 0 | DN149: 0 | DO149: 0
B150: - | C150: CAIO SCANTAMBURLO COSTA | D150: FANDANGO M (IA) | E150: AM | AA150: 38 | AB150: 0 | AC150: 28 | AD150: 0 | AE150: 27 | AF150: 0 | AG150: =AF150+AD150+AB150 -> 0 | AH150: 23 | AI150: 0 | AJ150: 25 | AK150: 0 | AL150: NC | AM150: 0 | AN150: =AM150+AK150+AI150 -> 0 | BJ150: NC | BK150: 0 | BL150: NC | BM150: 0 | BN150: NC | BO150: 0 | BP150: 0 | BQ150: NC | BR150: 0 | BS150: NC | BT150: 0 | BU150: NC | BV150: 0 | BW150: 0 | CL150: NC | CM150: 0 | CN150: NC | CO150: 0 | CP150: NC | CQ150: 0 | CR150: 0 | DN150: 2 | DO150: 0
B151: - | C151: EDUARDO DO NASCIMENTO CAMPOS | D151: ABOLENGO JMEN III (IA) | E151: AM | BJ151: NC | BK151: 0 | BL151: NC | BM151: 0 | BN151: NC | BO151: 0 | BP151: 0 | BQ151: NC | BR151: 0 | BS151: NC | BT151: 0 | BU151: NC | BV151: 0 | BW151: 0 | CL151: NC | CM151: 0 | CN151: NC | CO151: 0 | CP151: NC | CQ151: 0 | CR151: 0 | DN151: 0 | DO151: 0
B152: - | C152: JULIA RODANTE SECHIS | D152: GANTURO CLIMBER (IA) | E152: AM | BJ152: NC | BK152: 0 | BL152: NC | BM152: 0 | BN152: NC | BO152: 0 | BP152: 0 | BQ152: NC | BR152: 0 | BS152: NC | BT152: 0 | BU152: NC | BV152: 0 | BW152: 0 | CL152: NC | CM152: 0 | CN152: NC | CO152: 0 | CP152: NC | CQ152: 0 | CR152: 0 | DN152: 0 | DO152: 0
B153: - | C153: CARLOS FELIPE DE SOUZA LEAO | D153: CULLINAN GMS (IA) | E153: AM | BJ153: NC | BK153: 0 | BL153: NC | BM153: 0 | BN153: NC | BO153: 0 | BP153: 0 | BQ153: NC | BR153: 0 | BS153: NC | BT153: 0 | BU153: NC | BV153: 0 | BW153: 0 | CL153: NC | CM153: 0 | CN153: NC | CO153: 0 | CP153: NC | CQ153: 0 | CR153: 0 | DN153: 0 | DO153: 0
B154: - | C154: TESS FIORE BADOCCO HELENA DE OLIVEIRA | D154: CONGO ITAPUA | E154: M | BJ154: NC | BK154: 0 | BL154: NC | BM154: 0 | BN154: NC | BO154: 0 | BP154: 0 | BQ154: NC | BR154: 0 | BS154: NC | BT154: 0 | BU154: NC | BV154: 0 | BW154: 0 | CL154: NC | CM154: 0 | CN154: NC | CO154: 0 | CP154: NC | CQ154: 0 | CR154: 0 | DN154: 0 | DO154: 0
B155: - | C155: PATRICIA FERREIRA L. M. ANTONIO | D155: RELINCHO R (IA) | E155: AM | BJ155: NC | BK155: 0 | BL155: NC | BM155: 0 | BN155: NC | BO155: 0 | BP155: 0 | BQ155: NC | BR155: 0 | BS155: NC | BT155: 0 | BU155: NC | BV155: 0 | BW155: 0 | CL155: NC | CM155: 0 | CN155: NC | CO155: 0 | CP155: NC | CQ155: 0 | CR155: 0 | DN155: 0 | DO155: 0
B156: - | C156: SERGIO AZEVEDO CUNHA | D156: NAVENNA VD AARD Z | E156: M | BJ156: NC | BK156: 0 | BL156: NC | BM156: 0 | BN156: NC | BO156: 0 | BP156: 0 | BQ156: NC | BR156: 0 | BS156: NC | BT156: 0 | BU156: NC | BV156: 0 | BW156: 0 | CL156: NC | CM156: 0 | CN156: NC | CO156: 0 | CP156: NC | CQ156: 0 | CR156: 0 | DN156: 0 | DO156: 0
B157: - | C157: LUCAS COSTA ARAUJO | D157: CEHJUR QUINDOCTRO (IA) | E157: AM | AA157: 37 | AB157: 0 | AC157: 18 | AD157: 0 | AE157: NC | AF157: 0 | AG157: =AF157+AD157+AB157 -> 0 | BJ157: NC | BK157: 0 | BL157: NC | BM157: 0 | BN157: NC | BO157: 0 | BP157: 0 | BQ157: NC | BR157: 0 | BS157: NC | BT157: 0 | BU157: NC | BV157: 0 | BW157: 0 | CL157: NC | CM157: 0 | CN157: NC | CO157: 0 | CP157: NC | CQ157: 0 | CR157: 0 | DN157: 1 | DO157: 0
B158: - | C158: ISIS SABEL WALMLING | D158: HARMONY CLIMBER (TE) | E158: AM | BJ158: NC | BK158: 0 | BL158: NC | BM158: 0 | BN158: NC | BO158: 0 | BP158: 0 | BQ158: NC | BR158: 0 | BS158: NC | BT158: 0 | BU158: NC | BV158: 0 | BW158: 0 | CL158: NC | CM158: 0 | CN158: NC | CO158: 0 | CP158: NC | CQ158: 0 | CR158: 0 | DN158: 0 | DO158: 0
B159: - | C159: SOFIA MONTEIRO DA SILVA SCHEER | D159: VANILLA SKY 24 | E159: AM | BJ159: NC | BK159: 0 | BL159: NC | BM159: 0 | BN159: NC | BO159: 0 | BP159: 0 | BQ159: NC | BR159: 0 | BS159: NC | BT159: 0 | BU159: NC | BV159: 0 | BW159: 0 | CL159: NC | CM159: 0 | CN159: NC | CO159: 0 | CP159: NC | CQ159: 0 | CR159: 0 | DN159: 0 | DO159: 0
B160: - | C160: VITORIA GHIZONI JUNCKES | D160: LP UNA BELLA (IA) | E160: AM | BJ160: NC | BK160: 0 | BL160: NC | BM160: 0 | BN160: NC | BO160: 0 | BP160: 0 | BQ160: NC | BR160: 0 | BS160: NC | BT160: 0 | BU160: NC | BV160: 0 | BW160: 0 | CL160: NC | CM160: 0 | CN160: NC | CO160: 0 | CP160: NC | CQ160: 0 | CR160: 0 | DN160: 0 | DO160: 0
B161: - | C161: TENENTE JEFFERSON HIDEKI ISHII | D161: IZ EMOCAO | E161: AM | F161: 17 | G161: 0 | H161: NC | I161: 0 | J161: NC | K161: 0 | L161: =K161+I161+G161 -> 0 | BJ161: NC | BK161: 0 | BL161: NC | BM161: 0 | BN161: NC | BO161: 0 | BP161: 0 | BQ161: NC | BR161: 0 | BS161: NC | BT161: 0 | BU161: NC | BV161: 0 | BW161: 0 | CL161: NC | CM161: 0 | CN161: NC | CO161: 0 | CP161: NC | CQ161: 0 | CR161: 0 | DN161: 1 | DO161: 0
B162: - | C162: FERNANDO PINHEIRO DE S. MEIRELLES | D162: SALAMALEIK VILA FAL (IA) | E162: AM | M162: 18 | N162: 0 | O162: 28 | P162: 0 | Q162: 23 | R162: 0 | S162: =R162+P162+N162 -> 0 | BJ162: NC | BK162: 0 | BL162: NC | BM162: 0 | BN162: NC | BO162: 0 | BP162: 0 | BQ162: NC | BR162: 0 | BS162: NC | BT162: 0 | BU162: NC | BV162: 0 | BW162: 0 | CL162: NC | CM162: 0 | CN162: NC | CO162: 0 | CP162: NC | CQ162: 0 | CR162: 0 | DN162: 1 | DO162: 0
B163: - | C163: MARIA ISABEL MONTEIRO S. SCHEER | D163: VANILLA SKY 24 | E163: M | M163: NC | N163: 0 | O163: 22 | P163: 0 | Q163: ELI | R163: 0 | S163: =R163+P163+N163 -> 0 | BJ163: NC | BK163: 0 | BL163: NC | BM163: 0 | BN163: NC | BO163: 0 | BP163: 0 | BQ163: NC | BR163: 0 | BS163: NC | BT163: 0 | BU163: NC | BV163: 0 | BW163: 0 | CL163: NC | CM163: 0 | CN163: NC | CO163: 0 | CP163: NC | CQ163: 0 | CR163: 0 | DN163: 1 | DO163: 0
B164: - | C164: WALKIRIA MORASSUTI OHLWEILER | D164: EPHESUS M (TE) | E164: AM | M164: NC | N164: 0 | O164: ELI | P164: 0 | Q164: NC | R164: 0 | S164: =R164+P164+N164 -> 0 | BJ164: NC | BK164: 0 | BL164: NC | BM164: 0 | BN164: NC | BO164: 0 | BP164: 0 | BQ164: NC | BR164: 0 | BS164: NC | BT164: 0 | BU164: NC | BV164: 0 | BW164: 0 | CL164: NC | CM164: 0 | CN164: NC | CO164: 0 | CP164: NC | CQ164: 0 | CR164: 0 | DN164: 1 | DO164: 0
B165: - | C165: FRANCISCO OBINO CIRNE LIMA | D165: SHARAPOVA EXPONENCIAL | E165: AM | AA165: NC | AB165: 0 | AC165: ELI | AD165: 0 | AE165: NC | AF165: 0 | AG165: =AF165+AD165+AB165 -> 0 | BJ165: NC | BK165: 0 | BL165: NC | BM165: 0 | BN165: NC | BO165: 0 | BP165: 0 | BQ165: NC | BR165: 0 | BS165: NC | BT165: 0 | BU165: NC | BV165: 0 | BW165: 0 | CL165: NC | CM165: 0 | CN165: NC | CO165: 0 | CP165: NC | CQ165: 0 | CR165: 0 | DN165: 1 | DO165: 0
B166: - | C166: LIVIA CRISTINA BENNATON DESCIO | D166: LICHANSON JMEN II (TE) | E166: AM | AA166: 24 | AB166: 0 | AC166: 25 | AD166: 0 | AE166: 21 | AF166: 0 | AG166: 0 | AH166: 28 | AI166: 0 | AJ166: 28 | AK166: 0 | AL166: NC | AM166: 0 | AN166: =AM166+AK166+AI166 -> 0 | BJ166: NC | BK166: 0 | BL166: NC | BM166: 0 | BN166: NC | BO166: 0 | BP166: 0 | BQ166: NC | BR166: 0 | BS166: NC | BT166: 0 | BU166: NC | BV166: 0 | BW166: 0 | CL166: NC | CM166: 0 | CN166: NC | CO166: 0 | CP166: NC | CQ166: 0 | CR166: 0 | DN166: 2 | DO166: 0
B167: - | C167: FERNANDA DIB GABRIEL | D167: CONAIR GMS | E167: AM | AA167: 29 | AB167: 0 | AC167: 38 | AD167: 0 | AE167: 37 | AF167: 0 | AG167: 0 | BJ167: NC | BK167: 0 | BL167: NC | BM167: 0 | BN167: NC | BO167: 0 | BP167: 0 | BQ167: NC | BR167: 0 | BS167: NC | BT167: 0 | BU167: NC | BV167: 0 | BW167: 0 | CL167: NC | CM167: 0 | CN167: NC | CO167: 0 | CP167: NC | CQ167: 0 | CR167: 0 | DN167: 1 | DO167: 0
B168: - | C168: FELIPE CARVALHO GOMES VENTURA | D168: BELANA B | E168: AM | AA168: 33 | AB168: 0 | AC168: 26 | AD168: 0 | AE168: 23 | AF168: 0 | AG168: 0 | BJ168: NC | BK168: 0 | BL168: NC | BM168: 0 | BN168: NC | BO168: 0 | BP168: 0 | BQ168: NC | BR168: 0 | BS168: NC | BT168: 0 | BU168: NC | BV168: 0 | BW168: 0 | CL168: NC | CM168: 0 | CN168: NC | CO168: 0 | CP168: NC | CQ168: 0 | CR168: 0 | DN168: 1 | DO168: 0
B169: - | C169: SIMONE MACEDO DOS S. COSTA | D169: ALION DA BARRA (IA) | E169: AM | AA169: 35 | AB169: 0 | AC169: 44 | AD169: 0 | AE169: NC | AF169: 0 | AG169: 0 | BJ169: NC | BK169: 0 | BL169: NC | BM169: 0 | BN169: NC | BO169: 0 | BP169: 0 | BQ169: NC | BR169: 0 | BS169: NC | BT169: 0 | BU169: NC | BV169: 0 | BW169: 0 | CL169: NC | CM169: 0 | CN169: NC | CO169: 0 | CP169: NC | CQ169: 0 | CR169: 0 | DN169: =SUBTOTAL(3,L169,S169,Z169,AG169,AN169,AU169,BB169,BI169,CD169,CK169,CY169,DF169,DM169) -> 1 | DO169: =DM169+DF169+CY169+CR169+CK169+CD169+BW169+BP169+BI169+BB169+AU169+AN169+AG169+Z169+S169+L169 -> 0
B170: - | C170: JOSE VICENTE MARINO | D170: AUSTER IPIRANGA (IA) | E170: M | AA170: 40 | AB170: 0 | AC170: 41 | AD170: 0 | AE170: 22 | AF170: 0 | AG170: 0 | AH170: 27 | AI170: 0 | AJ170: DES | AK170: 0 | AL170: NC | AM170: 0 | AN170: =AM170+AK170+AI170 -> 0 | BJ170: NC | BK170: 0 | BL170: NC | BM170: 0 | BN170: NC | BO170: 0 | BP170: 0 | BQ170: NC | BR170: 0 | BS170: NC | BT170: 0 | BU170: NC | BV170: 0 | BW170: 0 | CL170: NC | CM170: 0 | CN170: NC | CO170: 0 | CP170: NC | CQ170: 0 | CR170: 0 | DN170: 2 | DO170: 0
B171: - | C171: ANTONIO MARCOS SALLES MOURA | D171: UP-CLASS GIRL 3K (IA) | E171: M | AA171: NC | AB171: 0 | AC171: NC | AD171: 0 | AE171: 24 | AF171: 0 | AG171: 0 | BJ171: NC | BK171: 0 | BL171: NC | BM171: 0 | BN171: NC | BO171: 0 | BP171: 0 | BQ171: NC | BR171: 0 | BS171: NC | BT171: 0 | BU171: NC | BV171: 0 | BW171: 0 | CL171: NC | CM171: 0 | CN171: NC | CO171: 0 | CP171: NC | CQ171: 0 | CR171: 0 | DN171: 1 | DO171: 0
B172: - | C172: FELIPE CARVALHO GOMES VENTURA | D172: UMORA | E172: AM | BJ172: NC | BK172: 0 | BL172: NC | BM172: 0 | BN172: NC | BO172: 0 | BP172: 0 | BQ172: NC | BR172: 0 | BS172: NC | BT172: 0 | BU172: NC | BV172: 0 | BW172: 0 | CL172: NC | CM172: 0 | CN172: NC | CO172: 0 | CP172: NC | CQ172: 0 | CR172: 0 | DN172: 0 | DO172: 0
B173: - | C173: LUCAS COSTA ARAUJO | D173: JCR CHANEL | E173: AM | BJ173: NC | BK173: 0 | BL173: NC | BM173: 0 | BN173: NC | BO173: 0 | BP173: 0 | BQ173: NC | BR173: 0 | BS173: NC | BT173: 0 | BU173: NC | BV173: 0 | BW173: 0 | CL173: NC | CM173: 0 | CN173: NC | CO173: 0 | CP173: NC | CQ173: 0 | CR173: 0 | DN173: 0 | DO173: 0
B174: - | C174: JANICE AMBROSIO MERZVINSKAS | D174: SALAMANDRA NEW ONE | E174: AM | BC174: 25 | BD174: 0 | BE174: 38 | BF174: 0 | BG174: NC | BH174: 0 | BI174: =BH174+BF174+BD174 -> 0 | BJ174: NC | BK174: 0 | BL174: NC | BM174: 0 | BN174: NC | BO174: 0 | BP174: 0 | BQ174: NC | BR174: 0 | BS174: NC | BT174: 0 | BU174: NC | BV174: 0 | BW174: 0 | CL174: NC | CM174: 0 | CN174: NC | CO174: 0 | CP174: NC | CQ174: 0 | CR174: 0 | DN174: 1 | DO174: 0
B175: - | C175: MARGHERITA BRAZZALE | D175: LOCA R (IA) | E175: AM | BC175: 26 | BD175: 0 | BE175: 39 | BF175: 0 | BG175: ELI | BH175: 0 | BI175: =BH175+BF175+BD175 -> 0 | BJ175: NC | BK175: 0 | BL175: NC | BM175: 0 | BN175: NC | BO175: 0 | BP175: 0 | BQ175: NC | BR175: 0 | BS175: NC | BT175: 0 | BU175: NC | BV175: 0 | BW175: 0 | CL175: NC | CM175: 0 | CN175: NC | CO175: 0 | CP175: NC | CQ175: 0 | CR175: 0 | DN175: 1 | DO175: 0
B176: - | C176: RICARDO GANDOLFI | D176: CAROLINE MN | E176: AM | BC176: NC | BD176: 0 | BE176: 21 | BF176: 0 | BG176: NC | BH176: 0 | BI176: =BH176+BF176+BD176 -> 0 | BJ176: NC | BK176: 0 | BL176: NC | BM176: 0 | BN176: NC | BO176: 0 | BP176: 0 | BQ176: NC | BR176: 0 | BS176: NC | BT176: 0 | BU176: NC | BV176: 0 | BW176: 0 | CL176: NC | CM176: 0 | CN176: NC | CO176: 0 | CP176: NC | CQ176: 0 | CR176: 0 | DN176: 1 | DO176: 0
B177: - | C177: OTAVIO CANSANCAO DE AZEVEDO | D177: RRM ONE | E177: M | BC177: NC | BD177: 0 | BE177: NC | BF177: 0 | BG177: 27 | BH177: 0 | BI177: =BH177+BF177+BD177 -> 0 | BJ177: NC | BK177: 0 | BL177: NC | BM177: 0 | BN177: NC | BO177: 0 | BP177: 0 | BQ177: NC | BR177: 0 | BS177: NC | BT177: 0 | BU177: NC | BV177: 0 | BW177: 0 | CL177: NC | CM177: 0 | CN177: NC | CO177: 0 | CP177: NC | CQ177: 0 | CR177: 0 | DN177: 1 | DO177: 0
B178: - | C178: FELIPE CARVALHO GOMES VENTURA | D178: COHIBA BUENA VISTA | E178: AM | AH178: 24 | AI178: 0 | AJ178: 24 | AK178: 0 | AL178: NC | AM178: 0 | AN178: =AM178+AK178+AI178 -> 0 | BJ178: NC | BK178: 0 | BL178: NC | BM178: 0 | BN178: NC | BO178: 0 | BP178: 0 | BQ178: NC | BR178: 0 | BS178: NC | BT178: 0 | BU178: NC | BV178: 0 | BW178: 0 | CL178: NC | CM178: 0 | CN178: NC | CO178: 0 | CP178: NC | CQ178: 0 | CR178: 0 | DN178: 1 | DO178: 0
B179: - | C179: BIANCA MAGNABOSCO PFEIFER | D179: TWO TIMES ALME CHANTEBLED | E179: AM | AH179: 26 | AI179: 0 | AJ179: 32 | AK179: 0 | AL179: NC | AM179: 0 | AN179: =AM179+AK179+AI179 -> 0 | BJ179: NC | BK179: 0 | BL179: NC | BM179: 0 | BN179: NC | BO179: 0 | BP179: 0 | BQ179: NC | BR179: 0 | BS179: NC | BT179: 0 | BU179: NC | BV179: 0 | BW179: 0 | CL179: NC | CM179: 0 | CN179: NC | CO179: 0 | CP179: NC | CQ179: 0 | CR179: 0 | DN179: 1 | DO179: 0
B180: - | C180: DEISY WIELER RODRIGUES | D180: CANCIONETA JMEN | E180: AM | AH180: 28 | AI180: 0 | AJ180: NC | AK180: 0 | AL180: NC | AM180: 0 | AN180: =AM180+AK180+AI180 -> 0 | BJ180: NC | BK180: 0 | BL180: NC | BM180: 0 | BN180: NC | BO180: 0 | BP180: 0 | BQ180: NC | BR180: 0 | BS180: NC | BT180: 0 | BU180: NC | BV180: 0 | BW180: 0 | CL180: NC | CM180: 0 | CN180: NC | CO180: 0 | CP180: NC | CQ180: 0 | CR180: 0 | DN180: 1 | DO180: 0
B181: - | C181: MARCELO GIOVANETTI DARIENZO | D181: HFB RESTLESS | E181: AM | AH181: NC | AI181: 0 | AJ181: 18 | AK181: 0 | AL181: NC | AM181: 0 | AN181: =AM181+AK181+AI181 -> 0 | BJ181: NC | BK181: 0 | BL181: NC | BM181: 0 | BN181: NC | BO181: 0 | BP181: 0 | BQ181: NC | BR181: 0 | BS181: NC | BT181: 0 | BU181: NC | BV181: 0 | BW181: 0 | CL181: NC | CM181: 0 | CN181: NC | CO181: 0 | CP181: NC | CQ181: 0 | CR181: 0 | DN181: 1 | DO181: 0
B182: - | C182: GIULIA FRAZAO R. DA CUNHA | D182: SL BLENDED | E182: AM | AV182: ELI | AW182: 0 | AZ182: NC | BA182: 0 | BB182: =BA182+AY182+AW182 -> 0 | BJ182: NC | BK182: 0 | BL182: NC | BM182: 0 | BN182: NC | BO182: 0 | BP182: 0 | BQ182: NC | BR182: 0 | BS182: NC | BT182: 0 | BU182: NC | BV182: 0 | BW182: 0 | CL182: NC | CM182: 0 | CN182: NC | CO182: 0 | CP182: NC | CQ182: 0 | CR182: 0 | DN182: 1 | DO182: 0
B183: - | C183: LIVIA CRISTINA BENNATON DESCIO | D183: BRUCCE CLIMBER (TE) | E183: AM | BJ183: NC | BK183: 0 | BL183: NC | BM183: 0 | BN183: NC | BO183: 0 | BP183: 0 | BQ183: NC | BR183: 0 | BS183: NC | BT183: 0 | BU183: NC | BV183: 0 | BW183: 0 | CE183: 21 | CF183: 0 | CG183: NC | CH183: 0 | CI183: NC | CJ183: 0 | CK183: =CJ183+CH183+CF183 -> 0 | CL183: NC | CM183: 0 | CN183: NC | CO183: 0 | CP183: NC | CQ183: 0 | CR183: 0 | DN183: 1 | DO183: 0
B184: - | C184: DANIELA AQUINO DE A. MARTINS | D184: HSL ARISMA (IA) | E184: AM | BJ184: NC | BK184: 0 | BL184: NC | BM184: 0 | BN184: NC | BO184: 0 | BP184: 0 | BQ184: NC | BR184: 0 | BS184: NC | BT184: 0 | BU184: NC | BV184: 0 | BW184: 0 | CE184: 23 | CF184: 0 | CG184: NC | CH184: 0 | CI184: NC | CJ184: 0 | CK184: =CJ184+CH184+CF184 -> 0 | CL184: NC | CM184: 0 | CN184: NC | CO184: 0 | CP184: NC | CQ184: 0 | CR184: 0 | DN184: 1 | DO184: 0
B185: - | C185: OTAVIO CANSANCAO DE AZEVEDO | D185: GANA AMOR (IA) | E185: M | BJ185: NC | BK185: 0 | BL185: NC | BM185: 0 | BN185: NC | BO185: 0 | BP185: 0 | BQ185: NC | BR185: 0 | BS185: NC | BT185: 0 | BU185: NC | BV185: 0 | BW185: 0 | CE185: 26 | CF185: 0 | CG185: 22 | CH185: 0 | CI185: NC | CJ185: 0 | CK185: =CJ185+CH185+CF185 -> 0 | CL185: NC | CM185: 0 | CN185: NC | CO185: 0 | CP185: NC | CQ185: 0 | CR185: 0 | DN185: 1 | DO185: 0
B186: - | C186: GABRIELA MARINHO | D186: SHARAPOVA EXPONENCIAL | E186: AM | BJ186: NC | BK186: 0 | BL186: NC | BM186: 0 | BN186: NC | BO186: 0 | BP186: 0 | BQ186: NC | BR186: 0 | BS186: NC | BT186: 0 | BU186: NC | BV186: 0 | BW186: 0 | CE186: ELI | CF186: 0 | CG186: NC | CH186: 0 | CI186: NC | CJ186: 0 | CK186: =CJ186+CH186+CF186 -> 0 | CL186: NC | CM186: 0 | CN186: NC | CO186: 0 | CP186: NC | CQ186: 0 | CR186: 0 | DN186: 1 | DO186: 0
B187: - | C187: JUAREZ ANDRADE | D187: XANADU GMS | E187: AM | BJ187: NC | BK187: 0 | BL187: NC | BM187: 0 | BN187: NC | BO187: 0 | BP187: 0 | BQ187: NC | BR187: 0 | BS187: NC | BT187: 0 | BU187: NC | BV187: 0 | BW187: 0 | CL187: NC | CM187: 0 | CN187: NC | CO187: 0 | CP187: NC | CQ187: 0 | CR187: 0 | DG187: FF | DH187: 0 | DI187: FF | DJ187: 0 | DM187: =DH187+DJ187 -> 0 | DN187: 1 | DO187: 0
B188: - | C188: MARIANA DI GRAZIA BONIN | D188: CATHARINA FB (IA) | E188: AM | BJ188: NC | BK188: 0 | BL188: NC | BM188: 0 | BN188: NC | BO188: 0 | BP188: 0 | BQ188: NC | BR188: 0 | BS188: NC | BT188: 0 | BU188: NC | BV188: 0 | BW188: 0 | CE188: ELI | CF188: 0 | CG188: NC | CH188: 0 | CI188: NC | CJ188: 0 | CK188: =CJ188+CH188+CF188 -> 0 | CL188: NC | CM188: 0 | CN188: NC | CO188: 0 | CP188: NC | CQ188: 0 | CR188: 0 | DN188: 1 | DO188: 0
B189: - | C189: DAVID DE CARVALHO LEMES | D189: QUERETARO TOK (IA) | E189: M | BJ189: NC | BK189: 0 | BL189: NC | BM189: 0 | BN189: NC | BO189: 0 | BP189: 0 | BQ189: NC | BR189: 0 | BS189: NC | BT189: 0 | BU189: NC | BV189: 0 | BW189: 0 | CL189: NC | CM189: 0 | CN189: NC | CO189: 0 | CP189: NC | CQ189: 0 | CR189: 0 | DG189: ELI | DH189: 0 | DI189: ELI | DJ189: 0 | DM189: =DH189+DJ189 -> 0 | DN189: 1 | DO189: 0
B190: - | C190: RAFAEL CHRISTIANINI | D190: SONHO REAL HCR | E190: AM | BJ190: NC | BK190: 0 | BL190: NC | BM190: 0 | BN190: NC | BO190: 0 | BP190: 0 | BQ190: NC | BR190: 0 | BS190: NC | BT190: 0 | BU190: NC | BV190: 0 | BW190: 0 | CE190: NC | CF190: 0 | CG190: 21 | CH190: 0 | CI190: DES | CJ190: 0 | CK190: =CJ190+CH190+CF190 -> 0 | CL190: NC | CM190: 0 | CN190: NC | CO190: 0 | CP190: NC | CQ190: 0 | CR190: 0 | DN190: 1 | DO190: 0
B191: - | C191: SERGIO AZEVEDO CUNHA | D191: GWENDOLYN VAN´T RUSSELTHOF | E191: M | AO191: ELI | AP191: 0 | AQ191: NC | AR191: 0 | AS191: NC | AT191: 0 | AU191: =AT191+AR191+AP191 -> 0 | BJ191: NC | BK191: 0 | BL191: NC | BM191: 0 | BN191: NC | BO191: 0 | BP191: 0 | BQ191: NC | BR191: 0 | BS191: NC | BT191: 0 | BU191: NC | BV191: 0 | BW191: 0 | CL191: NC | CM191: 0 | CN191: NC | CO191: 0 | CP191: NC | CQ191: 0 | CR191: 0 | DN191: 1 | DO191: 0
DN192: =SUBTOTAL(3,L192,S192,Z192,AG192,AN192,AU192,BB192,BI192,CD192,CK192,CY192,DF192,DM192) -> 0

Sheet REL 3
A6: R | B6: COMPETIDOR | C6: ANIMAL | D6: CAT | E6: PONTOS
A8: 1 | B8: SERGINO RIBEIRO DE MENDONCA | C8: CORDOBES JMEN | D8: M | E8: 229.3
A9: 2 | B9: DANIEL ABBUD SARQUIS AIEX | C9: OLIVETTE LANDAISE | D9: AM | E9: 170.9
A10: 3 | B10: RICHARD LYON THORO BILTON | C10: QUEBEC AGROMIX | D10: AM | E10: 162.2
A11: 4 | B11: PRISCILA MARIANO LUMINATTI | C11: FLORIEKE | D11: AM | E11: 157.8
A12: 5 | B12: PRISCILA MARIANO LUMINATTI | C12: DIAMANTINA FROM SECOND LIFE Z | D12: AM | E12: 151.3
A13: 6 | B13: KARINA IVONE COMASTRI SMITH | C13: NOTORIUS DAS UMBURANAS (IA) | D13: M | E13: 108.2
A14: 7 | B14: PATRICIA WATT VIANNA | C14: CATHERINE-C JMEN (TE) | D14: AM | E14: 107.6
A15: 8 | B15: MARCO ANTONIO MODESTO FILHO | C15: CASHLEY | D15: AM | E15: 93.3
A16: 9 | B16: ANA PAULA GOUVEIA CONDE | C16: CANTICO JOTER (IA) | D16: AM | E16: 89
A17: 10 | B17: VITORIA GHIZONI JUNCKES | C17: MISS HOLSTEINS MERCI | D17: AM | E17: 88.6
A18: 11 | B18: SERGINO RIBEIRO DE MENDONCA | C18: CARTUJANO JMEN (TE) | D18: M | E18: 78.4
A19: 12 | B19: GILBERTO BRAZ PALMA | C19: ULIZ DAS CATARATAS | D19: AM | E19: 74.1
A20: 13 | B20: ADAUTO MARCONDES FREIRE JUNIOR | C20: TOP BELLINI (IA) | D20: M | E20: 71.5
A21: 14 | B21: NINA FRANZISKA BABBE | C21: OLIVIA HJ | D21: M | E21: 70.4
A22: 15 | B22: MARIO JOAO BOFF NETO | C22: LATASCHA JMEN III (TE) | D22: AM | E22: 66.8
A23: 16 | B23: DENNIS SARAIVA BRUSI | C23: HST CARTEZ (IA) | D23: M | E23: 66.2
A24: 16 | B24: LUCIANA LOSSIO | C24: NIKITA LA CANADA | D24: M | E24: 62.2
A25: 18 | B25: KAMILA MIKSZA RIBAS PRESTES | C25: SWEET DAS CATARATAS (IA) | D25: AM | E25: 60.7
A26: 19 | B26: RIMANTAS SIPAS | C26: RASPUTIN JMEN II (TE) | D26: M | E26: 55.6
A27: 20 | B27: EDUARDO CINTRA | C27: DIANI DO ARAUCARIA (IA) | D27: AM | E27: 55.4
A28: 21 | B28: LIDIA DORNELAS | C28: CANTARA G | D28: AM | E28: 53.9
A29: 22 | B29: MARIANA MORAES DE BARROS | C29: CLAPTON BUENA VISTA | D29: AM | E29: 53.8
A30: 23 | B30: MILTON JULIAO MARCONDES | C30: LANESSA JMEN II (TE) | D30: M | E30: 53.2
A31: 24 | B31: HERMANN PAULO HOFFMANN JUNIOR | C31: DIAMARO | D31: AM | E31: 51
A32: 25 | B32: PEDRO GRANATO | C32: JCR CHANEL | D32: AM | E32: 48
A33: 26 | B33: KATHARINA AFRANGE TUCH | C33: Z-NESSY | D33: AM | E33: 46.1
A34: 27 | B34: RODRIGO NUNES DE MELO | C34: BM INVICTUS (IA) | D34: AM | E34: 44.4
A35: 27 | B35: MARCOS TADEU MACHADO JUNIOR | C35: TERLANO DO RIOACIMA (IA) | D35: AM | E35: 44.4
A36: 29 | B36: PEDRO GRANATO | C36: COSIMO POLANA (IA) | D36: AM | E36: 43.4
A37: 30 | B37: FERNANDA BARACHO | C37: SINCLANDA JOTER (TE) | D37: AM | E37: 39.6
A38: 31 | B38: YASMIN CARMONA | C38: HORACIO JMEN (IA) | D38: AM | E38: 38
A39: 32 | B39: FERNANDA DIB GABRIEL | C39: IMIRIM ITAPUA | D39: AM | E39: 37.9
A40: 33 | B40: CAMILA PAULUCCI DER HAROUTIOUNIAN | C40: CRISTALLO | D40: AM | E40: 37.4
A41: 34 | B41: DANIELA AQUINO DE A. MARTINS | C41: ZARISMA | D41: AM | E41: 37.2
A42: 35 | B42: RICARDO LEONI MAFFEI | C42: LANDELLE TW | D42: M | E42: 37
A43: 36 | B43: NINA FRANZISKA BABBE | C43: CS XAUA (IA) | D43: M | E43: 36.8
A44: 37 | B44: THIENE CERNY CRUZ | C44: DELFINA POLANA (IA) | D44: AM | E44: 36.3
A45: 37 | B45: PAULA MARCHEZONI A.S. JUNQUEIRA | C45: POMEROL TW | D45: AM | E45: 36.3
A46: 39 | B46: RENATA AFONSO SCAFURO | C46: DAKOTA | D46: AM | E46: 36
A47: 40 | B47: ARIANE MIDORI ODA | C47: TENDENZ | D47: AM | E47: 35.9
A48: 41 | B48: PAULA MARCHEZONI A.S. JUNQUEIRA | C48: GOLDLIFE CHCP | D48: AM | E48: 35.5
A49: 42 | B49: FLAVIA ROCHA MELLO DE AZEVEDO | C49: FOR-PLEASURE DA ESSENCIA (IA) | D49: AM | E49: 35
A50: 43 | B50: KAMILA MIKSZA RIBAS PRESTES | C50: QUEEN P Z | D50: AM | E50: 34
A51: 44 | B51: ARIANE MIDORI ODA | C51: VERUSKA VILA FAL | D51: AM | E51: 31.9
A52: 44 | B52: IAGO FRAZAO NOGUEIRA | C52: CQC DO ARAUCARIA (IA) | D52: M | E52: 31.9
A53: 46 | B53: DANIEL ABBUD SARQUIS AIEX | C53: GOLD LANDA JMEN II (TE) | D53: AM | E53: 31.7
A54: 47 | B54: GABRIEL AMARO DO CARMO | C54: FREDY ITAPUA | D54: AM | E54: 31
A55: 48 | B55: SUB TEN. NELSON PEREIRA BARROS | C55: SL BANGUE | D55: M | E55: 30.8
A56: 48 | B56: BRUNA LOUISE VARGAS | C56: LUMINA GJ | D56: AM | E56: 30.8
A57: 50 | B57: ANDRE LUIZ SANTOS DE SOUZA | C57: SL CHINSARI (IA) | D57: AM | E57: 29.7
A58: 51 | B58: RAFAELLA MEDEIROS MULLER | C58: GIOCONDA JMEN (TE) | D58: AM | E58: 29
A59: 52 | B59: GABRIELA DUQUE | C59: CUSCO HV (IA) | D59: AM | E59: 27.8
A60: 53 | B60: GABRIELA LOPES MORGAN | C60: ACL ADELA (TE) | D60: AM | E60: 27
A61: 54 | B61: MARCELO GIOVANETTI DARIENZO | C61: CAYETANA JMEN (IA) | D61: AM | E61: 26.6
A62: 54 | B62: RODRIGO OSTANEELLO | C62: HIGGENS | D62: AM | E62: 26.6
A63: 56 | B63: PATRICIA WATT VIANNA | C63: ETNA CARAVELA (IA) | D63: AM | E63: 26.1
A64: 57 | B64: VITOR PACHECO COSTA FORTES | C64: EVOQUE G (IA) | D64: AM | E64: 25
A65: 58 | B65: RICARDO GANDOLFI | C65: COLANDRA JMEN III | D65: AM | E65: 24.6
A66: 59 | B66: VITORIA GHIZONI JUNCKES | C66: HAPPY LADY | D66: AM | E66: 24.2
A67: 59 | B67: RIMANTAS SIPAS | C67: CERRO BRAVO JMEN IV | D67: M | E67: 24.2
A68: 61 | B68: THIERRY DECOENE | C68: LENDA DA MATA | D68: AM | E68: 23.1
A69: 61 | B69: TANIA LOUISE GREUEL | C69: QUINARA | D69: M | E69: 23.1
A70: 63 | B70: MARCELO GIOVANETTI DARIENZO | C70: CASCOLA | D70: AM | E70: 22
A71: 63 | B71: CARLOS FELIPE DE SOUZA LEAO | C71: CARTHOES DA ESSENCIA | D71: AM | E71: 22
A72: 63 | B72: MARCIA DE ARRUDA ROZO CURY | C72: CANDORA JMEN II (TE) | D72: M | E72: 22
A73: 66 | B73: JOSE ANTONIO DINIZ | C73: NATALINA DE NALTESSE (TE) | D73: M | E73: 21
A74: 67 | B74: RODRIGO MACHADO DE MORAES | C74: LORELEY JMEN | D74: M | E74: 20.6
A75: 68 | B75: DENNIS SARAIVA BRUSI | C75: BAKO DES ROCHES ROUGES | D75: M | E75: 20.2
A76: 68 | B76: ELOY VALLES PRIETO JR | C76: CASCADELA JMEN (TE) | D76: M | E76: 20.2
A77: 70 | B77: MARTA BIER JOHANNPETER | C77: SRTA ACIANA JOTER | D77: AM | E77: 20
A78: 70 | B78: MICHELLE WISCINIEMSKI DA SILVA | C78: JCR ZINEDINE (IA) | D78: AM | E78: 20
A79: 72 | B79: ALEXANDRE GORBERG | C79: JOLLY BOY JB | D79: M | E79: 19.8
A80: 73 | B80: SOFIA MONTEIRO DA SILVA SCHEER | C80: BRIDGIT DO REFUGIO (TE) | D80: AM | E80: 19.3
A81: 74 | B81: GENTIL FERREIRA GOMES LINHARES | C81: JASMIN | D81: AM | E81: 19
A82: 75 | B82: SERGINO RIBEIRO DE MENDONCA | C82: CASSINGER JMEN (TE) | D82: M | E82: 18.7
A83: 76 | B83: ROBERTA TERMANN TAVARES | C83: CANTY JOTER (IA) | D83: AM | E83: 18
A84: 76 | B84: FELIPE CARVALHO GOMES VENTURA | C84: STAKKARTA | D84: AM | E84: 18
A85: 76 | B85: FREDERICO MORETZSOHN | C85: FRENCHMAN D.S Z | D85: AM | E85: 18
A86: 79 | B86: PAULA MARCHEZONI A.S. JUNQUEIRA | C86: JCR CARTHIARA | D86: AM | E86: 17.6
A87: 80 | B87: BEATRIZ BIER JOHANNPETER | C87: CENTAURO D´OLYMPO (IA) | D87: AM | E87: 17
A88: 81 | B88: DENNIS SARAIVA BRUSI | C88: CENTONELA JMEN | D88: M | E88: 16.3
A89: 82 | B89: TENENTE DANILO MACHADO | C89: HF INDIHEART | D89: AM | E89: 15
A90: 82 | B90: ANA LUISA FERNANDES | C90: SL SADDAM (TE) | D90: AM | E90: 15
A91: 82 | B91: LUCAS ROLEMBERG ALVES | C91: FOLTAIRE COOPER (IA) | D91: AM | E91: 15
A92: 82 | B92: ROBERTO PODVAL | C92: COLMEIA HV (IA) | D92: M | E92: 15
A93: 86 | B93: ARIANE MIDORI ODA | C93: YOU-TOO VILA FAL (IA) | D93: AM | E93: 14.3
A94: 87 | B94: TASSIUS HALABI | C94: NEW-YORK NEW-YORK 2S | D94: AM | E94: 14
A95: 87 | B95: CAMILA HORO GIL | C95: CS CAZUZA (IA) | D95: AM | E95: 14
A96: 87 | B96: ALEXANDRE GORBERG | C96: VINDOCTRA DAS CATARATAS (IA) | D96: AM | E96: 14
A97: 87 | B97: THAIS BONATTO BORGHI E SILVA | C97: WOLBRIND SH | D97: AM | E97: 14
A98: 91 | B98: MARCELO GIOVANETTI DARIENZO | C98: WINGINA | D98: AM | E98: 13.2
A99: 91 | B99: FLAVIA HELENA JUNQUEIRA LOPES | C99: CRYSTAL SANTA DALILA (IA) | D99: M | E99: 13.2
A100: 91 | B100: SIMONE MACEDO DOS S. COSTA | C100: DOROTY DO BOSQUE (IA) | D100: AM | E100: 13.2
A101: 91 | B101: LUIS FELIPE SALEK DICK | C101: FLICKA-DO-TRIO HT (IA) | D101: M | E101: 13.2
A102: 95 | B102: FELIPE MUZZI LACERDA | C102: CASSINGER JMEN (TE) | D102: AM | E102: 13
A103: 96 | B103: JULIANA DA COSTA BERNARDES | C103: CHRISTIANA B JMEN II (TE) | D103: AM | E103: 12.1
A104: 97 | B104: ALEXANDRE GORBERG | C104: CARA-AO-VENTO MC BRASIL | D104: M | E104: 12
A105: 98 | B105: DIOGO VONTOBEL BREYER | C105: SINTIA JOTER | D105: AM | E105: 11
A106: 98 | B106: RICARDO GANDOLFI | C106: BELLE-FLEUR JMEN (IA) | D106: AM | E106: 11
A107: 98 | B107: GERALDO BANDEIRA DE MELO FILHO | C107: CASSINO-ROYALLE C JMEN (TE) | D107: AM | E107: 11
A108: 98 | B108: GUSTAVO GOMES RABELO | C108: LACOSTE MYSTIC ROSE (IA) | D108: AM | E108: 11
A109: 98 | B109: NICHOLAS BARBARISI | C109: FLAMBEAU DU MONTSERRAT (IA) | D109: AM | E109: 11
A110: 98 | B110: PAULO RICARDO DA SILVA | C110: CHAP TONIGHT CEQUIPEL (TE) | D110: AM | E110: 11
A111: 104 | B111: EDUARDO GAYOSO N. P. CERQUEIRA | C111: CAVALO Z | D111: AM | E111: 10.4
A112: 105 | B112: MARCELA CZARNESKI | C112: LORDLY JM (IA) | D112: AM | E112: 10
A113: 105 | B113: DENNIS SARAIVA BRUSI | C113: SFE BELLAGIO (IA) | D113: M | E113: 10
A114: 107 | B114: MARIO JOAO BOFF NETO | C114: HULK G (IA) | D114: AM | E114: 9.9
A115: 107 | B115: MARIA ELISA CONCEICAO GONZAGA | C115: SINDIVA JOTER | D115: AM | E115: 9.9
A116: 109 | B116: ISABEL NADALINI GONCALVES | C116: QUICK STAR Z | D116: AM | E116: 9.6
A117: 109 | B117: FLAVIA HELENA JUNQUEIRA LOPES | C117: CHER DO ARAUCARIA (IA) | D117: M | E117: 9.6
A118: 111 | B118: FABIANE BAUAB | C118: EVINE VDL | D118: M | E118: 9.4
A119: 112 | B119: PAULA XISTO CAMARA | C119: SL ORIENTE | D119: AM | E119: 9
A120: 112 | B120: PAULA MOTTA MALUF | C120: CLARISSA WE | D120: AM | E120: 9
A121: 114 | B121: NATHALIA MARIA F. M. SCHAADT | C121: CENTONELA JMEN II | D121: AM | E121: 8.8
A122: 114 | B122: GIOVANA ZAMITH | C122: LAUME PULLMAN | D122: AM | E122: 8.8
A123: 116 | B123: ROBERTA ALFINITO BARCHA | C123: CONDOCTRO TW (IA) | D123: AM | E123: 8.4
A124: 116 | B124: JOSE AFONSO F. DA SILVEIRA | C124: CARA-AO-VENTO MC BRASIL | D124: AM | E124: 8.4
A125: 118 | B125: LUCAS DIAS SANTOS | C125: CANTOBLANC | D125: AM | E125: 7.7
A126: 118 | B126: GIULIANO CALDAS SCHERER | C126: EVOLUTION PREMIERE | D126: AM | E126: 7.7
A127: 120 | B127: MILTON JULIAO MARCONDES | C127: CHANKAR D JMEN III (TE) | D127: M | E127: 7.2
A128: 120 | B128: PAULA MARCHEZONI A.S. JUNQUEIRA | C128: BF JESSICA G (TE) | D128: AM | E128: 7.2
A129: 120 | B129: BEATRIZ BIER JOHANNPETER | C129: MURPHY TOK (IA) | D129: AM | E129: 7.2
A130: 12 | B130: LAILA FABI MOREIRA | C130: HFG QUEELIN (IA) | D130: AM | E130: 6.6
A131: 124 | B131: ANTONIO AUGUSTO PINENT TIGRE | C131: TIG EL CAPRICHO | D131: M | E131: 6
A132: 124 | B132: DENNIS SARAIVA BRUSI | C132: GUIDAM METODO (IA) | D132: M | E132: 6
A133: 126 | B133: RIMANTAS SIPAS | C133: SONADOR TOK (IA) | D133: M | E133: 5
A134: 126 | B134: MATHEUS PASSOS QUEIROZ | C134: KIVETTE DO CACH (IA) | D134: AM | E134: 5
A135: 126 | B135: DANIEL MOURA | C135: ZANDOR MAT (TE) | D135: AM | E135: 5
A136: 129 | B136: NINA FRANZISKA BABBE | C136: CONGO ITAPUA | D136: M | E136: 4.8
A137: 130 | B137: FELIPE CARVALHO GOMES VENTURA | C137: ISOLDA METODO (IA) | D137: AM | E137: 4.5
A138: 131 | B138: THIERRY DECOENE | C138: CHAPARRAL JMEN II (TE) | D138: AM | E138: 4.4
A139: 131 | B139: EDUARDO CINTRA SANTOS FILHO | C139: CEHJUR ANGELINA (IA) | D139: AM | E139: 4.4
A140: 133 | B140: GERALDO BANDEIRA DE MELO FILHO | C140: CASSILANO JMEN II (TE) | D140: AM | E140: 4
A141: 133 | B141: GENTIL FERREIRA GOMES LINHARES | C141: ALDEBARAN 3K (IA) | D141: AM | E141: 4
A142: 135 | B142: FABIANA RAMOS DE STEFANO | C142: TURMALINA DO RIOACIMA (IA) | D142: AM | E142: 3.3
A143: 136 | B143: MARIO KRIGER | C143: Z-NESSY | D143: AM | E143: 3
A144: 137 | B144: LIVIA CRISTINA | C144: CARRERA HR (IA) | D144: AM | E144: 2.4
A145: 138 | B145: DENNIS SARAIVA BRUSI | C145: SINFONIA DA LAGOA | D145: M | E145: 2.2
A146: 139 | B146: ELOY VALLES PRIETO JR | C146: SALAMANDRA NEWMAN | D146: M | E146: 1.1
A147: - | B147: THAIS BALBINO DE SOUZA | C147: UNE AIMEE | D147: AM | E147: 0
A148: - | B148: ANA CAROLINA BORJA DE ALMEIDA | C148: CAPRICE V VAN DE HERMITAGE | D148: AM | E148: 0
A149: - | B149: CAIO SCANTAMBURLO COSTA | C149: FANDANGO M (IA) | D149: AM | E149: 0
A150: - | B150: EDUARDO DO NASCIMENTO CAMPOS | C150: ABOLENGO JMEN III (IA) | D150: AM | E150: 0
A151: - | B151: JULIA RODANTE SECHIS | C151: GANTURO CLIMBER (IA) | D151: AM | E151: 0
A152: - | B152: CARLOS FELIPE DE SOUZA LEAO | C152: CULLINAN GMS (IA) | D152: AM | E152: 0
A153: - | B153: TESS FIORE BADOCCO HELENA DE OLIVEIRA | C153: CONGO ITAPUA | D153: M | E153: 0
A154: - | B154: PATRICIA FERREIRA L. M. ANTONIO | C154: RELINCHO R (IA) | D154: AM | E154: 0
A155: - | B155: SERGIO AZEVEDO CUNHA | C155: NAVENNA VD AARD Z | D155: M | E155: 0
A156: - | B156: LUCAS COSTA ARAUJO | C156: CEHJUR QUINDOCTRO (IA) | D156: AM | E156: 0
A157: - | B157: ISIS SABEL WALMLING | C157: HARMONY CLIMBER (TE) | D157: AM | E157: 0
A158: - | B158: SOFIA MONTEIRO DA SILVA SCHEER | C158: VANILLA SKY 24 | D158: AM | E158: 0
A159: - | B159: VITORIA GHIZONI JUNCKES | C159: LP UNA BELLA (IA) | D159: AM | E159: 0
A160: - | B160: TENENTE JEFFERSON HIDEKI ISHII | C160: IZ EMOCAO | D160: AM | E160: 0
A161: - | B161: FERNANDO PINHEIRO DE S. MEIRELLES | C161: SALAMALEIK VILA FAL (IA) | D161: AM | E161: 0
A162: - | B162: MARIA ISABEL MONTEIRO S. SCHEER | C162: VANILLA SKY 24 | D162: M | E162: 0
A163: - | B163: WALKIRIA MORASSUTI OHLWEILER | C163: EPHESUS M (TE) | D163: AM | E163: 0
A164: - | B164: FRANCISCO OBINO CIRNE LIMA | C164: SHARAPOVA EXPONENCIAL | D164: AM | E164: 0
A165: - | B165: LIVIA CRISTINA BENNATON DESCIO | C165: LICHANSON JMEN II (TE) | D165: AM | E165: 0
A166: - | B166: FERNANDA DIB GABRIEL | C166: CONAIR GMS | D166: AM | E166: 0
A167: - | B167: FELIPE CARVALHO GOMES VENTURA | C167: BELANA B | D167: AM | E167: 0
A168: - | B168: SIMONE MACEDO DOS S. COSTA | C168: ALION DA BARRA (IA) | D168: AM | E168: 0
A169: - | B169: JOSE VICENTE MARINO | C169: AUSTER IPIRANGA (IA) | D169: M | E169: 0
A170: - | B170: ANTONIO MARCOS SALLES MOURA | C170: UP-CLASS GIRL 3K (IA) | D170: M | E170: 0
A171: - | B171: FELIPE CARVALHO GOMES VENTURA | C171: UMORA | D171: AM | E171: 0
A172: - | B172: LUCAS COSTA ARAUJO | C172: JCR CHANEL | D172: AM | E172: 0
A173: - | B173: JANICE AMBROSIO MERZVINSKAS | C173: SALAMANDRA NEW ONE | D173: AM | E173: 0
A174: - | B174: MARGHERITA BRAZZALE | C174: LOCA R (IA) | D174: AM | E174: 0
A175: - | B175: RICARDO GANDOLFI | C175: CAROLINE MN | D175: AM | E175: 0
A176: - | B176: OTAVIO CANSANCAO DE AZEVEDO | C176: RRM ONE | D176: M | E176: 0
A177: - | B177: FELIPE CARVALHO GOMES VENTURA | C177: COHIBA BUENA VISTA | D177: AM | E177: 0
A178: - | B178: BIANCA MAGNABOSCO PFEIFER | C178: TWO TIMES ALME CHANTEBLED | D178: AM | E178: 0
A179: - | B179: DEISY WIELER RODRIGUES | C179: CANCIONETA JMEN | D179: AM | E179: 0
A180: - | B180: MARCELO GIOVANETTI DARIENZO | C180: HFB RESTLESS | D180: AM | E180: 0
A181: - | B181: GIULIA FRAZAO R. DA CUNHA | C181: SL BLENDED | D181: AM | E181: 0
A182: - | B182: LIVIA CRISTINA BENNATON DESCIO | C182: BRUCCE CLIMBER (TE) | D182: AM | E182: 0
A183: - | B183: DANIELA AQUINO DE A. MARTINS | C183: HSL ARISMA (IA) | D183: AM | E183: 0
A184: - | B184: OTAVIO CANSANCAO DE AZEVEDO | C184: GANA AMOR (IA) | D184: M | E184: 0
A185: - | B185: GABRIELA MARINHO | C185: SHARAPOVA EXPONENCIAL | D185: AM | E185: 0
A186: - | B186: JUAREZ ANDRADE | C186: XANADU GMS | D186: AM | E186: 0
A187: - | B187: MARIANA DI GRAZIA BONIN | C187: CATHARINA FB (IA) | D187: AM | E187: 0
A188: - | B188: DAVID DE CARVALHO LEMES | C188: QUERETARO TOK (IA) | D188: M | E188: 0
A189: - | B189: RAFAEL CHRISTIANINI | C189: SONHO REAL HCR | D189: AM | E189: 0
A190: - | B190: SERGIO AZEVEDO CUNHA | C190: GWENDOLYN VAN´T RUSSELTHOF | D190: M | E190: 0

Sheet AMT_MT
F5: 1ª ETAPA (SP) | L5: 1ª ETAPA TOTAL | M5: 2ª ETAPA (SP) | S5: 2ª ETAPA TOTAL | T5: 3ª ETAPA (PE) | Z5: 3ª ETAPA TOTAL | AA5: 4ª ETAPA (SP) | AG5: 4ª ETAPA TOTAL | AH5: 5ª ETAPA (PR) | AN5: 5ª ETAPA TOTAL | AO5: 6ª ETAPA (RS) | AU5: 6ª ETAPA TOTAL | AV5: 7ª ETAPA (DF) | BB5: 7ª ETAPA TOTAL | BC5: 8ª ETAPA (SP) | BI5: 8ª ETAPA TOTAL | BJ5: 9ª ETAPA (SP) | BP5: 9ª ETAPA TOTAL | BQ5: 10ª ETAPA (SP) | BW5: 10ª ETAPA TOTAL | BX5: 11ª ETAPA (MG) | CD5: 11ª ETAPA TOTAL | CE5: 12ª ETAPA (SP) | CK5: 12ª ETAPA TOTAL | CL5: 13ª ETAPA (SP) | CR5: 13ª ETAPA TOTAL | CS5: 14ª ETAPA (SP) | CY5: 14ª ETAPA TOTAL | CZ5: 15ª ETAPA (SP) | DF5: 15ª ETAPA TOTAL | DG5: 16ª ETAPA (SP) | DM5: 16ª ETAPA TOTAL | DN5: QTDE PROVAS | DO5: TOTAL GERAL
B6: R | C6: COMPETIDOR | D6: ANIMAL | E6: CAT | F6: TORNEIO DE VERÃO I ETAPA | M6: TORNEIO DE VERÃO II ETAPA | T6: CSN RECIFE I ETAPA N/NE | AA6: CSN OPEN | AH6: CSN CIDADE DE CURITIBA | AO6: CSN PORTO ALEGRE | AV6: CSN COPA JK | BC6: CSN D'MAIO | BJ6: CSN HARAS ALBAR | BQ6: CSN COPA SÃO PAULO | BX6: CSN HARAS SANTA ESMERALDA | CE6: CSN ANIVERSÁRIO CHSA | CL6: CSN INDOOR | CS6: CSN ANIVERSÁRIO CAMPINAS | CZ6: CSN AGROMEN | DG6: CSN XIV FESTIVAL CAVALO BH
F7: 1º DIA | H7: 2º DIA | J7: 3º DIA | M7: 1º DIA | O7: 2º DIA | Q7: 3º DIA | T7: 1º DIA | V7: 2º DIA | X7: 3º DIA | AA7: 1º DIA | AC7: 2º DIA | AE7: 3º DIA | AH7: 1º DIA | AJ7: 2º DIA | AL7: 3º DIA | AO7: 1º DIA | AQ7: 2º DIA | AS7: 3º DIA | AV7: 1º DIA | AX7: 2º DIA | AZ7: 3º DIA | BC7: 1º DIA | BE7: 2º DIA | BG7: 3º DIA | BJ7: 1º DIA | BL7: 2º DIA | BN7: 3º DIA | BQ7: 1º DIA | BS7: 2º DIA | BU7: 3º DIA | BX7: 1º DIA | BZ7: 2º DIA | CB7: 3º DIA | CE7: 1º DIA | CG7: 2º DIA | CI7: 3º DIA | CL7: 1º DIA | CN7: 2º DIA | CP7: 3º DIA | CS7: 1º DIA | CU7: 2º DIA | CW7: 3º DIA | CZ7: 1º DIA | DB7: 2º DIA | DD7: 3º DIA | DG7: 1º DIA | DI7: 2º DIA | DK7: 3º DIA
F8: CL | G8: PTS | H8: CL | I8: PTS | J8: CL | K8: PTS | M8: CL | N8: PTS | O8: CL | P8: PTS | Q8: CL | R8: PTS | T8: CL | U8: PTS | V8: CL | W8: PTS | X8: CL | Y8: PTS | AA8: CL | AB8: PTS | AC8: CL | AD8: PTS | AE8: CL | AF8: PTS | AH8: CL | AI8: PTS | AJ8: CL | AK8: PTS | AL8: CL | AM8: PTS | AO8: CL | AP8: PTS | AQ8: CL | AR8: PTS | AS8: CL | AT8: PTS | AV8: CL | AW8: PTS | AX8: CL | AY8: PTS | AZ8: CL | BA8: PTS | BC8: CL | BD8: PTS | BE8: CL | BF8: PTS | BG8: CL | BH8: PTS | BJ8: CL | BK8: PTS | BL8: CL | BM8: PTS | BN8: CL | BO8: PTS | BQ8: CL | BR8: PTS | BS8: CL | BT8: PTS | BU8: CL | BV8: PTS | BX8: CL | BY8: PTS | BZ8: CL | CA8: PTS | CB8: CL | CC8: PTS | CE8: CL | CF8: PTS | CG8: CL | CH8: PTS | CI8: CL | CJ8: PTS | CL8: CL | CM8: PTS | CN8: CL | CO8: PTS | CP8: CL | CQ8: PTS | CS8: CL | CT8: PTS | CU8: CL | CV8: PTS | CW8: CL | CX8: PTS | CZ8: CL | DA8: PTS | DB8: CL | DC8: PTS | DD8: CL | DE8: PTS | DG8: CL | DH8: PTS | DI8: CL | DJ8: PTS | DK8: CL | DL8: PTS
B9: 1 | C9: LUCIANA LOSSIO | D9: LADY LOUISE JMEN (TE) | E9: AMT | T9: NC | U9: 0 | V9: NC | W9: 0 | X9: NC | Y9: 0 | Z9: 0 | AA9: 3 | AB9: 16.5 | AC9: 3 | AD9: 16.5 | AE9: 4 | AF9: 14.3 | AG9: =AF9+AD9+AB9 -> 47.3 | AV9: 6 | AW9: 4 | AX9: 1 | AY9: 14 | AZ9: NC | BA9: 0 | BB9: =BA9+AY9+AW9 -> 18 | BC9: 1 | BD9: 22 | BE9: 4 | BF9: 10 | BG9: 2 | BH9: 18.7 | BI9: =BH9+BF9+BD9 -> 50.7 | BJ9: NC | BK9: 0 | BL9: NC | BM9: 0 | BN9: NC | BO9: 0 | BP9: 0 | BQ9: NC | BR9: 0 | BS9: NC | BT9: 0 | BU9: NC | BV9: 0 | BW9: 0 | CE9: 2 | CF9: 18.7 | CG9: 9 | CH9: 8.8 | CI9: 1 | CJ9: 22 | CK9: =CF9+CH9+CJ9 -> 49.5 | CL9: NC | CM9: 0 | CN9: NC | CO9: 0 | CP9: NC | CQ9: 0 | CR9: 0 | DN9: =SUBTOTAL(3,L9,S9,AG9,AN9,AU9,BB9,BI9,CD9,CK9,CY9,DF9,DM9) -> 4 | DO9: =DM9+DF9+CY9+CR9+CK9+CD9+BW9+BP9+BI9+BB9+AU9+AN9+AG9+Z9+S9+L9 -> 165.5
B10: 2 | C10: THAIS BALBINO DE SOUZA | D10: UNE AIMEE | E10: AMT | T10: NC | U10: 0 | V10: NC | W10: 0 | X10: NC | Y10: 0 | Z10: 0 | AA10: 7 | AB10: 11 | AC10: 2 | AD10: 18.7 | AE10: 2 | AF10: 18.7 | AG10: =AF10+AD10+AB10 -> 48.4 | AH10: 3 | AI10: 16.5 | AJ10: 16 | AK10: 1.1 | AL10: NC | AM10: 0 | AN10: =AM10+AK10+AI10 -> 17.6 | BJ10: NC | BK10: 0 | BL10: NC | BM10: 0 | BN10: NC | BO10: 0 | BP10: 0 | BQ10: NC | BR10: 0 | BS10: NC | BT10: 0 | BU10: NC | BV10: 0 | BW10: 0 | BX10: 8 | BY10: 6 | BZ10: 1 | CA10: 15 | CB10: 2 | CC10: 14 | CD10: =CC10+CA10+BY10 -> 35 | CE10: 11 | CF10: 6.6 | CG10: 4 | CH10: 14.3 | CI10: 2 | CJ10: 18.7 | CK10: =CF10+CH10+CJ10 -> 39.6 | CL10: NC | CM10: 0 | CN10: NC | CO10: 0 | CP10: NC | CQ10: 0 | CR10: 0 | CS10: 3 | CT10: 6 | CU10: 2 | CV10: 9 | CW10: NC | CX10: 0 | CY10: =CX10+CV10+CT10 -> 15 | DN10: 5 | DO10: 155.6
B11: 3 | C11: FLAVIA HELENA JUNQUEIRA LOPES | D11: CRYSTAL SANTA DALILA (IA) | E11: AMT | F11: 10 | G11: 6 | H11: 2 | I11: 17 | J11: 2 | K11: 15 | L11: =K11+I11+G11 -> 38 | M11: 2 | N11: 18.7 | O11: 3 | P11: 16.5 | Q11: 12 | R11: 5.5 | S11: =R11+P11+N11 -> 40.7 | T11: NC | U11: 0 | V11: NC | W11: 0 | X11: NC | Y11: 0 | Z11: 0 | AA11: 2 | AB11: 18.7 | AC11: 21 | AD11: 0 | AE11: NC | AF11: 0 | AG11: =AF11+AD11+AB11 -> 18.7 | BC11: 17 | BD11: 0 | BE11: ELI | BF11: 0 | BG11: NC | BH11: 0 | BI11: =BH11+BF11+BD11 -> 0 | BJ11: NC | BK11: 0 | BL11: NC | BM11: 0 | BN11: NC | BO11: 0 | BP11: 0 | BQ11: NC | BR11: 0 | BS11: NC | BT11: 0 | BU11: NC | BV11: 0 | BW11: 0 | CE11: 4 | CF11: 14.3 | CG11: 3 | CH11: 16.5 | CI11: 9 | CJ11: 8.8 | CK11: =CF11+CH11+CJ11 -> 39.6 | CL11: NC | CM11: 0 | CN11: NC | CO11: 0 | CP11: NC | CQ11: 0 | CR11: 0 | DG11: 7 | DH11: 11 | DI11: 10 | DJ11: 3 | DM11: =DH11+DJ11 -> 14 | DN11: 6 | DO11: 151
B12: 4 | C12: RODRIGO NUNES DE MELO | D12: PRINCESS MAJORCA GF (IA) | E12: AMT | F12: 1 | G12: 19 | H12: 5 | I12: 12 | J12: 10 | K12: 5 | L12: =K12+I12+G12 -> 36 | M12: 3 | N12: 16.5 | O12: 1 | P12: 22 | Q12: 5 | R12: 13.2 | S12: =R12+P12+N12 -> 51.7 | T12: NC | U12: 0 | V12: NC | W12: 0 | X12: NC | Y12: 0 | Z12: 0 | AA12: 22 | AB12: 0 | AC12: 9 | AD12: 8.8 | AE12: NC | AF12: 0 | AG12: =AF12+AD12+AB12 -> 8.8 | BC12: 4 | BD12: 14.3 | BE12: NC | BF12: 0 | BG12: 4 | BH12: 14.3 | BI12: =BH12+BF12+BD12 -> 28.6 | BJ12: NC | BK12: 0 | BL12: NC | BM12: 0 | BN12: NC | BO12: 0 | BP12: 0 | BQ12: NC | BR12: 0 | BS12: NC | BT12: 0 | BU12: NC | BV12: 0 | BW12: 0 | CL12: NC | CM12: 0 | CN12: NC | CO12: 0 | CP12: NC | CQ12: 0 | CR12: 0 | DN12: 4 | DO12: 125.1
B13: 5 | C13: ALEXANDRE GORBERG | D13: CAPRI FQ (IA) | E13: AMT | T13: NC | U13: 0 | V13: NC | W13: 0 | X13: NC | Y13: 0 | Z13: 0 | AH13: 5 | AI13: 13.2 | AJ13: 11 | AK13: 6.6 | AL13: NC | AM13: 0 | AN13: =AM13+AK13+AI13 -> 19.8 | BC13: 5 | BD13: 13.2 | BE13: NC | BF13: 0 | BG13: 1 | BH13: 22 | BI13: =BH13+BF13+BD13 -> 35.2 | BJ13: NC | BK13: 0 | BL13: NC | BM13: 0 | BN13: NC | BO13: 0 | BP13: 0 | BQ13: NC | BR13: 0 | BS13: NC | BT13: 0 | BU13: NC | BV13: 0 | BW13: 0 | CE13: 3 | CF13: 16.5 | CG13: 5 | CH13: 13.2 | CI13: 13 | CJ13: 4.4 | CK13: =CF13+CH13+CJ13 -> 34.1 | CL13: NC | CM13: 0 | CN13: NC | CO13: 0 | CP13: NC | CQ13: 0 | CR13: 0 | CZ13: 2 | DA13: 12 | DB13: 1 | DC13: 16 | DD13: 5 | DE13: 5 | DF13: =DE13+DC13+DA13 -> 33 | DN13: 4 | DO13: 122.1
B14: 6 | C14: MARCO ANTONIO MODESTO FILHO | D14: ZORRERA 3K (IA) | E14: AMT | T14: NC | U14: 0 | V14: NC | W14: 0 | X14: NC | Y14: 0 | Z14: 0 | AA14: 25 | AB14: 0 | AC14: 12 | AD14: 5.5 | AE14: 1 | AF14: 22 | AG14: =AF14+AD14+AB14 -> 27.5 | AH14: 12 | AI14: 5.5 | AJ14: 14 | AK14: 3.3 | AL14: 1 | AM14: 10 | AN14: =AM14+AK14+AI14 -> 18.8 | AV14: 5 | AW14: 5 | AX14: 6 | AY14: 5 | AZ14: 6 | BA14: 2 | BB14: =BA14+AY14+AW14 -> 12 | BJ14: NC | BK14: 0 | BL14: NC | BM14: 0 | BN14: NC | BO14: 0 | BP14: 0 | BQ14: NC | BR14: 0 | BS14: NC | BT14: 0 | BU14: NC | BV14: 0 | BW14: 0 | BX14: 1 | BY14: 17 | BZ14: 2 | CA14: 12 | CB14: 8 | CC14: 6 | CD14: =CC14+CA14+BY14 -> 35 | CE14: 6 | CF14: 12.1 | CG14: 10 | CH14: 7.7 | CI14: 10 | CJ14: 7.7 | CK14: =CF14+CH14+CJ14 -> 27.5 | CL14: NC | CM14: 0 | CN14: NC | CO14: 0 | CP14: NC | CQ14: 0 | CR14: 0 | DN14: 5 | DO14: 120.8
B15: 7 | C15: RICARDO GANDOLFI | D15: COLANDRA JMEN III | E15: AMT | F15: 11 | G15: 5 | H15: 1 | I15: 20 | J15: 6 | K15: 9 | L15: =K15+I15+G15 -> 34 | M15: 19 | N15: 0 | O15: 14 | P15: 3.3 | Q15: 20 | R15: 0 | S15: =R15+P15+N15 -> 3.3 | T15: NC | U15: 0 | V15: NC | W15: 0 | X15: NC | Y15: 0 | Z15: 0 | AA15: 17 | AB15: 0 | AC15: NC | AD15: 0 | AE15: 13 | AF15: 4.4 | AG15: 4.4 | AH15: NC | AI15: 0 | AJ15: 6 | AK15: 12.1 | AL15: 4 | AM15: 3 | AN15: =AM15+AK15+AI15 -> 15.1 | BC15: NC | BD15: 0 | BE15: 10 | BF15: 4 | BG15: NC | BH15: 0 | BI15: =BH15+BF15+BD15 -> 4 | BJ15: NC | BK15: 0 | BL15: NC | BM15: 0 | BN15: NC | BO15: 0 | BP15: 0 | BQ15: NC | BR15: 0 | BS15: NC | BT15: 0 | BU15: NC | BV15: 0 | BW15: 0 | CL15: NC | CM15: 0 | CN15: NC | CO15: 0 | CP15: NC | CQ15: 0 | CR15: 0 | CZ15: 3 | DA15: 10 | DB15: 9 | DC15: 4 | DD15: 1 | DE15: 13 | DF15: =DE15+DC15+DA15 -> 27 | DG15: 2 | DH15: 18.7 | DI15: 6 | DJ15: 7 | DM15: =DH15+DJ15 -> 25.7 | DN15: 7 | DO15: 113.5
B16: 8 | C16: DANIEL QUEIROZ ALMEIDA MEDRADO | D16: ZINGARO TW | E16: AMT | F16: 7 | G16: 9 | H16: 3 | I16: 15 | J16: 1 | K16: 18 | L16: =K16+I16+G16 -> 42 | T16: NC | U16: 0 | V16: NC | W16: 0 | X16: NC | Y16: 0 | Z16: 0 | AA16: 6 | AB16: 12.1 | AC16: 5 | AD16: 13.2 | AE16: 3 | AF16: 16.5 | AG16: 41.8 | BC16: 20 | BD16: 0 | BE16: NC | BF16: 0 | BG16: NC | BH16: 0 | BI16: =BH16+BF16+BD16 -> 0 | BJ16: NC | BK16: 0 | BL16: NC | BM16: 0 | BN16: NC | BO16: 0 | BP16: 0 | BQ16: NC | BR16: 0 | BS16: NC | BT16: 0 | BU16: NC | BV16: 0 | BW16: 0 | BX16: 4 | BY16: 10 | BZ16: 6 | CA16: 6 | CB16: 3 | CC16: 12 | CD16: =CC16+CA16+BY16 -> 28 | CL16: NC | CM16: 0 | CN16: NC | CO16: 0 | CP16: NC | CQ16: 0 | CR16: 0 | DN16: 4 | DO16: 111.8
B17: 9 | C17: NINA FRANZISKA BABBE | D17: CONGO ITAPUA | E17: MT | F17: 2 | G17: 16 | H17: 4 | I17: 13 | J17: 11 | K17: 4 | L17: =K17+I17+G17 -> 33 | M17: 14 | N17: 3.3 | O17: 16 | P17: 1.1 | Q17: 15 | R17: 2.2 | S17: =R17+P17+N17 -> 6.6 | T17: NC | U17: 0 | V17: NC | W17: 0 | X17: NC | Y17: 0 | Z17: 0 | AA17: 9 | AB17: 8.8 | AC17: 18 | AD17: 0 | AE17: 17 | AF17: 0 | AG17: 8.8 | BC17: 8 | BD17: 9.9 | BE17: NC | BF17: 0 | BG17: NC | BH17: 0 | BI17: =BH17+BF17+BD17 -> 9.9 | BJ17: NC | BK17: 0 | BL17: NC | BM17: 0 | BN17: NC | BO17: 0 | BP17: 0 | BQ17: NC | BR17: 0 | BS17: NC | BT17: 0 | BU17: NC | BV17: 0 | BW17: 0 | CE17: 14 | CF17: 3.3 | CG17: 16 | CH17: 1.1 | CI17: 14 | CJ17: 3.3 | CK17: =CF17+CH17+CJ17 -> 7.7 | CL17: NC | CM17: 0 | CN17: NC | CO17: 0 | CP17: NC | CQ17: 0 | CR17: 0 | CZ17: 4 | DA17: 8 | DB17: 3 | DC17: 11 | DD17: 3 | DE17: 8 | DF17: =DE17+DC17+DA17 -> 27 | DN17: 6 | DO17: 93
B18: 10 | C18: STEPHANE BEHAR BRAGA | D18: GR ARMANI (IA) | E18: AMT | T18: NC | U18: 0 | V18: NC | W18: 0 | X18: NC | Y18: 0 | Z18: 0 | AA18: 1 | AB18: 22 | AC18: 10 | AD18: 7.7 | AE18: 5 | AF18: 13.2 | AG18: 42.9 | BJ18: NC | BK18: 0 | BL18: NC | BM18: 0 | BN18: NC | BO18: 0 | BP18: 0 | BQ18: NC | BR18: 0 | BS18: NC | BT18: 0 | BU18: NC | BV18: 0 | BW18: 0 | CE18: 1 | CF18: 22 | CG18: 2 | CH18: 18.7 | CI18: 11 | CJ18: 6.6 | CK18: =CF18+CH18+CJ18 -> 47.3 | CL18: NC | CM18: 0 | CN18: NC | CO18: 0 | CP18: NC | CQ18: 0 | CR18: 0 | DN18: 2 | DO18: 90.2
B19: 11 | C19: ALEXANDRE GORBERG | D19: CORNET ALLURE | E19: AMT | M19: 9 | N19: 8.8 | O19: 7 | P19: 11 | Q19: 4 | R19: 14.3 | S19: =R19+P19+N19 -> 34.1 | T19: NC | U19: 0 | V19: NC | W19: 0 | X19: NC | Y19: 0 | Z19: 0 | AA19: 12 | AB19: 5.5 | AC19: 14 | AD19: 3.3 | AE19: 11 | AF19: 6.6 | AG19: 15.4 | AH19: 14 | AI19: 3.3 | AJ19: 22 | AK19: 0 | AL19: NC | AM19: 0 | AN19: =AM19+AK19+AI19 -> 3.3 | BC19: 12 | BD19: 5.5 | BE19: ELI | BF19: 0 | BG19: 5 | BH19: 13.2 | BI19: =BH19+BF19+BD19 -> 18.7 | BJ19: NC | BK19: 0 | BL19: NC | BM19: 0 | BN19: NC | BO19: 0 | BP19: 0 | BQ19: NC | BR19: 0 | BS19: NC | BT19: 0 | BU19: NC | BV19: 0 | BW19: 0 | CL19: NC | CM19: 0 | CN19: NC | CO19: 0 | CP19: NC | CQ19: 0 | CR19: 0 | CZ19: 10 | DA19: 2 | DB19: 8 | DC19: 5 | DD19: 2 | DE19: 10 | DF19: =DE19+DC19+DA19 -> 17 | DN19: 5 | DO19: 88.5
B20: 12 | C20: GILBERTO JUNQUEIRA LOPES | D20: PINOT JMEN (TE) | E20: AMT | F20: 5 | G20: 11 | H20: 10 | I20: 7 | J20: 12 | K20: 3 | L20: =K20+I20+G20 -> 21 | M20: 10 | N20: 7.7 | O20: 8 | P20: 9.9 | Q20: 18 | R20: 0 | S20: 17.6 | T20: NC | U20: 0 | V20: NC | W20: 0 | X20: NC | Y20: 0 | Z20: 0 | BJ20: NC | BK20: 0 | BL20: NC | BM20: 0 | BN20: NC | BO20: 0 | BP20: 0 | BQ20: NC | BR20: 0 | BS20: NC | BT20: 0 | BU20: NC | BV20: 0 | BW20: 0 | CL20: NC | CM20: 0 | CN20: NC | CO20: 0 | CP20: NC | CQ20: 0 | CR20: 0 | DG20: 1 | DH20: 22 | DI20: 5 | DJ20: 8 | DM20: =DH20+DJ20 -> 30 | DN20: 3 | DO20: 68.6
B21: 13 | C21: THIAGO AQUINO DE ARRUDA MARTINS | D21: HSL AMY BROWN (IA) | E21: AMT | M21: 1 | N21: 22 | O21: 2 | P21: 18.7 | Q21: 1 | R21: 22 | S21: 62.7 | T21: NC | U21: 0 | V21: NC | W21: 0 | X21: NC | Y21: 0 | Z21: 0 | BJ21: NC | BK21: 0 | BL21: NC | BM21: 0 | BN21: NC | BO21: 0 | BP21: 0 | BQ21: NC | BR21: 0 | BS21: NC | BT21: 0 | BU21: NC | BV21: 0 | BW21: 0 | CL21: NC | CM21: 0 | CN21: NC | CO21: 0 | CP21: NC | CQ21: 0 | CR21: 0 | DN21: 1 | DO21: 62.7
B22: 14 | C22: ALEXANDRE GORBERG | D22: CARIANO | E22: AMT | M22: 5 | N22: 13.2 | O22: 18 | P22: 0 | Q22: 7 | R22: 11 | S22: 24.2 | T22: NC | U22: 0 | V22: NC | W22: 0 | X22: NC | Y22: 0 | Z22: 0 | AA22: 20 | AB22: 0 | AC22: ELI | AD22: 0 | AE22: NC | AF22: 0 | AG22: =AF22+AD22+AB22 -> 0 | BJ22: NC | BK22: 0 | BL22: NC | BM22: 0 | BN22: NC | BO22: 0 | BP22: 0 | BQ22: NC | BR22: 0 | BS22: NC | BT22: 0 | BU22: NC | BV22: 0 | BW22: 0 | CE22: 5 | CF22: 13.2 | CG22: 7 | CH22: 11 | CI22: 5 | CJ22: 13.2 | CK22: =CF22+CH22+CJ22 -> 37.4 | CL22: NC | CM22: 0 | CN22: NC | CO22: 0 | CP22: NC | CQ22: 0 | CR22: 0 | DN22: 3 | DO22: 61.6
B23: 15 | C23: JULIANA DA COSTA BERNARDES | D23: SALAMANDRA BALOUBINA (IA) | E23: AMT | M23: 8 | N23: 9.9 | O23: 5 | P23: 13.2 | Q23: 2 | R23: 18.7 | S23: 41.8 | T23: NC | U23: 0 | V23: NC | W23: 0 | X23: NC | Y23: 0 | Z23: 0 | AA23: 4 | AB23: 14.3 | AC23: 17 | AD23: 0 | AE23: NC | AF23: 0 | AG23: =AF23+AD23+AB23 -> 14.3 | BJ23: NC | BK23: 0 | BL23: NC | BM23: 0 | BN23: NC | BO23: 0 | BP23: 0 | BQ23: NC | BR23: 0 | BS23: NC | BT23: 0 | BU23: NC | BV23: 0 | BW23: 0 | CL23: NC | CM23: 0 | CN23: NC | CO23: 0 | CP23: NC | CQ23: 0 | CR23: 0 | DN23: 2 | DO23: 56.1
B24: 16 | C24: MARCO ANTONIO MARTINI FREDERICO | D24: COLLIN | E24: MT | M24: 15 | N24: 2.2 | O24: 20 | P24: 0 | Q24: 17 | R24: 0 | S24: 2.2 | T24: NC | U24: 0 | V24: NC | W24: 0 | X24: NC | Y24: 0 | Z24: 0 | AA24: 10 | AB24: 7.7 | AC24: 8 | AD24: 9.9 | AE24: 15 | AF24: 2.2 | AG24: =AF24+AD24+AB24 -> 19.8 | AH24: 6 | AI24: 12.1 | AJ24: 10 | AK24: 7.7 | AL24: NC | AM24: 0 | AN24: =AM24+AK24+AI24 -> 19.8 | BC24: ELI | BD24: 0 | BE24: 2 | BF24: 14 | BG24: NC | BH24: 0 | BI24: =BH24+BF24+BD24 -> 14 | BJ24: NC | BK24: 0 | BL24: NC | BM24: 0 | BN24: NC | BO24: 0 | BP24: 0 | BQ24: NC | BR24: 0 | BS24: NC | BT24: 0 | BU24: NC | BV24: 0 | BW24: 0 | CL24: NC | CM24: 0 | CN24: NC | CO24: 0 | CP24: NC | CQ24: 0 | CR24: 0 | DN24: 4 | DO24: 55.8
B25: 17 | C25: RODRIGO MACHADO DE MORAES | D25: LORELEY JMEN | E25: AMT | T25: NC | U25: 0 | V25: NC | W25: 0 | X25: NC | Y25: 0 | Z25: 0 | AA25: 28 | AB25: 0 | AC25: NC | AD25: 0 | AE25: 6 | AF25: 12.1 | AG25: =AF25+AD25+AB25 -> 12.1 | AH25: 17 | AI25: 0 | AJ25: 3 | AK25: 16.5 | AL25: DES | AM25: 0 | AN25: =AM25+AK25+AI25 -> 16.5 | AO25: 4 | AP25: 2 | AQ25: ELI | AR25: 0 | AS25: 1 | AT25: 10 | AU25: =AT25+AR25+AP25 -> 12 | BC25: ELI | BD25: 0 | BE25: 6 | BF25: 8 | BG25: 11 | BH25: 6.6 | BI25: =BH25+BF25+BD25 -> 14.6 | BJ25: NC | BK25: 0 | BL25: NC | BM25: 0 | BN25: NC | BO25: 0 | BP25: 0 | BQ25: NC | BR25: 0 | BS25: NC | BT25: 0 | BU25: NC | BV25: 0 | BW25: 0 | CE25: 18 | CF25: 0 | CG25: NC | CH25: 0 | CI25: NC | CJ25: 0 | CK25: =CF25+CH25+CJ25 -> 0 | CL25: NC | CM25: 0 | CN25: NC | CO25: 0 | CP25: NC | CQ25: 0 | CR25: 0 | DN25: 5 | DO25: 55.2
B26: 18 | C26: ADONAI DE LEMOS | D26: LF FRISSON PREMIER (IA) | E26: AMT | T26: NC | U26: 0 | V26: NC | W26: 0 | X26: NC | Y26: 0 | Z26: 0 | AA26: 15 | AB26: 2.2 | AC26: 13 | AD26: 4.4 | AE26: 8 | AF26: 9.9 | AG26: =AF26+AD26+AB26 -> 16.5 | BC26: 2 | BD26: 18.7 | BE26: 1 | BF26: 17 | BG26: 15 | BH26: 2.2 | BI26: =BH26+BF26+BD26 -> 37.9 | BJ26: NC | BK26: 0 | BL26: NC | BM26: 0 | BN26: NC | BO26: 0 | BP26: 0 | BQ26: NC | BR26: 0 | BS26: NC | BT26: 0 | BU26: NC | BV26: 0 | BW26: 0 | CL26: NC | CM26: 0 | CN26: NC | CO26: 0 | CP26: NC | CQ26: 0 | CR26: 0 | DN26: 2 | DO26: 54.4
B27: 19 | C27: RAFAEL MARIANTE RAMOS DA SILVA | D27: AN LUCKY WAY (IA) | E27: MT | F27: 3 | G27: 14 | H27: 7 | I27: 10 | J27: 7 | K27: 8 | L27: =K27+I27+G27 -> 32 | M27: 7 | N27: 11 | O27: 19 | P27: 0 | Q27: 8 | R27: 9.9 | S27: =R27+P27+N27 -> 20.9 | T27: NC | U27: 0 | V27: NC | W27: 0 | X27: NC | Y27: 0 | Z27: 0 | BJ27: NC | BK27: 0 | BL27: NC | BM27: 0 | BN27: NC | BO27: 0 | BP27: 0 | BQ27: NC | BR27: 0 | BS27: NC | BT27: 0 | BU27: NC | BV27: 0 | BW27: 0 | CL27: NC | CM27: 0 | CN27: NC | CO27: 0 | CP27: NC | CQ27: 0 | CR27: 0 | DN27: 2 | DO27: 52.9
B28: 20 | C28: LUCAS AMOEDO CONDE | D28: CASH HR (IA) | E28: AMT | F28: 14 | G28: 2 | H28: 13 | I28: 4 | J28: ELI | K28: 0 | L28: =K28+I28+G28 -> 6 | M28: 16 | N28: 1.1 | O28: 24 | P28: 0 | Q28: 3 | R28: 16.5 | S28: =R28+P28+N28 -> 17.6 | T28: NC | U28: 0 | V28: NC | W28: 0 | X28: NC | Y28: 0 | Z28: 0 | AA28: 29 | AB28: 0 | AC28: 19 | AD28: 0 | AE28: 12 | AF28: 5.5 | AG28: =AF28+AD28+AB28 -> 5.5 | AH28: 25 | AI28: 0 | AJ28: 25 | AK28: 0 | AL28: NC | AM28: 0 | AN28: =AM28+AK28+AI28 -> 0 | AO28: 3 | AP28: 4 | AQ28: 2 | AR28: 6 | AS28: 4 | AT28: 3 | AU28: =AT28+AR28+AP28 -> 13 | BJ28: NC | BK28: 0 | BL28: NC | BM28: 0 | BN28: NC | BO28: 0 | BP28: 0 | BQ28: NC | BR28: 0 | BS28: NC | BT28: 0 | BU28: NC | BV28: 0 | BW28: 0 | CL28: NC | CM28: 0 | CN28: NC | CO28: 0 | CP28: NC | CQ28: 0 | CR28: 0 | DG28: 10 | DH28: 7.7 | DI28: FF | DJ28: 0 | DM28: =DH28+DJ28 -> 7.7 | DN28: 6 | DO28: 49.8
B29: 21 | C29: THIERRY DECOENE | D29: CHAPARRAL JMEN II (TE) | E29: AMT | T29: NC | U29: 0 | V29: NC | W29: 0 | X29: NC | Y29: 0 | Z29: 0 | AA29: NC | AB29: 0 | AC29: 25 | AD29: 0 | AE29: 7 | AF29: 11 | AG29: =AF29+AD29+AB29 -> 11 | BC29: NC | BD29: 0 | BE29: NC | BF29: 0 | BG29: 13 | BH29: 4.4 | BI29: =BH29+BF29+BD29 -> 4.4 | BJ29: NC | BK29: 0 | BL29: NC | BM29: 0 | BN29: NC | BO29: 0 | BP29: 0 | BQ29: NC | BR29: 0 | BS29: NC | BT29: 0 | BU29: NC | BV29: 0 | BW29: 0 | CE29: 16 | CF29: 1.1 | CG29: 12 | CH29: 5.5 | CI29: 17 | CJ29: 0 | CK29: =CF29+CH29+CJ29 -> 6.6 | CL29: NC | CM29: 0 | CN29: NC | CO29: 0 | CP29: NC | CQ29: 0 | CR29: 0 | CZ29: NC | DA29: 0 | DB29: 11 | DC29: 2 | DD29: 7 | DE29: 3 | DF29: =DE29+DC29+DA29 -> 5 | DG29: 3 | DH29: 16.5 | DI29: 8 | DJ29: 5 | DM29: =DH29+DJ29 -> 21.5 | DN29: 5 | DO29: 48.5
B30: 22 | C30: FELIPE CARVALHO GOMES VENTURA | D30: STAKKARTA | E30: AMT | M30: ELI | N30: 0 | O30: 21 | P30: 0 | Q30: 10 | R30: 7.7 | S30: =R30+P30+N30 -> 7.7 | T30: NC | U30: 0 | V30: NC | W30: 0 | X30: NC | Y30: 0 | Z30: 0 | AA30: 24 | AB30: 0 | AC30: 7 | AD30: 11 | AE30: NC | AF30: 0 | AG30: =AF30+AD30+AB30 -> 11 | AH30: 4 | AI30: 14.3 | AJ30: 8 | AK30: 9.9 | AL30: NC | AM30: 0 | AN30: =AM30+AK30+AI30 -> 24.2 | BC30: ELI | BD30: 0 | BE30: NC | BF30: 0 | BG30: 18 | BH30: 0 | BI30: 0 | BJ30: NC | BK30: 0 | BL30: NC | BM30: 0 | BN30: NC | BO30: 0 | BP30: 0 | BQ30: NC | BR30: 0 | BS30: NC | BT30: 0 | BU30: NC | BV30: 0 | BW30: 0 | CL30: NC | CM30: 0 | CN30: NC | CO30: 0 | CP30: NC | CQ30: 0 | CR30: 0 | DN30: 4 | DO30: 42.9
B31: 23 | C31: SERGIO HENRIQUES NEVES MARINS | D31: PREMIER 2S (IA) | E31: MT | T31: NC | U31: 0 | V31: NC | W31: 0 | X31: NC | Y31: 0 | Z31: 0 | AA31: 14 | AB31: 3.3 | AC31: 15 | AD31: 2.2 | AE31: NC | AF31: 0 | AG31: =AF31+AD31+AB31 -> 5.5 | AH31: 11 | AI31: 6.6 | AJ31: 13 | AK31: 4.4 | AL31: NC | AM31: 0 | AN31: =AM31+AK31+AI31 -> 11 | BC31: 10 | BD31: 7.7 | BE31: NC | BF31: 0 | BG31: NC | BH31: 0 | BI31: 7.7 | BJ31: NC | BK31: 0 | BL31: NC | BM31: 0 | BN31: NC | BO31: 0 | BP31: 0 | BQ31: NC | BR31: 0 | BS31: NC | BT31: 0 | BU31: NC | BV31: 0 | BW31: 0 | BX31: 6 | BY31: 8 | BZ31: NC | CA31: 0 | CB31: 5 | CC31: 9 | CD31: =CC31+CA31+BY31 -> 17 | CL31: NC | CM31: 0 | CN31: NC | CO31: 0 | CP31: NC | CQ31: 0 | CR31: 0 | DN31: 4 | DO31: 41.2
B32: 24 | C32: VITORIA RABELLO NOLLI | D32: HALIFAX PULLMAN (IA) | E32: AMT | T32: NC | U32: 0 | V32: NC | W32: 0 | X32: NC | Y32: 0 | Z32: 0 | BC32: 18 | BD32: 0 | BE32: 7 | BF32: 7 | BG32: 3 | BH32: 16.5 | BI32: 23.5 | BJ32: NC | BK32: 0 | BL32: NC | BM32: 0 | BN32: NC | BO32: 0 | BP32: 0 | BQ32: NC | BR32: 0 | BS32: NC | BT32: 0 | BU32: NC | BV32: 0 | BW32: 0 | BX32: 9 | BY32: 5 | BZ32: 3 | CA32: 10 | CB32: 12 | CC32: 2 | CD32: =CC32+CA32+BY32 -> 17 | CL32: NC | CM32: 0 | CN32: NC | CO32: 0 | CP32: NC | CQ32: 0 | CR32: 0 | DN32: 2 | DO32: 40.5
B33: 25 | C33: LUCAS AMOEDO CONDE | D33: CARDENHO DO LIBERTE (IA) | E33: AMT | T33: NC | U33: 0 | V33: NC | W33: 0 | X33: NC | Y33: 0 | Z33: 0 | BC33: 3 | BD33: 16.5 | BE33: NC | BF33: 0 | BG33: NC | BH33: 0 | BI33: 16.5 | BJ33: NC | BK33: 0 | BL33: NC | BM33: 0 | BN33: NC | BO33: 0 | BP33: 0 | BQ33: NC | BR33: 0 | BS33: NC | BT33: 0 | BU33: NC | BV33: 0 | BW33: 0 | CL33: NC | CM33: 0 | CN33: NC | CO33: 0 | CP33: NC | CQ33: 0 | CR33: 0 | CZ33: 1 | DA33: 15 | DB33: 10 | DC33: 3 | DD33: 6 | DE33: 4 | DF33: =DE33+DC33+DA33 -> 22 | DG33: 16 | DH33: 1.1 | DI33: FF | DJ33: 0 | DM33: =DH33+DJ33 -> 1.1 | DN33: 3 | DO33: 39.6
B34: 26 | C34: SERGIO MOURAO CORREA LIMA | D34: GENEVE M (IA) | E34: MT | T34: NC | U34: 0 | V34: NC | W34: 0 | X34: NC | Y34: 0 | Z34: 0 | AA34: NC | AB34: 0 | AC34: 6 | AD34: 12.1 | AE34: NC | AF34: 0 | AG34: =AF34+AD34+AB34 -> 12.1 | AH34: NC | AI34: 0 | AJ34: 4 | AK34: 14.3 | AL34: NC | AM34: 0 | AN34: =AM34+AK34+AI34 -> 14.3 | BC34: NC | BD34: 0 | BE34: NC | BF34: 0 | BG34: 6 | BH34: 12.1 | BI34: 12.1 | BJ34: NC | BK34: 0 | BL34: NC | BM34: 0 | BN34: NC | BO34: 0 | BP34: 0 | BQ34: NC | BR34: 0 | BS34: NC | BT34: 0 | BU34: NC | BV34: 0 | BW34: 0 | CL34: NC | CM34: 0 | CN34: NC | CO34: 0 | CP34: NC | CQ34: 0 | CR34: 0 | DN34: 3 | DO34: 38.5
B35: 26 | C35: ISABELA CZARNESKI C. LOUREIRO | D35: ARKILLY VDL | E35: AMT | T35: NC | U35: 0 | V35: NC | W35: 0 | X35: NC | Y35: 0 | Z35: 0 | AV35: 7 | AW35: 3 | AX35: 4 | AY35: 7 | AZ35: 5 | BA35: 3 | BB35: =BA35+AY35+AW35 -> 13 | BC35: 7 | BD35: 11 | BE35: 5 | BF35: 9 | BG35: 12 | BH35: 5.5 | BI35: 25.5 | BJ35: NC | BK35: 0 | BL35: NC | BM35: 0 | BN35: NC | BO35: 0 | BP35: 0 | BQ35: NC | BR35: 0 | BS35: NC | BT35: 0 | BU35: NC | BV35: 0 | BW35: 0 | CL35: NC | CM35: 0 | CN35: NC | CO35: 0 | CP35: NC | CQ35: 0 | CR35: 0 | DN35: 2 | DO35: 38.5
B36: 28 | C36: DANIEL MOURA | D36: ZANDOR MAT (TE) | E36: AMT | T36: NC | U36: 0 | V36: NC | W36: 0 | X36: NC | Y36: 0 | Z36: 0 | BJ36: NC | BK36: 0 | BL36: NC | BM36: 0 | BN36: NC | BO36: 0 | BP36: 0 | BQ36: NC | BR36: 0 | BS36: NC | BT36: 0 | BU36: NC | BV36: 0 | BW36: 0 | BX36: 2 | BY36: 14 | BZ36: 4 | CA36: 8 | CB36: 11 | CC36: 3 | CD36: =CC36+CA36+BY36 -> 25 | CL36: NC | CM36: 0 | CN36: NC | CO36: 0 | CP36: NC | CQ36: 0 | CR36: 0 | CZ36: NC | DA36: 0 | DB36: 2 | DC36: 13 | DD36: NC | DE36: 0 | DF36: =DE36+DC36+DA36 -> 13 | DN36: 2 | DO36: 38
B37: 29 | C37: JESSICA MACHADO M. DOS SANTOS | D37: ALION DA BARRA (IA) | E37: AMT | F37: 4 | G37: 12 | H37: 6 | I37: 11 | J37: 3 | K37: 13 | L37: =K37+I37+G37 -> 36 | T37: NC | U37: 0 | V37: NC | W37: 0 | X37: NC | Y37: 0 | Z37: 0 | BJ37: NC | BK37: 0 | BL37: NC | BM37: 0 | BN37: NC | BO37: 0 | BP37: 0 | BQ37: NC | BR37: 0 | BS37: NC | BT37: 0 | BU37: NC | BV37: 0 | BW37: 0 | CL37: NC | CM37: 0 | CN37: NC | CO37: 0 | CP37: NC | CQ37: 0 | CR37: 0 | DN37: 1 | DO37: 36
B38: 30 | C38: FELIPE CARVALHO GOMES VENTURA | D38: CALIMEIA JMEN (IA) | E38: AMT | M38: 22 | N38: 0 | O38: 22 | P38: 0 | Q38: 23 | R38: 0 | S38: =R38+P38+N38 -> 0 | T38: NC | U38: 0 | V38: NC | W38: 0 | X38: NC | Y38: 0 | Z38: 0 | AA38: 8 | AB38: 9.9 | AC38: 4 | AD38: 14.3 | AE38: 10 | AF38: 7.7 | AG38: =AF38+AD38+AB38 -> 31.9 | BC38: NC | BD38: 0 | BE38: NC | BF38: 0 | BG38: 16 | BH38: 1.1 | BI38: =BH38+BF38+BD38 -> 1.1 | BJ38: NC | BK38: 0 | BL38: NC | BM38: 0 | BN38: NC | BO38: 0 | BP38: 0 | BQ38: NC | BR38: 0 | BS38: NC | BT38: 0 | BU38: NC | BV38: 0 | BW38: 0 | CL38: NC | CM38: 0 | CN38: NC | CO38: 0 | CP38: NC | CQ38: 0 | CR38: 0 | DN38: 3 | DO38: 33
B39: 30 | C39: MARIANA CASSETTARI | D39: XYZZY DO FEROLETO (TE) | E39: MT | T39: NC | U39: 0 | V39: NC | W39: 0 | X39: NC | Y39: 0 | Z39: 0 | AH39: 16 | AI39: 1.1 | AJ39: NC | AK39: 0 | AL39: NC | AM39: 0 | AN39: =AM39+AK39+AI39 -> 1.1 | BJ39: NC | BK39: 0 | BL39: NC | BM39: 0 | BN39: NC | BO39: 0 | BP39: 0 | BQ39: NC | BR39: 0 | BS39: NC | BT39: 0 | BU39: NC | BV39: 0 | BW39: 0 | CE39: 12 | CF39: 5.5 | CG39: 15 | CH39: 2.2 | CI39: 4 | CJ39: 14.3 | CK39: =CF39+CH39+CJ39 -> 22 | CL39: NC | CM39: 0 | CN39: NC | CO39: 0 | CP39: NC | CQ39: 0 | CR39: 0 | DG39: 8 | DH39: 9.9 | DI39: NC | DJ39: 0 | DM39: =DH39+DJ39 -> 9.9 | DN39: 3 | DO39: 33
